{"text_format":"1","workbook":"xlsx","n_sheets":68,"sheets":["Invoice overview","Expert sheet (months or days)","Expert sheet (months or d (2)","Expert sheet (months or d (3)","Expert sheet (months or d (4)","Expert sheet (months or d (5)","Expert sheet (months or d (6)","Expert sheet (months or d (7)","Expert sheet (months or d (8)","Expert sheet (months or d (9)","Expert sheet (months or d (10)","Expert sheet (months or d (11)","Expert sheet (months or d (12)","Expert sheet (months or d (13)","Expert sheet (months or d (14)","Expert sheet (months or d (15)","Expert sheet (months or d (16)","Expert sheet (months or d (17)","Expert sheet (months or d (18)","Expert sheet (months or d (19)","Expert sheet (months or d (20)","Expert sheet (months or d (21)","Expert sheet (months or d (22)","Expert sheet (months or d (23)","Expert sheet (months or d (24)","Expert sheet (months or d (25)","Expert sheet (months or d (26)","Expert sheet (months or d (27)","Expert sheet (months or d (28)","Expert sheet (months or d (29)","Expert sheet (months or d (30)","5.11. National personnel","5.12. Equipment","5.13. Consumables","5.14. Subcontracts","5.15. Wo. & tr. for partner","5.15. Wo. & tr. for partner (2)","5.15. Wo. & tr. for partner (3)","5.15. Wo. & tr. for partner (4)","5.15. Wo. & tr. for partner (5)","5.15. Wo. & tr. for partner (6)","5.15. Wo. & tr. for partner (7)","5.15. Wo. & tr. for partner (8)","5.15. Wo. & tr. for partner (9)","5.15. Wo. & tr. for partner(10)","5.15. Wo. & tr. for partner(11)","5.15. Wo. & tr. for partner(12)","5.15. Wo. & tr. for partner(13)","5.15. Wo. & tr. for partner(14)","5.15. Wo. & tr. for partner(15)","5.15. Wo. & tr. for partner(16)","5.15. Wo. & tr. for partner(17)","5.15. Wo. & tr. for partner(18)","5.15. Wo. & tr. for partner(19)","5.15. Wo. & tr. for partner(20)","5.15. Wo. & tr. for partner(21)","5.15. Wo. & tr. for partner(22)","5.15. Wo. & tr. for partner(23)","5.15. Wo. & tr. for partner(24)","5.15. Wo. & tr. for partner(25)","5.15. Wo. & tr. for partner(26)","5.15. Wo. & tr. for partner(27)","5.15. Wo. & tr. for partner(28)","5.15. Wo. & tr. for partner(29)","5.15. Wo. & tr. for partner(30)","5.16. Local subsidies","5.17. Other costs","5.18. Flex. remun. item"],"not_rendered":{"charts":0,"images":60,"macros":1,"external_links":0,"defined_names":74,"comments":0,"pivot_tables":0},"unopened":[],"bounds":{"document_bytes":16777216,"sheet_cells":100000,"rows_first":2000,"rows_last":500,"rows_between":2000,"halvings":0,"cell_chars":16384,"cell_head_chars":4096},"cells_cut":0,"cells_raw":0,"read":"whole","date_system":"1900"}

{"sheet":"Invoice overview","index":0,"n_rows":63,"n_cols":13,"rows_kept":63,"cut":false,"hidden":false,"merged":[[60,2,60,3],[59,2,59,3],[59,4,59,6],[60,4,60,6],[1,0,1,3],[2,0,2,3],[3,0,3,3],[4,0,4,3],[5,0,5,3],[2,5,2,6],[1,5,1,6],[3,5,3,6],[4,5,4,6],[5,5,5,6],[6,5,6,6],[60,0,60,1],[19,0,19,1],[19,2,19,3],[31,1,31,2],[31,3,31,4],[33,1,33,2],[28,0,28,5],[28,6,28,7],[33,3,33,5],[62,0,62,3],[27,4,27,5],[20,0,20,3],[21,1,21,3],[21,5,21,9],[22,0,22,3],[22,5,22,9],[24,0,24,3],[24,5,24,9],[23,0,23,2],[23,5,23,9],[25,0,25,9],[26,0,26,1],[26,2,26,3],[26,4,26,5],[26,6,26,7],[27,0,27,1],[27,2,27,3],[34,3,34,5],[29,0,29,5],[30,1,30,4],[57,1,57,2],[30,6,30,8],[34,1,34,2],[59,0,59,1],[29,6,29,8],[0,0,0,4],[0,5,0,9],[1,4,6,4],[16,5,16,9],[17,5,17,9],[7,0,7,9],[8,0,9,4],[8,5,8,9],[9,5,9,9],[10,0,15,3],[10,5,10,7],[11,5,11,7],[12,5,12,7],[15,5,15,9],[6,0,6,3],[1,7,1,9],[2,7,2,9],[3,7,3,9],[4,7,4,9],[5,7,5,9],[6,7,6,9],[55,0,56,0],[55,1,55,2],[56,1,56,2],[53,0,54,0],[53,4,53,5],[54,1,54,2],[45,3,45,5],[43,3,43,5],[49,1,49,2],[44,1,44,2],[45,1,45,2],[44,3,44,5],[47,4,47,5],[49,4,49,5],[47,1,47,2],[48,1,48,2],[50,0,51,0],[50,4,50,5],[50,1,50,2],[51,1,51,2],[53,1,53,2],[43,1,43,2],[41,1,41,2],[52,1,52,2],[42,1,42,2],[46,1,46,2],[44,11,46,11],[3,11,5,11],[10,11,14,11],[19,11,20,11],[23,11,24,11],[26,11,29,11],[36,11,37,11],[51,10,51,13],[38,3,38,5],[35,3,35,5],[35,1,35,2],[36,1,36,2],[36,3,36,5],[40,1,40,2],[39,1,39,2],[37,1,37,2],[37,3,37,5],[38,1,38,2],[32,1,32,2],[32,3,32,5],[57,4,57,5],[39,3,39,5],[41,3,41,5],[46,3,46,5],[54,4,54,5],[56,4,56,5],[55,4,55,5],[40,3,40,5],[48,4,48,5],[51,4,51,5],[52,4,52,5],[42,3,42,5]]}
["Contractor (Please use the same address as in your contract)",null,null,null,null,"Bank details"]
[null,null,null,null,null,"Name of bank:",null,"Please enter your",null,null,null,null,0]
[null,null,null,null,null,"Account no.:",null,"bank details here",null,null,null,null,"USD"]
[null,null,null,null,null,"Bank code:",null,null,null,null,null,null,"GBP"]
[null,null,null,null,null,"IBAN:"]
[null,null,null,null,null,"BIC (Swift Code for foreign bank):"]
[null,null,null,null,null,"Tax/VAT ID No.:"]
[]
[null,null,null,null,null,"For GIZ use only"]
[null,null,null,null,null,null,null,null,null,null,null,null,"EUR"]
["Deutsche Gesellschaft für Internationale Zusammenarbeit (GIZ) GmbH\nFriedrich-Ebert-Allee 36\n53113 Bonn",null,null,null,null,"VR",null,null,null,"1 1",null,null,"USD"]
[null,null,null,null,null,"LR",null,null,null,"1 1",null,null,"GBP"]
[null,null,null,null,null,"KR   4 7"]
[]
[]
[null,null,null,null,null,"Received by OU 5230"]
[]
[null,null,null,null,null,"Basis"]
[null,null,null,null,null,"A/C",null,"C/U"]
["Sequential invoice number:"]
[null,null,null,null,null,null,null,"Total amount"]
[null,null,null,null,null,"Confirmation of performance"]
[null,null,null,null,null,"OE                 Date                  Name"]
["Date of commencement of work:",null,null,null,null,"Calc. tech. correct   (Approved)"]
["(please state on first request for advance payment)",null,null,null,null,"OE                 Date                  Name"]
[]
["Contract number",null,"Project processing no./\nCost centre",null,null,null,"Accounting period",null,null,"Date of invoice"]
[null,null,null,null,null,null,null,"bis"]
["Brief project title",null,null,null,null,null,"Country",null,null,"Place of supply (per contract)"]
[]
[null,null,null,null,null,null,"Reserved for GIZ",null,null,"Invoice compl. on:",null,"Invoice compl. on:"]
["GIZ Terms and Conditions, section","Remuneration item (net amounts)",null,"Currency:",null,"EUR"]
["5.4","Fee",null,{"$f":"SUM('Expert sheet (months or days)'!H22:H23)+SUM('Expert sheet (months or d (2)'!H22:H23)+SUM('Expert sheet (months or d (3)'!H22:H23)+SUM('Expert sheet (months or d (4)'!H22:H23)+SUM('Expert sheet (months or d (5)'!H22:H23)+SUM('Expert sheet (months or d (6)'!H22:H23)+SUM('Expert sheet (months or d (7)'!H22:H23)+SUM('Expert sheet (months or d (8)'!H22:H23)+SUM('Expert sheet (months or d (9)'!H22:H23)+SUM('Expert sheet (months or d (10)'!H22:H23)+SUM('Expert sheet (months or d (11)'!H22:H23)+SUM('Expert sheet (months or d (12)'!H22:H23)+SUM('Expert sheet (months or d (13)'!H22:H23)+SUM('Expert sheet (months or d (14)'!H22:H23)+SUM('Expert sheet (months or d (15)'!H22:H23)+SUM('Expert sheet (months or d (16)'!H22:H23)+SUM('Expert sheet (months or d (17)'!H22:H23)+SUM('Expert sheet (months or d (18)'!H22:H23)+SUM('Expert sheet (months or d (19)'!H22:H23)+SUM('Expert sheet (months or d (20)'!H22:H23)+SUM('Expert sheet (months or d (21)'!H22:H23)+SUM('Expert sheet (months or d (22)'!H22:H23)+SUM('Expert sheet (months or d (23)'!H22:H23)+SUM('Expert sheet (months or d (24)'!H22:H23)+SUM('Expert sheet (months or d (25)'!H22:H23)+SUM('Expert sheet (months or d (26)'!H22:H23)+SUM('Expert sheet (months or d (27)'!H22:H23)+SUM('Expert sheet (months or d (28)'!H22:H23)+SUM('Expert sheet (months or d (29)'!H22:H23)+SUM('Expert sheet (months or d (30)'!H22:H23)","v":0}]
["5.6","Per diem allowance",null,{"$f":"'Expert sheet (months or days)'!H24+'Expert sheet (months or d (2)'!H24+'Expert sheet (months or d (3)'!H24+'Expert sheet (months or d (4)'!H24+'Expert sheet (months or d (5)'!H24+'Expert sheet (months or d (6)'!H24+'Expert sheet (months or d (7)'!H24+'Expert sheet (months or d (8)'!H24+'Expert sheet (months or d (9)'!H24+'Expert sheet (months or d (10)'!H24+'Expert sheet (months or d (11)'!H24+'Expert sheet (months or d (12)'!H24+'Expert sheet (months or d (13)'!H24+'Expert sheet (months or d (14)'!H24+'Expert sheet (months or d (15)'!H24+'Expert sheet (months or d (16)'!H24+'Expert sheet (months or d (17)'!H24+'Expert sheet (months or d (18)'!H24+'Expert sheet (months or d (19)'!H24+'Expert sheet (months or d (20)'!H24+'Expert sheet (months or d (21)'!H24+'Expert sheet (months or d (22)'!H24+'Expert sheet (months or d (23)'!H24+'Expert sheet (months or d (24)'!H24+'Expert sheet (months or d (25)'!H24+'Expert sheet (months or d (26)'!H24+'Expert sheet (months or d (27)'!H24+'Expert sheet (months or d (28)'!H24+'Expert sheet (months or d (29)'!H24+'Expert sheet (months or d (30)'!H24","v":0}]
["5.7","Overnight allowance",null,{"$f":"'Expert sheet (months or days)'!H25+'Expert sheet (months or d (2)'!H25+'Expert sheet (months or d (3)'!H25+'Expert sheet (months or d (4)'!H25+'Expert sheet (months or d (5)'!H25+'Expert sheet (months or d (6)'!H25+'Expert sheet (months or d (7)'!H25+'Expert sheet (months or d (8)'!H25+'Expert sheet (months or d (9)'!H25+'Expert sheet (months or d (10)'!H25+'Expert sheet (months or d (11)'!H25+'Expert sheet (months or d (12)'!H25+'Expert sheet (months or d (13)'!H25+'Expert sheet (months or d (14)'!H25+'Expert sheet (months or d (15)'!H25+'Expert sheet (months or d (16)'!H25+'Expert sheet (months or d (17)'!H25+'Expert sheet (months or d (18)'!H25+'Expert sheet (months or d (19)'!H25+'Expert sheet (months or d (20)'!H25+'Expert sheet (months or d (21)'!H25+'Expert sheet (months or d (22)'!H25+'Expert sheet (months or d (23)'!H25+'Expert sheet (months or d (24)'!H25+'Expert sheet (months or d (25)'!H25+'Expert sheet (months or d (26)'!H25+'Expert sheet (months or d (27)'!H25+'Expert sheet (months or d (28)'!H25+'Expert sheet (months or d (29)'!H25+'Expert sheet (months or d (30)'!H25","v":0}]
["5.8","Air travel expenses",null,{"$f":"'Expert sheet (months or days)'!K37+'Expert sheet (months or d (2)'!K37+'Expert sheet (months or d (3)'!K37+'Expert sheet (months or d (4)'!K37+'Expert sheet (months or d (5)'!K37+'Expert sheet (months or d (6)'!K37+'Expert sheet (months or d (7)'!K37+'Expert sheet (months or d (8)'!K37+'Expert sheet (months or d (9)'!K37+'Expert sheet (months or d (10)'!K37+'Expert sheet (months or d (11)'!K37+'Expert sheet (months or d (12)'!K37+'Expert sheet (months or d (13)'!K37+'Expert sheet (months or d (14)'!K37+'Expert sheet (months or d (15)'!K37+'Expert sheet (months or d (16)'!K37+'Expert sheet (months or d (17)'!K37+'Expert sheet (months or d (18)'!K37+'Expert sheet (months or d (19)'!K37+'Expert sheet (months or d (20)'!K37+'Expert sheet (months or d (21)'!K37+'Expert sheet (months or d (22)'!K37+'Expert sheet (months or d (23)'!K37+'Expert sheet (months or d (24)'!K37+'Expert sheet (months or d (25)'!K37+'Expert sheet (months or d (26)'!K37+'Expert sheet (months or d (27)'!K37+'Expert sheet (months or d (28)'!K37+'Expert sheet (months or d (29)'!K37+'Expert sheet (months or d (30)'!K37","v":0}]
["5.9","Other travel expenses",null,{"$f":"'Expert sheet (months or days)'!K45+'Expert sheet (months or d (2)'!K45+'Expert sheet (months or d (3)'!K45+'Expert sheet (months or d (4)'!K45+'Expert sheet (months or d (5)'!K45+'Expert sheet (months or d (6)'!K45+'Expert sheet (months or d (7)'!K45+'Expert sheet (months or d (8)'!K45+'Expert sheet (months or d (9)'!K45+'Expert sheet (months or d (10)'!K45+'Expert sheet (months or d (11)'!K45+'Expert sheet (months or d (12)'!K45+'Expert sheet (months or d (13)'!K45+'Expert sheet (months or d (14)'!K45+'Expert sheet (months or d (15)'!K45+'Expert sheet (months or d (16)'!K45+'Expert sheet (months or d (17)'!K45+'Expert sheet (months or d (18)'!K45+'Expert sheet (months or d (19)'!K45+'Expert sheet (months or d (20)'!K45+'Expert sheet (months or d (21)'!K45+'Expert sheet (months or d (22)'!K45+'Expert sheet (months or d (23)'!K45+'Expert sheet (months or d (24)'!K45+'Expert sheet (months or d (25)'!K45+'Expert sheet (months or d (26)'!K45+'Expert sheet (months or d (27)'!K45+'Expert sheet (months or d (28)'!K45+'Expert sheet (months or d (29)'!K45+'Expert sheet (months or d (30)'!K45","v":0}]
["5.9","Other travel expenses (monthly lump sum)",null,{"$f":"'Expert sheet (months or days)'!I52+'Expert sheet (months or d (2)'!I52+'Expert sheet (months or d (3)'!I52+'Expert sheet (months or d (4)'!I52+'Expert sheet (months or d (5)'!I52+'Expert sheet (months or d (6)'!I52+'Expert sheet (months or d (7)'!I52+'Expert sheet (months or d (8)'!I52+'Expert sheet (months or d (9)'!I52+'Expert sheet (months or d (10)'!I52+'Expert sheet (months or d (11)'!I52+'Expert sheet (months or d (12)'!I52+'Expert sheet (months or d (13)'!I52+'Expert sheet (months or d (14)'!I52+'Expert sheet (months or d (15)'!I52+'Expert sheet (months or d (16)'!I52+'Expert sheet (months or d (17)'!I52+'Expert sheet (months or d (18)'!I52+'Expert sheet (months or d (19)'!I52+'Expert sheet (months or d (20)'!I52+'Expert sheet (months or d (21)'!I52+'Expert sheet (months or d (22)'!I52+'Expert sheet (months or d (23)'!I52+'Expert sheet (months or d (24)'!I52+'Expert sheet (months or d (25)'!I52+'Expert sheet (months or d (26)'!I52+'Expert sheet (months or d (27)'!I52+'Expert sheet (months or d (28)'!I52+'Expert sheet (months or d (29)'!I52+'Expert sheet (months or d (30)'!I52","v":0}]
["5.10","Transfer to the country of assignment",null,{"$f":"'Expert sheet (months or days)'!E56+'Expert sheet (months or d (2)'!E56+'Expert sheet (months or d (3)'!E56+'Expert sheet (months or d (4)'!E56+'Expert sheet (months or d (5)'!E56+'Expert sheet (months or d (6)'!E56+'Expert sheet (months or d (7)'!E56+'Expert sheet (months or d (8)'!E56+'Expert sheet (months or d (9)'!E56+'Expert sheet (months or d (10)'!E56+'Expert sheet (months or d (11)'!E56+'Expert sheet (months or d (12)'!E56+'Expert sheet (months or d (13)'!E56+'Expert sheet (months or d (14)'!E56+'Expert sheet (months or d (15)'!E56+'Expert sheet (months or d (16)'!E56+'Expert sheet (months or d (17)'!E56+'Expert sheet (months or d (18)'!E56+'Expert sheet (months or d (19)'!E56+'Expert sheet (months or d (20)'!E56+'Expert sheet (months or d (21)'!E56+'Expert sheet (months or d (22)'!E56+'Expert sheet (months or d (23)'!E56+'Expert sheet (months or d (24)'!E56+'Expert sheet (months or d (25)'!E56+'Expert sheet (months or d (26)'!E56+'Expert sheet (months or d (27)'!E56+'Expert sheet (months or d (28)'!E56+'Expert sheet (months or d (29)'!E56+'Expert sheet (months or d (30)'!E56","v":0}]
["5.11","Assignment of national staff",null,{"$f":"'5.11. National personnel'!H18","v":0}]
["5.12","Equipment",null,{"$f":"'5.12. Equipment'!H43","v":0}]
["5.13","Consumables",null,{"$f":"'5.13. Consumables'!G93+'5.13. Consumables'!G63+'5.13. Consumables'!G34","v":0}]
["5.14","Subcontracts",null,{"$f":"SUM('5.14. Subcontracts'!G18)","v":0}]
["5.15","Workshops/Training",null,{"$f":"'5.15. Wo. & tr. for partner'!G38+'5.15. Wo. & tr. for partner (2)'!G38+'5.15. Wo. & tr. for partner (3)'!G38+'5.15. Wo. & tr. for partner (4)'!G38+'5.15. Wo. & tr. for partner (5)'!G38+'5.15. Wo. & tr. for partner (6)'!G38+'5.15. Wo. & tr. for partner (7)'!G38+'5.15. Wo. & tr. for partner (8)'!G38+'5.15. Wo. & tr. for partner (9)'!G38+'5.15. Wo. & tr. for partner(10)'!G38+'5.15. Wo. & tr. for partner(11)'!G38+'5.15. Wo. & tr. for partner(12)'!G38+'5.15. Wo. & tr. for partner(13)'!G38+'5.15. Wo. & tr. for partner(14)'!G38+'5.15. Wo. & tr. for partner(15)'!G38+'5.15. Wo. & tr. for partner(16)'!G38+'5.15. Wo. & tr. for partner(17)'!G38+'5.15. Wo. & tr. for partner(18)'!G38+'5.15. Wo. & tr. for partner(19)'!G38+'5.15. Wo. & tr. for partner(20)'!G38+'5.15. Wo. & tr. for partner(21)'!G38+'5.15. Wo. & tr. for partner(22)'!G38+'5.15. Wo. & tr. for partner(23)'!G38+'5.15. Wo. & tr. for partner(24)'!G38+'5.15. Wo. & tr. for partner(25)'!G38+'5.15. Wo. & tr. for partner(26)'!G38+'5.15. Wo. & tr. for partner(27)'!G38+'5.15. Wo. & tr. for partner(28)'!G38+'5.15. Wo. & tr. for partner(29)'!G38+'5.15. Wo. & tr. for partner(30)'!G38","v":0}]
["5.16","Local subsidies",null,{"$f":"SUM('5.16. Local subsidies'!G21)","v":0}]
["5.17","Other costs",null,{"$f":"'5.17. Other costs'!E37","v":0}]
["5.18","Flexible remuneration item",null,{"$f":"'5.18. Flex. remun. item'!E16","v":0}]
[null,"Invoice amount",null,"Net ",{"$f":"SUM(D33:F47)","v":0}]
[null,"+ VAT (%)",null,0,{"$f":"SUM(E48*D49)","v":0}]
[null,"Invoice amount",null,"gross",{"$f":"SUM(E48:F49)","v":0}]
["5.21.2.","./. Retention of costs as security",null,"Net"]
[null,"./. VAT on costs retained (%)",null,0,{"$f":"SUM(E51*D52)","v":0}]
[null,"Subtotal",null,null,{"$f":"SUM(E50)-(E51)-(E52)","v":0}]
["5.20.2.","+ Advance payment",null,"Net"]
[null,"+ VAT (%)",null,0,{"$f":"SUM(E54*D55)","v":0}]
["5.20.4.","./. Advance payment (repayment)",null,"Net"]
[null,"./. VAT  (%)",null,0,{"$f":"SUM(E56*D57)","v":0}]
[null,"PAYMENT AMOUNT",null,{"$f":"F32","v":"EUR"},{"$f":"E53+E54+E55-E56-E57","v":0}]
[]
[]
["Contacts at the contractor",null,"Phone",null,"E-mail"]
[]
["All information provided is accurate and the expenses and costs invoiced have not been and will not be claimed from or invoiced to a third party."]

{"sheet":"Expert sheet (months or days)","index":1,"n_rows":135,"n_cols":39,"rows_kept":135,"cut":false,"hidden":false,"merged":[[12,14,12,15],[5,15,7,15],[11,9,11,13],[5,13,5,14],[6,13,6,14],[11,14,11,15],[9,0,9,1],[6,0,6,1],[21,0,21,2],[22,0,22,2],[8,2,8,4],[9,2,9,4],[28,7,29,7],[19,7,20,7],[13,0,13,5],[19,4,20,4],[21,15,21,16],[21,8,21,14],[23,8,23,14],[24,8,24,14],[19,3,20,3],[15,9,15,13],[19,8,20,14],[19,5,19,6],[18,0,18,16],[13,14,13,15],[14,14,14,15],[19,15,20,16],[31,16,31,17],[32,16,32,17],[33,16,33,17],[23,15,23,16],[24,15,24,16],[56,12,56,14],[28,10,29,10],[28,11,29,15],[30,11,30,15],[49,9,49,14],[36,11,36,15],[31,11,31,15],[43,11,43,15],[39,11,39,15],[22,8,22,14],[12,9,12,13],[13,9,13,13],[14,9,14,13],[1,3,1,4],[1,7,1,9],[7,2,7,4],[6,2,6,4],[5,7,5,8],[6,7,6,8],[6,9,6,10],[5,9,5,12],[6,11,6,12],[15,14,15,15],[16,14,16,15],[16,9,16,13],[16,19,16,20],[36,16,36,17],[26,11,26,17],[55,0,55,1],[32,11,32,15],[33,11,33,15],[47,0,48,0],[49,3,49,4],[50,3,50,4],[41,11,41,15],[51,3,51,4],[51,9,51,14],[28,16,29,17],[38,14,38,15],[34,16,34,17],[35,16,35,17],[54,5,54,8],[55,5,55,8],[54,9,54,11],[55,9,55,11],[47,5,48,5],[47,6,48,6],[47,8,48,8],[50,9,50,14],[47,9,48,14],[44,3,44,4],[28,3,28,5],[36,3,36,4],[44,11,44,15],[47,1,47,2],[47,3,48,4],[47,15,48,16],[34,11,34,15],[35,11,35,15],[42,11,42,15],[28,1,29,1],[40,11,40,15],[47,7,48,7],[46,0,46,16],[39,16,39,17],[30,16,30,17]]}
["Statement on personnel deployment"]
[null,"Contract number:",null,"Processing no./Cost centre:",null,null,null,"Accounting period:"]
[null,{"$f":"'Invoice overview'!A28","v":0},null,null,{"$f":"'Invoice overview'!C28","v":0},null,null,null,null,{"$f":"_xlfn.TEXTJOIN(\"   \",FALSE,IF('Invoice overview'!$G$28 > 0, TEXT('Invoice overview'!$G$28,\"TT.MM.JJJJ\"),\"\"),\"until\",IF('Invoice overview'!$I$28 > 0, TEXT('Invoice overview'!$I$28,\"TT.MM.JJJJ\"),\"\"))","v":"   until   "}]
[]
[]
["Personal data",null,null,null,null,null,"Periods of assignment","Total scheduled time",null,"Accounting period ",null,null,null,"Actual time ",null,"Remarks"]
["Family name, given name:",null,null,null,null,null,null,"Acc. to contract",null,"Actual period",null,"Period",null,"Total"]
["Function:",null,"Please select",null,null,null,null,"Months","Days","dd.mm.yyyy","dd.mm.yyyy","Months","Days","Months","Days"]
["Description of function:",null,null,null,null,null,"Germany"]
["Expert no. per price schedule",null,null,null,null,null,"Other Countries"]
[]
[null,null,null,null,null,null,"Details on leave and sickness",null,null,"Remarks",null,null,null,null,"Reserved for GIZ"]
["Link to assignment period calculation sheet for short-term expert pools:",null,null,null,null,null,"Total contractual entitlement (days)",null,{"$f":"IF( (SUM(H9:H10)) >= 4, (SUM(H9:H10)) * 4, 0)","v":0}]
["https://www.giz.de/de/downloads/giz2012-de-Hilfe_zur_Berechnung_der_Einsatzzeit_von_KZE-Pools.xls",null,null,null,null,null,"Remaining entitlement (days) *"]
[null,null,null,null,null,null,"Leave taken (days)*"]
[null,null,null,null,null,null,"Remaining leave (days)",null,{"$f":"IF(I14>0,I14-I15,I13-I15)","v":0}]
[null,null,null,null,null,null,"Sickness (days)"]
[]
["Personnel costs"]
[null,null,null,"Monthly rate\nacc. to contract","Daily rate\nacc. to contract","Quantity",null,"Amount ","Remarks",null,null,null,null,null,null,"Reserved for GIZ"]
["Remuneration item",null,null,null,null,"Months","Days **"]
["Fee (No. 5.4 General Conditions)",null,null,null,null,null,null,{"$f":"IF(NOT(D22=\"\"),D22*(F22+ROUND((G22/30),3)),IF(NOT(E22=\"\"),E22*G22,0))","v":0}]
["Fee (No. 5.4 General Conditions)",null,null,null,null,null,null,{"$f":"IF(NOT(D23=\"\"),D23*(F23+ROUND((G23/30),3)),IF(NOT(E23=\"\"),E23*G23,0))","v":0}]
["Per diem (No. 5.6. General Conditions)",null,null,null,null,null,null,{"$f":"IF(NOT(D24=\"\"),D24*(F24+ROUND((G24/30),3)),IF(NOT(E24=\"\"),E24*G24,0))","v":0}]
["Accommodation (No. 5.7 General Conditions)",null,null,null,null,null,null,{"$f":"IF(NOT(D25=\"\"),D25*(F25+ROUND((G25/30),3)),IF(NOT(E25=\"\"),E25*G25,0))","v":0}]
[]
["Travel expenses"]
["Air travel (No. 5.8 General Conditions)"]
[null,"Name of traveller",null,"Travel dates",null,null,null,"Amount\n (per voucher or lump sum)",null,null,"Amount ","Remarks",null,null,null,null,"Reserved for GIZ"]
["No.",null,"Type of flight","Destination","Outward flight\n(dd.mm.yyyy)","Homeward flight (dd.mm.yyyy)","Type of reimbursement",null,"Currency","Rate/\nquantity*"]
[1,null,"Please select",null,null,null,"Please select",null,null,null,{"$f":"H31*J31","v":0}]
[2,null,null,null,null,null,null,null,null,null,{"$f":"H32*J32","v":0}]
[3,null,null,null,null,null,null,null,null,null,0]
[4,null,null,null,null,null,null,null,null,null,0]
[5,null,null,null,null,null,null,null,null,null,0]
[6,null,null,null,null,null,null,null,null,null,0]
["TOTAL:",null,null,null,null,null,null,null,null,{"$f":"'Invoice overview'!F32","v":"EUR"},{"$f":"SUM(K31:K36)","v":0}]
[]
["Other travel expenses (No. 5.9 General Conditions)"]
["No.","Country of travel","Nature of travel expenses","Start\n(dd.mm.yyyy)","End\n(dd.mm.yyyy)","Reason for travel","Type of reimbursement","Amount\n (per voucher or lump sum)","Currency","Rate/\nquantity*","Amount ","Remarks",null,null,null,null,"Reserved for GIZ"]
[1,null,"Please select",null,null,null,"Please select",null,null,null,{"$f":"H41*J41","v":0}]
[2,null,null,null,null,null,null,null,null,null,{"$f":"H42*J42","v":0}]
[3,null,null,null,null,null,null,null,null,null,0]
[4,null,null,null,null,null,null,null,null,null,0]
["TOTAL:",null,null,null,null,null,null,null,null,{"$f":"'Invoice overview'!F32","v":"EUR"},{"$f":"SUM(K41:K44)","v":0}]
[]
["Other travel expenses (No. 5.9 General Conditions) MONTHLY LUMP SUM"]
["No.","Accounting period",null,"Nature of travel expenses",null,"Type of reimbursement","Monthly rate\nacc. to contract","Daily rate\nacc. to contract","Amount","Remarks",null,null,null,null,null,"Reserved for GIZ"]
[null,"Months","Days**"]
[1,null,null,"Please select",null,"Lump sum/Month or day",null,null,{"$f":"IF(NOT(G50=\"\"),G50*(B50+ROUND((C50/30),3)),IF(NOT(H50=\"\"),H50*C50,0))","v":0}]
[2,null,null,null,null,"Lump sum/Month or day",null,null,{"$f":"IF(NOT(G51=\"\"),G51*(B51+ROUND((C51/30),3)),IF(NOT(H51=\"\"),H51*C51,0))","v":0}]
["Total:",null,null,null,null,null,null,{"$f":"'Invoice overview'!F32","v":"EUR"},{"$f":"SUM(I50:I51)","v":0}]
[]
["Relocation goods (No. 5.10. General Conditions)"]
["Lump sum (in contract currency)",null,"Quantity","Rate","Amount","Remarks",null,null,null,"Reserved for GIZ"]
[null,null,1,null,{"$f":"D56*C56","v":0}]
[null,null,null,null,null,null,null,null,null,null,null,null,"Total for personnel deployment ",null,null,{"$f":"H22+H23+H24+H25+K37+K45+I52+E56","v":0}]
[]
[]
[]
[]
[]
[]
[]
[]
[]
[]
[]
[]
[]
[]
[]
[]
[]
[]
[]
[]
[]
[]
[]
[]
[]
[]
[]
[]
[]
[]
[]
[]
[]
[]
[]
[]
[]
[]
[]
[]
[]
[]
[]
[]
[]
[]
[]
[]
[]
[]
[]
[]
[]
[]
[]
[null,null,null,null,null,null,null,null,null,null,null,null,null,null,null,null,null,null,null,null,null,null,null,null,null,null,null,null,null,null,null,null,null,null,null,null,null,null,"Please select"]
[null,null,null,null,null,null,null,null,null,null,null,null,null,null,null,null,null,null,null,null,null,null,null,null,null,null,null,null,null,null,null,null,null,null,null,null,null,null,"Expert (outward and homeward journeys)"]
[null,null,null,null,null,null,null,null,null,null,null,null,null,null,null,null,null,null,null,null,null,null,null,null,null,null,null,null,null,null,null,null,null,null,null,null,null,null,"Dependants (outward and homeward journeys) "]
[null,null,null,null,null,null,null,null,null,null,null,null,null,null,null,null,null,null,null,null,null,null,null,null,null,null,null,null,null,null,null,null,null,null,null,null,null,null,"Vacation flights"]
[null,null,null,null,null,null,null,null,null,null,null,null,null,null,null,null,null,null,null,null,null,null,null,null,null,null,null,null,null,null,null,null,null,null,null,null,null,null,"Regional and national flights"]
[null,null,null,null,null,null,null,null,null,null,null,null,null,null,null,null,null,null,null,null,null,null,null,null,null,null,null,null,null,null,null,null,null,null,null,null,null,null,"Other flights"]
[]
[null,null,null,null,null,null,null,null,null,null,null,null,null,null,null,null,null,null,null,null,null,null,null,null,null,null,null,null,null,null,null,null,null,null,null,null,null,null,"Please select"]
[null,null,null,null,null,null,null,null,null,null,null,null,null,null,null,null,null,null,null,null,null,null,null,null,null,null,null,null,null,null,null,null,null,null,null,null,null,null,"Lump sum"]
[null,null,null,null,null,null,null,null,null,null,null,null,null,null,null,null,null,null,null,null,null,null,null,null,null,null,null,null,null,null,null,null,null,null,null,null,null,null,"Against evidence"]
[]
[null,null,null,null,null,null,null,null,null,null,null,null,null,null,null,null,null,null,null,null,null,null,null,null,null,null,null,null,null,null,null,null,null,null,null,null,null,null,"Please select"]
[null,null,null,null,null,null,null,null,null,null,null,null,null,null,null,null,null,null,null,null,null,null,null,null,null,null,null,null,null,null,null,null,null,null,null,null,null,null,"Long-term expert, int."]
[null,null,null,null,null,null,null,null,null,null,null,null,null,null,null,null,null,null,null,null,null,null,null,null,null,null,null,null,null,null,null,null,null,null,null,null,null,null,"Long-term expert, reg."]
[null,null,null,null,null,null,null,null,null,null,null,null,null,null,null,null,null,null,null,null,null,null,null,null,null,null,null,null,null,null,null,null,null,null,null,null,null,null,"Long-term expert, nat."]
[null,null,null,null,null,null,null,null,null,null,null,null,null,null,null,null,null,null,null,null,null,null,null,null,null,null,null,null,null,null,null,null,null,null,null,null,null,null,"Short-term expert, int."]
[null,null,null,null,null,null,null,null,null,null,null,null,null,null,null,null,null,null,null,null,null,null,null,null,null,null,null,null,null,null,null,null,null,null,null,null,null,null,"Short-term expert, reg."]
[null,null,null,null,null,null,null,null,null,null,null,null,null,null,null,null,null,null,null,null,null,null,null,null,null,null,null,null,null,null,null,null,null,null,null,null,null,null,"Short-term expert, nat."]
[null,null,null,null,null,null,null,null,null,null,null,null,null,null,null,null,null,null,null,null,null,null,null,null,null,null,null,null,null,null,null,null,null,null,null,null,null,null,"Other (please define)"]
[]
[null,null,null,null,null,null,null,null,null,null,null,null,null,null,null,null,null,null,null,null,null,null,null,null,null,null,null,null,null,null,null,null,null,null,null,null,null,null,"Please select"]
[null,null,null,null,null,null,null,null,null,null,null,null,null,null,null,null,null,null,null,null,null,null,null,null,null,null,null,null,null,null,null,null,null,null,null,null,null,null,"Travel expenses outside the country"]
[null,null,null,null,null,null,null,null,null,null,null,null,null,null,null,null,null,null,null,null,null,null,null,null,null,null,null,null,null,null,null,null,null,null,null,null,null,null,"Travel expenses in the country"]

{"sheet":"Expert sheet (months or d (2)","index":2,"n_rows":135,"n_cols":39,"rows_kept":135,"cut":false,"hidden":true,"merged":[[55,0,55,1],[55,5,55,8],[55,9,55,11],[56,12,56,14],[49,3,49,4],[49,9,49,14],[50,3,50,4],[50,9,50,14],[51,3,51,4],[51,9,51,14],[54,5,54,8],[54,9,54,11],[46,0,46,16],[47,0,48,0],[47,1,47,2],[47,3,48,4],[47,5,48,5],[47,6,48,6],[47,7,48,7],[47,8,48,8],[47,9,48,14],[47,15,48,16],[40,11,40,15],[41,11,41,15],[42,11,42,15],[43,11,43,15],[44,3,44,4],[44,11,44,15],[36,3,36,4],[36,11,36,15],[36,16,36,17],[38,14,38,15],[39,11,39,15],[39,16,39,17],[33,11,33,15],[33,16,33,17],[34,11,34,15],[34,16,34,17],[35,11,35,15],[35,16,35,17],[30,11,30,15],[30,16,30,17],[31,11,31,15],[31,16,31,17],[32,11,32,15],[32,16,32,17],[24,8,24,14],[24,15,24,16],[26,11,26,17],[28,1,29,1],[28,3,28,5],[28,7,29,7],[28,10,29,10],[28,11,29,15],[28,16,29,17],[21,0,21,2],[21,8,21,14],[21,15,21,16],[22,0,22,2],[23,8,23,14],[23,15,23,16],[22,8,22,14],[16,9,16,13],[16,14,16,15],[16,19,16,20],[18,0,18,16],[19,3,20,3],[19,4,20,4],[19,5,19,6],[19,7,20,7],[19,8,20,14],[19,15,20,16],[15,9,15,13],[15,14,15,15],[8,2,8,4],[9,0,9,1],[9,2,9,4],[11,9,11,13],[11,14,11,15],[12,9,12,13],[12,14,12,15],[13,0,13,5],[13,9,13,13],[13,14,13,15],[14,9,14,13],[14,14,14,15],[6,0,6,1],[6,2,6,4],[6,7,6,8],[6,9,6,10],[6,11,6,12],[5,15,7,15],[7,2,7,4],[6,13,6,14],[1,3,1,4],[1,7,1,9],[5,7,5,8],[5,9,5,12],[5,13,5,14]]}
["Statement on personnel deployment"]
[null,"Contract number:",null,"Processing no./Cost centre:",null,null,null,"Accounting period:"]
[null,{"$f":"'Invoice overview'!A28","v":0},null,null,{"$f":"'Invoice overview'!C28","v":0},null,null,null,null,{"$f":"_xlfn.TEXTJOIN(\"   \",FALSE,IF('Invoice overview'!$G$28 > 0, TEXT('Invoice overview'!$G$28,\"TT.MM.JJJJ\"),\"\"),\"until\",IF('Invoice overview'!$I$28 > 0, TEXT('Invoice overview'!$I$28,\"TT.MM.JJJJ\"),\"\"))","v":"   until   "}]
[]
[]
["Personal data",null,null,null,null,null,"Periods of assignment","Total scheduled time",null,"Accounting period ",null,null,null,"Actual time ",null,"Remarks"]
["Family name, given name:",null,null,null,null,null,null,"Acc. to contract",null,"Actual period",null,"Period",null,"Total"]
["Function:",null,"Please select",null,null,null,null,"Months","Days","dd.mm.yyyy","dd.mm.yyyy","Months","Days","Months","Days"]
["Description of function:",null,null,null,null,null,"Germany"]
["Expert no. per price schedule",null,null,null,null,null,"Other Countries"]
[]
[null,null,null,null,null,null,"Details on leave and sickness",null,null,"Remarks",null,null,null,null,"Reserved for GIZ"]
["Link to assignment period calculation sheet for short-term expert pools:",null,null,null,null,null,"Total contractual entitlement (days)",null,{"$f":"IF( (SUM(H9:H10)) >= 4, (SUM(H9:H10)) * 4, 0)","v":0}]
["https://www.giz.de/de/downloads/giz2012-de-Hilfe_zur_Berechnung_der_Einsatzzeit_von_KZE-Pools.xls",null,null,null,null,null,"Remaining entitlement (days) *"]
[null,null,null,null,null,null,"Leave taken (days)*"]
[null,null,null,null,null,null,"Remaining leave (days)",null,{"$f":"IF(I14>0,I14-I15,I13-I15)","v":0}]
[null,null,null,null,null,null,"Sickness (days)"]
[]
["Personnel costs"]
[null,null,null,"Monthly rate\nacc. to contract","Daily rate\nacc. to contract","Quantity",null,"Amount ","Remarks",null,null,null,null,null,null,"Reserved for GIZ"]
["Remuneration item",null,null,null,null,"Months","Days **"]
["Fee (No. 5.4 General Conditions)",null,null,null,null,null,null,{"$f":"IF(NOT(D22=\"\"),D22*(F22+ROUND((G22/30),3)),IF(NOT(E22=\"\"),E22*G22,0))","v":0}]
["Fee (No. 5.4 General Conditions)",null,null,null,null,null,null,{"$f":"IF(NOT(D23=\"\"),D23*(F23+ROUND((G23/30),3)),IF(NOT(E23=\"\"),E23*G23,0))","v":0}]
["Per diem (No. 5.6. General Conditions)",null,null,null,null,null,null,{"$f":"IF(NOT(D24=\"\"),D24*(F24+ROUND((G24/30),3)),IF(NOT(E24=\"\"),E24*G24,0))","v":0}]
["Accommodation (No. 5.7 General Conditions)",null,null,null,null,null,null,{"$f":"IF(NOT(D25=\"\"),D25*(F25+ROUND((G25/30),3)),IF(NOT(E25=\"\"),E25*G25,0))","v":0}]
[]
["Travel expenses"]
["Air travel (No. 5.8 General Conditions)"]
[null,"Name of traveller",null,"Travel dates",null,null,null,"Amount\n (per voucher or lump sum)",null,null,"Amount ","Remarks",null,null,null,null,"Reserved for GIZ"]
["No.",null,"Type of flight","Destination","Outward flight\n(dd.mm.yyyy)","Homeward flight (dd.mm.yyyy)","Type of reimbursement",null,"Currency","Rate/\nquantity*"]
[1,null,"Please select",null,null,null,"Please select",null,null,null,{"$f":"H31*J31","v":0}]
[2,null,null,null,null,null,null,null,null,null,{"$f":"H32*J32","v":0}]
[3,null,null,null,null,null,null,null,null,null,0]
[4,null,null,null,null,null,null,null,null,null,0]
[5,null,null,null,null,null,null,null,null,null,0]
[6,null,null,null,null,null,null,null,null,null,0]
["TOTAL:",null,null,null,null,null,null,null,null,{"$f":"'Invoice overview'!F32","v":"EUR"},{"$f":"SUM(K31:K36)","v":0}]
[]
["Other travel expenses (No. 5.9 General Conditions)"]
["No.","Country of travel","Nature of travel expenses","Start\n(dd.mm.yyyy)","End\n(dd.mm.yyyy)","Reason for travel","Type of reimbursement","Amount\n (per voucher or lump sum)","Currency","Rate/\nquantity*","Amount ","Remarks",null,null,null,null,"Reserved for GIZ"]
[1,null,"Please select",null,null,null,"Please select",null,null,null,{"$f":"H41*J41","v":0}]
[2,null,null,null,null,null,null,null,null,null,{"$f":"H42*J42","v":0}]
[3,null,null,null,null,null,null,null,null,null,0]
[4,null,null,null,null,null,null,null,null,null,0]
["TOTAL:",null,null,null,null,null,null,null,null,{"$f":"'Invoice overview'!F32","v":"EUR"},{"$f":"SUM(K41:K44)","v":0}]
[]
["Other travel expenses (No. 5.9 General Conditions) MONTHLY LUMP SUM"]
["No.","Accounting period",null,"Nature of travel expenses",null,"Type of reimbursement","Monthly rate\nacc. to contract","Daily rate\nacc. to contract","Amount","Remarks",null,null,null,null,null,"Reserved for GIZ"]
[null,"Months","Days**"]
[1,null,null,"Please select",null,"Lump sum/Month or day",null,null,{"$f":"IF(NOT(G50=\"\"),G50*(B50+ROUND((C50/30),3)),IF(NOT(H50=\"\"),H50*C50,0))","v":0}]
[2,null,null,null,null,"Lump sum/Month or day",null,null,{"$f":"IF(NOT(G51=\"\"),G51*(B51+ROUND((C51/30),3)),IF(NOT(H51=\"\"),H51*C51,0))","v":0}]
["Total:",null,null,null,null,null,null,{"$f":"'Invoice overview'!F32","v":"EUR"},{"$f":"SUM(I50:I51)","v":0}]
[]
["Relocation goods (No. 5.10. General Conditions)"]
["Lump sum (in contract currency)",null,"Quantity","Rate","Amount","Remarks",null,null,null,"Reserved for GIZ"]
[null,null,1,null,{"$f":"D56*C56","v":0}]
[null,null,null,null,null,null,null,null,null,null,null,null,"Total for personnel deployment ",null,null,{"$f":"H22+H23+H24+H25+K37+K45+I52+E56","v":0}]
[]
[]
[]
[]
[]
[]
[]
[]
[]
[]
[]
[]
[]
[]
[]
[]
[]
[]
[]
[]
[]
[]
[]
[]
[]
[]
[]
[]
[]
[]
[]
[]
[]
[]
[]
[]
[]
[]
[]
[]
[]
[]
[]
[]
[]
[]
[]
[]
[]
[]
[]
[]
[]
[]
[]
[null,null,null,null,null,null,null,null,null,null,null,null,null,null,null,null,null,null,null,null,null,null,null,null,null,null,null,null,null,null,null,null,null,null,null,null,null,null,"Please select"]
[null,null,null,null,null,null,null,null,null,null,null,null,null,null,null,null,null,null,null,null,null,null,null,null,null,null,null,null,null,null,null,null,null,null,null,null,null,null,"Expert (outward and homeward journeys)"]
[null,null,null,null,null,null,null,null,null,null,null,null,null,null,null,null,null,null,null,null,null,null,null,null,null,null,null,null,null,null,null,null,null,null,null,null,null,null,"Dependants (outward and homeward journeys) "]
[null,null,null,null,null,null,null,null,null,null,null,null,null,null,null,null,null,null,null,null,null,null,null,null,null,null,null,null,null,null,null,null,null,null,null,null,null,null,"Vacation flights"]
[null,null,null,null,null,null,null,null,null,null,null,null,null,null,null,null,null,null,null,null,null,null,null,null,null,null,null,null,null,null,null,null,null,null,null,null,null,null,"Regional and national flights"]
[null,null,null,null,null,null,null,null,null,null,null,null,null,null,null,null,null,null,null,null,null,null,null,null,null,null,null,null,null,null,null,null,null,null,null,null,null,null,"Other flights"]
[]
[null,null,null,null,null,null,null,null,null,null,null,null,null,null,null,null,null,null,null,null,null,null,null,null,null,null,null,null,null,null,null,null,null,null,null,null,null,null,"Please select"]
[null,null,null,null,null,null,null,null,null,null,null,null,null,null,null,null,null,null,null,null,null,null,null,null,null,null,null,null,null,null,null,null,null,null,null,null,null,null,"Lump sum"]
[null,null,null,null,null,null,null,null,null,null,null,null,null,null,null,null,null,null,null,null,null,null,null,null,null,null,null,null,null,null,null,null,null,null,null,null,null,null,"Against evidence"]
[]
[null,null,null,null,null,null,null,null,null,null,null,null,null,null,null,null,null,null,null,null,null,null,null,null,null,null,null,null,null,null,null,null,null,null,null,null,null,null,"Please select"]
[null,null,null,null,null,null,null,null,null,null,null,null,null,null,null,null,null,null,null,null,null,null,null,null,null,null,null,null,null,null,null,null,null,null,null,null,null,null,"Long-term expert, int."]
[null,null,null,null,null,null,null,null,null,null,null,null,null,null,null,null,null,null,null,null,null,null,null,null,null,null,null,null,null,null,null,null,null,null,null,null,null,null,"Long-term expert, reg."]
[null,null,null,null,null,null,null,null,null,null,null,null,null,null,null,null,null,null,null,null,null,null,null,null,null,null,null,null,null,null,null,null,null,null,null,null,null,null,"Long-term expert, nat."]
[null,null,null,null,null,null,null,null,null,null,null,null,null,null,null,null,null,null,null,null,null,null,null,null,null,null,null,null,null,null,null,null,null,null,null,null,null,null,"Short-term expert, int."]
[null,null,null,null,null,null,null,null,null,null,null,null,null,null,null,null,null,null,null,null,null,null,null,null,null,null,null,null,null,null,null,null,null,null,null,null,null,null,"Short-term expert, reg."]
[null,null,null,null,null,null,null,null,null,null,null,null,null,null,null,null,null,null,null,null,null,null,null,null,null,null,null,null,null,null,null,null,null,null,null,null,null,null,"Short-term expert, nat."]
[null,null,null,null,null,null,null,null,null,null,null,null,null,null,null,null,null,null,null,null,null,null,null,null,null,null,null,null,null,null,null,null,null,null,null,null,null,null,"Other (please define)"]
[]
[null,null,null,null,null,null,null,null,null,null,null,null,null,null,null,null,null,null,null,null,null,null,null,null,null,null,null,null,null,null,null,null,null,null,null,null,null,null,"Please select"]
[null,null,null,null,null,null,null,null,null,null,null,null,null,null,null,null,null,null,null,null,null,null,null,null,null,null,null,null,null,null,null,null,null,null,null,null,null,null,"Travel expenses outside the country"]
[null,null,null,null,null,null,null,null,null,null,null,null,null,null,null,null,null,null,null,null,null,null,null,null,null,null,null,null,null,null,null,null,null,null,null,null,null,null,"Travel expenses in the country"]

{"sheet":"Expert sheet (months or d (3)","index":3,"n_rows":135,"n_cols":39,"rows_kept":135,"cut":false,"hidden":true,"merged":[[55,0,55,1],[55,5,55,8],[55,9,55,11],[56,12,56,14],[49,3,49,4],[49,9,49,14],[50,3,50,4],[50,9,50,14],[51,3,51,4],[51,9,51,14],[54,5,54,8],[54,9,54,11],[46,0,46,16],[47,0,48,0],[47,1,47,2],[47,3,48,4],[47,5,48,5],[47,6,48,6],[47,7,48,7],[47,8,48,8],[47,9,48,14],[47,15,48,16],[40,11,40,15],[41,11,41,15],[42,11,42,15],[43,11,43,15],[44,3,44,4],[44,11,44,15],[36,3,36,4],[36,11,36,15],[36,16,36,17],[38,14,38,15],[39,11,39,15],[39,16,39,17],[33,11,33,15],[33,16,33,17],[34,11,34,15],[34,16,34,17],[35,11,35,15],[35,16,35,17],[30,11,30,15],[30,16,30,17],[31,11,31,15],[31,16,31,17],[32,11,32,15],[32,16,32,17],[26,11,26,17],[28,1,29,1],[28,3,28,5],[28,10,29,10],[28,11,29,15],[28,16,29,17],[21,8,21,14],[21,15,21,16],[23,8,23,14],[23,15,23,16],[24,8,24,14],[24,15,24,16],[22,8,22,14],[19,15,20,16],[15,9,15,13],[15,14,15,15],[16,9,16,13],[16,14,16,15],[19,8,20,14],[16,19,16,20],[18,0,18,16],[12,9,12,13],[12,14,12,15],[13,0,13,5],[13,9,13,13],[13,14,13,15],[14,9,14,13],[14,14,14,15],[6,13,6,14],[7,2,7,4],[8,2,8,4],[9,2,9,4],[11,9,11,13],[11,14,11,15],[5,15,7,15],[6,2,6,4],[6,7,6,8],[6,9,6,10],[6,11,6,12],[1,3,1,4],[1,7,1,9],[5,7,5,8],[5,9,5,12],[5,13,5,14],[6,0,6,1],[9,0,9,1],[21,0,21,2],[22,0,22,2],[28,7,29,7],[19,3,20,3],[19,4,20,4],[19,5,19,6],[19,7,20,7]]}
["Statement on personnel deployment"]
[null,"Contract number:",null,"Processing no./Cost centre:",null,null,null,"Accounting period:"]
[null,{"$f":"'Invoice overview'!A28","v":0},null,null,{"$f":"'Invoice overview'!C28","v":0},null,null,null,null,{"$f":"_xlfn.TEXTJOIN(\"   \",FALSE,IF('Invoice overview'!$G$28 > 0, TEXT('Invoice overview'!$G$28,\"TT.MM.JJJJ\"),\"\"),\"until\",IF('Invoice overview'!$I$28 > 0, TEXT('Invoice overview'!$I$28,\"TT.MM.JJJJ\"),\"\"))","v":"   until   "}]
[]
[]
["Personal data",null,null,null,null,null,"Periods of assignment","Total scheduled time",null,"Accounting period ",null,null,null,"Actual time ",null,"Remarks"]
["Family name, given name:",null,null,null,null,null,null,"Acc. to contract",null,"Actual period",null,"Period",null,"Total"]
["Function:",null,"Please select",null,null,null,null,"Months","Days","dd.mm.yyyy","dd.mm.yyyy","Months","Days","Months","Days"]
["Description of function:",null,null,null,null,null,"Germany"]
["Expert no. per price schedule",null,null,null,null,null,"Other Countries"]
[]
[null,null,null,null,null,null,"Details on leave and sickness",null,null,"Remarks",null,null,null,null,"Reserved for GIZ"]
["Link to assignment period calculation sheet for short-term expert pools:",null,null,null,null,null,"Total contractual entitlement (days)",null,{"$f":"IF( (SUM(H9:H10)) >= 4, (SUM(H9:H10)) * 4, 0)","v":0}]
["https://www.giz.de/de/downloads/giz2012-de-Hilfe_zur_Berechnung_der_Einsatzzeit_von_KZE-Pools.xls",null,null,null,null,null,"Remaining entitlement (days) *"]
[null,null,null,null,null,null,"Leave taken (days)*"]
[null,null,null,null,null,null,"Remaining leave (days)",null,{"$f":"IF(I14>0,I14-I15,I13-I15)","v":0}]
[null,null,null,null,null,null,"Sickness (days)"]
[]
["Personnel costs"]
[null,null,null,"Monthly rate\nacc. to contract","Daily rate\nacc. to contract","Quantity",null,"Amount ","Remarks",null,null,null,null,null,null,"Reserved for GIZ"]
["Remuneration item",null,null,null,null,"Months","Days **"]
["Fee (No. 5.4 General Conditions)",null,null,null,null,null,null,{"$f":"IF(NOT(D22=\"\"),D22*(F22+ROUND((G22/30),3)),IF(NOT(E22=\"\"),E22*G22,0))","v":0}]
["Fee (No. 5.4 General Conditions)",null,null,null,null,null,null,{"$f":"IF(NOT(D23=\"\"),D23*(F23+ROUND((G23/30),3)),IF(NOT(E23=\"\"),E23*G23,0))","v":0}]
["Per diem (No. 5.6. General Conditions)",null,null,null,null,null,null,{"$f":"IF(NOT(D24=\"\"),D24*(F24+ROUND((G24/30),3)),IF(NOT(E24=\"\"),E24*G24,0))","v":0}]
["Accommodation (No. 5.7 General Conditions)",null,null,null,null,null,null,{"$f":"IF(NOT(D25=\"\"),D25*(F25+ROUND((G25/30),3)),IF(NOT(E25=\"\"),E25*G25,0))","v":0}]
[]
["Travel expenses"]
["Air travel (No. 5.8 General Conditions)"]
[null,"Name of traveller",null,"Travel dates",null,null,null,"Amount\n (per voucher or lump sum)",null,null,"Amount ","Remarks",null,null,null,null,"Reserved for GIZ"]
["No.",null,"Type of flight","Destination","Outward flight\n(dd.mm.yyyy)","Homeward flight (dd.mm.yyyy)","Type of reimbursement",null,"Currency","Rate/\nquantity*"]
[1,null,"Please select",null,null,null,"Please select",null,null,null,{"$f":"H31*J31","v":0}]
[2,null,null,null,null,null,null,null,null,null,{"$f":"H32*J32","v":0}]
[3,null,null,null,null,null,null,null,null,null,0]
[4,null,null,null,null,null,null,null,null,null,0]
[5,null,null,null,null,null,null,null,null,null,0]
[6,null,null,null,null,null,null,null,null,null,0]
["TOTAL:",null,null,null,null,null,null,null,null,{"$f":"'Invoice overview'!F32","v":"EUR"},{"$f":"SUM(K31:K36)","v":0}]
[]
["Other travel expenses (No. 5.9 General Conditions)"]
["No.","Country of travel","Nature of travel expenses","Start\n(dd.mm.yyyy)","End\n(dd.mm.yyyy)","Reason for travel","Type of reimbursement","Amount\n (per voucher or lump sum)","Currency","Rate/\nquantity*","Amount ","Remarks",null,null,null,null,"Reserved for GIZ"]
[1,null,"Please select",null,null,null,"Please select",null,null,null,{"$f":"H41*J41","v":0}]
[2,null,null,null,null,null,null,null,null,null,{"$f":"H42*J42","v":0}]
[3,null,null,null,null,null,null,null,null,null,0]
[4,null,null,null,null,null,null,null,null,null,0]
["TOTAL:",null,null,null,null,null,null,null,null,{"$f":"'Invoice overview'!F32","v":"EUR"},{"$f":"SUM(K41:K44)","v":0}]
[]
["Other travel expenses (No. 5.9 General Conditions) MONTHLY LUMP SUM"]
["No.","Accounting period",null,"Nature of travel expenses",null,"Type of reimbursement","Monthly rate\nacc. to contract","Daily rate\nacc. to contract","Amount","Remarks",null,null,null,null,null,"Reserved for GIZ"]
[null,"Months","Days**"]
[1,null,null,"Please select",null,"Lump sum/Month or day",null,null,{"$f":"IF(NOT(G50=\"\"),G50*(B50+ROUND((C50/30),3)),IF(NOT(H50=\"\"),H50*C50,0))","v":0}]
[2,null,null,null,null,"Lump sum/Month or day",null,null,{"$f":"IF(NOT(G51=\"\"),G51*(B51+ROUND((C51/30),3)),IF(NOT(H51=\"\"),H51*C51,0))","v":0}]
["Total:",null,null,null,null,null,null,{"$f":"'Invoice overview'!F32","v":"EUR"},{"$f":"SUM(I50:I51)","v":0}]
[]
["Relocation goods (No. 5.10. General Conditions)"]
["Lump sum (in contract currency)",null,"Quantity","Rate","Amount","Remarks",null,null,null,"Reserved for GIZ"]
[null,null,1,null,{"$f":"D56*C56","v":0}]
[null,null,null,null,null,null,null,null,null,null,null,null,"Total for personnel deployment ",null,null,{"$f":"H22+H23+H24+H25+K37+K45+I52+E56","v":0}]
[]
[]
[]
[]
[]
[]
[]
[]
[]
[]
[]
[]
[]
[]
[]
[]
[]
[]
[]
[]
[]
[]
[]
[]
[]
[]
[]
[]
[]
[]
[]
[]
[]
[]
[]
[]
[]
[]
[]
[]
[]
[]
[]
[]
[]
[]
[]
[]
[]
[]
[]
[]
[]
[]
[]
[null,null,null,null,null,null,null,null,null,null,null,null,null,null,null,null,null,null,null,null,null,null,null,null,null,null,null,null,null,null,null,null,null,null,null,null,null,null,"Please select"]
[null,null,null,null,null,null,null,null,null,null,null,null,null,null,null,null,null,null,null,null,null,null,null,null,null,null,null,null,null,null,null,null,null,null,null,null,null,null,"Expert (outward and homeward journeys)"]
[null,null,null,null,null,null,null,null,null,null,null,null,null,null,null,null,null,null,null,null,null,null,null,null,null,null,null,null,null,null,null,null,null,null,null,null,null,null,"Dependants (outward and homeward journeys) "]
[null,null,null,null,null,null,null,null,null,null,null,null,null,null,null,null,null,null,null,null,null,null,null,null,null,null,null,null,null,null,null,null,null,null,null,null,null,null,"Vacation flights"]
[null,null,null,null,null,null,null,null,null,null,null,null,null,null,null,null,null,null,null,null,null,null,null,null,null,null,null,null,null,null,null,null,null,null,null,null,null,null,"Regional and national flights"]
[null,null,null,null,null,null,null,null,null,null,null,null,null,null,null,null,null,null,null,null,null,null,null,null,null,null,null,null,null,null,null,null,null,null,null,null,null,null,"Other flights"]
[]
[null,null,null,null,null,null,null,null,null,null,null,null,null,null,null,null,null,null,null,null,null,null,null,null,null,null,null,null,null,null,null,null,null,null,null,null,null,null,"Please select"]
[null,null,null,null,null,null,null,null,null,null,null,null,null,null,null,null,null,null,null,null,null,null,null,null,null,null,null,null,null,null,null,null,null,null,null,null,null,null,"Lump sum"]
[null,null,null,null,null,null,null,null,null,null,null,null,null,null,null,null,null,null,null,null,null,null,null,null,null,null,null,null,null,null,null,null,null,null,null,null,null,null,"Against evidence"]
[]
[null,null,null,null,null,null,null,null,null,null,null,null,null,null,null,null,null,null,null,null,null,null,null,null,null,null,null,null,null,null,null,null,null,null,null,null,null,null,"Please select"]
[null,null,null,null,null,null,null,null,null,null,null,null,null,null,null,null,null,null,null,null,null,null,null,null,null,null,null,null,null,null,null,null,null,null,null,null,null,null,"Long-term expert, int."]
[null,null,null,null,null,null,null,null,null,null,null,null,null,null,null,null,null,null,null,null,null,null,null,null,null,null,null,null,null,null,null,null,null,null,null,null,null,null,"Long-term expert, reg."]
[null,null,null,null,null,null,null,null,null,null,null,null,null,null,null,null,null,null,null,null,null,null,null,null,null,null,null,null,null,null,null,null,null,null,null,null,null,null,"Long-term expert, nat."]
[null,null,null,null,null,null,null,null,null,null,null,null,null,null,null,null,null,null,null,null,null,null,null,null,null,null,null,null,null,null,null,null,null,null,null,null,null,null,"Short-term expert, int."]
[null,null,null,null,null,null,null,null,null,null,null,null,null,null,null,null,null,null,null,null,null,null,null,null,null,null,null,null,null,null,null,null,null,null,null,null,null,null,"Short-term expert, reg."]
[null,null,null,null,null,null,null,null,null,null,null,null,null,null,null,null,null,null,null,null,null,null,null,null,null,null,null,null,null,null,null,null,null,null,null,null,null,null,"Short-term expert, nat."]
[null,null,null,null,null,null,null,null,null,null,null,null,null,null,null,null,null,null,null,null,null,null,null,null,null,null,null,null,null,null,null,null,null,null,null,null,null,null,"Other (please define)"]
[]
[null,null,null,null,null,null,null,null,null,null,null,null,null,null,null,null,null,null,null,null,null,null,null,null,null,null,null,null,null,null,null,null,null,null,null,null,null,null,"Please select"]
[null,null,null,null,null,null,null,null,null,null,null,null,null,null,null,null,null,null,null,null,null,null,null,null,null,null,null,null,null,null,null,null,null,null,null,null,null,null,"Travel expenses outside the country"]
[null,null,null,null,null,null,null,null,null,null,null,null,null,null,null,null,null,null,null,null,null,null,null,null,null,null,null,null,null,null,null,null,null,null,null,null,null,null,"Travel expenses in the country"]

{"sheet":"Expert sheet (months or d (4)","index":4,"n_rows":135,"n_cols":39,"rows_kept":135,"cut":false,"hidden":true,"merged":[[55,0,55,1],[55,5,55,8],[55,9,55,11],[56,12,56,14],[49,3,49,4],[49,9,49,14],[50,3,50,4],[50,9,50,14],[51,3,51,4],[51,9,51,14],[54,5,54,8],[54,9,54,11],[46,0,46,16],[47,0,48,0],[47,1,47,2],[47,3,48,4],[47,5,48,5],[47,6,48,6],[47,7,48,7],[47,8,48,8],[47,9,48,14],[47,15,48,16],[40,11,40,15],[41,11,41,15],[42,11,42,15],[43,11,43,15],[44,3,44,4],[44,11,44,15],[36,3,36,4],[36,11,36,15],[36,16,36,17],[38,14,38,15],[39,11,39,15],[39,16,39,17],[33,11,33,15],[33,16,33,17],[34,11,34,15],[34,16,34,17],[35,11,35,15],[35,16,35,17],[30,11,30,15],[30,16,30,17],[31,11,31,15],[31,16,31,17],[32,11,32,15],[32,16,32,17],[26,11,26,17],[28,1,29,1],[28,3,28,5],[28,10,29,10],[28,11,29,15],[28,16,29,17],[21,8,21,14],[21,15,21,16],[23,8,23,14],[23,15,23,16],[24,8,24,14],[24,15,24,16],[22,8,22,14],[19,15,20,16],[15,9,15,13],[15,14,15,15],[16,9,16,13],[16,14,16,15],[19,8,20,14],[16,19,16,20],[18,0,18,16],[12,9,12,13],[12,14,12,15],[13,0,13,5],[13,9,13,13],[13,14,13,15],[14,9,14,13],[14,14,14,15],[6,13,6,14],[7,2,7,4],[8,2,8,4],[9,2,9,4],[11,9,11,13],[11,14,11,15],[5,15,7,15],[6,2,6,4],[6,7,6,8],[6,9,6,10],[6,11,6,12],[1,3,1,4],[1,7,1,9],[5,7,5,8],[5,9,5,12],[5,13,5,14],[6,0,6,1],[9,0,9,1],[21,0,21,2],[22,0,22,2],[28,7,29,7],[19,3,20,3],[19,4,20,4],[19,5,19,6],[19,7,20,7]]}
["Statement on personnel deployment"]
[null,"Contract number:",null,"Processing no./Cost centre:",null,null,null,"Accounting period:"]
[null,{"$f":"'Invoice overview'!A28","v":0},null,null,{"$f":"'Invoice overview'!C28","v":0},null,null,null,null,{"$f":"_xlfn.TEXTJOIN(\"   \",FALSE,IF('Invoice overview'!$G$28 > 0, TEXT('Invoice overview'!$G$28,\"TT.MM.JJJJ\"),\"\"),\"until\",IF('Invoice overview'!$I$28 > 0, TEXT('Invoice overview'!$I$28,\"TT.MM.JJJJ\"),\"\"))","v":"   until   "}]
[]
[]
["Personal data",null,null,null,null,null,"Periods of assignment","Total scheduled time",null,"Accounting period ",null,null,null,"Actual time ",null,"Remarks"]
["Family name, given name:",null,null,null,null,null,null,"Acc. to contract",null,"Actual period",null,"Period",null,"Total"]
["Function:",null,"Please select",null,null,null,null,"Months","Days","dd.mm.yyyy","dd.mm.yyyy","Months","Days","Months","Days"]
["Description of function:",null,null,null,null,null,"Germany"]
["Expert no. per price schedule",null,null,null,null,null,"Other Countries"]
[]
[null,null,null,null,null,null,"Details on leave and sickness",null,null,"Remarks",null,null,null,null,"Reserved for GIZ"]
["Link to assignment period calculation sheet for short-term expert pools:",null,null,null,null,null,"Total contractual entitlement (days)",null,{"$f":"IF( (SUM(H9:H10)) >= 4, (SUM(H9:H10)) * 4, 0)","v":0}]
["https://www.giz.de/de/downloads/giz2012-de-Hilfe_zur_Berechnung_der_Einsatzzeit_von_KZE-Pools.xls",null,null,null,null,null,"Remaining entitlement (days) *"]
[null,null,null,null,null,null,"Leave taken (days)*"]
[null,null,null,null,null,null,"Remaining leave (days)",null,{"$f":"IF(I14>0,I14-I15,I13-I15)","v":0}]
[null,null,null,null,null,null,"Sickness (days)"]
[]
["Personnel costs"]
[null,null,null,"Monthly rate\nacc. to contract","Daily rate\nacc. to contract","Quantity",null,"Amount ","Remarks",null,null,null,null,null,null,"Reserved for GIZ"]
["Remuneration item",null,null,null,null,"Months","Days **"]
["Fee (No. 5.4 General Conditions)",null,null,null,null,null,null,{"$f":"IF(NOT(D22=\"\"),D22*(F22+ROUND((G22/30),3)),IF(NOT(E22=\"\"),E22*G22,0))","v":0}]
["Fee (No. 5.4 General Conditions)",null,null,null,null,null,null,{"$f":"IF(NOT(D23=\"\"),D23*(F23+ROUND((G23/30),3)),IF(NOT(E23=\"\"),E23*G23,0))","v":0}]
["Per diem (No. 5.6. General Conditions)",null,null,null,null,null,null,{"$f":"IF(NOT(D24=\"\"),D24*(F24+ROUND((G24/30),3)),IF(NOT(E24=\"\"),E24*G24,0))","v":0}]
["Accommodation (No. 5.7 General Conditions)",null,null,null,null,null,null,{"$f":"IF(NOT(D25=\"\"),D25*(F25+ROUND((G25/30),3)),IF(NOT(E25=\"\"),E25*G25,0))","v":0}]
[]
["Travel expenses"]
["Air travel (No. 5.8 General Conditions)"]
[null,"Name of traveller",null,"Travel dates",null,null,null,"Amount\n (per voucher or lump sum)",null,null,"Amount ","Remarks",null,null,null,null,"Reserved for GIZ"]
["No.",null,"Type of flight","Destination","Outward flight\n(dd.mm.yyyy)","Homeward flight (dd.mm.yyyy)","Type of reimbursement",null,"Currency","Rate/\nquantity*"]
[1,null,"Please select",null,null,null,"Please select",null,null,null,{"$f":"H31*J31","v":0}]
[2,null,null,null,null,null,null,null,null,null,{"$f":"H32*J32","v":0}]
[3,null,null,null,null,null,null,null,null,null,0]
[4,null,null,null,null,null,null,null,null,null,0]
[5,null,null,null,null,null,null,null,null,null,0]
[6,null,null,null,null,null,null,null,null,null,0]
["TOTAL:",null,null,null,null,null,null,null,null,{"$f":"'Invoice overview'!F32","v":"EUR"},{"$f":"SUM(K31:K36)","v":0}]
[]
["Other travel expenses (No. 5.9 General Conditions)"]
["No.","Country of travel","Nature of travel expenses","Start\n(dd.mm.yyyy)","End\n(dd.mm.yyyy)","Reason for travel","Type of reimbursement","Amount\n (per voucher or lump sum)","Currency","Rate/\nquantity*","Amount ","Remarks",null,null,null,null,"Reserved for GIZ"]
[1,null,"Please select",null,null,null,"Please select",null,null,null,{"$f":"H41*J41","v":0}]
[2,null,null,null,null,null,null,null,null,null,{"$f":"H42*J42","v":0}]
[3,null,null,null,null,null,null,null,null,null,0]
[4,null,null,null,null,null,null,null,null,null,0]
["TOTAL:",null,null,null,null,null,null,null,null,{"$f":"'Invoice overview'!F32","v":"EUR"},{"$f":"SUM(K41:K44)","v":0}]
[]
["Other travel expenses (No. 5.9 General Conditions) MONTHLY LUMP SUM"]
["No.","Accounting period",null,"Nature of travel expenses",null,"Type of reimbursement","Monthly rate\nacc. to contract","Daily rate\nacc. to contract","Amount","Remarks",null,null,null,null,null,"Reserved for GIZ"]
[null,"Months","Days**"]
[1,null,null,"Please select",null,"Lump sum/Month or day",null,null,{"$f":"IF(NOT(G50=\"\"),G50*(B50+ROUND((C50/30),3)),IF(NOT(H50=\"\"),H50*C50,0))","v":0}]
[2,null,null,null,null,"Lump sum/Month or day",null,null,{"$f":"IF(NOT(G51=\"\"),G51*(B51+ROUND((C51/30),3)),IF(NOT(H51=\"\"),H51*C51,0))","v":0}]
["Total:",null,null,null,null,null,null,{"$f":"'Invoice overview'!F32","v":"EUR"},{"$f":"SUM(I50:I51)","v":0}]
[]
["Relocation goods (No. 5.10. General Conditions)"]
["Lump sum (in contract currency)",null,"Quantity","Rate","Amount","Remarks",null,null,null,"Reserved for GIZ"]
[null,null,1,null,{"$f":"D56*C56","v":0}]
[null,null,null,null,null,null,null,null,null,null,null,null,"Total for personnel deployment ",null,null,{"$f":"H22+H23+H24+H25+K37+K45+I52+E56","v":0}]
[]
[]
[]
[]
[]
[]
[]
[]
[]
[]
[]
[]
[]
[]
[]
[]
[]
[]
[]
[]
[]
[]
[]
[]
[]
[]
[]
[]
[]
[]
[]
[]
[]
[]
[]
[]
[]
[]
[]
[]
[]
[]
[]
[]
[]
[]
[]
[]
[]
[]
[]
[]
[]
[]
[]
[null,null,null,null,null,null,null,null,null,null,null,null,null,null,null,null,null,null,null,null,null,null,null,null,null,null,null,null,null,null,null,null,null,null,null,null,null,null,"Please select"]
[null,null,null,null,null,null,null,null,null,null,null,null,null,null,null,null,null,null,null,null,null,null,null,null,null,null,null,null,null,null,null,null,null,null,null,null,null,null,"Expert (outward and homeward journeys)"]
[null,null,null,null,null,null,null,null,null,null,null,null,null,null,null,null,null,null,null,null,null,null,null,null,null,null,null,null,null,null,null,null,null,null,null,null,null,null,"Dependants (outward and homeward journeys) "]
[null,null,null,null,null,null,null,null,null,null,null,null,null,null,null,null,null,null,null,null,null,null,null,null,null,null,null,null,null,null,null,null,null,null,null,null,null,null,"Vacation flights"]
[null,null,null,null,null,null,null,null,null,null,null,null,null,null,null,null,null,null,null,null,null,null,null,null,null,null,null,null,null,null,null,null,null,null,null,null,null,null,"Regional and national flights"]
[null,null,null,null,null,null,null,null,null,null,null,null,null,null,null,null,null,null,null,null,null,null,null,null,null,null,null,null,null,null,null,null,null,null,null,null,null,null,"Other flights"]
[]
[null,null,null,null,null,null,null,null,null,null,null,null,null,null,null,null,null,null,null,null,null,null,null,null,null,null,null,null,null,null,null,null,null,null,null,null,null,null,"Please select"]
[null,null,null,null,null,null,null,null,null,null,null,null,null,null,null,null,null,null,null,null,null,null,null,null,null,null,null,null,null,null,null,null,null,null,null,null,null,null,"Lump sum"]
[null,null,null,null,null,null,null,null,null,null,null,null,null,null,null,null,null,null,null,null,null,null,null,null,null,null,null,null,null,null,null,null,null,null,null,null,null,null,"Against evidence"]
[]
[null,null,null,null,null,null,null,null,null,null,null,null,null,null,null,null,null,null,null,null,null,null,null,null,null,null,null,null,null,null,null,null,null,null,null,null,null,null,"Please select"]
[null,null,null,null,null,null,null,null,null,null,null,null,null,null,null,null,null,null,null,null,null,null,null,null,null,null,null,null,null,null,null,null,null,null,null,null,null,null,"Long-term expert, int."]
[null,null,null,null,null,null,null,null,null,null,null,null,null,null,null,null,null,null,null,null,null,null,null,null,null,null,null,null,null,null,null,null,null,null,null,null,null,null,"Long-term expert, reg."]
[null,null,null,null,null,null,null,null,null,null,null,null,null,null,null,null,null,null,null,null,null,null,null,null,null,null,null,null,null,null,null,null,null,null,null,null,null,null,"Long-term expert, nat."]
[null,null,null,null,null,null,null,null,null,null,null,null,null,null,null,null,null,null,null,null,null,null,null,null,null,null,null,null,null,null,null,null,null,null,null,null,null,null,"Short-term expert, int."]
[null,null,null,null,null,null,null,null,null,null,null,null,null,null,null,null,null,null,null,null,null,null,null,null,null,null,null,null,null,null,null,null,null,null,null,null,null,null,"Short-term expert, reg."]
[null,null,null,null,null,null,null,null,null,null,null,null,null,null,null,null,null,null,null,null,null,null,null,null,null,null,null,null,null,null,null,null,null,null,null,null,null,null,"Short-term expert, nat."]
[null,null,null,null,null,null,null,null,null,null,null,null,null,null,null,null,null,null,null,null,null,null,null,null,null,null,null,null,null,null,null,null,null,null,null,null,null,null,"Other (please define)"]
[]
[null,null,null,null,null,null,null,null,null,null,null,null,null,null,null,null,null,null,null,null,null,null,null,null,null,null,null,null,null,null,null,null,null,null,null,null,null,null,"Please select"]
[null,null,null,null,null,null,null,null,null,null,null,null,null,null,null,null,null,null,null,null,null,null,null,null,null,null,null,null,null,null,null,null,null,null,null,null,null,null,"Travel expenses outside the country"]
[null,null,null,null,null,null,null,null,null,null,null,null,null,null,null,null,null,null,null,null,null,null,null,null,null,null,null,null,null,null,null,null,null,null,null,null,null,null,"Travel expenses in the country"]

{"sheet":"Expert sheet (months or d (5)","index":5,"n_rows":135,"n_cols":39,"rows_kept":135,"cut":false,"hidden":true,"merged":[[55,0,55,1],[55,5,55,8],[55,9,55,11],[56,12,56,14],[49,3,49,4],[49,9,49,14],[50,3,50,4],[50,9,50,14],[51,3,51,4],[51,9,51,14],[54,5,54,8],[54,9,54,11],[46,0,46,16],[47,0,48,0],[47,1,47,2],[47,3,48,4],[47,5,48,5],[47,6,48,6],[47,7,48,7],[47,8,48,8],[47,9,48,14],[47,15,48,16],[40,11,40,15],[41,11,41,15],[42,11,42,15],[43,11,43,15],[44,3,44,4],[44,11,44,15],[36,3,36,4],[36,11,36,15],[36,16,36,17],[38,14,38,15],[39,11,39,15],[39,16,39,17],[33,11,33,15],[33,16,33,17],[34,11,34,15],[34,16,34,17],[35,11,35,15],[35,16,35,17],[30,11,30,15],[30,16,30,17],[31,11,31,15],[31,16,31,17],[32,11,32,15],[32,16,32,17],[26,11,26,17],[28,1,29,1],[28,3,28,5],[28,10,29,10],[28,11,29,15],[28,16,29,17],[21,8,21,14],[21,15,21,16],[23,8,23,14],[23,15,23,16],[24,8,24,14],[24,15,24,16],[22,8,22,14],[19,15,20,16],[15,9,15,13],[15,14,15,15],[16,9,16,13],[16,14,16,15],[19,8,20,14],[16,19,16,20],[18,0,18,16],[12,9,12,13],[12,14,12,15],[13,0,13,5],[13,9,13,13],[13,14,13,15],[14,9,14,13],[14,14,14,15],[6,13,6,14],[7,2,7,4],[8,2,8,4],[9,2,9,4],[11,9,11,13],[11,14,11,15],[5,15,7,15],[6,2,6,4],[6,7,6,8],[6,9,6,10],[6,11,6,12],[1,3,1,4],[1,7,1,9],[5,7,5,8],[5,9,5,12],[5,13,5,14],[6,0,6,1],[9,0,9,1],[21,0,21,2],[22,0,22,2],[28,7,29,7],[19,3,20,3],[19,4,20,4],[19,5,19,6],[19,7,20,7]]}
["Statement on personnel deployment"]
[null,"Contract number:",null,"Processing no./Cost centre:",null,null,null,"Accounting period:"]
[null,{"$f":"'Invoice overview'!A28","v":0},null,null,{"$f":"'Invoice overview'!C28","v":0},null,null,null,null,{"$f":"_xlfn.TEXTJOIN(\"   \",FALSE,IF('Invoice overview'!$G$28 > 0, TEXT('Invoice overview'!$G$28,\"TT.MM.JJJJ\"),\"\"),\"until\",IF('Invoice overview'!$I$28 > 0, TEXT('Invoice overview'!$I$28,\"TT.MM.JJJJ\"),\"\"))","v":"   until   "}]
[]
[]
["Personal data",null,null,null,null,null,"Periods of assignment","Total scheduled time",null,"Accounting period ",null,null,null,"Actual time ",null,"Remarks"]
["Family name, given name:",null,null,null,null,null,null,"Acc. to contract",null,"Actual period",null,"Period",null,"Total"]
["Function:",null,"Please select",null,null,null,null,"Months","Days","dd.mm.yyyy","dd.mm.yyyy","Months","Days","Months","Days"]
["Description of function:",null,null,null,null,null,"Germany"]
["Expert no. per price schedule",null,null,null,null,null,"Other Countries"]
[]
[null,null,null,null,null,null,"Details on leave and sickness",null,null,"Remarks",null,null,null,null,"Reserved for GIZ"]
["Link to assignment period calculation sheet for short-term expert pools:",null,null,null,null,null,"Total contractual entitlement (days)",null,{"$f":"IF( (SUM(H9:H10)) >= 4, (SUM(H9:H10)) * 4, 0)","v":0}]
["https://www.giz.de/de/downloads/giz2012-de-Hilfe_zur_Berechnung_der_Einsatzzeit_von_KZE-Pools.xls",null,null,null,null,null,"Remaining entitlement (days) *"]
[null,null,null,null,null,null,"Leave taken (days)*"]
[null,null,null,null,null,null,"Remaining leave (days)",null,{"$f":"IF(I14>0,I14-I15,I13-I15)","v":0}]
[null,null,null,null,null,null,"Sickness (days)"]
[]
["Personnel costs"]
[null,null,null,"Monthly rate\nacc. to contract","Daily rate\nacc. to contract","Quantity",null,"Amount ","Remarks",null,null,null,null,null,null,"Reserved for GIZ"]
["Remuneration item",null,null,null,null,"Months","Days **"]
["Fee (No. 5.4 General Conditions)",null,null,null,null,null,null,{"$f":"IF(NOT(D22=\"\"),D22*(F22+ROUND((G22/30),3)),IF(NOT(E22=\"\"),E22*G22,0))","v":0}]
["Fee (No. 5.4 General Conditions)",null,null,null,null,null,null,{"$f":"IF(NOT(D23=\"\"),D23*(F23+ROUND((G23/30),3)),IF(NOT(E23=\"\"),E23*G23,0))","v":0}]
["Per diem (No. 5.6. General Conditions)",null,null,null,null,null,null,{"$f":"IF(NOT(D24=\"\"),D24*(F24+ROUND((G24/30),3)),IF(NOT(E24=\"\"),E24*G24,0))","v":0}]
["Accommodation (No. 5.7 General Conditions)",null,null,null,null,null,null,{"$f":"IF(NOT(D25=\"\"),D25*(F25+ROUND((G25/30),3)),IF(NOT(E25=\"\"),E25*G25,0))","v":0}]
[]
["Travel expenses"]
["Air travel (No. 5.8 General Conditions)"]
[null,"Name of traveller",null,"Travel dates",null,null,null,"Amount\n (per voucher or lump sum)",null,null,"Amount ","Remarks",null,null,null,null,"Reserved for GIZ"]
["No.",null,"Type of flight","Destination","Outward flight\n(dd.mm.yyyy)","Homeward flight (dd.mm.yyyy)","Type of reimbursement",null,"Currency","Rate/\nquantity*"]
[1,null,"Please select",null,null,null,"Please select",null,null,null,{"$f":"H31*J31","v":0}]
[2,null,null,null,null,null,null,null,null,null,{"$f":"H32*J32","v":0}]
[3,null,null,null,null,null,null,null,null,null,0]
[4,null,null,null,null,null,null,null,null,null,0]
[5,null,null,null,null,null,null,null,null,null,0]
[6,null,null,null,null,null,null,null,null,null,0]
["TOTAL:",null,null,null,null,null,null,null,null,{"$f":"'Invoice overview'!F32","v":"EUR"},{"$f":"SUM(K31:K36)","v":0}]
[]
["Other travel expenses (No. 5.9 General Conditions)"]
["No.","Country of travel","Nature of travel expenses","Start\n(dd.mm.yyyy)","End\n(dd.mm.yyyy)","Reason for travel","Type of reimbursement","Amount\n (per voucher or lump sum)","Currency","Rate/\nquantity*","Amount ","Remarks",null,null,null,null,"Reserved for GIZ"]
[1,null,"Please select",null,null,null,"Please select",null,null,null,{"$f":"H41*J41","v":0}]
[2,null,null,null,null,null,null,null,null,null,{"$f":"H42*J42","v":0}]
[3,null,null,null,null,null,null,null,null,null,0]
[4,null,null,null,null,null,null,null,null,null,0]
["TOTAL:",null,null,null,null,null,null,null,null,{"$f":"'Invoice overview'!F32","v":"EUR"},{"$f":"SUM(K41:K44)","v":0}]
[]
["Other travel expenses (No. 5.9 General Conditions) MONTHLY LUMP SUM"]
["No.","Accounting period",null,"Nature of travel expenses",null,"Type of reimbursement","Monthly rate\nacc. to contract","Daily rate\nacc. to contract","Amount","Remarks",null,null,null,null,null,"Reserved for GIZ"]
[null,"Months","Days**"]
[1,null,null,"Please select",null,"Lump sum/Month or day",null,null,{"$f":"IF(NOT(G50=\"\"),G50*(B50+ROUND((C50/30),3)),IF(NOT(H50=\"\"),H50*C50,0))","v":0}]
[2,null,null,null,null,"Lump sum/Month or day",null,null,{"$f":"IF(NOT(G51=\"\"),G51*(B51+ROUND((C51/30),3)),IF(NOT(H51=\"\"),H51*C51,0))","v":0}]
["Total:",null,null,null,null,null,null,{"$f":"'Invoice overview'!F32","v":"EUR"},{"$f":"SUM(I50:I51)","v":0}]
[]
["Relocation goods (No. 5.10. General Conditions)"]
["Lump sum (in contract currency)",null,"Quantity","Rate","Amount","Remarks",null,null,null,"Reserved for GIZ"]
[null,null,1,null,{"$f":"D56*C56","v":0}]
[null,null,null,null,null,null,null,null,null,null,null,null,"Total for personnel deployment ",null,null,{"$f":"H22+H23+H24+H25+K37+K45+I52+E56","v":0}]
[]
[]
[]
[]
[]
[]
[]
[]
[]
[]
[]
[]
[]
[]
[]
[]
[]
[]
[]
[]
[]
[]
[]
[]
[]
[]
[]
[]
[]
[]
[]
[]
[]
[]
[]
[]
[]
[]
[]
[]
[]
[]
[]
[]
[]
[]
[]
[]
[]
[]
[]
[]
[]
[]
[]
[null,null,null,null,null,null,null,null,null,null,null,null,null,null,null,null,null,null,null,null,null,null,null,null,null,null,null,null,null,null,null,null,null,null,null,null,null,null,"Please select"]
[null,null,null,null,null,null,null,null,null,null,null,null,null,null,null,null,null,null,null,null,null,null,null,null,null,null,null,null,null,null,null,null,null,null,null,null,null,null,"Expert (outward and homeward journeys)"]
[null,null,null,null,null,null,null,null,null,null,null,null,null,null,null,null,null,null,null,null,null,null,null,null,null,null,null,null,null,null,null,null,null,null,null,null,null,null,"Dependants (outward and homeward journeys) "]
[null,null,null,null,null,null,null,null,null,null,null,null,null,null,null,null,null,null,null,null,null,null,null,null,null,null,null,null,null,null,null,null,null,null,null,null,null,null,"Vacation flights"]
[null,null,null,null,null,null,null,null,null,null,null,null,null,null,null,null,null,null,null,null,null,null,null,null,null,null,null,null,null,null,null,null,null,null,null,null,null,null,"Regional and national flights"]
[null,null,null,null,null,null,null,null,null,null,null,null,null,null,null,null,null,null,null,null,null,null,null,null,null,null,null,null,null,null,null,null,null,null,null,null,null,null,"Other flights"]
[]
[null,null,null,null,null,null,null,null,null,null,null,null,null,null,null,null,null,null,null,null,null,null,null,null,null,null,null,null,null,null,null,null,null,null,null,null,null,null,"Please select"]
[null,null,null,null,null,null,null,null,null,null,null,null,null,null,null,null,null,null,null,null,null,null,null,null,null,null,null,null,null,null,null,null,null,null,null,null,null,null,"Lump sum"]
[null,null,null,null,null,null,null,null,null,null,null,null,null,null,null,null,null,null,null,null,null,null,null,null,null,null,null,null,null,null,null,null,null,null,null,null,null,null,"Against evidence"]
[]
[null,null,null,null,null,null,null,null,null,null,null,null,null,null,null,null,null,null,null,null,null,null,null,null,null,null,null,null,null,null,null,null,null,null,null,null,null,null,"Please select"]
[null,null,null,null,null,null,null,null,null,null,null,null,null,null,null,null,null,null,null,null,null,null,null,null,null,null,null,null,null,null,null,null,null,null,null,null,null,null,"Long-term expert, int."]
[null,null,null,null,null,null,null,null,null,null,null,null,null,null,null,null,null,null,null,null,null,null,null,null,null,null,null,null,null,null,null,null,null,null,null,null,null,null,"Long-term expert, reg."]
[null,null,null,null,null,null,null,null,null,null,null,null,null,null,null,null,null,null,null,null,null,null,null,null,null,null,null,null,null,null,null,null,null,null,null,null,null,null,"Long-term expert, nat."]
[null,null,null,null,null,null,null,null,null,null,null,null,null,null,null,null,null,null,null,null,null,null,null,null,null,null,null,null,null,null,null,null,null,null,null,null,null,null,"Short-term expert, int."]
[null,null,null,null,null,null,null,null,null,null,null,null,null,null,null,null,null,null,null,null,null,null,null,null,null,null,null,null,null,null,null,null,null,null,null,null,null,null,"Short-term expert, reg."]
[null,null,null,null,null,null,null,null,null,null,null,null,null,null,null,null,null,null,null,null,null,null,null,null,null,null,null,null,null,null,null,null,null,null,null,null,null,null,"Short-term expert, nat."]
[null,null,null,null,null,null,null,null,null,null,null,null,null,null,null,null,null,null,null,null,null,null,null,null,null,null,null,null,null,null,null,null,null,null,null,null,null,null,"Other (please define)"]
[]
[null,null,null,null,null,null,null,null,null,null,null,null,null,null,null,null,null,null,null,null,null,null,null,null,null,null,null,null,null,null,null,null,null,null,null,null,null,null,"Please select"]
[null,null,null,null,null,null,null,null,null,null,null,null,null,null,null,null,null,null,null,null,null,null,null,null,null,null,null,null,null,null,null,null,null,null,null,null,null,null,"Travel expenses outside the country"]
[null,null,null,null,null,null,null,null,null,null,null,null,null,null,null,null,null,null,null,null,null,null,null,null,null,null,null,null,null,null,null,null,null,null,null,null,null,null,"Travel expenses in the country"]

{"sheet":"Expert sheet (months or d (6)","index":6,"n_rows":135,"n_cols":39,"rows_kept":135,"cut":false,"hidden":true,"merged":[[55,0,55,1],[55,5,55,8],[55,9,55,11],[56,12,56,14],[49,3,49,4],[49,9,49,14],[50,3,50,4],[50,9,50,14],[51,3,51,4],[51,9,51,14],[54,5,54,8],[54,9,54,11],[46,0,46,16],[47,0,48,0],[47,1,47,2],[47,3,48,4],[47,5,48,5],[47,6,48,6],[47,7,48,7],[47,8,48,8],[47,9,48,14],[47,15,48,16],[40,11,40,15],[41,11,41,15],[42,11,42,15],[43,11,43,15],[44,3,44,4],[44,11,44,15],[36,3,36,4],[36,11,36,15],[36,16,36,17],[38,14,38,15],[39,11,39,15],[39,16,39,17],[33,11,33,15],[33,16,33,17],[34,11,34,15],[34,16,34,17],[35,11,35,15],[35,16,35,17],[30,11,30,15],[30,16,30,17],[31,11,31,15],[31,16,31,17],[32,11,32,15],[32,16,32,17],[26,11,26,17],[28,1,29,1],[28,3,28,5],[28,10,29,10],[28,11,29,15],[28,16,29,17],[21,8,21,14],[21,15,21,16],[23,8,23,14],[23,15,23,16],[24,8,24,14],[24,15,24,16],[22,8,22,14],[19,15,20,16],[15,9,15,13],[15,14,15,15],[16,9,16,13],[16,14,16,15],[19,8,20,14],[16,19,16,20],[18,0,18,16],[12,9,12,13],[12,14,12,15],[13,0,13,5],[13,9,13,13],[13,14,13,15],[14,9,14,13],[14,14,14,15],[6,13,6,14],[7,2,7,4],[8,2,8,4],[9,2,9,4],[11,9,11,13],[11,14,11,15],[5,15,7,15],[6,2,6,4],[6,7,6,8],[6,9,6,10],[6,11,6,12],[1,3,1,4],[1,7,1,9],[5,7,5,8],[5,9,5,12],[5,13,5,14],[6,0,6,1],[9,0,9,1],[21,0,21,2],[22,0,22,2],[28,7,29,7],[19,3,20,3],[19,4,20,4],[19,5,19,6],[19,7,20,7]]}
["Statement on personnel deployment"]
[null,"Contract number:",null,"Processing no./Cost centre:",null,null,null,"Accounting period:"]
[null,{"$f":"'Invoice overview'!A28","v":0},null,null,{"$f":"'Invoice overview'!C28","v":0},null,null,null,null,{"$f":"_xlfn.TEXTJOIN(\"   \",FALSE,IF('Invoice overview'!$G$28 > 0, TEXT('Invoice overview'!$G$28,\"TT.MM.JJJJ\"),\"\"),\"until\",IF('Invoice overview'!$I$28 > 0, TEXT('Invoice overview'!$I$28,\"TT.MM.JJJJ\"),\"\"))","v":"   until   "}]
[]
[]
["Personal data",null,null,null,null,null,"Periods of assignment","Total scheduled time",null,"Accounting period ",null,null,null,"Actual time ",null,"Remarks"]
["Family name, given name:",null,null,null,null,null,null,"Acc. to contract",null,"Actual period",null,"Period",null,"Total"]
["Function:",null,"Please select",null,null,null,null,"Months","Days","dd.mm.yyyy","dd.mm.yyyy","Months","Days","Months","Days"]
["Description of function:",null,null,null,null,null,"Germany"]
["Expert no. per price schedule",null,null,null,null,null,"Other Countries"]
[]
[null,null,null,null,null,null,"Details on leave and sickness",null,null,"Remarks",null,null,null,null,"Reserved for GIZ"]
["Link to assignment period calculation sheet for short-term expert pools:",null,null,null,null,null,"Total contractual entitlement (days)",null,{"$f":"IF( (SUM(H9:H10)) >= 4, (SUM(H9:H10)) * 4, 0)","v":0}]
["https://www.giz.de/de/downloads/giz2012-de-Hilfe_zur_Berechnung_der_Einsatzzeit_von_KZE-Pools.xls",null,null,null,null,null,"Remaining entitlement (days) *"]
[null,null,null,null,null,null,"Leave taken (days)*"]
[null,null,null,null,null,null,"Remaining leave (days)",null,{"$f":"IF(I14>0,I14-I15,I13-I15)","v":0}]
[null,null,null,null,null,null,"Sickness (days)"]
[]
["Personnel costs"]
[null,null,null,"Monthly rate\nacc. to contract","Daily rate\nacc. to contract","Quantity",null,"Amount ","Remarks",null,null,null,null,null,null,"Reserved for GIZ"]
["Remuneration item",null,null,null,null,"Months","Days **"]
["Fee (No. 5.4 General Conditions)",null,null,null,null,null,null,{"$f":"IF(NOT(D22=\"\"),D22*(F22+ROUND((G22/30),3)),IF(NOT(E22=\"\"),E22*G22,0))","v":0}]
["Fee (No. 5.4 General Conditions)",null,null,null,null,null,null,{"$f":"IF(NOT(D23=\"\"),D23*(F23+ROUND((G23/30),3)),IF(NOT(E23=\"\"),E23*G23,0))","v":0}]
["Per diem (No. 5.6. General Conditions)",null,null,null,null,null,null,{"$f":"IF(NOT(D24=\"\"),D24*(F24+ROUND((G24/30),3)),IF(NOT(E24=\"\"),E24*G24,0))","v":0}]
["Accommodation (No. 5.7 General Conditions)",null,null,null,null,null,null,{"$f":"IF(NOT(D25=\"\"),D25*(F25+ROUND((G25/30),3)),IF(NOT(E25=\"\"),E25*G25,0))","v":0}]
[]
["Travel expenses"]
["Air travel (No. 5.8 General Conditions)"]
[null,"Name of traveller",null,"Travel dates",null,null,null,"Amount\n (per voucher or lump sum)",null,null,"Amount ","Remarks",null,null,null,null,"Reserved for GIZ"]
["No.",null,"Type of flight","Destination","Outward flight\n(dd.mm.yyyy)","Homeward flight (dd.mm.yyyy)","Type of reimbursement",null,"Currency","Rate/\nquantity*"]
[1,null,"Please select",null,null,null,"Please select",null,null,null,{"$f":"H31*J31","v":0}]
[2,null,null,null,null,null,null,null,null,null,{"$f":"H32*J32","v":0}]
[3,null,null,null,null,null,null,null,null,null,0]
[4,null,null,null,null,null,null,null,null,null,0]
[5,null,null,null,null,null,null,null,null,null,0]
[6,null,null,null,null,null,null,null,null,null,0]
["TOTAL:",null,null,null,null,null,null,null,null,{"$f":"'Invoice overview'!F32","v":"EUR"},{"$f":"SUM(K31:K36)","v":0}]
[]
["Other travel expenses (No. 5.9 General Conditions)"]
["No.","Country of travel","Nature of travel expenses","Start\n(dd.mm.yyyy)","End\n(dd.mm.yyyy)","Reason for travel","Type of reimbursement","Amount\n (per voucher or lump sum)","Currency","Rate/\nquantity*","Amount ","Remarks",null,null,null,null,"Reserved for GIZ"]
[1,null,"Please select",null,null,null,"Please select",null,null,null,{"$f":"H41*J41","v":0}]
[2,null,null,null,null,null,null,null,null,null,{"$f":"H42*J42","v":0}]
[3,null,null,null,null,null,null,null,null,null,0]
[4,null,null,null,null,null,null,null,null,null,0]
["TOTAL:",null,null,null,null,null,null,null,null,{"$f":"'Invoice overview'!F32","v":"EUR"},{"$f":"SUM(K41:K44)","v":0}]
[]
["Other travel expenses (No. 5.9 General Conditions) MONTHLY LUMP SUM"]
["No.","Accounting period",null,"Nature of travel expenses",null,"Type of reimbursement","Monthly rate\nacc. to contract","Daily rate\nacc. to contract","Amount","Remarks",null,null,null,null,null,"Reserved for GIZ"]
[null,"Months","Days**"]
[1,null,null,"Please select",null,"Lump sum/Month or day",null,null,{"$f":"IF(NOT(G50=\"\"),G50*(B50+ROUND((C50/30),3)),IF(NOT(H50=\"\"),H50*C50,0))","v":0}]
[2,null,null,null,null,"Lump sum/Month or day",null,null,{"$f":"IF(NOT(G51=\"\"),G51*(B51+ROUND((C51/30),3)),IF(NOT(H51=\"\"),H51*C51,0))","v":0}]
["Total:",null,null,null,null,null,null,{"$f":"'Invoice overview'!F32","v":"EUR"},{"$f":"SUM(I50:I51)","v":0}]
[]
["Relocation goods (No. 5.10. General Conditions)"]
["Lump sum (in contract currency)",null,"Quantity","Rate","Amount","Remarks",null,null,null,"Reserved for GIZ"]
[null,null,1,null,{"$f":"D56*C56","v":0}]
[null,null,null,null,null,null,null,null,null,null,null,null,"Total for personnel deployment ",null,null,{"$f":"H22+H23+H24+H25+K37+K45+I52+E56","v":0}]
[]
[]
[]
[]
[]
[]
[]
[]
[]
[]
[]
[]
[]
[]
[]
[]
[]
[]
[]
[]
[]
[]
[]
[]
[]
[]
[]
[]
[]
[]
[]
[]
[]
[]
[]
[]
[]
[]
[]
[]
[]
[]
[]
[]
[]
[]
[]
[]
[]
[]
[]
[]
[]
[]
[]
[null,null,null,null,null,null,null,null,null,null,null,null,null,null,null,null,null,null,null,null,null,null,null,null,null,null,null,null,null,null,null,null,null,null,null,null,null,null,"Please select"]
[null,null,null,null,null,null,null,null,null,null,null,null,null,null,null,null,null,null,null,null,null,null,null,null,null,null,null,null,null,null,null,null,null,null,null,null,null,null,"Expert (outward and homeward journeys)"]
[null,null,null,null,null,null,null,null,null,null,null,null,null,null,null,null,null,null,null,null,null,null,null,null,null,null,null,null,null,null,null,null,null,null,null,null,null,null,"Dependants (outward and homeward journeys) "]
[null,null,null,null,null,null,null,null,null,null,null,null,null,null,null,null,null,null,null,null,null,null,null,null,null,null,null,null,null,null,null,null,null,null,null,null,null,null,"Vacation flights"]
[null,null,null,null,null,null,null,null,null,null,null,null,null,null,null,null,null,null,null,null,null,null,null,null,null,null,null,null,null,null,null,null,null,null,null,null,null,null,"Regional and national flights"]
[null,null,null,null,null,null,null,null,null,null,null,null,null,null,null,null,null,null,null,null,null,null,null,null,null,null,null,null,null,null,null,null,null,null,null,null,null,null,"Other flights"]
[]
[null,null,null,null,null,null,null,null,null,null,null,null,null,null,null,null,null,null,null,null,null,null,null,null,null,null,null,null,null,null,null,null,null,null,null,null,null,null,"Please select"]
[null,null,null,null,null,null,null,null,null,null,null,null,null,null,null,null,null,null,null,null,null,null,null,null,null,null,null,null,null,null,null,null,null,null,null,null,null,null,"Lump sum"]
[null,null,null,null,null,null,null,null,null,null,null,null,null,null,null,null,null,null,null,null,null,null,null,null,null,null,null,null,null,null,null,null,null,null,null,null,null,null,"Against evidence"]
[]
[null,null,null,null,null,null,null,null,null,null,null,null,null,null,null,null,null,null,null,null,null,null,null,null,null,null,null,null,null,null,null,null,null,null,null,null,null,null,"Please select"]
[null,null,null,null,null,null,null,null,null,null,null,null,null,null,null,null,null,null,null,null,null,null,null,null,null,null,null,null,null,null,null,null,null,null,null,null,null,null,"Long-term expert, int."]
[null,null,null,null,null,null,null,null,null,null,null,null,null,null,null,null,null,null,null,null,null,null,null,null,null,null,null,null,null,null,null,null,null,null,null,null,null,null,"Long-term expert, reg."]
[null,null,null,null,null,null,null,null,null,null,null,null,null,null,null,null,null,null,null,null,null,null,null,null,null,null,null,null,null,null,null,null,null,null,null,null,null,null,"Long-term expert, nat."]
[null,null,null,null,null,null,null,null,null,null,null,null,null,null,null,null,null,null,null,null,null,null,null,null,null,null,null,null,null,null,null,null,null,null,null,null,null,null,"Short-term expert, int."]
[null,null,null,null,null,null,null,null,null,null,null,null,null,null,null,null,null,null,null,null,null,null,null,null,null,null,null,null,null,null,null,null,null,null,null,null,null,null,"Short-term expert, reg."]
[null,null,null,null,null,null,null,null,null,null,null,null,null,null,null,null,null,null,null,null,null,null,null,null,null,null,null,null,null,null,null,null,null,null,null,null,null,null,"Short-term expert, nat."]
[null,null,null,null,null,null,null,null,null,null,null,null,null,null,null,null,null,null,null,null,null,null,null,null,null,null,null,null,null,null,null,null,null,null,null,null,null,null,"Other (please define)"]
[]
[null,null,null,null,null,null,null,null,null,null,null,null,null,null,null,null,null,null,null,null,null,null,null,null,null,null,null,null,null,null,null,null,null,null,null,null,null,null,"Please select"]
[null,null,null,null,null,null,null,null,null,null,null,null,null,null,null,null,null,null,null,null,null,null,null,null,null,null,null,null,null,null,null,null,null,null,null,null,null,null,"Travel expenses outside the country"]
[null,null,null,null,null,null,null,null,null,null,null,null,null,null,null,null,null,null,null,null,null,null,null,null,null,null,null,null,null,null,null,null,null,null,null,null,null,null,"Travel expenses in the country"]

{"sheet":"Expert sheet (months or d (7)","index":7,"n_rows":135,"n_cols":39,"rows_kept":135,"cut":false,"hidden":true,"merged":[[55,0,55,1],[55,5,55,8],[55,9,55,11],[56,12,56,14],[49,3,49,4],[49,9,49,14],[50,3,50,4],[50,9,50,14],[51,3,51,4],[51,9,51,14],[54,5,54,8],[54,9,54,11],[46,0,46,16],[47,0,48,0],[47,1,47,2],[47,3,48,4],[47,5,48,5],[47,6,48,6],[47,7,48,7],[47,8,48,8],[47,9,48,14],[47,15,48,16],[40,11,40,15],[41,11,41,15],[42,11,42,15],[43,11,43,15],[44,3,44,4],[44,11,44,15],[36,3,36,4],[36,11,36,15],[36,16,36,17],[38,14,38,15],[39,11,39,15],[39,16,39,17],[33,11,33,15],[33,16,33,17],[34,11,34,15],[34,16,34,17],[35,11,35,15],[35,16,35,17],[30,11,30,15],[30,16,30,17],[31,11,31,15],[31,16,31,17],[32,11,32,15],[32,16,32,17],[26,11,26,17],[28,1,29,1],[28,3,28,5],[28,10,29,10],[28,11,29,15],[28,16,29,17],[21,8,21,14],[21,15,21,16],[23,8,23,14],[23,15,23,16],[24,8,24,14],[24,15,24,16],[22,8,22,14],[19,15,20,16],[15,9,15,13],[15,14,15,15],[16,9,16,13],[16,14,16,15],[19,8,20,14],[16,19,16,20],[18,0,18,16],[12,9,12,13],[12,14,12,15],[13,0,13,5],[13,9,13,13],[13,14,13,15],[14,9,14,13],[14,14,14,15],[6,13,6,14],[7,2,7,4],[8,2,8,4],[9,2,9,4],[11,9,11,13],[11,14,11,15],[5,15,7,15],[6,2,6,4],[6,7,6,8],[6,9,6,10],[6,11,6,12],[1,3,1,4],[1,7,1,9],[5,7,5,8],[5,9,5,12],[5,13,5,14],[6,0,6,1],[9,0,9,1],[21,0,21,2],[22,0,22,2],[28,7,29,7],[19,3,20,3],[19,4,20,4],[19,5,19,6],[19,7,20,7]]}
["Statement on personnel deployment"]
[null,"Contract number:",null,"Processing no./Cost centre:",null,null,null,"Accounting period:"]
[null,{"$f":"'Invoice overview'!A28","v":0},null,null,{"$f":"'Invoice overview'!C28","v":0},null,null,null,null,{"$f":"_xlfn.TEXTJOIN(\"   \",FALSE,IF('Invoice overview'!$G$28 > 0, TEXT('Invoice overview'!$G$28,\"TT.MM.JJJJ\"),\"\"),\"until\",IF('Invoice overview'!$I$28 > 0, TEXT('Invoice overview'!$I$28,\"TT.MM.JJJJ\"),\"\"))","v":"   until   "}]
[]
[]
["Personal data",null,null,null,null,null,"Periods of assignment","Total scheduled time",null,"Accounting period ",null,null,null,"Actual time ",null,"Remarks"]
["Family name, given name:",null,null,null,null,null,null,"Acc. to contract",null,"Actual period",null,"Period",null,"Total"]
["Function:",null,"Please select",null,null,null,null,"Months","Days","dd.mm.yyyy","dd.mm.yyyy","Months","Days","Months","Days"]
["Description of function:",null,null,null,null,null,"Germany"]
["Expert no. per price schedule",null,null,null,null,null,"Other Countries"]
[]
[null,null,null,null,null,null,"Details on leave and sickness",null,null,"Remarks",null,null,null,null,"Reserved for GIZ"]
["Link to assignment period calculation sheet for short-term expert pools:",null,null,null,null,null,"Total contractual entitlement (days)",null,{"$f":"IF( (SUM(H9:H10)) >= 4, (SUM(H9:H10)) * 4, 0)","v":0}]
["https://www.giz.de/de/downloads/giz2012-de-Hilfe_zur_Berechnung_der_Einsatzzeit_von_KZE-Pools.xls",null,null,null,null,null,"Remaining entitlement (days) *"]
[null,null,null,null,null,null,"Leave taken (days)*"]
[null,null,null,null,null,null,"Remaining leave (days)",null,{"$f":"IF(I14>0,I14-I15,I13-I15)","v":0}]
[null,null,null,null,null,null,"Sickness (days)"]
[]
["Personnel costs"]
[null,null,null,"Monthly rate\nacc. to contract","Daily rate\nacc. to contract","Quantity",null,"Amount ","Remarks",null,null,null,null,null,null,"Reserved for GIZ"]
["Remuneration item",null,null,null,null,"Months","Days **"]
["Fee (No. 5.4 General Conditions)",null,null,null,null,null,null,{"$f":"IF(NOT(D22=\"\"),D22*(F22+ROUND((G22/30),3)),IF(NOT(E22=\"\"),E22*G22,0))","v":0}]
["Fee (No. 5.4 General Conditions)",null,null,null,null,null,null,{"$f":"IF(NOT(D23=\"\"),D23*(F23+ROUND((G23/30),3)),IF(NOT(E23=\"\"),E23*G23,0))","v":0}]
["Per diem (No. 5.6. General Conditions)",null,null,null,null,null,null,{"$f":"IF(NOT(D24=\"\"),D24*(F24+ROUND((G24/30),3)),IF(NOT(E24=\"\"),E24*G24,0))","v":0}]
["Accommodation (No. 5.7 General Conditions)",null,null,null,null,null,null,{"$f":"IF(NOT(D25=\"\"),D25*(F25+ROUND((G25/30),3)),IF(NOT(E25=\"\"),E25*G25,0))","v":0}]
[]
["Travel expenses"]
["Air travel (No. 5.8 General Conditions)"]
[null,"Name of traveller",null,"Travel dates",null,null,null,"Amount\n (per voucher or lump sum)",null,null,"Amount ","Remarks",null,null,null,null,"Reserved for GIZ"]
["No.",null,"Type of flight","Destination","Outward flight\n(dd.mm.yyyy)","Homeward flight (dd.mm.yyyy)","Type of reimbursement",null,"Currency","Rate/\nquantity*"]
[1,null,"Please select",null,null,null,"Please select",null,null,null,{"$f":"H31*J31","v":0}]
[2,null,null,null,null,null,null,null,null,null,{"$f":"H32*J32","v":0}]
[3,null,null,null,null,null,null,null,null,null,0]
[4,null,null,null,null,null,null,null,null,null,0]
[5,null,null,null,null,null,null,null,null,null,0]
[6,null,null,null,null,null,null,null,null,null,0]
["TOTAL:",null,null,null,null,null,null,null,null,{"$f":"'Invoice overview'!F32","v":"EUR"},{"$f":"SUM(K31:K36)","v":0}]
[]
["Other travel expenses (No. 5.9 General Conditions)"]
["No.","Country of travel","Nature of travel expenses","Start\n(dd.mm.yyyy)","End\n(dd.mm.yyyy)","Reason for travel","Type of reimbursement","Amount\n (per voucher or lump sum)","Currency","Rate/\nquantity*","Amount ","Remarks",null,null,null,null,"Reserved for GIZ"]
[1,null,"Please select",null,null,null,"Please select",null,null,null,{"$f":"H41*J41","v":0}]
[2,null,null,null,null,null,null,null,null,null,{"$f":"H42*J42","v":0}]
[3,null,null,null,null,null,null,null,null,null,0]
[4,null,null,null,null,null,null,null,null,null,0]
["TOTAL:",null,null,null,null,null,null,null,null,{"$f":"'Invoice overview'!F32","v":"EUR"},{"$f":"SUM(K41:K44)","v":0}]
[]
["Other travel expenses (No. 5.9 General Conditions) MONTHLY LUMP SUM"]
["No.","Accounting period",null,"Nature of travel expenses",null,"Type of reimbursement","Monthly rate\nacc. to contract","Daily rate\nacc. to contract","Amount","Remarks",null,null,null,null,null,"Reserved for GIZ"]
[null,"Months","Days**"]
[1,null,null,"Please select",null,"Lump sum/Month or day",null,null,{"$f":"IF(NOT(G50=\"\"),G50*(B50+ROUND((C50/30),3)),IF(NOT(H50=\"\"),H50*C50,0))","v":0}]
[2,null,null,null,null,"Lump sum/Month or day",null,null,{"$f":"IF(NOT(G51=\"\"),G51*(B51+ROUND((C51/30),3)),IF(NOT(H51=\"\"),H51*C51,0))","v":0}]
["Total:",null,null,null,null,null,null,{"$f":"'Invoice overview'!F32","v":"EUR"},{"$f":"SUM(I50:I51)","v":0}]
[]
["Relocation goods (No. 5.10. General Conditions)"]
["Lump sum (in contract currency)",null,"Quantity","Rate","Amount","Remarks",null,null,null,"Reserved for GIZ"]
[null,null,1,null,{"$f":"D56*C56","v":0}]
[null,null,null,null,null,null,null,null,null,null,null,null,"Total for personnel deployment ",null,null,{"$f":"H22+H23+H24+H25+K37+K45+I52+E56","v":0}]
[]
[]
[]
[]
[]
[]
[]
[]
[]
[]
[]
[]
[]
[]
[]
[]
[]
[]
[]
[]
[]
[]
[]
[]
[]
[]
[]
[]
[]
[]
[]
[]
[]
[]
[]
[]
[]
[]
[]
[]
[]
[]
[]
[]
[]
[]
[]
[]
[]
[]
[]
[]
[]
[]
[]
[null,null,null,null,null,null,null,null,null,null,null,null,null,null,null,null,null,null,null,null,null,null,null,null,null,null,null,null,null,null,null,null,null,null,null,null,null,null,"Please select"]
[null,null,null,null,null,null,null,null,null,null,null,null,null,null,null,null,null,null,null,null,null,null,null,null,null,null,null,null,null,null,null,null,null,null,null,null,null,null,"Expert (outward and homeward journeys)"]
[null,null,null,null,null,null,null,null,null,null,null,null,null,null,null,null,null,null,null,null,null,null,null,null,null,null,null,null,null,null,null,null,null,null,null,null,null,null,"Dependants (outward and homeward journeys) "]
[null,null,null,null,null,null,null,null,null,null,null,null,null,null,null,null,null,null,null,null,null,null,null,null,null,null,null,null,null,null,null,null,null,null,null,null,null,null,"Vacation flights"]
[null,null,null,null,null,null,null,null,null,null,null,null,null,null,null,null,null,null,null,null,null,null,null,null,null,null,null,null,null,null,null,null,null,null,null,null,null,null,"Regional and national flights"]
[null,null,null,null,null,null,null,null,null,null,null,null,null,null,null,null,null,null,null,null,null,null,null,null,null,null,null,null,null,null,null,null,null,null,null,null,null,null,"Other flights"]
[]
[null,null,null,null,null,null,null,null,null,null,null,null,null,null,null,null,null,null,null,null,null,null,null,null,null,null,null,null,null,null,null,null,null,null,null,null,null,null,"Please select"]
[null,null,null,null,null,null,null,null,null,null,null,null,null,null,null,null,null,null,null,null,null,null,null,null,null,null,null,null,null,null,null,null,null,null,null,null,null,null,"Lump sum"]
[null,null,null,null,null,null,null,null,null,null,null,null,null,null,null,null,null,null,null,null,null,null,null,null,null,null,null,null,null,null,null,null,null,null,null,null,null,null,"Against evidence"]
[]
[null,null,null,null,null,null,null,null,null,null,null,null,null,null,null,null,null,null,null,null,null,null,null,null,null,null,null,null,null,null,null,null,null,null,null,null,null,null,"Please select"]
[null,null,null,null,null,null,null,null,null,null,null,null,null,null,null,null,null,null,null,null,null,null,null,null,null,null,null,null,null,null,null,null,null,null,null,null,null,null,"Long-term expert, int."]
[null,null,null,null,null,null,null,null,null,null,null,null,null,null,null,null,null,null,null,null,null,null,null,null,null,null,null,null,null,null,null,null,null,null,null,null,null,null,"Long-term expert, reg."]
[null,null,null,null,null,null,null,null,null,null,null,null,null,null,null,null,null,null,null,null,null,null,null,null,null,null,null,null,null,null,null,null,null,null,null,null,null,null,"Long-term expert, nat."]
[null,null,null,null,null,null,null,null,null,null,null,null,null,null,null,null,null,null,null,null,null,null,null,null,null,null,null,null,null,null,null,null,null,null,null,null,null,null,"Short-term expert, int."]
[null,null,null,null,null,null,null,null,null,null,null,null,null,null,null,null,null,null,null,null,null,null,null,null,null,null,null,null,null,null,null,null,null,null,null,null,null,null,"Short-term expert, reg."]
[null,null,null,null,null,null,null,null,null,null,null,null,null,null,null,null,null,null,null,null,null,null,null,null,null,null,null,null,null,null,null,null,null,null,null,null,null,null,"Short-term expert, nat."]
[null,null,null,null,null,null,null,null,null,null,null,null,null,null,null,null,null,null,null,null,null,null,null,null,null,null,null,null,null,null,null,null,null,null,null,null,null,null,"Other (please define)"]
[]
[null,null,null,null,null,null,null,null,null,null,null,null,null,null,null,null,null,null,null,null,null,null,null,null,null,null,null,null,null,null,null,null,null,null,null,null,null,null,"Please select"]
[null,null,null,null,null,null,null,null,null,null,null,null,null,null,null,null,null,null,null,null,null,null,null,null,null,null,null,null,null,null,null,null,null,null,null,null,null,null,"Travel expenses outside the country"]
[null,null,null,null,null,null,null,null,null,null,null,null,null,null,null,null,null,null,null,null,null,null,null,null,null,null,null,null,null,null,null,null,null,null,null,null,null,null,"Travel expenses in the country"]

{"sheet":"Expert sheet (months or d (8)","index":8,"n_rows":135,"n_cols":39,"rows_kept":135,"cut":false,"hidden":true,"merged":[[55,0,55,1],[55,5,55,8],[55,9,55,11],[56,12,56,14],[49,3,49,4],[49,9,49,14],[50,3,50,4],[50,9,50,14],[51,3,51,4],[51,9,51,14],[54,5,54,8],[54,9,54,11],[46,0,46,16],[47,0,48,0],[47,1,47,2],[47,3,48,4],[47,5,48,5],[47,6,48,6],[47,7,48,7],[47,8,48,8],[47,9,48,14],[47,15,48,16],[40,11,40,15],[41,11,41,15],[42,11,42,15],[43,11,43,15],[44,3,44,4],[44,11,44,15],[36,3,36,4],[36,11,36,15],[36,16,36,17],[38,14,38,15],[39,11,39,15],[39,16,39,17],[33,11,33,15],[33,16,33,17],[34,11,34,15],[34,16,34,17],[35,11,35,15],[35,16,35,17],[30,11,30,15],[30,16,30,17],[31,11,31,15],[31,16,31,17],[32,11,32,15],[32,16,32,17],[26,11,26,17],[28,1,29,1],[28,3,28,5],[28,10,29,10],[28,11,29,15],[28,16,29,17],[21,8,21,14],[21,15,21,16],[23,8,23,14],[23,15,23,16],[24,8,24,14],[24,15,24,16],[22,8,22,14],[19,15,20,16],[15,9,15,13],[15,14,15,15],[16,9,16,13],[16,14,16,15],[19,8,20,14],[16,19,16,20],[18,0,18,16],[12,9,12,13],[12,14,12,15],[13,0,13,5],[13,9,13,13],[13,14,13,15],[14,9,14,13],[14,14,14,15],[6,13,6,14],[7,2,7,4],[8,2,8,4],[9,2,9,4],[11,9,11,13],[11,14,11,15],[5,15,7,15],[6,2,6,4],[6,7,6,8],[6,9,6,10],[6,11,6,12],[1,3,1,4],[1,7,1,9],[5,7,5,8],[5,9,5,12],[5,13,5,14],[6,0,6,1],[9,0,9,1],[21,0,21,2],[22,0,22,2],[28,7,29,7],[19,3,20,3],[19,4,20,4],[19,5,19,6],[19,7,20,7]]}
["Statement on personnel deployment"]
[null,"Contract number:",null,"Processing no./Cost centre:",null,null,null,"Accounting period:"]
[null,{"$f":"'Invoice overview'!A28","v":0},null,null,{"$f":"'Invoice overview'!C28","v":0},null,null,null,null,{"$f":"_xlfn.TEXTJOIN(\"   \",FALSE,IF('Invoice overview'!$G$28 > 0, TEXT('Invoice overview'!$G$28,\"TT.MM.JJJJ\"),\"\"),\"until\",IF('Invoice overview'!$I$28 > 0, TEXT('Invoice overview'!$I$28,\"TT.MM.JJJJ\"),\"\"))","v":"   until   "}]
[]
[]
["Personal data",null,null,null,null,null,"Periods of assignment","Total scheduled time",null,"Accounting period ",null,null,null,"Actual time ",null,"Remarks"]
["Family name, given name:",null,null,null,null,null,null,"Acc. to contract",null,"Actual period",null,"Period",null,"Total"]
["Function:",null,"Please select",null,null,null,null,"Months","Days","dd.mm.yyyy","dd.mm.yyyy","Months","Days","Months","Days"]
["Description of function:",null,null,null,null,null,"Germany"]
["Expert no. per price schedule",null,null,null,null,null,"Other Countries"]
[]
[null,null,null,null,null,null,"Details on leave and sickness",null,null,"Remarks",null,null,null,null,"Reserved for GIZ"]
["Link to assignment period calculation sheet for short-term expert pools:",null,null,null,null,null,"Total contractual entitlement (days)",null,{"$f":"IF( (SUM(H9:H10)) >= 4, (SUM(H9:H10)) * 4, 0)","v":0}]
["https://www.giz.de/de/downloads/giz2012-de-Hilfe_zur_Berechnung_der_Einsatzzeit_von_KZE-Pools.xls",null,null,null,null,null,"Remaining entitlement (days) *"]
[null,null,null,null,null,null,"Leave taken (days)*"]
[null,null,null,null,null,null,"Remaining leave (days)",null,{"$f":"IF(I14>0,I14-I15,I13-I15)","v":0}]
[null,null,null,null,null,null,"Sickness (days)"]
[]
["Personnel costs"]
[null,null,null,"Monthly rate\nacc. to contract","Daily rate\nacc. to contract","Quantity",null,"Amount ","Remarks",null,null,null,null,null,null,"Reserved for GIZ"]
["Remuneration item",null,null,null,null,"Months","Days **"]
["Fee (No. 5.4 General Conditions)",null,null,null,null,null,null,{"$f":"IF(NOT(D22=\"\"),D22*(F22+ROUND((G22/30),3)),IF(NOT(E22=\"\"),E22*G22,0))","v":0}]
["Fee (No. 5.4 General Conditions)",null,null,null,null,null,null,{"$f":"IF(NOT(D23=\"\"),D23*(F23+ROUND((G23/30),3)),IF(NOT(E23=\"\"),E23*G23,0))","v":0}]
["Per diem (No. 5.6. General Conditions)",null,null,null,null,null,null,{"$f":"IF(NOT(D24=\"\"),D24*(F24+ROUND((G24/30),3)),IF(NOT(E24=\"\"),E24*G24,0))","v":0}]
["Accommodation (No. 5.7 General Conditions)",null,null,null,null,null,null,{"$f":"IF(NOT(D25=\"\"),D25*(F25+ROUND((G25/30),3)),IF(NOT(E25=\"\"),E25*G25,0))","v":0}]
[]
["Travel expenses"]
["Air travel (No. 5.8 General Conditions)"]
[null,"Name of traveller",null,"Travel dates",null,null,null,"Amount\n (per voucher or lump sum)",null,null,"Amount ","Remarks",null,null,null,null,"Reserved for GIZ"]
["No.",null,"Type of flight","Destination","Outward flight\n(dd.mm.yyyy)","Homeward flight (dd.mm.yyyy)","Type of reimbursement",null,"Currency","Rate/\nquantity*"]
[1,null,"Please select",null,null,null,"Please select",null,null,null,{"$f":"H31*J31","v":0}]
[2,null,null,null,null,null,null,null,null,null,{"$f":"H32*J32","v":0}]
[3,null,null,null,null,null,null,null,null,null,0]
[4,null,null,null,null,null,null,null,null,null,0]
[5,null,null,null,null,null,null,null,null,null,0]
[6,null,null,null,null,null,null,null,null,null,0]
["TOTAL:",null,null,null,null,null,null,null,null,{"$f":"'Invoice overview'!F32","v":"EUR"},{"$f":"SUM(K31:K36)","v":0}]
[]
["Other travel expenses (No. 5.9 General Conditions)"]
["No.","Country of travel","Nature of travel expenses","Start\n(dd.mm.yyyy)","End\n(dd.mm.yyyy)","Reason for travel","Type of reimbursement","Amount\n (per voucher or lump sum)","Currency","Rate/\nquantity*","Amount ","Remarks",null,null,null,null,"Reserved for GIZ"]
[1,null,"Please select",null,null,null,"Please select",null,null,null,{"$f":"H41*J41","v":0}]
[2,null,null,null,null,null,null,null,null,null,{"$f":"H42*J42","v":0}]
[3,null,null,null,null,null,null,null,null,null,0]
[4,null,null,null,null,null,null,null,null,null,0]
["TOTAL:",null,null,null,null,null,null,null,null,{"$f":"'Invoice overview'!F32","v":"EUR"},{"$f":"SUM(K41:K44)","v":0}]
[]
["Other travel expenses (No. 5.9 General Conditions) MONTHLY LUMP SUM"]
["No.","Accounting period",null,"Nature of travel expenses",null,"Type of reimbursement","Monthly rate\nacc. to contract","Daily rate\nacc. to contract","Amount","Remarks",null,null,null,null,null,"Reserved for GIZ"]
[null,"Months","Days**"]
[1,null,null,"Please select",null,"Lump sum/Month or day",null,null,{"$f":"IF(NOT(G50=\"\"),G50*(B50+ROUND((C50/30),3)),IF(NOT(H50=\"\"),H50*C50,0))","v":0}]
[2,null,null,null,null,"Lump sum/Month or day",null,null,{"$f":"IF(NOT(G51=\"\"),G51*(B51+ROUND((C51/30),3)),IF(NOT(H51=\"\"),H51*C51,0))","v":0}]
["Total:",null,null,null,null,null,null,{"$f":"'Invoice overview'!F32","v":"EUR"},{"$f":"SUM(I50:I51)","v":0}]
[]
["Relocation goods (No. 5.10. General Conditions)"]
["Lump sum (in contract currency)",null,"Quantity","Rate","Amount","Remarks",null,null,null,"Reserved for GIZ"]
[null,null,1,null,{"$f":"D56*C56","v":0}]
[null,null,null,null,null,null,null,null,null,null,null,null,"Total for personnel deployment ",null,null,{"$f":"H22+H23+H24+H25+K37+K45+I52+E56","v":0}]
[]
[]
[]
[]
[]
[]
[]
[]
[]
[]
[]
[]
[]
[]
[]
[]
[]
[]
[]
[]
[]
[]
[]
[]
[]
[]
[]
[]
[]
[]
[]
[]
[]
[]
[]
[]
[]
[]
[]
[]
[]
[]
[]
[]
[]
[]
[]
[]
[]
[]
[]
[]
[]
[]
[]
[null,null,null,null,null,null,null,null,null,null,null,null,null,null,null,null,null,null,null,null,null,null,null,null,null,null,null,null,null,null,null,null,null,null,null,null,null,null,"Please select"]
[null,null,null,null,null,null,null,null,null,null,null,null,null,null,null,null,null,null,null,null,null,null,null,null,null,null,null,null,null,null,null,null,null,null,null,null,null,null,"Expert (outward and homeward journeys)"]
[null,null,null,null,null,null,null,null,null,null,null,null,null,null,null,null,null,null,null,null,null,null,null,null,null,null,null,null,null,null,null,null,null,null,null,null,null,null,"Dependants (outward and homeward journeys) "]
[null,null,null,null,null,null,null,null,null,null,null,null,null,null,null,null,null,null,null,null,null,null,null,null,null,null,null,null,null,null,null,null,null,null,null,null,null,null,"Vacation flights"]
[null,null,null,null,null,null,null,null,null,null,null,null,null,null,null,null,null,null,null,null,null,null,null,null,null,null,null,null,null,null,null,null,null,null,null,null,null,null,"Regional and national flights"]
[null,null,null,null,null,null,null,null,null,null,null,null,null,null,null,null,null,null,null,null,null,null,null,null,null,null,null,null,null,null,null,null,null,null,null,null,null,null,"Other flights"]
[]
[null,null,null,null,null,null,null,null,null,null,null,null,null,null,null,null,null,null,null,null,null,null,null,null,null,null,null,null,null,null,null,null,null,null,null,null,null,null,"Please select"]
[null,null,null,null,null,null,null,null,null,null,null,null,null,null,null,null,null,null,null,null,null,null,null,null,null,null,null,null,null,null,null,null,null,null,null,null,null,null,"Lump sum"]
[null,null,null,null,null,null,null,null,null,null,null,null,null,null,null,null,null,null,null,null,null,null,null,null,null,null,null,null,null,null,null,null,null,null,null,null,null,null,"Against evidence"]
[]
[null,null,null,null,null,null,null,null,null,null,null,null,null,null,null,null,null,null,null,null,null,null,null,null,null,null,null,null,null,null,null,null,null,null,null,null,null,null,"Please select"]
[null,null,null,null,null,null,null,null,null,null,null,null,null,null,null,null,null,null,null,null,null,null,null,null,null,null,null,null,null,null,null,null,null,null,null,null,null,null,"Long-term expert, int."]
[null,null,null,null,null,null,null,null,null,null,null,null,null,null,null,null,null,null,null,null,null,null,null,null,null,null,null,null,null,null,null,null,null,null,null,null,null,null,"Long-term expert, reg."]
[null,null,null,null,null,null,null,null,null,null,null,null,null,null,null,null,null,null,null,null,null,null,null,null,null,null,null,null,null,null,null,null,null,null,null,null,null,null,"Long-term expert, nat."]
[null,null,null,null,null,null,null,null,null,null,null,null,null,null,null,null,null,null,null,null,null,null,null,null,null,null,null,null,null,null,null,null,null,null,null,null,null,null,"Short-term expert, int."]
[null,null,null,null,null,null,null,null,null,null,null,null,null,null,null,null,null,null,null,null,null,null,null,null,null,null,null,null,null,null,null,null,null,null,null,null,null,null,"Short-term expert, reg."]
[null,null,null,null,null,null,null,null,null,null,null,null,null,null,null,null,null,null,null,null,null,null,null,null,null,null,null,null,null,null,null,null,null,null,null,null,null,null,"Short-term expert, nat."]
[null,null,null,null,null,null,null,null,null,null,null,null,null,null,null,null,null,null,null,null,null,null,null,null,null,null,null,null,null,null,null,null,null,null,null,null,null,null,"Other (please define)"]
[]
[null,null,null,null,null,null,null,null,null,null,null,null,null,null,null,null,null,null,null,null,null,null,null,null,null,null,null,null,null,null,null,null,null,null,null,null,null,null,"Please select"]
[null,null,null,null,null,null,null,null,null,null,null,null,null,null,null,null,null,null,null,null,null,null,null,null,null,null,null,null,null,null,null,null,null,null,null,null,null,null,"Travel expenses outside the country"]
[null,null,null,null,null,null,null,null,null,null,null,null,null,null,null,null,null,null,null,null,null,null,null,null,null,null,null,null,null,null,null,null,null,null,null,null,null,null,"Travel expenses in the country"]

{"sheet":"Expert sheet (months or d (9)","index":9,"n_rows":135,"n_cols":39,"rows_kept":135,"cut":false,"hidden":true,"merged":[[55,0,55,1],[55,5,55,8],[55,9,55,11],[56,12,56,14],[49,3,49,4],[49,9,49,14],[50,3,50,4],[50,9,50,14],[51,3,51,4],[51,9,51,14],[54,5,54,8],[54,9,54,11],[46,0,46,16],[47,0,48,0],[47,1,47,2],[47,3,48,4],[47,5,48,5],[47,6,48,6],[47,7,48,7],[47,8,48,8],[47,9,48,14],[47,15,48,16],[40,11,40,15],[41,11,41,15],[42,11,42,15],[43,11,43,15],[44,3,44,4],[44,11,44,15],[36,3,36,4],[36,11,36,15],[36,16,36,17],[38,14,38,15],[39,11,39,15],[39,16,39,17],[33,11,33,15],[33,16,33,17],[34,11,34,15],[34,16,34,17],[35,11,35,15],[35,16,35,17],[30,11,30,15],[30,16,30,17],[31,11,31,15],[31,16,31,17],[32,11,32,15],[32,16,32,17],[26,11,26,17],[28,1,29,1],[28,3,28,5],[28,10,29,10],[28,11,29,15],[28,16,29,17],[21,8,21,14],[21,15,21,16],[23,8,23,14],[23,15,23,16],[24,8,24,14],[24,15,24,16],[22,8,22,14],[19,15,20,16],[15,9,15,13],[15,14,15,15],[16,9,16,13],[16,14,16,15],[19,8,20,14],[16,19,16,20],[18,0,18,16],[12,9,12,13],[12,14,12,15],[13,0,13,5],[13,9,13,13],[13,14,13,15],[14,9,14,13],[14,14,14,15],[6,13,6,14],[7,2,7,4],[8,2,8,4],[9,2,9,4],[11,9,11,13],[11,14,11,15],[5,15,7,15],[6,2,6,4],[6,7,6,8],[6,9,6,10],[6,11,6,12],[1,3,1,4],[1,7,1,9],[5,7,5,8],[5,9,5,12],[5,13,5,14],[6,0,6,1],[9,0,9,1],[21,0,21,2],[22,0,22,2],[28,7,29,7],[19,3,20,3],[19,4,20,4],[19,5,19,6],[19,7,20,7]]}
["Statement on personnel deployment"]
[null,"Contract number:",null,"Processing no./Cost centre:",null,null,null,"Accounting period:"]
[null,{"$f":"'Invoice overview'!A28","v":0},null,null,{"$f":"'Invoice overview'!C28","v":0},null,null,null,null,{"$f":"_xlfn.TEXTJOIN(\"   \",FALSE,IF('Invoice overview'!$G$28 > 0, TEXT('Invoice overview'!$G$28,\"TT.MM.JJJJ\"),\"\"),\"until\",IF('Invoice overview'!$I$28 > 0, TEXT('Invoice overview'!$I$28,\"TT.MM.JJJJ\"),\"\"))","v":"   until   "}]
[]
[]
["Personal data",null,null,null,null,null,"Periods of assignment","Total scheduled time",null,"Accounting period ",null,null,null,"Actual time ",null,"Remarks"]
["Family name, given name:",null,null,null,null,null,null,"Acc. to contract",null,"Actual period",null,"Period",null,"Total"]
["Function:",null,"Please select",null,null,null,null,"Months","Days","dd.mm.yyyy","dd.mm.yyyy","Months","Days","Months","Days"]
["Description of function:",null,null,null,null,null,"Germany"]
["Expert no. per price schedule",null,null,null,null,null,"Other Countries"]
[]
[null,null,null,null,null,null,"Details on leave and sickness",null,null,"Remarks",null,null,null,null,"Reserved for GIZ"]
["Link to assignment period calculation sheet for short-term expert pools:",null,null,null,null,null,"Total contractual entitlement (days)",null,{"$f":"IF( (SUM(H9:H10)) >= 4, (SUM(H9:H10)) * 4, 0)","v":0}]
["https://www.giz.de/de/downloads/giz2012-de-Hilfe_zur_Berechnung_der_Einsatzzeit_von_KZE-Pools.xls",null,null,null,null,null,"Remaining entitlement (days) *"]
[null,null,null,null,null,null,"Leave taken (days)*"]
[null,null,null,null,null,null,"Remaining leave (days)",null,{"$f":"IF(I14>0,I14-I15,I13-I15)","v":0}]
[null,null,null,null,null,null,"Sickness (days)"]
[]
["Personnel costs"]
[null,null,null,"Monthly rate\nacc. to contract","Daily rate\nacc. to contract","Quantity",null,"Amount ","Remarks",null,null,null,null,null,null,"Reserved for GIZ"]
["Remuneration item",null,null,null,null,"Months","Days **"]
["Fee (No. 5.4 General Conditions)",null,null,null,null,null,null,{"$f":"IF(NOT(D22=\"\"),D22*(F22+ROUND((G22/30),3)),IF(NOT(E22=\"\"),E22*G22,0))","v":0}]
["Fee (No. 5.4 General Conditions)",null,null,null,null,null,null,{"$f":"IF(NOT(D23=\"\"),D23*(F23+ROUND((G23/30),3)),IF(NOT(E23=\"\"),E23*G23,0))","v":0}]
["Per diem (No. 5.6. General Conditions)",null,null,null,null,null,null,{"$f":"IF(NOT(D24=\"\"),D24*(F24+ROUND((G24/30),3)),IF(NOT(E24=\"\"),E24*G24,0))","v":0}]
["Accommodation (No. 5.7 General Conditions)",null,null,null,null,null,null,{"$f":"IF(NOT(D25=\"\"),D25*(F25+ROUND((G25/30),3)),IF(NOT(E25=\"\"),E25*G25,0))","v":0}]
[]
["Travel expenses"]
["Air travel (No. 5.8 General Conditions)"]
[null,"Name of traveller",null,"Travel dates",null,null,null,"Amount\n (per voucher or lump sum)",null,null,"Amount ","Remarks",null,null,null,null,"Reserved for GIZ"]
["No.",null,"Type of flight","Destination","Outward flight\n(dd.mm.yyyy)","Homeward flight (dd.mm.yyyy)","Type of reimbursement",null,"Currency","Rate/\nquantity*"]
[1,null,"Please select",null,null,null,"Please select",null,null,null,{"$f":"H31*J31","v":0}]
[2,null,null,null,null,null,null,null,null,null,{"$f":"H32*J32","v":0}]
[3,null,null,null,null,null,null,null,null,null,0]
[4,null,null,null,null,null,null,null,null,null,0]
[5,null,null,null,null,null,null,null,null,null,0]
[6,null,null,null,null,null,null,null,null,null,0]
["TOTAL:",null,null,null,null,null,null,null,null,{"$f":"'Invoice overview'!F32","v":"EUR"},{"$f":"SUM(K31:K36)","v":0}]
[]
["Other travel expenses (No. 5.9 General Conditions)"]
["No.","Country of travel","Nature of travel expenses","Start\n(dd.mm.yyyy)","End\n(dd.mm.yyyy)","Reason for travel","Type of reimbursement","Amount\n (per voucher or lump sum)","Currency","Rate/\nquantity*","Amount ","Remarks",null,null,null,null,"Reserved for GIZ"]
[1,null,"Please select",null,null,null,"Please select",null,null,null,{"$f":"H41*J41","v":0}]
[2,null,null,null,null,null,null,null,null,null,{"$f":"H42*J42","v":0}]
[3,null,null,null,null,null,null,null,null,null,0]
[4,null,null,null,null,null,null,null,null,null,0]
["TOTAL:",null,null,null,null,null,null,null,null,{"$f":"'Invoice overview'!F32","v":"EUR"},{"$f":"SUM(K41:K44)","v":0}]
[]
["Other travel expenses (No. 5.9 General Conditions) MONTHLY LUMP SUM"]
["No.","Accounting period",null,"Nature of travel expenses",null,"Type of reimbursement","Monthly rate\nacc. to contract","Daily rate\nacc. to contract","Amount","Remarks",null,null,null,null,null,"Reserved for GIZ"]
[null,"Months","Days**"]
[1,null,null,"Please select",null,"Lump sum/Month or day",null,null,{"$f":"IF(NOT(G50=\"\"),G50*(B50+ROUND((C50/30),3)),IF(NOT(H50=\"\"),H50*C50,0))","v":0}]
[2,null,null,null,null,"Lump sum/Month or day",null,null,{"$f":"IF(NOT(G51=\"\"),G51*(B51+ROUND((C51/30),3)),IF(NOT(H51=\"\"),H51*C51,0))","v":0}]
["Total:",null,null,null,null,null,null,{"$f":"'Invoice overview'!F32","v":"EUR"},{"$f":"SUM(I50:I51)","v":0}]
[]
["Relocation goods (No. 5.10. General Conditions)"]
["Lump sum (in contract currency)",null,"Quantity","Rate","Amount","Remarks",null,null,null,"Reserved for GIZ"]
[null,null,1,null,{"$f":"D56*C56","v":0}]
[null,null,null,null,null,null,null,null,null,null,null,null,"Total for personnel deployment ",null,null,{"$f":"H22+H23+H24+H25+K37+K45+I52+E56","v":0}]
[]
[]
[]
[]
[]
[]
[]
[]
[]
[]
[]
[]
[]
[]
[]
[]
[]
[]
[]
[]
[]
[]
[]
[]
[]
[]
[]
[]
[]
[]
[]
[]
[]
[]
[]
[]
[]
[]
[]
[]
[]
[]
[]
[]
[]
[]
[]
[]
[]
[]
[]
[]
[]
[]
[]
[null,null,null,null,null,null,null,null,null,null,null,null,null,null,null,null,null,null,null,null,null,null,null,null,null,null,null,null,null,null,null,null,null,null,null,null,null,null,"Please select"]
[null,null,null,null,null,null,null,null,null,null,null,null,null,null,null,null,null,null,null,null,null,null,null,null,null,null,null,null,null,null,null,null,null,null,null,null,null,null,"Expert (outward and homeward journeys)"]
[null,null,null,null,null,null,null,null,null,null,null,null,null,null,null,null,null,null,null,null,null,null,null,null,null,null,null,null,null,null,null,null,null,null,null,null,null,null,"Dependants (outward and homeward journeys) "]
[null,null,null,null,null,null,null,null,null,null,null,null,null,null,null,null,null,null,null,null,null,null,null,null,null,null,null,null,null,null,null,null,null,null,null,null,null,null,"Vacation flights"]
[null,null,null,null,null,null,null,null,null,null,null,null,null,null,null,null,null,null,null,null,null,null,null,null,null,null,null,null,null,null,null,null,null,null,null,null,null,null,"Regional and national flights"]
[null,null,null,null,null,null,null,null,null,null,null,null,null,null,null,null,null,null,null,null,null,null,null,null,null,null,null,null,null,null,null,null,null,null,null,null,null,null,"Other flights"]
[]
[null,null,null,null,null,null,null,null,null,null,null,null,null,null,null,null,null,null,null,null,null,null,null,null,null,null,null,null,null,null,null,null,null,null,null,null,null,null,"Please select"]
[null,null,null,null,null,null,null,null,null,null,null,null,null,null,null,null,null,null,null,null,null,null,null,null,null,null,null,null,null,null,null,null,null,null,null,null,null,null,"Lump sum"]
[null,null,null,null,null,null,null,null,null,null,null,null,null,null,null,null,null,null,null,null,null,null,null,null,null,null,null,null,null,null,null,null,null,null,null,null,null,null,"Against evidence"]
[]
[null,null,null,null,null,null,null,null,null,null,null,null,null,null,null,null,null,null,null,null,null,null,null,null,null,null,null,null,null,null,null,null,null,null,null,null,null,null,"Please select"]
[null,null,null,null,null,null,null,null,null,null,null,null,null,null,null,null,null,null,null,null,null,null,null,null,null,null,null,null,null,null,null,null,null,null,null,null,null,null,"Long-term expert, int."]
[null,null,null,null,null,null,null,null,null,null,null,null,null,null,null,null,null,null,null,null,null,null,null,null,null,null,null,null,null,null,null,null,null,null,null,null,null,null,"Long-term expert, reg."]
[null,null,null,null,null,null,null,null,null,null,null,null,null,null,null,null,null,null,null,null,null,null,null,null,null,null,null,null,null,null,null,null,null,null,null,null,null,null,"Long-term expert, nat."]
[null,null,null,null,null,null,null,null,null,null,null,null,null,null,null,null,null,null,null,null,null,null,null,null,null,null,null,null,null,null,null,null,null,null,null,null,null,null,"Short-term expert, int."]
[null,null,null,null,null,null,null,null,null,null,null,null,null,null,null,null,null,null,null,null,null,null,null,null,null,null,null,null,null,null,null,null,null,null,null,null,null,null,"Short-term expert, reg."]
[null,null,null,null,null,null,null,null,null,null,null,null,null,null,null,null,null,null,null,null,null,null,null,null,null,null,null,null,null,null,null,null,null,null,null,null,null,null,"Short-term expert, nat."]
[null,null,null,null,null,null,null,null,null,null,null,null,null,null,null,null,null,null,null,null,null,null,null,null,null,null,null,null,null,null,null,null,null,null,null,null,null,null,"Other (please define)"]
[]
[null,null,null,null,null,null,null,null,null,null,null,null,null,null,null,null,null,null,null,null,null,null,null,null,null,null,null,null,null,null,null,null,null,null,null,null,null,null,"Please select"]
[null,null,null,null,null,null,null,null,null,null,null,null,null,null,null,null,null,null,null,null,null,null,null,null,null,null,null,null,null,null,null,null,null,null,null,null,null,null,"Travel expenses outside the country"]
[null,null,null,null,null,null,null,null,null,null,null,null,null,null,null,null,null,null,null,null,null,null,null,null,null,null,null,null,null,null,null,null,null,null,null,null,null,null,"Travel expenses in the country"]

{"sheet":"Expert sheet (months or d (10)","index":10,"n_rows":135,"n_cols":39,"rows_kept":135,"cut":false,"hidden":true,"merged":[[55,0,55,1],[55,5,55,8],[55,9,55,11],[56,12,56,14],[49,3,49,4],[49,9,49,14],[50,3,50,4],[50,9,50,14],[51,3,51,4],[51,9,51,14],[54,5,54,8],[54,9,54,11],[46,0,46,16],[47,0,48,0],[47,1,47,2],[47,3,48,4],[47,5,48,5],[47,6,48,6],[47,7,48,7],[47,8,48,8],[47,9,48,14],[47,15,48,16],[40,11,40,15],[41,11,41,15],[42,11,42,15],[43,11,43,15],[44,3,44,4],[44,11,44,15],[36,3,36,4],[36,11,36,15],[36,16,36,17],[38,14,38,15],[39,11,39,15],[39,16,39,17],[33,11,33,15],[33,16,33,17],[34,11,34,15],[34,16,34,17],[35,11,35,15],[35,16,35,17],[30,11,30,15],[30,16,30,17],[31,11,31,15],[31,16,31,17],[32,11,32,15],[32,16,32,17],[26,11,26,17],[28,1,29,1],[28,3,28,5],[28,10,29,10],[28,11,29,15],[28,16,29,17],[21,8,21,14],[21,15,21,16],[23,8,23,14],[23,15,23,16],[24,8,24,14],[24,15,24,16],[22,8,22,14],[19,15,20,16],[15,9,15,13],[15,14,15,15],[16,9,16,13],[16,14,16,15],[19,8,20,14],[16,19,16,20],[18,0,18,16],[12,9,12,13],[12,14,12,15],[13,0,13,5],[13,9,13,13],[13,14,13,15],[14,9,14,13],[14,14,14,15],[6,13,6,14],[7,2,7,4],[8,2,8,4],[9,2,9,4],[11,9,11,13],[11,14,11,15],[5,15,7,15],[6,2,6,4],[6,7,6,8],[6,9,6,10],[6,11,6,12],[1,3,1,4],[1,7,1,9],[5,7,5,8],[5,9,5,12],[5,13,5,14],[6,0,6,1],[9,0,9,1],[21,0,21,2],[22,0,22,2],[28,7,29,7],[19,3,20,3],[19,4,20,4],[19,5,19,6],[19,7,20,7]]}
["Statement on personnel deployment"]
[null,"Contract number:",null,"Processing no./Cost centre:",null,null,null,"Accounting period:"]
[null,{"$f":"'Invoice overview'!A28","v":0},null,null,{"$f":"'Invoice overview'!C28","v":0},null,null,null,null,{"$f":"_xlfn.TEXTJOIN(\"   \",FALSE,IF('Invoice overview'!$G$28 > 0, TEXT('Invoice overview'!$G$28,\"TT.MM.JJJJ\"),\"\"),\"until\",IF('Invoice overview'!$I$28 > 0, TEXT('Invoice overview'!$I$28,\"TT.MM.JJJJ\"),\"\"))","v":"   until   "}]
[]
[]
["Personal data",null,null,null,null,null,"Periods of assignment","Total scheduled time",null,"Accounting period ",null,null,null,"Actual time ",null,"Remarks"]
["Family name, given name:",null,null,null,null,null,null,"Acc. to contract",null,"Actual period",null,"Period",null,"Total"]
["Function:",null,"Please select",null,null,null,null,"Months","Days","dd.mm.yyyy","dd.mm.yyyy","Months","Days","Months","Days"]
["Description of function:",null,null,null,null,null,"Germany"]
["Expert no. per price schedule",null,null,null,null,null,"Other Countries"]
[]
[null,null,null,null,null,null,"Details on leave and sickness",null,null,"Remarks",null,null,null,null,"Reserved for GIZ"]
["Link to assignment period calculation sheet for short-term expert pools:",null,null,null,null,null,"Total contractual entitlement (days)",null,{"$f":"IF( (SUM(H9:H10)) >= 4, (SUM(H9:H10)) * 4, 0)","v":0}]
["https://www.giz.de/de/downloads/giz2012-de-Hilfe_zur_Berechnung_der_Einsatzzeit_von_KZE-Pools.xls",null,null,null,null,null,"Remaining entitlement (days) *"]
[null,null,null,null,null,null,"Leave taken (days)*"]
[null,null,null,null,null,null,"Remaining leave (days)",null,{"$f":"IF(I14>0,I14-I15,I13-I15)","v":0}]
[null,null,null,null,null,null,"Sickness (days)"]
[]
["Personnel costs"]
[null,null,null,"Monthly rate\nacc. to contract","Daily rate\nacc. to contract","Quantity",null,"Amount ","Remarks",null,null,null,null,null,null,"Reserved for GIZ"]
["Remuneration item",null,null,null,null,"Months","Days **"]
["Fee (No. 5.4 General Conditions)",null,null,null,null,null,null,{"$f":"IF(NOT(D22=\"\"),D22*(F22+ROUND((G22/30),3)),IF(NOT(E22=\"\"),E22*G22,0))","v":0}]
["Fee (No. 5.4 General Conditions)",null,null,null,null,null,null,{"$f":"IF(NOT(D23=\"\"),D23*(F23+ROUND((G23/30),3)),IF(NOT(E23=\"\"),E23*G23,0))","v":0}]
["Per diem (No. 5.6. General Conditions)",null,null,null,null,null,null,{"$f":"IF(NOT(D24=\"\"),D24*(F24+ROUND((G24/30),3)),IF(NOT(E24=\"\"),E24*G24,0))","v":0}]
["Accommodation (No. 5.7 General Conditions)",null,null,null,null,null,null,{"$f":"IF(NOT(D25=\"\"),D25*(F25+ROUND((G25/30),3)),IF(NOT(E25=\"\"),E25*G25,0))","v":0}]
[]
["Travel expenses"]
["Air travel (No. 5.8 General Conditions)"]
[null,"Name of traveller",null,"Travel dates",null,null,null,"Amount\n (per voucher or lump sum)",null,null,"Amount ","Remarks",null,null,null,null,"Reserved for GIZ"]
["No.",null,"Type of flight","Destination","Outward flight\n(dd.mm.yyyy)","Homeward flight (dd.mm.yyyy)","Type of reimbursement",null,"Currency","Rate/\nquantity*"]
[1,null,"Please select",null,null,null,"Please select",null,null,null,{"$f":"H31*J31","v":0}]
[2,null,null,null,null,null,null,null,null,null,{"$f":"H32*J32","v":0}]
[3,null,null,null,null,null,null,null,null,null,0]
[4,null,null,null,null,null,null,null,null,null,0]
[5,null,null,null,null,null,null,null,null,null,0]
[6,null,null,null,null,null,null,null,null,null,0]
["TOTAL:",null,null,null,null,null,null,null,null,{"$f":"'Invoice overview'!F32","v":"EUR"},{"$f":"SUM(K31:K36)","v":0}]
[]
["Other travel expenses (No. 5.9 General Conditions)"]
["No.","Country of travel","Nature of travel expenses","Start\n(dd.mm.yyyy)","End\n(dd.mm.yyyy)","Reason for travel","Type of reimbursement","Amount\n (per voucher or lump sum)","Currency","Rate/\nquantity*","Amount ","Remarks",null,null,null,null,"Reserved for GIZ"]
[1,null,"Please select",null,null,null,"Please select",null,null,null,{"$f":"H41*J41","v":0}]
[2,null,null,null,null,null,null,null,null,null,{"$f":"H42*J42","v":0}]
[3,null,null,null,null,null,null,null,null,null,0]
[4,null,null,null,null,null,null,null,null,null,0]
["TOTAL:",null,null,null,null,null,null,null,null,{"$f":"'Invoice overview'!F32","v":"EUR"},{"$f":"SUM(K41:K44)","v":0}]
[]
["Other travel expenses (No. 5.9 General Conditions) MONTHLY LUMP SUM"]
["No.","Accounting period",null,"Nature of travel expenses",null,"Type of reimbursement","Monthly rate\nacc. to contract","Daily rate\nacc. to contract","Amount","Remarks",null,null,null,null,null,"Reserved for GIZ"]
[null,"Months","Days**"]
[1,null,null,"Please select",null,"Lump sum/Month or day",null,null,{"$f":"IF(NOT(G50=\"\"),G50*(B50+ROUND((C50/30),3)),IF(NOT(H50=\"\"),H50*C50,0))","v":0}]
[2,null,null,null,null,"Lump sum/Month or day",null,null,{"$f":"IF(NOT(G51=\"\"),G51*(B51+ROUND((C51/30),3)),IF(NOT(H51=\"\"),H51*C51,0))","v":0}]
["Total:",null,null,null,null,null,null,{"$f":"'Invoice overview'!F32","v":"EUR"},{"$f":"SUM(I50:I51)","v":0}]
[]
["Relocation goods (No. 5.10. General Conditions)"]
["Lump sum (in contract currency)",null,"Quantity","Rate","Amount","Remarks",null,null,null,"Reserved for GIZ"]
[null,null,1,null,{"$f":"D56*C56","v":0}]
[null,null,null,null,null,null,null,null,null,null,null,null,"Total for personnel deployment ",null,null,{"$f":"H22+H23+H24+H25+K37+K45+I52+E56","v":0}]
[]
[]
[]
[]
[]
[]
[]
[]
[]
[]
[]
[]
[]
[]
[]
[]
[]
[]
[]
[]
[]
[]
[]
[]
[]
[]
[]
[]
[]
[]
[]
[]
[]
[]
[]
[]
[]
[]
[]
[]
[]
[]
[]
[]
[]
[]
[]
[]
[]
[]
[]
[]
[]
[]
[]
[null,null,null,null,null,null,null,null,null,null,null,null,null,null,null,null,null,null,null,null,null,null,null,null,null,null,null,null,null,null,null,null,null,null,null,null,null,null,"Please select"]
[null,null,null,null,null,null,null,null,null,null,null,null,null,null,null,null,null,null,null,null,null,null,null,null,null,null,null,null,null,null,null,null,null,null,null,null,null,null,"Expert (outward and homeward journeys)"]
[null,null,null,null,null,null,null,null,null,null,null,null,null,null,null,null,null,null,null,null,null,null,null,null,null,null,null,null,null,null,null,null,null,null,null,null,null,null,"Dependants (outward and homeward journeys) "]
[null,null,null,null,null,null,null,null,null,null,null,null,null,null,null,null,null,null,null,null,null,null,null,null,null,null,null,null,null,null,null,null,null,null,null,null,null,null,"Vacation flights"]
[null,null,null,null,null,null,null,null,null,null,null,null,null,null,null,null,null,null,null,null,null,null,null,null,null,null,null,null,null,null,null,null,null,null,null,null,null,null,"Regional and national flights"]
[null,null,null,null,null,null,null,null,null,null,null,null,null,null,null,null,null,null,null,null,null,null,null,null,null,null,null,null,null,null,null,null,null,null,null,null,null,null,"Other flights"]
[]
[null,null,null,null,null,null,null,null,null,null,null,null,null,null,null,null,null,null,null,null,null,null,null,null,null,null,null,null,null,null,null,null,null,null,null,null,null,null,"Please select"]
[null,null,null,null,null,null,null,null,null,null,null,null,null,null,null,null,null,null,null,null,null,null,null,null,null,null,null,null,null,null,null,null,null,null,null,null,null,null,"Lump sum"]
[null,null,null,null,null,null,null,null,null,null,null,null,null,null,null,null,null,null,null,null,null,null,null,null,null,null,null,null,null,null,null,null,null,null,null,null,null,null,"Against evidence"]
[]
[null,null,null,null,null,null,null,null,null,null,null,null,null,null,null,null,null,null,null,null,null,null,null,null,null,null,null,null,null,null,null,null,null,null,null,null,null,null,"Please select"]
[null,null,null,null,null,null,null,null,null,null,null,null,null,null,null,null,null,null,null,null,null,null,null,null,null,null,null,null,null,null,null,null,null,null,null,null,null,null,"Long-term expert, int."]
[null,null,null,null,null,null,null,null,null,null,null,null,null,null,null,null,null,null,null,null,null,null,null,null,null,null,null,null,null,null,null,null,null,null,null,null,null,null,"Long-term expert, reg."]
[null,null,null,null,null,null,null,null,null,null,null,null,null,null,null,null,null,null,null,null,null,null,null,null,null,null,null,null,null,null,null,null,null,null,null,null,null,null,"Long-term expert, nat."]
[null,null,null,null,null,null,null,null,null,null,null,null,null,null,null,null,null,null,null,null,null,null,null,null,null,null,null,null,null,null,null,null,null,null,null,null,null,null,"Short-term expert, int."]
[null,null,null,null,null,null,null,null,null,null,null,null,null,null,null,null,null,null,null,null,null,null,null,null,null,null,null,null,null,null,null,null,null,null,null,null,null,null,"Short-term expert, reg."]
[null,null,null,null,null,null,null,null,null,null,null,null,null,null,null,null,null,null,null,null,null,null,null,null,null,null,null,null,null,null,null,null,null,null,null,null,null,null,"Short-term expert, nat."]
[null,null,null,null,null,null,null,null,null,null,null,null,null,null,null,null,null,null,null,null,null,null,null,null,null,null,null,null,null,null,null,null,null,null,null,null,null,null,"Other (please define)"]
[]
[null,null,null,null,null,null,null,null,null,null,null,null,null,null,null,null,null,null,null,null,null,null,null,null,null,null,null,null,null,null,null,null,null,null,null,null,null,null,"Please select"]
[null,null,null,null,null,null,null,null,null,null,null,null,null,null,null,null,null,null,null,null,null,null,null,null,null,null,null,null,null,null,null,null,null,null,null,null,null,null,"Travel expenses outside the country"]
[null,null,null,null,null,null,null,null,null,null,null,null,null,null,null,null,null,null,null,null,null,null,null,null,null,null,null,null,null,null,null,null,null,null,null,null,null,null,"Travel expenses in the country"]

{"sheet":"Expert sheet (months or d (11)","index":11,"n_rows":135,"n_cols":39,"rows_kept":135,"cut":false,"hidden":true,"merged":[[55,0,55,1],[55,5,55,8],[55,9,55,11],[56,12,56,14],[49,3,49,4],[49,9,49,14],[50,3,50,4],[50,9,50,14],[51,3,51,4],[51,9,51,14],[54,5,54,8],[54,9,54,11],[46,0,46,16],[47,0,48,0],[47,1,47,2],[47,3,48,4],[47,5,48,5],[47,6,48,6],[47,7,48,7],[47,8,48,8],[47,9,48,14],[47,15,48,16],[40,11,40,15],[41,11,41,15],[42,11,42,15],[43,11,43,15],[44,3,44,4],[44,11,44,15],[36,3,36,4],[36,11,36,15],[36,16,36,17],[38,14,38,15],[39,11,39,15],[39,16,39,17],[33,11,33,15],[33,16,33,17],[34,11,34,15],[34,16,34,17],[35,11,35,15],[35,16,35,17],[30,11,30,15],[30,16,30,17],[31,11,31,15],[31,16,31,17],[32,11,32,15],[32,16,32,17],[26,11,26,17],[28,1,29,1],[28,3,28,5],[28,10,29,10],[28,11,29,15],[28,16,29,17],[21,8,21,14],[21,15,21,16],[23,8,23,14],[23,15,23,16],[24,8,24,14],[24,15,24,16],[22,8,22,14],[19,15,20,16],[15,9,15,13],[15,14,15,15],[16,9,16,13],[16,14,16,15],[19,8,20,14],[16,19,16,20],[18,0,18,16],[12,9,12,13],[12,14,12,15],[13,0,13,5],[13,9,13,13],[13,14,13,15],[14,9,14,13],[14,14,14,15],[6,13,6,14],[7,2,7,4],[8,2,8,4],[9,2,9,4],[11,9,11,13],[11,14,11,15],[5,15,7,15],[6,2,6,4],[6,7,6,8],[6,9,6,10],[6,11,6,12],[1,3,1,4],[1,7,1,9],[5,7,5,8],[5,9,5,12],[5,13,5,14],[6,0,6,1],[9,0,9,1],[21,0,21,2],[22,0,22,2],[28,7,29,7],[19,3,20,3],[19,4,20,4],[19,5,19,6],[19,7,20,7]]}
["Statement on personnel deployment"]
[null,"Contract number:",null,"Processing no./Cost centre:",null,null,null,"Accounting period:"]
[null,{"$f":"'Invoice overview'!A28","v":0},null,null,{"$f":"'Invoice overview'!C28","v":0},null,null,null,null,{"$f":"_xlfn.TEXTJOIN(\"   \",FALSE,IF('Invoice overview'!$G$28 > 0, TEXT('Invoice overview'!$G$28,\"TT.MM.JJJJ\"),\"\"),\"until\",IF('Invoice overview'!$I$28 > 0, TEXT('Invoice overview'!$I$28,\"TT.MM.JJJJ\"),\"\"))","v":"   until   "}]
[]
[]
["Personal data",null,null,null,null,null,"Periods of assignment","Total scheduled time",null,"Accounting period ",null,null,null,"Actual time ",null,"Remarks"]
["Family name, given name:",null,null,null,null,null,null,"Acc. to contract",null,"Actual period",null,"Period",null,"Total"]
["Function:",null,"Please select",null,null,null,null,"Months","Days","dd.mm.yyyy","dd.mm.yyyy","Months","Days","Months","Days"]
["Description of function:",null,null,null,null,null,"Germany"]
["Expert no. per price schedule",null,null,null,null,null,"Other Countries"]
[]
[null,null,null,null,null,null,"Details on leave and sickness",null,null,"Remarks",null,null,null,null,"Reserved for GIZ"]
["Link to assignment period calculation sheet for short-term expert pools:",null,null,null,null,null,"Total contractual entitlement (days)",null,{"$f":"IF( (SUM(H9:H10)) >= 4, (SUM(H9:H10)) * 4, 0)","v":0}]
["https://www.giz.de/de/downloads/giz2012-de-Hilfe_zur_Berechnung_der_Einsatzzeit_von_KZE-Pools.xls",null,null,null,null,null,"Remaining entitlement (days) *"]
[null,null,null,null,null,null,"Leave taken (days)*"]
[null,null,null,null,null,null,"Remaining leave (days)",null,{"$f":"IF(I14>0,I14-I15,I13-I15)","v":0}]
[null,null,null,null,null,null,"Sickness (days)"]
[]
["Personnel costs"]
[null,null,null,"Monthly rate\nacc. to contract","Daily rate\nacc. to contract","Quantity",null,"Amount ","Remarks",null,null,null,null,null,null,"Reserved for GIZ"]
["Remuneration item",null,null,null,null,"Months","Days **"]
["Fee (No. 5.4 General Conditions)",null,null,null,null,null,null,{"$f":"IF(NOT(D22=\"\"),D22*(F22+ROUND((G22/30),3)),IF(NOT(E22=\"\"),E22*G22,0))","v":0}]
["Fee (No. 5.4 General Conditions)",null,null,null,null,null,null,{"$f":"IF(NOT(D23=\"\"),D23*(F23+ROUND((G23/30),3)),IF(NOT(E23=\"\"),E23*G23,0))","v":0}]
["Per diem (No. 5.6. General Conditions)",null,null,null,null,null,null,{"$f":"IF(NOT(D24=\"\"),D24*(F24+ROUND((G24/30),3)),IF(NOT(E24=\"\"),E24*G24,0))","v":0}]
["Accommodation (No. 5.7 General Conditions)",null,null,null,null,null,null,{"$f":"IF(NOT(D25=\"\"),D25*(F25+ROUND((G25/30),3)),IF(NOT(E25=\"\"),E25*G25,0))","v":0}]
[]
["Travel expenses"]
["Air travel (No. 5.8 General Conditions)"]
[null,"Name of traveller",null,"Travel dates",null,null,null,"Amount\n (per voucher or lump sum)",null,null,"Amount ","Remarks",null,null,null,null,"Reserved for GIZ"]
["No.",null,"Type of flight","Destination","Outward flight\n(dd.mm.yyyy)","Homeward flight (dd.mm.yyyy)","Type of reimbursement",null,"Currency","Rate/\nquantity*"]
[1,null,"Please select",null,null,null,"Please select",null,null,null,{"$f":"H31*J31","v":0}]
[2,null,null,null,null,null,null,null,null,null,{"$f":"H32*J32","v":0}]
[3,null,null,null,null,null,null,null,null,null,0]
[4,null,null,null,null,null,null,null,null,null,0]
[5,null,null,null,null,null,null,null,null,null,0]
[6,null,null,null,null,null,null,null,null,null,0]
["TOTAL:",null,null,null,null,null,null,null,null,{"$f":"'Invoice overview'!F32","v":"EUR"},{"$f":"SUM(K31:K36)","v":0}]
[]
["Other travel expenses (No. 5.9 General Conditions)"]
["No.","Country of travel","Nature of travel expenses","Start\n(dd.mm.yyyy)","End\n(dd.mm.yyyy)","Reason for travel","Type of reimbursement","Amount\n (per voucher or lump sum)","Currency","Rate/\nquantity*","Amount ","Remarks",null,null,null,null,"Reserved for GIZ"]
[1,null,"Please select",null,null,null,"Please select",null,null,null,{"$f":"H41*J41","v":0}]
[2,null,null,null,null,null,null,null,null,null,{"$f":"H42*J42","v":0}]
[3,null,null,null,null,null,null,null,null,null,0]
[4,null,null,null,null,null,null,null,null,null,0]
["TOTAL:",null,null,null,null,null,null,null,null,{"$f":"'Invoice overview'!F32","v":"EUR"},{"$f":"SUM(K41:K44)","v":0}]
[]
["Other travel expenses (No. 5.9 General Conditions) MONTHLY LUMP SUM"]
["No.","Accounting period",null,"Nature of travel expenses",null,"Type of reimbursement","Monthly rate\nacc. to contract","Daily rate\nacc. to contract","Amount","Remarks",null,null,null,null,null,"Reserved for GIZ"]
[null,"Months","Days**"]
[1,null,null,"Please select",null,"Lump sum/Month or day",null,null,{"$f":"IF(NOT(G50=\"\"),G50*(B50+ROUND((C50/30),3)),IF(NOT(H50=\"\"),H50*C50,0))","v":0}]
[2,null,null,null,null,"Lump sum/Month or day",null,null,{"$f":"IF(NOT(G51=\"\"),G51*(B51+ROUND((C51/30),3)),IF(NOT(H51=\"\"),H51*C51,0))","v":0}]
["Total:",null,null,null,null,null,null,{"$f":"'Invoice overview'!F32","v":"EUR"},{"$f":"SUM(I50:I51)","v":0}]
[]
["Relocation goods (No. 5.10. General Conditions)"]
["Lump sum (in contract currency)",null,"Quantity","Rate","Amount","Remarks",null,null,null,"Reserved for GIZ"]
[null,null,1,null,{"$f":"D56*C56","v":0}]
[null,null,null,null,null,null,null,null,null,null,null,null,"Total for personnel deployment ",null,null,{"$f":"H22+H23+H24+H25+K37+K45+I52+E56","v":0}]
[]
[]
[]
[]
[]
[]
[]
[]
[]
[]
[]
[]
[]
[]
[]
[]
[]
[]
[]
[]
[]
[]
[]
[]
[]
[]
[]
[]
[]
[]
[]
[]
[]
[]
[]
[]
[]
[]
[]
[]
[]
[]
[]
[]
[]
[]
[]
[]
[]
[]
[]
[]
[]
[]
[]
[null,null,null,null,null,null,null,null,null,null,null,null,null,null,null,null,null,null,null,null,null,null,null,null,null,null,null,null,null,null,null,null,null,null,null,null,null,null,"Please select"]
[null,null,null,null,null,null,null,null,null,null,null,null,null,null,null,null,null,null,null,null,null,null,null,null,null,null,null,null,null,null,null,null,null,null,null,null,null,null,"Expert (outward and homeward journeys)"]
[null,null,null,null,null,null,null,null,null,null,null,null,null,null,null,null,null,null,null,null,null,null,null,null,null,null,null,null,null,null,null,null,null,null,null,null,null,null,"Dependants (outward and homeward journeys) "]
[null,null,null,null,null,null,null,null,null,null,null,null,null,null,null,null,null,null,null,null,null,null,null,null,null,null,null,null,null,null,null,null,null,null,null,null,null,null,"Vacation flights"]
[null,null,null,null,null,null,null,null,null,null,null,null,null,null,null,null,null,null,null,null,null,null,null,null,null,null,null,null,null,null,null,null,null,null,null,null,null,null,"Regional and national flights"]
[null,null,null,null,null,null,null,null,null,null,null,null,null,null,null,null,null,null,null,null,null,null,null,null,null,null,null,null,null,null,null,null,null,null,null,null,null,null,"Other flights"]
[]
[null,null,null,null,null,null,null,null,null,null,null,null,null,null,null,null,null,null,null,null,null,null,null,null,null,null,null,null,null,null,null,null,null,null,null,null,null,null,"Please select"]
[null,null,null,null,null,null,null,null,null,null,null,null,null,null,null,null,null,null,null,null,null,null,null,null,null,null,null,null,null,null,null,null,null,null,null,null,null,null,"Lump sum"]
[null,null,null,null,null,null,null,null,null,null,null,null,null,null,null,null,null,null,null,null,null,null,null,null,null,null,null,null,null,null,null,null,null,null,null,null,null,null,"Against evidence"]
[]
[null,null,null,null,null,null,null,null,null,null,null,null,null,null,null,null,null,null,null,null,null,null,null,null,null,null,null,null,null,null,null,null,null,null,null,null,null,null,"Please select"]
[null,null,null,null,null,null,null,null,null,null,null,null,null,null,null,null,null,null,null,null,null,null,null,null,null,null,null,null,null,null,null,null,null,null,null,null,null,null,"Long-term expert, int."]
[null,null,null,null,null,null,null,null,null,null,null,null,null,null,null,null,null,null,null,null,null,null,null,null,null,null,null,null,null,null,null,null,null,null,null,null,null,null,"Long-term expert, reg."]
[null,null,null,null,null,null,null,null,null,null,null,null,null,null,null,null,null,null,null,null,null,null,null,null,null,null,null,null,null,null,null,null,null,null,null,null,null,null,"Long-term expert, nat."]
[null,null,null,null,null,null,null,null,null,null,null,null,null,null,null,null,null,null,null,null,null,null,null,null,null,null,null,null,null,null,null,null,null,null,null,null,null,null,"Short-term expert, int."]
[null,null,null,null,null,null,null,null,null,null,null,null,null,null,null,null,null,null,null,null,null,null,null,null,null,null,null,null,null,null,null,null,null,null,null,null,null,null,"Short-term expert, reg."]
[null,null,null,null,null,null,null,null,null,null,null,null,null,null,null,null,null,null,null,null,null,null,null,null,null,null,null,null,null,null,null,null,null,null,null,null,null,null,"Short-term expert, nat."]
[null,null,null,null,null,null,null,null,null,null,null,null,null,null,null,null,null,null,null,null,null,null,null,null,null,null,null,null,null,null,null,null,null,null,null,null,null,null,"Other (please define)"]
[]
[null,null,null,null,null,null,null,null,null,null,null,null,null,null,null,null,null,null,null,null,null,null,null,null,null,null,null,null,null,null,null,null,null,null,null,null,null,null,"Please select"]
[null,null,null,null,null,null,null,null,null,null,null,null,null,null,null,null,null,null,null,null,null,null,null,null,null,null,null,null,null,null,null,null,null,null,null,null,null,null,"Travel expenses outside the country"]
[null,null,null,null,null,null,null,null,null,null,null,null,null,null,null,null,null,null,null,null,null,null,null,null,null,null,null,null,null,null,null,null,null,null,null,null,null,null,"Travel expenses in the country"]

{"sheet":"Expert sheet (months or d (12)","index":12,"n_rows":135,"n_cols":39,"rows_kept":135,"cut":false,"hidden":true,"merged":[[55,0,55,1],[55,5,55,8],[55,9,55,11],[56,12,56,14],[49,3,49,4],[49,9,49,14],[50,3,50,4],[50,9,50,14],[51,3,51,4],[51,9,51,14],[54,5,54,8],[54,9,54,11],[46,0,46,16],[47,0,48,0],[47,1,47,2],[47,3,48,4],[47,5,48,5],[47,6,48,6],[47,7,48,7],[47,8,48,8],[47,9,48,14],[47,15,48,16],[40,11,40,15],[41,11,41,15],[42,11,42,15],[43,11,43,15],[44,3,44,4],[44,11,44,15],[36,3,36,4],[36,11,36,15],[36,16,36,17],[38,14,38,15],[39,11,39,15],[39,16,39,17],[33,11,33,15],[33,16,33,17],[34,11,34,15],[34,16,34,17],[35,11,35,15],[35,16,35,17],[30,11,30,15],[30,16,30,17],[31,11,31,15],[31,16,31,17],[32,11,32,15],[32,16,32,17],[26,11,26,17],[28,1,29,1],[28,3,28,5],[28,10,29,10],[28,11,29,15],[28,16,29,17],[21,8,21,14],[21,15,21,16],[23,8,23,14],[23,15,23,16],[24,8,24,14],[24,15,24,16],[22,8,22,14],[19,15,20,16],[15,9,15,13],[15,14,15,15],[16,9,16,13],[16,14,16,15],[19,8,20,14],[16,19,16,20],[18,0,18,16],[12,9,12,13],[12,14,12,15],[13,0,13,5],[13,9,13,13],[13,14,13,15],[14,9,14,13],[14,14,14,15],[6,13,6,14],[7,2,7,4],[8,2,8,4],[9,2,9,4],[11,9,11,13],[11,14,11,15],[5,15,7,15],[6,2,6,4],[6,7,6,8],[6,9,6,10],[6,11,6,12],[1,3,1,4],[1,7,1,9],[5,7,5,8],[5,9,5,12],[5,13,5,14],[6,0,6,1],[9,0,9,1],[21,0,21,2],[22,0,22,2],[28,7,29,7],[19,3,20,3],[19,4,20,4],[19,5,19,6],[19,7,20,7]]}
["Statement on personnel deployment"]
[null,"Contract number:",null,"Processing no./Cost centre:",null,null,null,"Accounting period:"]
[null,{"$f":"'Invoice overview'!A28","v":0},null,null,{"$f":"'Invoice overview'!C28","v":0},null,null,null,null,{"$f":"_xlfn.TEXTJOIN(\"   \",FALSE,IF('Invoice overview'!$G$28 > 0, TEXT('Invoice overview'!$G$28,\"TT.MM.JJJJ\"),\"\"),\"until\",IF('Invoice overview'!$I$28 > 0, TEXT('Invoice overview'!$I$28,\"TT.MM.JJJJ\"),\"\"))","v":"   until   "}]
[]
[]
["Personal data",null,null,null,null,null,"Periods of assignment","Total scheduled time",null,"Accounting period ",null,null,null,"Actual time ",null,"Remarks"]
["Family name, given name:",null,null,null,null,null,null,"Acc. to contract",null,"Actual period",null,"Period",null,"Total"]
["Function:",null,"Please select",null,null,null,null,"Months","Days","dd.mm.yyyy","dd.mm.yyyy","Months","Days","Months","Days"]
["Description of function:",null,null,null,null,null,"Germany"]
["Expert no. per price schedule",null,null,null,null,null,"Other Countries"]
[]
[null,null,null,null,null,null,"Details on leave and sickness",null,null,"Remarks",null,null,null,null,"Reserved for GIZ"]
["Link to assignment period calculation sheet for short-term expert pools:",null,null,null,null,null,"Total contractual entitlement (days)",null,{"$f":"IF( (SUM(H9:H10)) >= 4, (SUM(H9:H10)) * 4, 0)","v":0}]
["https://www.giz.de/de/downloads/giz2012-de-Hilfe_zur_Berechnung_der_Einsatzzeit_von_KZE-Pools.xls",null,null,null,null,null,"Remaining entitlement (days) *"]
[null,null,null,null,null,null,"Leave taken (days)*"]
[null,null,null,null,null,null,"Remaining leave (days)",null,{"$f":"IF(I14>0,I14-I15,I13-I15)","v":0}]
[null,null,null,null,null,null,"Sickness (days)"]
[]
["Personnel costs"]
[null,null,null,"Monthly rate\nacc. to contract","Daily rate\nacc. to contract","Quantity",null,"Amount ","Remarks",null,null,null,null,null,null,"Reserved for GIZ"]
["Remuneration item",null,null,null,null,"Months","Days **"]
["Fee (No. 5.4 General Conditions)",null,null,null,null,null,null,{"$f":"IF(NOT(D22=\"\"),D22*(F22+ROUND((G22/30),3)),IF(NOT(E22=\"\"),E22*G22,0))","v":0}]
["Fee (No. 5.4 General Conditions)",null,null,null,null,null,null,{"$f":"IF(NOT(D23=\"\"),D23*(F23+ROUND((G23/30),3)),IF(NOT(E23=\"\"),E23*G23,0))","v":0}]
["Per diem (No. 5.6. General Conditions)",null,null,null,null,null,null,{"$f":"IF(NOT(D24=\"\"),D24*(F24+ROUND((G24/30),3)),IF(NOT(E24=\"\"),E24*G24,0))","v":0}]
["Accommodation (No. 5.7 General Conditions)",null,null,null,null,null,null,{"$f":"IF(NOT(D25=\"\"),D25*(F25+ROUND((G25/30),3)),IF(NOT(E25=\"\"),E25*G25,0))","v":0}]
[]
["Travel expenses"]
["Air travel (No. 5.8 General Conditions)"]
[null,"Name of traveller",null,"Travel dates",null,null,null,"Amount\n (per voucher or lump sum)",null,null,"Amount ","Remarks",null,null,null,null,"Reserved for GIZ"]
["No.",null,"Type of flight","Destination","Outward flight\n(dd.mm.yyyy)","Homeward flight (dd.mm.yyyy)","Type of reimbursement",null,"Currency","Rate/\nquantity*"]
[1,null,"Please select",null,null,null,"Please select",null,null,null,{"$f":"H31*J31","v":0}]
[2,null,null,null,null,null,null,null,null,null,{"$f":"H32*J32","v":0}]
[3,null,null,null,null,null,null,null,null,null,0]
[4,null,null,null,null,null,null,null,null,null,0]
[5,null,null,null,null,null,null,null,null,null,0]
[6,null,null,null,null,null,null,null,null,null,0]
["TOTAL:",null,null,null,null,null,null,null,null,{"$f":"'Invoice overview'!F32","v":"EUR"},{"$f":"SUM(K31:K36)","v":0}]
[]
["Other travel expenses (No. 5.9 General Conditions)"]
["No.","Country of travel","Nature of travel expenses","Start\n(dd.mm.yyyy)","End\n(dd.mm.yyyy)","Reason for travel","Type of reimbursement","Amount\n (per voucher or lump sum)","Currency","Rate/\nquantity*","Amount ","Remarks",null,null,null,null,"Reserved for GIZ"]
[1,null,"Please select",null,null,null,"Please select",null,null,null,{"$f":"H41*J41","v":0}]
[2,null,null,null,null,null,null,null,null,null,{"$f":"H42*J42","v":0}]
[3,null,null,null,null,null,null,null,null,null,0]
[4,null,null,null,null,null,null,null,null,null,0]
["TOTAL:",null,null,null,null,null,null,null,null,{"$f":"'Invoice overview'!F32","v":"EUR"},{"$f":"SUM(K41:K44)","v":0}]
[]
["Other travel expenses (No. 5.9 General Conditions) MONTHLY LUMP SUM"]
["No.","Accounting period",null,"Nature of travel expenses",null,"Type of reimbursement","Monthly rate\nacc. to contract","Daily rate\nacc. to contract","Amount","Remarks",null,null,null,null,null,"Reserved for GIZ"]
[null,"Months","Days**"]
[1,null,null,"Please select",null,"Lump sum/Month or day",null,null,{"$f":"IF(NOT(G50=\"\"),G50*(B50+ROUND((C50/30),3)),IF(NOT(H50=\"\"),H50*C50,0))","v":0}]
[2,null,null,null,null,"Lump sum/Month or day",null,null,{"$f":"IF(NOT(G51=\"\"),G51*(B51+ROUND((C51/30),3)),IF(NOT(H51=\"\"),H51*C51,0))","v":0}]
["Total:",null,null,null,null,null,null,{"$f":"'Invoice overview'!F32","v":"EUR"},{"$f":"SUM(I50:I51)","v":0}]
[]
["Relocation goods (No. 5.10. General Conditions)"]
["Lump sum (in contract currency)",null,"Quantity","Rate","Amount","Remarks",null,null,null,"Reserved for GIZ"]
[null,null,1,null,{"$f":"D56*C56","v":0}]
[null,null,null,null,null,null,null,null,null,null,null,null,"Total for personnel deployment ",null,null,{"$f":"H22+H23+H24+H25+K37+K45+I52+E56","v":0}]
[]
[]
[]
[]
[]
[]
[]
[]
[]
[]
[]
[]
[]
[]
[]
[]
[]
[]
[]
[]
[]
[]
[]
[]
[]
[]
[]
[]
[]
[]
[]
[]
[]
[]
[]
[]
[]
[]
[]
[]
[]
[]
[]
[]
[]
[]
[]
[]
[]
[]
[]
[]
[]
[]
[]
[null,null,null,null,null,null,null,null,null,null,null,null,null,null,null,null,null,null,null,null,null,null,null,null,null,null,null,null,null,null,null,null,null,null,null,null,null,null,"Please select"]
[null,null,null,null,null,null,null,null,null,null,null,null,null,null,null,null,null,null,null,null,null,null,null,null,null,null,null,null,null,null,null,null,null,null,null,null,null,null,"Expert (outward and homeward journeys)"]
[null,null,null,null,null,null,null,null,null,null,null,null,null,null,null,null,null,null,null,null,null,null,null,null,null,null,null,null,null,null,null,null,null,null,null,null,null,null,"Dependants (outward and homeward journeys) "]
[null,null,null,null,null,null,null,null,null,null,null,null,null,null,null,null,null,null,null,null,null,null,null,null,null,null,null,null,null,null,null,null,null,null,null,null,null,null,"Vacation flights"]
[null,null,null,null,null,null,null,null,null,null,null,null,null,null,null,null,null,null,null,null,null,null,null,null,null,null,null,null,null,null,null,null,null,null,null,null,null,null,"Regional and national flights"]
[null,null,null,null,null,null,null,null,null,null,null,null,null,null,null,null,null,null,null,null,null,null,null,null,null,null,null,null,null,null,null,null,null,null,null,null,null,null,"Other flights"]
[]
[null,null,null,null,null,null,null,null,null,null,null,null,null,null,null,null,null,null,null,null,null,null,null,null,null,null,null,null,null,null,null,null,null,null,null,null,null,null,"Please select"]
[null,null,null,null,null,null,null,null,null,null,null,null,null,null,null,null,null,null,null,null,null,null,null,null,null,null,null,null,null,null,null,null,null,null,null,null,null,null,"Lump sum"]
[null,null,null,null,null,null,null,null,null,null,null,null,null,null,null,null,null,null,null,null,null,null,null,null,null,null,null,null,null,null,null,null,null,null,null,null,null,null,"Against evidence"]
[]
[null,null,null,null,null,null,null,null,null,null,null,null,null,null,null,null,null,null,null,null,null,null,null,null,null,null,null,null,null,null,null,null,null,null,null,null,null,null,"Please select"]
[null,null,null,null,null,null,null,null,null,null,null,null,null,null,null,null,null,null,null,null,null,null,null,null,null,null,null,null,null,null,null,null,null,null,null,null,null,null,"Long-term expert, int."]
[null,null,null,null,null,null,null,null,null,null,null,null,null,null,null,null,null,null,null,null,null,null,null,null,null,null,null,null,null,null,null,null,null,null,null,null,null,null,"Long-term expert, reg."]
[null,null,null,null,null,null,null,null,null,null,null,null,null,null,null,null,null,null,null,null,null,null,null,null,null,null,null,null,null,null,null,null,null,null,null,null,null,null,"Long-term expert, nat."]
[null,null,null,null,null,null,null,null,null,null,null,null,null,null,null,null,null,null,null,null,null,null,null,null,null,null,null,null,null,null,null,null,null,null,null,null,null,null,"Short-term expert, int."]
[null,null,null,null,null,null,null,null,null,null,null,null,null,null,null,null,null,null,null,null,null,null,null,null,null,null,null,null,null,null,null,null,null,null,null,null,null,null,"Short-term expert, reg."]
[null,null,null,null,null,null,null,null,null,null,null,null,null,null,null,null,null,null,null,null,null,null,null,null,null,null,null,null,null,null,null,null,null,null,null,null,null,null,"Short-term expert, nat."]
[null,null,null,null,null,null,null,null,null,null,null,null,null,null,null,null,null,null,null,null,null,null,null,null,null,null,null,null,null,null,null,null,null,null,null,null,null,null,"Other (please define)"]
[]
[null,null,null,null,null,null,null,null,null,null,null,null,null,null,null,null,null,null,null,null,null,null,null,null,null,null,null,null,null,null,null,null,null,null,null,null,null,null,"Please select"]
[null,null,null,null,null,null,null,null,null,null,null,null,null,null,null,null,null,null,null,null,null,null,null,null,null,null,null,null,null,null,null,null,null,null,null,null,null,null,"Travel expenses outside the country"]
[null,null,null,null,null,null,null,null,null,null,null,null,null,null,null,null,null,null,null,null,null,null,null,null,null,null,null,null,null,null,null,null,null,null,null,null,null,null,"Travel expenses in the country"]

{"sheet":"Expert sheet (months or d (13)","index":13,"n_rows":135,"n_cols":39,"rows_kept":135,"cut":false,"hidden":true,"merged":[[55,0,55,1],[55,5,55,8],[55,9,55,11],[56,12,56,14],[49,3,49,4],[49,9,49,14],[50,3,50,4],[50,9,50,14],[51,3,51,4],[51,9,51,14],[54,5,54,8],[54,9,54,11],[46,0,46,16],[47,0,48,0],[47,1,47,2],[47,3,48,4],[47,5,48,5],[47,6,48,6],[47,7,48,7],[47,8,48,8],[47,9,48,14],[47,15,48,16],[40,11,40,15],[41,11,41,15],[42,11,42,15],[43,11,43,15],[44,3,44,4],[44,11,44,15],[36,3,36,4],[36,11,36,15],[36,16,36,17],[38,14,38,15],[39,11,39,15],[39,16,39,17],[33,11,33,15],[33,16,33,17],[34,11,34,15],[34,16,34,17],[35,11,35,15],[35,16,35,17],[30,11,30,15],[30,16,30,17],[31,11,31,15],[31,16,31,17],[32,11,32,15],[32,16,32,17],[26,11,26,17],[28,1,29,1],[28,3,28,5],[28,10,29,10],[28,11,29,15],[28,16,29,17],[21,8,21,14],[21,15,21,16],[23,8,23,14],[23,15,23,16],[24,8,24,14],[24,15,24,16],[22,8,22,14],[19,15,20,16],[15,9,15,13],[15,14,15,15],[16,9,16,13],[16,14,16,15],[19,8,20,14],[16,19,16,20],[18,0,18,16],[12,9,12,13],[12,14,12,15],[13,0,13,5],[13,9,13,13],[13,14,13,15],[14,9,14,13],[14,14,14,15],[6,13,6,14],[7,2,7,4],[8,2,8,4],[9,2,9,4],[11,9,11,13],[11,14,11,15],[5,15,7,15],[6,2,6,4],[6,7,6,8],[6,9,6,10],[6,11,6,12],[1,3,1,4],[1,7,1,9],[5,7,5,8],[5,9,5,12],[5,13,5,14],[6,0,6,1],[9,0,9,1],[21,0,21,2],[22,0,22,2],[28,7,29,7],[19,3,20,3],[19,4,20,4],[19,5,19,6],[19,7,20,7]]}
["Statement on personnel deployment"]
[null,"Contract number:",null,"Processing no./Cost centre:",null,null,null,"Accounting period:"]
[null,{"$f":"'Invoice overview'!A28","v":0},null,null,{"$f":"'Invoice overview'!C28","v":0},null,null,null,null,{"$f":"_xlfn.TEXTJOIN(\"   \",FALSE,IF('Invoice overview'!$G$28 > 0, TEXT('Invoice overview'!$G$28,\"TT.MM.JJJJ\"),\"\"),\"until\",IF('Invoice overview'!$I$28 > 0, TEXT('Invoice overview'!$I$28,\"TT.MM.JJJJ\"),\"\"))","v":"   until   "}]
[]
[]
["Personal data",null,null,null,null,null,"Periods of assignment","Total scheduled time",null,"Accounting period ",null,null,null,"Actual time ",null,"Remarks"]
["Family name, given name:",null,null,null,null,null,null,"Acc. to contract",null,"Actual period",null,"Period",null,"Total"]
["Function:",null,"Please select",null,null,null,null,"Months","Days","dd.mm.yyyy","dd.mm.yyyy","Months","Days","Months","Days"]
["Description of function:",null,null,null,null,null,"Germany"]
["Expert no. per price schedule",null,null,null,null,null,"Other Countries"]
[]
[null,null,null,null,null,null,"Details on leave and sickness",null,null,"Remarks",null,null,null,null,"Reserved for GIZ"]
["Link to assignment period calculation sheet for short-term expert pools:",null,null,null,null,null,"Total contractual entitlement (days)",null,{"$f":"IF( (SUM(H9:H10)) >= 4, (SUM(H9:H10)) * 4, 0)","v":0}]
["https://www.giz.de/de/downloads/giz2012-de-Hilfe_zur_Berechnung_der_Einsatzzeit_von_KZE-Pools.xls",null,null,null,null,null,"Remaining entitlement (days) *"]
[null,null,null,null,null,null,"Leave taken (days)*"]
[null,null,null,null,null,null,"Remaining leave (days)",null,{"$f":"IF(I14>0,I14-I15,I13-I15)","v":0}]
[null,null,null,null,null,null,"Sickness (days)"]
[]
["Personnel costs"]
[null,null,null,"Monthly rate\nacc. to contract","Daily rate\nacc. to contract","Quantity",null,"Amount ","Remarks",null,null,null,null,null,null,"Reserved for GIZ"]
["Remuneration item",null,null,null,null,"Months","Days **"]
["Fee (No. 5.4 General Conditions)",null,null,null,null,null,null,{"$f":"IF(NOT(D22=\"\"),D22*(F22+ROUND((G22/30),3)),IF(NOT(E22=\"\"),E22*G22,0))","v":0}]
["Fee (No. 5.4 General Conditions)",null,null,null,null,null,null,{"$f":"IF(NOT(D23=\"\"),D23*(F23+ROUND((G23/30),3)),IF(NOT(E23=\"\"),E23*G23,0))","v":0}]
["Per diem (No. 5.6. General Conditions)",null,null,null,null,null,null,{"$f":"IF(NOT(D24=\"\"),D24*(F24+ROUND((G24/30),3)),IF(NOT(E24=\"\"),E24*G24,0))","v":0}]
["Accommodation (No. 5.7 General Conditions)",null,null,null,null,null,null,{"$f":"IF(NOT(D25=\"\"),D25*(F25+ROUND((G25/30),3)),IF(NOT(E25=\"\"),E25*G25,0))","v":0}]
[]
["Travel expenses"]
["Air travel (No. 5.8 General Conditions)"]
[null,"Name of traveller",null,"Travel dates",null,null,null,"Amount\n (per voucher or lump sum)",null,null,"Amount ","Remarks",null,null,null,null,"Reserved for GIZ"]
["No.",null,"Type of flight","Destination","Outward flight\n(dd.mm.yyyy)","Homeward flight (dd.mm.yyyy)","Type of reimbursement",null,"Currency","Rate/\nquantity*"]
[1,null,"Please select",null,null,null,"Please select",null,null,null,{"$f":"H31*J31","v":0}]
[2,null,null,null,null,null,null,null,null,null,{"$f":"H32*J32","v":0}]
[3,null,null,null,null,null,null,null,null,null,0]
[4,null,null,null,null,null,null,null,null,null,0]
[5,null,null,null,null,null,null,null,null,null,0]
[6,null,null,null,null,null,null,null,null,null,0]
["TOTAL:",null,null,null,null,null,null,null,null,{"$f":"'Invoice overview'!F32","v":"EUR"},{"$f":"SUM(K31:K36)","v":0}]
[]
["Other travel expenses (No. 5.9 General Conditions)"]
["No.","Country of travel","Nature of travel expenses","Start\n(dd.mm.yyyy)","End\n(dd.mm.yyyy)","Reason for travel","Type of reimbursement","Amount\n (per voucher or lump sum)","Currency","Rate/\nquantity*","Amount ","Remarks",null,null,null,null,"Reserved for GIZ"]
[1,null,"Please select",null,null,null,"Please select",null,null,null,{"$f":"H41*J41","v":0}]
[2,null,null,null,null,null,null,null,null,null,{"$f":"H42*J42","v":0}]
[3,null,null,null,null,null,null,null,null,null,0]
[4,null,null,null,null,null,null,null,null,null,0]
["TOTAL:",null,null,null,null,null,null,null,null,{"$f":"'Invoice overview'!F32","v":"EUR"},{"$f":"SUM(K41:K44)","v":0}]
[]
["Other travel expenses (No. 5.9 General Conditions) MONTHLY LUMP SUM"]
["No.","Accounting period",null,"Nature of travel expenses",null,"Type of reimbursement","Monthly rate\nacc. to contract","Daily rate\nacc. to contract","Amount","Remarks",null,null,null,null,null,"Reserved for GIZ"]
[null,"Months","Days**"]
[1,null,null,"Please select",null,"Lump sum/Month or day",null,null,{"$f":"IF(NOT(G50=\"\"),G50*(B50+ROUND((C50/30),3)),IF(NOT(H50=\"\"),H50*C50,0))","v":0}]
[2,null,null,null,null,"Lump sum/Month or day",null,null,{"$f":"IF(NOT(G51=\"\"),G51*(B51+ROUND((C51/30),3)),IF(NOT(H51=\"\"),H51*C51,0))","v":0}]
["Total:",null,null,null,null,null,null,{"$f":"'Invoice overview'!F32","v":"EUR"},{"$f":"SUM(I50:I51)","v":0}]
[]
["Relocation goods (No. 5.10. General Conditions)"]
["Lump sum (in contract currency)",null,"Quantity","Rate","Amount","Remarks",null,null,null,"Reserved for GIZ"]
[null,null,1,null,{"$f":"D56*C56","v":0}]
[null,null,null,null,null,null,null,null,null,null,null,null,"Total for personnel deployment ",null,null,{"$f":"H22+H23+H24+H25+K37+K45+I52+E56","v":0}]
[]
[]
[]
[]
[]
[]
[]
[]
[]
[]
[]
[]
[]
[]
[]
[]
[]
[]
[]
[]
[]
[]
[]
[]
[]
[]
[]
[]
[]
[]
[]
[]
[]
[]
[]
[]
[]
[]
[]
[]
[]
[]
[]
[]
[]
[]
[]
[]
[]
[]
[]
[]
[]
[]
[]
[null,null,null,null,null,null,null,null,null,null,null,null,null,null,null,null,null,null,null,null,null,null,null,null,null,null,null,null,null,null,null,null,null,null,null,null,null,null,"Please select"]
[null,null,null,null,null,null,null,null,null,null,null,null,null,null,null,null,null,null,null,null,null,null,null,null,null,null,null,null,null,null,null,null,null,null,null,null,null,null,"Expert (outward and homeward journeys)"]
[null,null,null,null,null,null,null,null,null,null,null,null,null,null,null,null,null,null,null,null,null,null,null,null,null,null,null,null,null,null,null,null,null,null,null,null,null,null,"Dependants (outward and homeward journeys) "]
[null,null,null,null,null,null,null,null,null,null,null,null,null,null,null,null,null,null,null,null,null,null,null,null,null,null,null,null,null,null,null,null,null,null,null,null,null,null,"Vacation flights"]
[null,null,null,null,null,null,null,null,null,null,null,null,null,null,null,null,null,null,null,null,null,null,null,null,null,null,null,null,null,null,null,null,null,null,null,null,null,null,"Regional and national flights"]
[null,null,null,null,null,null,null,null,null,null,null,null,null,null,null,null,null,null,null,null,null,null,null,null,null,null,null,null,null,null,null,null,null,null,null,null,null,null,"Other flights"]
[]
[null,null,null,null,null,null,null,null,null,null,null,null,null,null,null,null,null,null,null,null,null,null,null,null,null,null,null,null,null,null,null,null,null,null,null,null,null,null,"Please select"]
[null,null,null,null,null,null,null,null,null,null,null,null,null,null,null,null,null,null,null,null,null,null,null,null,null,null,null,null,null,null,null,null,null,null,null,null,null,null,"Lump sum"]
[null,null,null,null,null,null,null,null,null,null,null,null,null,null,null,null,null,null,null,null,null,null,null,null,null,null,null,null,null,null,null,null,null,null,null,null,null,null,"Against evidence"]
[]
[null,null,null,null,null,null,null,null,null,null,null,null,null,null,null,null,null,null,null,null,null,null,null,null,null,null,null,null,null,null,null,null,null,null,null,null,null,null,"Please select"]
[null,null,null,null,null,null,null,null,null,null,null,null,null,null,null,null,null,null,null,null,null,null,null,null,null,null,null,null,null,null,null,null,null,null,null,null,null,null,"Long-term expert, int."]
[null,null,null,null,null,null,null,null,null,null,null,null,null,null,null,null,null,null,null,null,null,null,null,null,null,null,null,null,null,null,null,null,null,null,null,null,null,null,"Long-term expert, reg."]
[null,null,null,null,null,null,null,null,null,null,null,null,null,null,null,null,null,null,null,null,null,null,null,null,null,null,null,null,null,null,null,null,null,null,null,null,null,null,"Long-term expert, nat."]
[null,null,null,null,null,null,null,null,null,null,null,null,null,null,null,null,null,null,null,null,null,null,null,null,null,null,null,null,null,null,null,null,null,null,null,null,null,null,"Short-term expert, int."]
[null,null,null,null,null,null,null,null,null,null,null,null,null,null,null,null,null,null,null,null,null,null,null,null,null,null,null,null,null,null,null,null,null,null,null,null,null,null,"Short-term expert, reg."]
[null,null,null,null,null,null,null,null,null,null,null,null,null,null,null,null,null,null,null,null,null,null,null,null,null,null,null,null,null,null,null,null,null,null,null,null,null,null,"Short-term expert, nat."]
[null,null,null,null,null,null,null,null,null,null,null,null,null,null,null,null,null,null,null,null,null,null,null,null,null,null,null,null,null,null,null,null,null,null,null,null,null,null,"Other (please define)"]
[]
[null,null,null,null,null,null,null,null,null,null,null,null,null,null,null,null,null,null,null,null,null,null,null,null,null,null,null,null,null,null,null,null,null,null,null,null,null,null,"Please select"]
[null,null,null,null,null,null,null,null,null,null,null,null,null,null,null,null,null,null,null,null,null,null,null,null,null,null,null,null,null,null,null,null,null,null,null,null,null,null,"Travel expenses outside the country"]
[null,null,null,null,null,null,null,null,null,null,null,null,null,null,null,null,null,null,null,null,null,null,null,null,null,null,null,null,null,null,null,null,null,null,null,null,null,null,"Travel expenses in the country"]

{"sheet":"Expert sheet (months or d (14)","index":14,"n_rows":135,"n_cols":39,"rows_kept":135,"cut":false,"hidden":true,"merged":[[55,0,55,1],[55,5,55,8],[55,9,55,11],[56,12,56,14],[49,3,49,4],[49,9,49,14],[50,3,50,4],[50,9,50,14],[51,3,51,4],[51,9,51,14],[54,5,54,8],[54,9,54,11],[46,0,46,16],[47,0,48,0],[47,1,47,2],[47,3,48,4],[47,5,48,5],[47,6,48,6],[47,7,48,7],[47,8,48,8],[47,9,48,14],[47,15,48,16],[40,11,40,15],[41,11,41,15],[42,11,42,15],[43,11,43,15],[44,3,44,4],[44,11,44,15],[36,3,36,4],[36,11,36,15],[36,16,36,17],[38,14,38,15],[39,11,39,15],[39,16,39,17],[33,11,33,15],[33,16,33,17],[34,11,34,15],[34,16,34,17],[35,11,35,15],[35,16,35,17],[30,11,30,15],[30,16,30,17],[31,11,31,15],[31,16,31,17],[32,11,32,15],[32,16,32,17],[26,11,26,17],[28,1,29,1],[28,3,28,5],[28,10,29,10],[28,11,29,15],[28,16,29,17],[21,8,21,14],[21,15,21,16],[23,8,23,14],[23,15,23,16],[24,8,24,14],[24,15,24,16],[22,8,22,14],[19,15,20,16],[15,9,15,13],[15,14,15,15],[16,9,16,13],[16,14,16,15],[19,8,20,14],[16,19,16,20],[18,0,18,16],[12,9,12,13],[12,14,12,15],[13,0,13,5],[13,9,13,13],[13,14,13,15],[14,9,14,13],[14,14,14,15],[6,13,6,14],[7,2,7,4],[8,2,8,4],[9,2,9,4],[11,9,11,13],[11,14,11,15],[5,15,7,15],[6,2,6,4],[6,7,6,8],[6,9,6,10],[6,11,6,12],[1,3,1,4],[1,7,1,9],[5,7,5,8],[5,9,5,12],[5,13,5,14],[6,0,6,1],[9,0,9,1],[21,0,21,2],[22,0,22,2],[28,7,29,7],[19,3,20,3],[19,4,20,4],[19,5,19,6],[19,7,20,7]]}
["Statement on personnel deployment"]
[null,"Contract number:",null,"Processing no./Cost centre:",null,null,null,"Accounting period:"]
[null,{"$f":"'Invoice overview'!A28","v":0},null,null,{"$f":"'Invoice overview'!C28","v":0},null,null,null,null,{"$f":"_xlfn.TEXTJOIN(\"   \",FALSE,IF('Invoice overview'!$G$28 > 0, TEXT('Invoice overview'!$G$28,\"TT.MM.JJJJ\"),\"\"),\"until\",IF('Invoice overview'!$I$28 > 0, TEXT('Invoice overview'!$I$28,\"TT.MM.JJJJ\"),\"\"))","v":"   until   "}]
[]
[]
["Personal data",null,null,null,null,null,"Periods of assignment","Total scheduled time",null,"Accounting period ",null,null,null,"Actual time ",null,"Remarks"]
["Family name, given name:",null,null,null,null,null,null,"Acc. to contract",null,"Actual period",null,"Period",null,"Total"]
["Function:",null,"Please select",null,null,null,null,"Months","Days","dd.mm.yyyy","dd.mm.yyyy","Months","Days","Months","Days"]
["Description of function:",null,null,null,null,null,"Germany"]
["Expert no. per price schedule",null,null,null,null,null,"Other Countries"]
[]
[null,null,null,null,null,null,"Details on leave and sickness",null,null,"Remarks",null,null,null,null,"Reserved for GIZ"]
["Link to assignment period calculation sheet for short-term expert pools:",null,null,null,null,null,"Total contractual entitlement (days)",null,{"$f":"IF( (SUM(H9:H10)) >= 4, (SUM(H9:H10)) * 4, 0)","v":0}]
["https://www.giz.de/de/downloads/giz2012-de-Hilfe_zur_Berechnung_der_Einsatzzeit_von_KZE-Pools.xls",null,null,null,null,null,"Remaining entitlement (days) *"]
[null,null,null,null,null,null,"Leave taken (days)*"]
[null,null,null,null,null,null,"Remaining leave (days)",null,{"$f":"IF(I14>0,I14-I15,I13-I15)","v":0}]
[null,null,null,null,null,null,"Sickness (days)"]
[]
["Personnel costs"]
[null,null,null,"Monthly rate\nacc. to contract","Daily rate\nacc. to contract","Quantity",null,"Amount ","Remarks",null,null,null,null,null,null,"Reserved for GIZ"]
["Remuneration item",null,null,null,null,"Months","Days **"]
["Fee (No. 5.4 General Conditions)",null,null,null,null,null,null,{"$f":"IF(NOT(D22=\"\"),D22*(F22+ROUND((G22/30),3)),IF(NOT(E22=\"\"),E22*G22,0))","v":0}]
["Fee (No. 5.4 General Conditions)",null,null,null,null,null,null,{"$f":"IF(NOT(D23=\"\"),D23*(F23+ROUND((G23/30),3)),IF(NOT(E23=\"\"),E23*G23,0))","v":0}]
["Per diem (No. 5.6. General Conditions)",null,null,null,null,null,null,{"$f":"IF(NOT(D24=\"\"),D24*(F24+ROUND((G24/30),3)),IF(NOT(E24=\"\"),E24*G24,0))","v":0}]
["Accommodation (No. 5.7 General Conditions)",null,null,null,null,null,null,{"$f":"IF(NOT(D25=\"\"),D25*(F25+ROUND((G25/30),3)),IF(NOT(E25=\"\"),E25*G25,0))","v":0}]
[]
["Travel expenses"]
["Air travel (No. 5.8 General Conditions)"]
[null,"Name of traveller",null,"Travel dates",null,null,null,"Amount\n (per voucher or lump sum)",null,null,"Amount ","Remarks",null,null,null,null,"Reserved for GIZ"]
["No.",null,"Type of flight","Destination","Outward flight\n(dd.mm.yyyy)","Homeward flight (dd.mm.yyyy)","Type of reimbursement",null,"Currency","Rate/\nquantity*"]
[1,null,"Please select",null,null,null,"Please select",null,null,null,{"$f":"H31*J31","v":0}]
[2,null,null,null,null,null,null,null,null,null,{"$f":"H32*J32","v":0}]
[3,null,null,null,null,null,null,null,null,null,0]
[4,null,null,null,null,null,null,null,null,null,0]
[5,null,null,null,null,null,null,null,null,null,0]
[6,null,null,null,null,null,null,null,null,null,0]
["TOTAL:",null,null,null,null,null,null,null,null,{"$f":"'Invoice overview'!F32","v":"EUR"},{"$f":"SUM(K31:K36)","v":0}]
[]
["Other travel expenses (No. 5.9 General Conditions)"]
["No.","Country of travel","Nature of travel expenses","Start\n(dd.mm.yyyy)","End\n(dd.mm.yyyy)","Reason for travel","Type of reimbursement","Amount\n (per voucher or lump sum)","Currency","Rate/\nquantity*","Amount ","Remarks",null,null,null,null,"Reserved for GIZ"]
[1,null,"Please select",null,null,null,"Please select",null,null,null,{"$f":"H41*J41","v":0}]
[2,null,null,null,null,null,null,null,null,null,{"$f":"H42*J42","v":0}]
[3,null,null,null,null,null,null,null,null,null,0]
[4,null,null,null,null,null,null,null,null,null,0]
["TOTAL:",null,null,null,null,null,null,null,null,{"$f":"'Invoice overview'!F32","v":"EUR"},{"$f":"SUM(K41:K44)","v":0}]
[]
["Other travel expenses (No. 5.9 General Conditions) MONTHLY LUMP SUM"]
["No.","Accounting period",null,"Nature of travel expenses",null,"Type of reimbursement","Monthly rate\nacc. to contract","Daily rate\nacc. to contract","Amount","Remarks",null,null,null,null,null,"Reserved for GIZ"]
[null,"Months","Days**"]
[1,null,null,"Please select",null,"Lump sum/Month or day",null,null,{"$f":"IF(NOT(G50=\"\"),G50*(B50+ROUND((C50/30),3)),IF(NOT(H50=\"\"),H50*C50,0))","v":0}]
[2,null,null,null,null,"Lump sum/Month or day",null,null,{"$f":"IF(NOT(G51=\"\"),G51*(B51+ROUND((C51/30),3)),IF(NOT(H51=\"\"),H51*C51,0))","v":0}]
["Total:",null,null,null,null,null,null,{"$f":"'Invoice overview'!F32","v":"EUR"},{"$f":"SUM(I50:I51)","v":0}]
[]
["Relocation goods (No. 5.10. General Conditions)"]
["Lump sum (in contract currency)",null,"Quantity","Rate","Amount","Remarks",null,null,null,"Reserved for GIZ"]
[null,null,1,null,{"$f":"D56*C56","v":0}]
[null,null,null,null,null,null,null,null,null,null,null,null,"Total for personnel deployment ",null,null,{"$f":"H22+H23+H24+H25+K37+K45+I52+E56","v":0}]
[]
[]
[]
[]
[]
[]
[]
[]
[]
[]
[]
[]
[]
[]
[]
[]
[]
[]
[]
[]
[]
[]
[]
[]
[]
[]
[]
[]
[]
[]
[]
[]
[]
[]
[]
[]
[]
[]
[]
[]
[]
[]
[]
[]
[]
[]
[]
[]
[]
[]
[]
[]
[]
[]
[]
[null,null,null,null,null,null,null,null,null,null,null,null,null,null,null,null,null,null,null,null,null,null,null,null,null,null,null,null,null,null,null,null,null,null,null,null,null,null,"Please select"]
[null,null,null,null,null,null,null,null,null,null,null,null,null,null,null,null,null,null,null,null,null,null,null,null,null,null,null,null,null,null,null,null,null,null,null,null,null,null,"Expert (outward and homeward journeys)"]
[null,null,null,null,null,null,null,null,null,null,null,null,null,null,null,null,null,null,null,null,null,null,null,null,null,null,null,null,null,null,null,null,null,null,null,null,null,null,"Dependants (outward and homeward journeys) "]
[null,null,null,null,null,null,null,null,null,null,null,null,null,null,null,null,null,null,null,null,null,null,null,null,null,null,null,null,null,null,null,null,null,null,null,null,null,null,"Vacation flights"]
[null,null,null,null,null,null,null,null,null,null,null,null,null,null,null,null,null,null,null,null,null,null,null,null,null,null,null,null,null,null,null,null,null,null,null,null,null,null,"Regional and national flights"]
[null,null,null,null,null,null,null,null,null,null,null,null,null,null,null,null,null,null,null,null,null,null,null,null,null,null,null,null,null,null,null,null,null,null,null,null,null,null,"Other flights"]
[]
[null,null,null,null,null,null,null,null,null,null,null,null,null,null,null,null,null,null,null,null,null,null,null,null,null,null,null,null,null,null,null,null,null,null,null,null,null,null,"Please select"]
[null,null,null,null,null,null,null,null,null,null,null,null,null,null,null,null,null,null,null,null,null,null,null,null,null,null,null,null,null,null,null,null,null,null,null,null,null,null,"Lump sum"]
[null,null,null,null,null,null,null,null,null,null,null,null,null,null,null,null,null,null,null,null,null,null,null,null,null,null,null,null,null,null,null,null,null,null,null,null,null,null,"Against evidence"]
[]
[null,null,null,null,null,null,null,null,null,null,null,null,null,null,null,null,null,null,null,null,null,null,null,null,null,null,null,null,null,null,null,null,null,null,null,null,null,null,"Please select"]
[null,null,null,null,null,null,null,null,null,null,null,null,null,null,null,null,null,null,null,null,null,null,null,null,null,null,null,null,null,null,null,null,null,null,null,null,null,null,"Long-term expert, int."]
[null,null,null,null,null,null,null,null,null,null,null,null,null,null,null,null,null,null,null,null,null,null,null,null,null,null,null,null,null,null,null,null,null,null,null,null,null,null,"Long-term expert, reg."]
[null,null,null,null,null,null,null,null,null,null,null,null,null,null,null,null,null,null,null,null,null,null,null,null,null,null,null,null,null,null,null,null,null,null,null,null,null,null,"Long-term expert, nat."]
[null,null,null,null,null,null,null,null,null,null,null,null,null,null,null,null,null,null,null,null,null,null,null,null,null,null,null,null,null,null,null,null,null,null,null,null,null,null,"Short-term expert, int."]
[null,null,null,null,null,null,null,null,null,null,null,null,null,null,null,null,null,null,null,null,null,null,null,null,null,null,null,null,null,null,null,null,null,null,null,null,null,null,"Short-term expert, reg."]
[null,null,null,null,null,null,null,null,null,null,null,null,null,null,null,null,null,null,null,null,null,null,null,null,null,null,null,null,null,null,null,null,null,null,null,null,null,null,"Short-term expert, nat."]
[null,null,null,null,null,null,null,null,null,null,null,null,null,null,null,null,null,null,null,null,null,null,null,null,null,null,null,null,null,null,null,null,null,null,null,null,null,null,"Other (please define)"]
[]
[null,null,null,null,null,null,null,null,null,null,null,null,null,null,null,null,null,null,null,null,null,null,null,null,null,null,null,null,null,null,null,null,null,null,null,null,null,null,"Please select"]
[null,null,null,null,null,null,null,null,null,null,null,null,null,null,null,null,null,null,null,null,null,null,null,null,null,null,null,null,null,null,null,null,null,null,null,null,null,null,"Travel expenses outside the country"]
[null,null,null,null,null,null,null,null,null,null,null,null,null,null,null,null,null,null,null,null,null,null,null,null,null,null,null,null,null,null,null,null,null,null,null,null,null,null,"Travel expenses in the country"]

{"sheet":"Expert sheet (months or d (15)","index":15,"n_rows":135,"n_cols":39,"rows_kept":135,"cut":false,"hidden":true,"merged":[[55,0,55,1],[55,5,55,8],[55,9,55,11],[56,12,56,14],[49,3,49,4],[49,9,49,14],[50,3,50,4],[50,9,50,14],[51,3,51,4],[51,9,51,14],[54,5,54,8],[54,9,54,11],[46,0,46,16],[47,0,48,0],[47,1,47,2],[47,3,48,4],[47,5,48,5],[47,6,48,6],[47,7,48,7],[47,8,48,8],[47,9,48,14],[47,15,48,16],[40,11,40,15],[41,11,41,15],[42,11,42,15],[43,11,43,15],[44,3,44,4],[44,11,44,15],[36,3,36,4],[36,11,36,15],[36,16,36,17],[38,14,38,15],[39,11,39,15],[39,16,39,17],[33,11,33,15],[33,16,33,17],[34,11,34,15],[34,16,34,17],[35,11,35,15],[35,16,35,17],[30,11,30,15],[30,16,30,17],[31,11,31,15],[31,16,31,17],[32,11,32,15],[32,16,32,17],[26,11,26,17],[28,1,29,1],[28,3,28,5],[28,10,29,10],[28,11,29,15],[28,16,29,17],[21,8,21,14],[21,15,21,16],[23,8,23,14],[23,15,23,16],[24,8,24,14],[24,15,24,16],[22,8,22,14],[19,15,20,16],[15,9,15,13],[15,14,15,15],[16,9,16,13],[16,14,16,15],[19,8,20,14],[16,19,16,20],[18,0,18,16],[12,9,12,13],[12,14,12,15],[13,0,13,5],[13,9,13,13],[13,14,13,15],[14,9,14,13],[14,14,14,15],[6,13,6,14],[7,2,7,4],[8,2,8,4],[9,2,9,4],[11,9,11,13],[11,14,11,15],[5,15,7,15],[6,2,6,4],[6,7,6,8],[6,9,6,10],[6,11,6,12],[1,3,1,4],[1,7,1,9],[5,7,5,8],[5,9,5,12],[5,13,5,14],[6,0,6,1],[9,0,9,1],[21,0,21,2],[22,0,22,2],[28,7,29,7],[19,3,20,3],[19,4,20,4],[19,5,19,6],[19,7,20,7]]}
["Statement on personnel deployment"]
[null,"Contract number:",null,"Processing no./Cost centre:",null,null,null,"Accounting period:"]
[null,{"$f":"'Invoice overview'!A28","v":0},null,null,{"$f":"'Invoice overview'!C28","v":0},null,null,null,null,{"$f":"_xlfn.TEXTJOIN(\"   \",FALSE,IF('Invoice overview'!$G$28 > 0, TEXT('Invoice overview'!$G$28,\"TT.MM.JJJJ\"),\"\"),\"until\",IF('Invoice overview'!$I$28 > 0, TEXT('Invoice overview'!$I$28,\"TT.MM.JJJJ\"),\"\"))","v":"   until   "}]
[]
[]
["Personal data",null,null,null,null,null,"Periods of assignment","Total scheduled time",null,"Accounting period ",null,null,null,"Actual time ",null,"Remarks"]
["Family name, given name:",null,null,null,null,null,null,"Acc. to contract",null,"Actual period",null,"Period",null,"Total"]
["Function:",null,"Please select",null,null,null,null,"Months","Days","dd.mm.yyyy","dd.mm.yyyy","Months","Days","Months","Days"]
["Description of function:",null,null,null,null,null,"Germany"]
["Expert no. per price schedule",null,null,null,null,null,"Other Countries"]
[]
[null,null,null,null,null,null,"Details on leave and sickness",null,null,"Remarks",null,null,null,null,"Reserved for GIZ"]
["Link to assignment period calculation sheet for short-term expert pools:",null,null,null,null,null,"Total contractual entitlement (days)",null,{"$f":"IF( (SUM(H9:H10)) >= 4, (SUM(H9:H10)) * 4, 0)","v":0}]
["https://www.giz.de/de/downloads/giz2012-de-Hilfe_zur_Berechnung_der_Einsatzzeit_von_KZE-Pools.xls",null,null,null,null,null,"Remaining entitlement (days) *"]
[null,null,null,null,null,null,"Leave taken (days)*"]
[null,null,null,null,null,null,"Remaining leave (days)",null,{"$f":"IF(I14>0,I14-I15,I13-I15)","v":0}]
[null,null,null,null,null,null,"Sickness (days)"]
[]
["Personnel costs"]
[null,null,null,"Monthly rate\nacc. to contract","Daily rate\nacc. to contract","Quantity",null,"Amount ","Remarks",null,null,null,null,null,null,"Reserved for GIZ"]
["Remuneration item",null,null,null,null,"Months","Days **"]
["Fee (No. 5.4 General Conditions)",null,null,null,null,null,null,{"$f":"IF(NOT(D22=\"\"),D22*(F22+ROUND((G22/30),3)),IF(NOT(E22=\"\"),E22*G22,0))","v":0}]
["Fee (No. 5.4 General Conditions)",null,null,null,null,null,null,{"$f":"IF(NOT(D23=\"\"),D23*(F23+ROUND((G23/30),3)),IF(NOT(E23=\"\"),E23*G23,0))","v":0}]
["Per diem (No. 5.6. General Conditions)",null,null,null,null,null,null,{"$f":"IF(NOT(D24=\"\"),D24*(F24+ROUND((G24/30),3)),IF(NOT(E24=\"\"),E24*G24,0))","v":0}]
["Accommodation (No. 5.7 General Conditions)",null,null,null,null,null,null,{"$f":"IF(NOT(D25=\"\"),D25*(F25+ROUND((G25/30),3)),IF(NOT(E25=\"\"),E25*G25,0))","v":0}]
[]
["Travel expenses"]
["Air travel (No. 5.8 General Conditions)"]
[null,"Name of traveller",null,"Travel dates",null,null,null,"Amount\n (per voucher or lump sum)",null,null,"Amount ","Remarks",null,null,null,null,"Reserved for GIZ"]
["No.",null,"Type of flight","Destination","Outward flight\n(dd.mm.yyyy)","Homeward flight (dd.mm.yyyy)","Type of reimbursement",null,"Currency","Rate/\nquantity*"]
[1,null,"Please select",null,null,null,"Please select",null,null,null,{"$f":"H31*J31","v":0}]
[2,null,null,null,null,null,null,null,null,null,{"$f":"H32*J32","v":0}]
[3,null,null,null,null,null,null,null,null,null,0]
[4,null,null,null,null,null,null,null,null,null,0]
[5,null,null,null,null,null,null,null,null,null,0]
[6,null,null,null,null,null,null,null,null,null,0]
["TOTAL:",null,null,null,null,null,null,null,null,{"$f":"'Invoice overview'!F32","v":"EUR"},{"$f":"SUM(K31:K36)","v":0}]
[]
["Other travel expenses (No. 5.9 General Conditions)"]
["No.","Country of travel","Nature of travel expenses","Start\n(dd.mm.yyyy)","End\n(dd.mm.yyyy)","Reason for travel","Type of reimbursement","Amount\n (per voucher or lump sum)","Currency","Rate/\nquantity*","Amount ","Remarks",null,null,null,null,"Reserved for GIZ"]
[1,null,"Please select",null,null,null,"Please select",null,null,null,{"$f":"H41*J41","v":0}]
[2,null,null,null,null,null,null,null,null,null,{"$f":"H42*J42","v":0}]
[3,null,null,null,null,null,null,null,null,null,0]
[4,null,null,null,null,null,null,null,null,null,0]
["TOTAL:",null,null,null,null,null,null,null,null,{"$f":"'Invoice overview'!F32","v":"EUR"},{"$f":"SUM(K41:K44)","v":0}]
[]
["Other travel expenses (No. 5.9 General Conditions) MONTHLY LUMP SUM"]
["No.","Accounting period",null,"Nature of travel expenses",null,"Type of reimbursement","Monthly rate\nacc. to contract","Daily rate\nacc. to contract","Amount","Remarks",null,null,null,null,null,"Reserved for GIZ"]
[null,"Months","Days**"]
[1,null,null,"Please select",null,"Lump sum/Month or day",null,null,{"$f":"IF(NOT(G50=\"\"),G50*(B50+ROUND((C50/30),3)),IF(NOT(H50=\"\"),H50*C50,0))","v":0}]
[2,null,null,null,null,"Lump sum/Month or day",null,null,{"$f":"IF(NOT(G51=\"\"),G51*(B51+ROUND((C51/30),3)),IF(NOT(H51=\"\"),H51*C51,0))","v":0}]
["Total:",null,null,null,null,null,null,{"$f":"'Invoice overview'!F32","v":"EUR"},{"$f":"SUM(I50:I51)","v":0}]
[]
["Relocation goods (No. 5.10. General Conditions)"]
["Lump sum (in contract currency)",null,"Quantity","Rate","Amount","Remarks",null,null,null,"Reserved for GIZ"]
[null,null,1,null,{"$f":"D56*C56","v":0}]
[null,null,null,null,null,null,null,null,null,null,null,null,"Total for personnel deployment ",null,null,{"$f":"H22+H23+H24+H25+K37+K45+I52+E56","v":0}]
[]
[]
[]
[]
[]
[]
[]
[]
[]
[]
[]
[]
[]
[]
[]
[]
[]
[]
[]
[]
[]
[]
[]
[]
[]
[]
[]
[]
[]
[]
[]
[]
[]
[]
[]
[]
[]
[]
[]
[]
[]
[]
[]
[]
[]
[]
[]
[]
[]
[]
[]
[]
[]
[]
[]
[null,null,null,null,null,null,null,null,null,null,null,null,null,null,null,null,null,null,null,null,null,null,null,null,null,null,null,null,null,null,null,null,null,null,null,null,null,null,"Please select"]
[null,null,null,null,null,null,null,null,null,null,null,null,null,null,null,null,null,null,null,null,null,null,null,null,null,null,null,null,null,null,null,null,null,null,null,null,null,null,"Expert (outward and homeward journeys)"]
[null,null,null,null,null,null,null,null,null,null,null,null,null,null,null,null,null,null,null,null,null,null,null,null,null,null,null,null,null,null,null,null,null,null,null,null,null,null,"Dependants (outward and homeward journeys) "]
[null,null,null,null,null,null,null,null,null,null,null,null,null,null,null,null,null,null,null,null,null,null,null,null,null,null,null,null,null,null,null,null,null,null,null,null,null,null,"Vacation flights"]
[null,null,null,null,null,null,null,null,null,null,null,null,null,null,null,null,null,null,null,null,null,null,null,null,null,null,null,null,null,null,null,null,null,null,null,null,null,null,"Regional and national flights"]
[null,null,null,null,null,null,null,null,null,null,null,null,null,null,null,null,null,null,null,null,null,null,null,null,null,null,null,null,null,null,null,null,null,null,null,null,null,null,"Other flights"]
[]
[null,null,null,null,null,null,null,null,null,null,null,null,null,null,null,null,null,null,null,null,null,null,null,null,null,null,null,null,null,null,null,null,null,null,null,null,null,null,"Please select"]
[null,null,null,null,null,null,null,null,null,null,null,null,null,null,null,null,null,null,null,null,null,null,null,null,null,null,null,null,null,null,null,null,null,null,null,null,null,null,"Lump sum"]
[null,null,null,null,null,null,null,null,null,null,null,null,null,null,null,null,null,null,null,null,null,null,null,null,null,null,null,null,null,null,null,null,null,null,null,null,null,null,"Against evidence"]
[]
[null,null,null,null,null,null,null,null,null,null,null,null,null,null,null,null,null,null,null,null,null,null,null,null,null,null,null,null,null,null,null,null,null,null,null,null,null,null,"Please select"]
[null,null,null,null,null,null,null,null,null,null,null,null,null,null,null,null,null,null,null,null,null,null,null,null,null,null,null,null,null,null,null,null,null,null,null,null,null,null,"Long-term expert, int."]
[null,null,null,null,null,null,null,null,null,null,null,null,null,null,null,null,null,null,null,null,null,null,null,null,null,null,null,null,null,null,null,null,null,null,null,null,null,null,"Long-term expert, reg."]
[null,null,null,null,null,null,null,null,null,null,null,null,null,null,null,null,null,null,null,null,null,null,null,null,null,null,null,null,null,null,null,null,null,null,null,null,null,null,"Long-term expert, nat."]
[null,null,null,null,null,null,null,null,null,null,null,null,null,null,null,null,null,null,null,null,null,null,null,null,null,null,null,null,null,null,null,null,null,null,null,null,null,null,"Short-term expert, int."]
[null,null,null,null,null,null,null,null,null,null,null,null,null,null,null,null,null,null,null,null,null,null,null,null,null,null,null,null,null,null,null,null,null,null,null,null,null,null,"Short-term expert, reg."]
[null,null,null,null,null,null,null,null,null,null,null,null,null,null,null,null,null,null,null,null,null,null,null,null,null,null,null,null,null,null,null,null,null,null,null,null,null,null,"Short-term expert, nat."]
[null,null,null,null,null,null,null,null,null,null,null,null,null,null,null,null,null,null,null,null,null,null,null,null,null,null,null,null,null,null,null,null,null,null,null,null,null,null,"Other (please define)"]
[]
[null,null,null,null,null,null,null,null,null,null,null,null,null,null,null,null,null,null,null,null,null,null,null,null,null,null,null,null,null,null,null,null,null,null,null,null,null,null,"Please select"]
[null,null,null,null,null,null,null,null,null,null,null,null,null,null,null,null,null,null,null,null,null,null,null,null,null,null,null,null,null,null,null,null,null,null,null,null,null,null,"Travel expenses outside the country"]
[null,null,null,null,null,null,null,null,null,null,null,null,null,null,null,null,null,null,null,null,null,null,null,null,null,null,null,null,null,null,null,null,null,null,null,null,null,null,"Travel expenses in the country"]

{"sheet":"Expert sheet (months or d (16)","index":16,"n_rows":135,"n_cols":39,"rows_kept":135,"cut":false,"hidden":true,"merged":[[55,0,55,1],[55,5,55,8],[55,9,55,11],[56,12,56,14],[49,3,49,4],[49,9,49,14],[50,3,50,4],[50,9,50,14],[51,3,51,4],[51,9,51,14],[54,5,54,8],[54,9,54,11],[46,0,46,16],[47,0,48,0],[47,1,47,2],[47,3,48,4],[47,5,48,5],[47,6,48,6],[47,7,48,7],[47,8,48,8],[47,9,48,14],[47,15,48,16],[40,11,40,15],[41,11,41,15],[42,11,42,15],[43,11,43,15],[44,3,44,4],[44,11,44,15],[36,3,36,4],[36,11,36,15],[36,16,36,17],[38,14,38,15],[39,11,39,15],[39,16,39,17],[33,11,33,15],[33,16,33,17],[34,11,34,15],[34,16,34,17],[35,11,35,15],[35,16,35,17],[30,11,30,15],[30,16,30,17],[31,11,31,15],[31,16,31,17],[32,11,32,15],[32,16,32,17],[26,11,26,17],[28,1,29,1],[28,3,28,5],[28,10,29,10],[28,11,29,15],[28,16,29,17],[21,8,21,14],[21,15,21,16],[23,8,23,14],[23,15,23,16],[24,8,24,14],[24,15,24,16],[22,8,22,14],[19,15,20,16],[15,9,15,13],[15,14,15,15],[16,9,16,13],[16,14,16,15],[19,8,20,14],[16,19,16,20],[18,0,18,16],[12,9,12,13],[12,14,12,15],[13,0,13,5],[13,9,13,13],[13,14,13,15],[14,9,14,13],[14,14,14,15],[6,13,6,14],[7,2,7,4],[8,2,8,4],[9,2,9,4],[11,9,11,13],[11,14,11,15],[5,15,7,15],[6,2,6,4],[6,7,6,8],[6,9,6,10],[6,11,6,12],[1,3,1,4],[1,7,1,9],[5,7,5,8],[5,9,5,12],[5,13,5,14],[6,0,6,1],[9,0,9,1],[21,0,21,2],[22,0,22,2],[28,7,29,7],[19,3,20,3],[19,4,20,4],[19,5,19,6],[19,7,20,7]]}
["Statement on personnel deployment"]
[null,"Contract number:",null,"Processing no./Cost centre:",null,null,null,"Accounting period:"]
[null,{"$f":"'Invoice overview'!A28","v":0},null,null,{"$f":"'Invoice overview'!C28","v":0},null,null,null,null,{"$f":"_xlfn.TEXTJOIN(\"   \",FALSE,IF('Invoice overview'!$G$28 > 0, TEXT('Invoice overview'!$G$28,\"TT.MM.JJJJ\"),\"\"),\"until\",IF('Invoice overview'!$I$28 > 0, TEXT('Invoice overview'!$I$28,\"TT.MM.JJJJ\"),\"\"))","v":"   until   "}]
[]
[]
["Personal data",null,null,null,null,null,"Periods of assignment","Total scheduled time",null,"Accounting period ",null,null,null,"Actual time ",null,"Remarks"]
["Family name, given name:",null,null,null,null,null,null,"Acc. to contract",null,"Actual period",null,"Period",null,"Total"]
["Function:",null,"Please select",null,null,null,null,"Months","Days","dd.mm.yyyy","dd.mm.yyyy","Months","Days","Months","Days"]
["Description of function:",null,null,null,null,null,"Germany"]
["Expert no. per price schedule",null,null,null,null,null,"Other Countries"]
[]
[null,null,null,null,null,null,"Details on leave and sickness",null,null,"Remarks",null,null,null,null,"Reserved for GIZ"]
["Link to assignment period calculation sheet for short-term expert pools:",null,null,null,null,null,"Total contractual entitlement (days)",null,{"$f":"IF( (SUM(H9:H10)) >= 4, (SUM(H9:H10)) * 4, 0)","v":0}]
["https://www.giz.de/de/downloads/giz2012-de-Hilfe_zur_Berechnung_der_Einsatzzeit_von_KZE-Pools.xls",null,null,null,null,null,"Remaining entitlement (days) *"]
[null,null,null,null,null,null,"Leave taken (days)*"]
[null,null,null,null,null,null,"Remaining leave (days)",null,{"$f":"IF(I14>0,I14-I15,I13-I15)","v":0}]
[null,null,null,null,null,null,"Sickness (days)"]
[]
["Personnel costs"]
[null,null,null,"Monthly rate\nacc. to contract","Daily rate\nacc. to contract","Quantity",null,"Amount ","Remarks",null,null,null,null,null,null,"Reserved for GIZ"]
["Remuneration item",null,null,null,null,"Months","Days **"]
["Fee (No. 5.4 General Conditions)",null,null,null,null,null,null,{"$f":"IF(NOT(D22=\"\"),D22*(F22+ROUND((G22/30),3)),IF(NOT(E22=\"\"),E22*G22,0))","v":0}]
["Fee (No. 5.4 General Conditions)",null,null,null,null,null,null,{"$f":"IF(NOT(D23=\"\"),D23*(F23+ROUND((G23/30),3)),IF(NOT(E23=\"\"),E23*G23,0))","v":0}]
["Per diem (No. 5.6. General Conditions)",null,null,null,null,null,null,{"$f":"IF(NOT(D24=\"\"),D24*(F24+ROUND((G24/30),3)),IF(NOT(E24=\"\"),E24*G24,0))","v":0}]
["Accommodation (No. 5.7 General Conditions)",null,null,null,null,null,null,{"$f":"IF(NOT(D25=\"\"),D25*(F25+ROUND((G25/30),3)),IF(NOT(E25=\"\"),E25*G25,0))","v":0}]
[]
["Travel expenses"]
["Air travel (No. 5.8 General Conditions)"]
[null,"Name of traveller",null,"Travel dates",null,null,null,"Amount\n (per voucher or lump sum)",null,null,"Amount ","Remarks",null,null,null,null,"Reserved for GIZ"]
["No.",null,"Type of flight","Destination","Outward flight\n(dd.mm.yyyy)","Homeward flight (dd.mm.yyyy)","Type of reimbursement",null,"Currency","Rate/\nquantity*"]
[1,null,"Please select",null,null,null,"Please select",null,null,null,{"$f":"H31*J31","v":0}]
[2,null,null,null,null,null,null,null,null,null,{"$f":"H32*J32","v":0}]
[3,null,null,null,null,null,null,null,null,null,0]
[4,null,null,null,null,null,null,null,null,null,0]
[5,null,null,null,null,null,null,null,null,null,0]
[6,null,null,null,null,null,null,null,null,null,0]
["TOTAL:",null,null,null,null,null,null,null,null,{"$f":"'Invoice overview'!F32","v":"EUR"},{"$f":"SUM(K31:K36)","v":0}]
[]
["Other travel expenses (No. 5.9 General Conditions)"]
["No.","Country of travel","Nature of travel expenses","Start\n(dd.mm.yyyy)","End\n(dd.mm.yyyy)","Reason for travel","Type of reimbursement","Amount\n (per voucher or lump sum)","Currency","Rate/\nquantity*","Amount ","Remarks",null,null,null,null,"Reserved for GIZ"]
[1,null,"Please select",null,null,null,"Please select",null,null,null,{"$f":"H41*J41","v":0}]
[2,null,null,null,null,null,null,null,null,null,{"$f":"H42*J42","v":0}]
[3,null,null,null,null,null,null,null,null,null,0]
[4,null,null,null,null,null,null,null,null,null,0]
["TOTAL:",null,null,null,null,null,null,null,null,{"$f":"'Invoice overview'!F32","v":"EUR"},{"$f":"SUM(K41:K44)","v":0}]
[]
["Other travel expenses (No. 5.9 General Conditions) MONTHLY LUMP SUM"]
["No.","Accounting period",null,"Nature of travel expenses",null,"Type of reimbursement","Monthly rate\nacc. to contract","Daily rate\nacc. to contract","Amount","Remarks",null,null,null,null,null,"Reserved for GIZ"]
[null,"Months","Days**"]
[1,null,null,"Please select",null,"Lump sum/Month or day",null,null,{"$f":"IF(NOT(G50=\"\"),G50*(B50+ROUND((C50/30),3)),IF(NOT(H50=\"\"),H50*C50,0))","v":0}]
[2,null,null,null,null,"Lump sum/Month or day",null,null,{"$f":"IF(NOT(G51=\"\"),G51*(B51+ROUND((C51/30),3)),IF(NOT(H51=\"\"),H51*C51,0))","v":0}]
["Total:",null,null,null,null,null,null,{"$f":"'Invoice overview'!F32","v":"EUR"},{"$f":"SUM(I50:I51)","v":0}]
[]
["Relocation goods (No. 5.10. General Conditions)"]
["Lump sum (in contract currency)",null,"Quantity","Rate","Amount","Remarks",null,null,null,"Reserved for GIZ"]
[null,null,1,null,{"$f":"D56*C56","v":0}]
[null,null,null,null,null,null,null,null,null,null,null,null,"Total for personnel deployment ",null,null,{"$f":"H22+H23+H24+H25+K37+K45+I52+E56","v":0}]
[]
[]
[]
[]
[]
[]
[]
[]
[]
[]
[]
[]
[]
[]
[]
[]
[]
[]
[]
[]
[]
[]
[]
[]
[]
[]
[]
[]
[]
[]
[]
[]
[]
[]
[]
[]
[]
[]
[]
[]
[]
[]
[]
[]
[]
[]
[]
[]
[]
[]
[]
[]
[]
[]
[]
[null,null,null,null,null,null,null,null,null,null,null,null,null,null,null,null,null,null,null,null,null,null,null,null,null,null,null,null,null,null,null,null,null,null,null,null,null,null,"Please select"]
[null,null,null,null,null,null,null,null,null,null,null,null,null,null,null,null,null,null,null,null,null,null,null,null,null,null,null,null,null,null,null,null,null,null,null,null,null,null,"Expert (outward and homeward journeys)"]
[null,null,null,null,null,null,null,null,null,null,null,null,null,null,null,null,null,null,null,null,null,null,null,null,null,null,null,null,null,null,null,null,null,null,null,null,null,null,"Dependants (outward and homeward journeys) "]
[null,null,null,null,null,null,null,null,null,null,null,null,null,null,null,null,null,null,null,null,null,null,null,null,null,null,null,null,null,null,null,null,null,null,null,null,null,null,"Vacation flights"]
[null,null,null,null,null,null,null,null,null,null,null,null,null,null,null,null,null,null,null,null,null,null,null,null,null,null,null,null,null,null,null,null,null,null,null,null,null,null,"Regional and national flights"]
[null,null,null,null,null,null,null,null,null,null,null,null,null,null,null,null,null,null,null,null,null,null,null,null,null,null,null,null,null,null,null,null,null,null,null,null,null,null,"Other flights"]
[]
[null,null,null,null,null,null,null,null,null,null,null,null,null,null,null,null,null,null,null,null,null,null,null,null,null,null,null,null,null,null,null,null,null,null,null,null,null,null,"Please select"]
[null,null,null,null,null,null,null,null,null,null,null,null,null,null,null,null,null,null,null,null,null,null,null,null,null,null,null,null,null,null,null,null,null,null,null,null,null,null,"Lump sum"]
[null,null,null,null,null,null,null,null,null,null,null,null,null,null,null,null,null,null,null,null,null,null,null,null,null,null,null,null,null,null,null,null,null,null,null,null,null,null,"Against evidence"]
[]
[null,null,null,null,null,null,null,null,null,null,null,null,null,null,null,null,null,null,null,null,null,null,null,null,null,null,null,null,null,null,null,null,null,null,null,null,null,null,"Please select"]
[null,null,null,null,null,null,null,null,null,null,null,null,null,null,null,null,null,null,null,null,null,null,null,null,null,null,null,null,null,null,null,null,null,null,null,null,null,null,"Long-term expert, int."]
[null,null,null,null,null,null,null,null,null,null,null,null,null,null,null,null,null,null,null,null,null,null,null,null,null,null,null,null,null,null,null,null,null,null,null,null,null,null,"Long-term expert, reg."]
[null,null,null,null,null,null,null,null,null,null,null,null,null,null,null,null,null,null,null,null,null,null,null,null,null,null,null,null,null,null,null,null,null,null,null,null,null,null,"Long-term expert, nat."]
[null,null,null,null,null,null,null,null,null,null,null,null,null,null,null,null,null,null,null,null,null,null,null,null,null,null,null,null,null,null,null,null,null,null,null,null,null,null,"Short-term expert, int."]
[null,null,null,null,null,null,null,null,null,null,null,null,null,null,null,null,null,null,null,null,null,null,null,null,null,null,null,null,null,null,null,null,null,null,null,null,null,null,"Short-term expert, reg."]
[null,null,null,null,null,null,null,null,null,null,null,null,null,null,null,null,null,null,null,null,null,null,null,null,null,null,null,null,null,null,null,null,null,null,null,null,null,null,"Short-term expert, nat."]
[null,null,null,null,null,null,null,null,null,null,null,null,null,null,null,null,null,null,null,null,null,null,null,null,null,null,null,null,null,null,null,null,null,null,null,null,null,null,"Other (please define)"]
[]
[null,null,null,null,null,null,null,null,null,null,null,null,null,null,null,null,null,null,null,null,null,null,null,null,null,null,null,null,null,null,null,null,null,null,null,null,null,null,"Please select"]
[null,null,null,null,null,null,null,null,null,null,null,null,null,null,null,null,null,null,null,null,null,null,null,null,null,null,null,null,null,null,null,null,null,null,null,null,null,null,"Travel expenses outside the country"]
[null,null,null,null,null,null,null,null,null,null,null,null,null,null,null,null,null,null,null,null,null,null,null,null,null,null,null,null,null,null,null,null,null,null,null,null,null,null,"Travel expenses in the country"]

{"sheet":"Expert sheet (months or d (17)","index":17,"n_rows":135,"n_cols":39,"rows_kept":135,"cut":false,"hidden":true,"merged":[[55,0,55,1],[55,5,55,8],[55,9,55,11],[56,12,56,14],[49,3,49,4],[49,9,49,14],[50,3,50,4],[50,9,50,14],[51,3,51,4],[51,9,51,14],[54,5,54,8],[54,9,54,11],[46,0,46,16],[47,0,48,0],[47,1,47,2],[47,3,48,4],[47,5,48,5],[47,6,48,6],[47,7,48,7],[47,8,48,8],[47,9,48,14],[47,15,48,16],[40,11,40,15],[41,11,41,15],[42,11,42,15],[43,11,43,15],[44,3,44,4],[44,11,44,15],[36,3,36,4],[36,11,36,15],[36,16,36,17],[38,14,38,15],[39,11,39,15],[39,16,39,17],[33,11,33,15],[33,16,33,17],[34,11,34,15],[34,16,34,17],[35,11,35,15],[35,16,35,17],[30,11,30,15],[30,16,30,17],[31,11,31,15],[31,16,31,17],[32,11,32,15],[32,16,32,17],[26,11,26,17],[28,1,29,1],[28,3,28,5],[28,10,29,10],[28,11,29,15],[28,16,29,17],[21,8,21,14],[21,15,21,16],[23,8,23,14],[23,15,23,16],[24,8,24,14],[24,15,24,16],[22,8,22,14],[19,15,20,16],[15,9,15,13],[15,14,15,15],[16,9,16,13],[16,14,16,15],[19,8,20,14],[16,19,16,20],[18,0,18,16],[12,9,12,13],[12,14,12,15],[13,0,13,5],[13,9,13,13],[13,14,13,15],[14,9,14,13],[14,14,14,15],[6,13,6,14],[7,2,7,4],[8,2,8,4],[9,2,9,4],[11,9,11,13],[11,14,11,15],[5,15,7,15],[6,2,6,4],[6,7,6,8],[6,9,6,10],[6,11,6,12],[1,3,1,4],[1,7,1,9],[5,7,5,8],[5,9,5,12],[5,13,5,14],[6,0,6,1],[9,0,9,1],[21,0,21,2],[22,0,22,2],[28,7,29,7],[19,3,20,3],[19,4,20,4],[19,5,19,6],[19,7,20,7]]}
["Statement on personnel deployment"]
[null,"Contract number:",null,"Processing no./Cost centre:",null,null,null,"Accounting period:"]
[null,{"$f":"'Invoice overview'!A28","v":0},null,null,{"$f":"'Invoice overview'!C28","v":0},null,null,null,null,{"$f":"_xlfn.TEXTJOIN(\"   \",FALSE,IF('Invoice overview'!$G$28 > 0, TEXT('Invoice overview'!$G$28,\"TT.MM.JJJJ\"),\"\"),\"until\",IF('Invoice overview'!$I$28 > 0, TEXT('Invoice overview'!$I$28,\"TT.MM.JJJJ\"),\"\"))","v":"   until   "}]
[]
[]
["Personal data",null,null,null,null,null,"Periods of assignment","Total scheduled time",null,"Accounting period ",null,null,null,"Actual time ",null,"Remarks"]
["Family name, given name:",null,null,null,null,null,null,"Acc. to contract",null,"Actual period",null,"Period",null,"Total"]
["Function:",null,"Please select",null,null,null,null,"Months","Days","dd.mm.yyyy","dd.mm.yyyy","Months","Days","Months","Days"]
["Description of function:",null,null,null,null,null,"Germany"]
["Expert no. per price schedule",null,null,null,null,null,"Other Countries"]
[]
[null,null,null,null,null,null,"Details on leave and sickness",null,null,"Remarks",null,null,null,null,"Reserved for GIZ"]
["Link to assignment period calculation sheet for short-term expert pools:",null,null,null,null,null,"Total contractual entitlement (days)",null,{"$f":"IF( (SUM(H9:H10)) >= 4, (SUM(H9:H10)) * 4, 0)","v":0}]
["https://www.giz.de/de/downloads/giz2012-de-Hilfe_zur_Berechnung_der_Einsatzzeit_von_KZE-Pools.xls",null,null,null,null,null,"Remaining entitlement (days) *"]
[null,null,null,null,null,null,"Leave taken (days)*"]
[null,null,null,null,null,null,"Remaining leave (days)",null,{"$f":"IF(I14>0,I14-I15,I13-I15)","v":0}]
[null,null,null,null,null,null,"Sickness (days)"]
[]
["Personnel costs"]
[null,null,null,"Monthly rate\nacc. to contract","Daily rate\nacc. to contract","Quantity",null,"Amount ","Remarks",null,null,null,null,null,null,"Reserved for GIZ"]
["Remuneration item",null,null,null,null,"Months","Days **"]
["Fee (No. 5.4 General Conditions)",null,null,null,null,null,null,{"$f":"IF(NOT(D22=\"\"),D22*(F22+ROUND((G22/30),3)),IF(NOT(E22=\"\"),E22*G22,0))","v":0}]
["Fee (No. 5.4 General Conditions)",null,null,null,null,null,null,{"$f":"IF(NOT(D23=\"\"),D23*(F23+ROUND((G23/30),3)),IF(NOT(E23=\"\"),E23*G23,0))","v":0}]
["Per diem (No. 5.6. General Conditions)",null,null,null,null,null,null,{"$f":"IF(NOT(D24=\"\"),D24*(F24+ROUND((G24/30),3)),IF(NOT(E24=\"\"),E24*G24,0))","v":0}]
["Accommodation (No. 5.7 General Conditions)",null,null,null,null,null,null,{"$f":"IF(NOT(D25=\"\"),D25*(F25+ROUND((G25/30),3)),IF(NOT(E25=\"\"),E25*G25,0))","v":0}]
[]
["Travel expenses"]
["Air travel (No. 5.8 General Conditions)"]
[null,"Name of traveller",null,"Travel dates",null,null,null,"Amount\n (per voucher or lump sum)",null,null,"Amount ","Remarks",null,null,null,null,"Reserved for GIZ"]
["No.",null,"Type of flight","Destination","Outward flight\n(dd.mm.yyyy)","Homeward flight (dd.mm.yyyy)","Type of reimbursement",null,"Currency","Rate/\nquantity*"]
[1,null,"Please select",null,null,null,"Please select",null,null,null,{"$f":"H31*J31","v":0}]
[2,null,null,null,null,null,null,null,null,null,{"$f":"H32*J32","v":0}]
[3,null,null,null,null,null,null,null,null,null,0]
[4,null,null,null,null,null,null,null,null,null,0]
[5,null,null,null,null,null,null,null,null,null,0]
[6,null,null,null,null,null,null,null,null,null,0]
["TOTAL:",null,null,null,null,null,null,null,null,{"$f":"'Invoice overview'!F32","v":"EUR"},{"$f":"SUM(K31:K36)","v":0}]
[]
["Other travel expenses (No. 5.9 General Conditions)"]
["No.","Country of travel","Nature of travel expenses","Start\n(dd.mm.yyyy)","End\n(dd.mm.yyyy)","Reason for travel","Type of reimbursement","Amount\n (per voucher or lump sum)","Currency","Rate/\nquantity*","Amount ","Remarks",null,null,null,null,"Reserved for GIZ"]
[1,null,"Please select",null,null,null,"Please select",null,null,null,{"$f":"H41*J41","v":0}]
[2,null,null,null,null,null,null,null,null,null,{"$f":"H42*J42","v":0}]
[3,null,null,null,null,null,null,null,null,null,0]
[4,null,null,null,null,null,null,null,null,null,0]
["TOTAL:",null,null,null,null,null,null,null,null,{"$f":"'Invoice overview'!F32","v":"EUR"},{"$f":"SUM(K41:K44)","v":0}]
[]
["Other travel expenses (No. 5.9 General Conditions) MONTHLY LUMP SUM"]
["No.","Accounting period",null,"Nature of travel expenses",null,"Type of reimbursement","Monthly rate\nacc. to contract","Daily rate\nacc. to contract","Amount","Remarks",null,null,null,null,null,"Reserved for GIZ"]
[null,"Months","Days**"]
[1,null,null,"Please select",null,"Lump sum/Month or day",null,null,{"$f":"IF(NOT(G50=\"\"),G50*(B50+ROUND((C50/30),3)),IF(NOT(H50=\"\"),H50*C50,0))","v":0}]
[2,null,null,null,null,"Lump sum/Month or day",null,null,{"$f":"IF(NOT(G51=\"\"),G51*(B51+ROUND((C51/30),3)),IF(NOT(H51=\"\"),H51*C51,0))","v":0}]
["Total:",null,null,null,null,null,null,{"$f":"'Invoice overview'!F32","v":"EUR"},{"$f":"SUM(I50:I51)","v":0}]
[]
["Relocation goods (No. 5.10. General Conditions)"]
["Lump sum (in contract currency)",null,"Quantity","Rate","Amount","Remarks",null,null,null,"Reserved for GIZ"]
[null,null,1,null,{"$f":"D56*C56","v":0}]
[null,null,null,null,null,null,null,null,null,null,null,null,"Total for personnel deployment ",null,null,{"$f":"H22+H23+H24+H25+K37+K45+I52+E56","v":0}]
[]
[]
[]
[]
[]
[]
[]
[]
[]
[]
[]
[]
[]
[]
[]
[]
[]
[]
[]
[]
[]
[]
[]
[]
[]
[]
[]
[]
[]
[]
[]
[]
[]
[]
[]
[]
[]
[]
[]
[]
[]
[]
[]
[]
[]
[]
[]
[]
[]
[]
[]
[]
[]
[]
[]
[null,null,null,null,null,null,null,null,null,null,null,null,null,null,null,null,null,null,null,null,null,null,null,null,null,null,null,null,null,null,null,null,null,null,null,null,null,null,"Please select"]
[null,null,null,null,null,null,null,null,null,null,null,null,null,null,null,null,null,null,null,null,null,null,null,null,null,null,null,null,null,null,null,null,null,null,null,null,null,null,"Expert (outward and homeward journeys)"]
[null,null,null,null,null,null,null,null,null,null,null,null,null,null,null,null,null,null,null,null,null,null,null,null,null,null,null,null,null,null,null,null,null,null,null,null,null,null,"Dependants (outward and homeward journeys) "]
[null,null,null,null,null,null,null,null,null,null,null,null,null,null,null,null,null,null,null,null,null,null,null,null,null,null,null,null,null,null,null,null,null,null,null,null,null,null,"Vacation flights"]
[null,null,null,null,null,null,null,null,null,null,null,null,null,null,null,null,null,null,null,null,null,null,null,null,null,null,null,null,null,null,null,null,null,null,null,null,null,null,"Regional and national flights"]
[null,null,null,null,null,null,null,null,null,null,null,null,null,null,null,null,null,null,null,null,null,null,null,null,null,null,null,null,null,null,null,null,null,null,null,null,null,null,"Other flights"]
[]
[null,null,null,null,null,null,null,null,null,null,null,null,null,null,null,null,null,null,null,null,null,null,null,null,null,null,null,null,null,null,null,null,null,null,null,null,null,null,"Please select"]
[null,null,null,null,null,null,null,null,null,null,null,null,null,null,null,null,null,null,null,null,null,null,null,null,null,null,null,null,null,null,null,null,null,null,null,null,null,null,"Lump sum"]
[null,null,null,null,null,null,null,null,null,null,null,null,null,null,null,null,null,null,null,null,null,null,null,null,null,null,null,null,null,null,null,null,null,null,null,null,null,null,"Against evidence"]
[]
[null,null,null,null,null,null,null,null,null,null,null,null,null,null,null,null,null,null,null,null,null,null,null,null,null,null,null,null,null,null,null,null,null,null,null,null,null,null,"Please select"]
[null,null,null,null,null,null,null,null,null,null,null,null,null,null,null,null,null,null,null,null,null,null,null,null,null,null,null,null,null,null,null,null,null,null,null,null,null,null,"Long-term expert, int."]
[null,null,null,null,null,null,null,null,null,null,null,null,null,null,null,null,null,null,null,null,null,null,null,null,null,null,null,null,null,null,null,null,null,null,null,null,null,null,"Long-term expert, reg."]
[null,null,null,null,null,null,null,null,null,null,null,null,null,null,null,null,null,null,null,null,null,null,null,null,null,null,null,null,null,null,null,null,null,null,null,null,null,null,"Long-term expert, nat."]
[null,null,null,null,null,null,null,null,null,null,null,null,null,null,null,null,null,null,null,null,null,null,null,null,null,null,null,null,null,null,null,null,null,null,null,null,null,null,"Short-term expert, int."]
[null,null,null,null,null,null,null,null,null,null,null,null,null,null,null,null,null,null,null,null,null,null,null,null,null,null,null,null,null,null,null,null,null,null,null,null,null,null,"Short-term expert, reg."]
[null,null,null,null,null,null,null,null,null,null,null,null,null,null,null,null,null,null,null,null,null,null,null,null,null,null,null,null,null,null,null,null,null,null,null,null,null,null,"Short-term expert, nat."]
[null,null,null,null,null,null,null,null,null,null,null,null,null,null,null,null,null,null,null,null,null,null,null,null,null,null,null,null,null,null,null,null,null,null,null,null,null,null,"Other (please define)"]
[]
[null,null,null,null,null,null,null,null,null,null,null,null,null,null,null,null,null,null,null,null,null,null,null,null,null,null,null,null,null,null,null,null,null,null,null,null,null,null,"Please select"]
[null,null,null,null,null,null,null,null,null,null,null,null,null,null,null,null,null,null,null,null,null,null,null,null,null,null,null,null,null,null,null,null,null,null,null,null,null,null,"Travel expenses outside the country"]
[null,null,null,null,null,null,null,null,null,null,null,null,null,null,null,null,null,null,null,null,null,null,null,null,null,null,null,null,null,null,null,null,null,null,null,null,null,null,"Travel expenses in the country"]

{"sheet":"Expert sheet (months or d (18)","index":18,"n_rows":135,"n_cols":39,"rows_kept":135,"cut":false,"hidden":true,"merged":[[55,0,55,1],[55,5,55,8],[55,9,55,11],[56,12,56,14],[49,3,49,4],[49,9,49,14],[50,3,50,4],[50,9,50,14],[51,3,51,4],[51,9,51,14],[54,5,54,8],[54,9,54,11],[46,0,46,16],[47,0,48,0],[47,1,47,2],[47,3,48,4],[47,5,48,5],[47,6,48,6],[47,7,48,7],[47,8,48,8],[47,9,48,14],[47,15,48,16],[40,11,40,15],[41,11,41,15],[42,11,42,15],[43,11,43,15],[44,3,44,4],[44,11,44,15],[36,3,36,4],[36,11,36,15],[36,16,36,17],[38,14,38,15],[39,11,39,15],[39,16,39,17],[33,11,33,15],[33,16,33,17],[34,11,34,15],[34,16,34,17],[35,11,35,15],[35,16,35,17],[30,11,30,15],[30,16,30,17],[31,11,31,15],[31,16,31,17],[32,11,32,15],[32,16,32,17],[26,11,26,17],[28,1,29,1],[28,3,28,5],[28,10,29,10],[28,11,29,15],[28,16,29,17],[21,8,21,14],[21,15,21,16],[23,8,23,14],[23,15,23,16],[24,8,24,14],[24,15,24,16],[22,8,22,14],[19,15,20,16],[15,9,15,13],[15,14,15,15],[16,9,16,13],[16,14,16,15],[19,8,20,14],[16,19,16,20],[18,0,18,16],[12,9,12,13],[12,14,12,15],[13,0,13,5],[13,9,13,13],[13,14,13,15],[14,9,14,13],[14,14,14,15],[6,13,6,14],[7,2,7,4],[8,2,8,4],[9,2,9,4],[11,9,11,13],[11,14,11,15],[5,15,7,15],[6,2,6,4],[6,7,6,8],[6,9,6,10],[6,11,6,12],[1,3,1,4],[1,7,1,9],[5,7,5,8],[5,9,5,12],[5,13,5,14],[6,0,6,1],[9,0,9,1],[21,0,21,2],[22,0,22,2],[28,7,29,7],[19,3,20,3],[19,4,20,4],[19,5,19,6],[19,7,20,7]]}
["Statement on personnel deployment"]
[null,"Contract number:",null,"Processing no./Cost centre:",null,null,null,"Accounting period:"]
[null,{"$f":"'Invoice overview'!A28","v":0},null,null,{"$f":"'Invoice overview'!C28","v":0},null,null,null,null,{"$f":"_xlfn.TEXTJOIN(\"   \",FALSE,IF('Invoice overview'!$G$28 > 0, TEXT('Invoice overview'!$G$28,\"TT.MM.JJJJ\"),\"\"),\"until\",IF('Invoice overview'!$I$28 > 0, TEXT('Invoice overview'!$I$28,\"TT.MM.JJJJ\"),\"\"))","v":"   until   "}]
[]
[]
["Personal data",null,null,null,null,null,"Periods of assignment","Total scheduled time",null,"Accounting period ",null,null,null,"Actual time ",null,"Remarks"]
["Family name, given name:",null,null,null,null,null,null,"Acc. to contract",null,"Actual period",null,"Period",null,"Total"]
["Function:",null,"Please select",null,null,null,null,"Months","Days","dd.mm.yyyy","dd.mm.yyyy","Months","Days","Months","Days"]
["Description of function:",null,null,null,null,null,"Germany"]
["Expert no. per price schedule",null,null,null,null,null,"Other Countries"]
[]
[null,null,null,null,null,null,"Details on leave and sickness",null,null,"Remarks",null,null,null,null,"Reserved for GIZ"]
["Link to assignment period calculation sheet for short-term expert pools:",null,null,null,null,null,"Total contractual entitlement (days)",null,{"$f":"IF( (SUM(H9:H10)) >= 4, (SUM(H9:H10)) * 4, 0)","v":0}]
["https://www.giz.de/de/downloads/giz2012-de-Hilfe_zur_Berechnung_der_Einsatzzeit_von_KZE-Pools.xls",null,null,null,null,null,"Remaining entitlement (days) *"]
[null,null,null,null,null,null,"Leave taken (days)*"]
[null,null,null,null,null,null,"Remaining leave (days)",null,{"$f":"IF(I14>0,I14-I15,I13-I15)","v":0}]
[null,null,null,null,null,null,"Sickness (days)"]
[]
["Personnel costs"]
[null,null,null,"Monthly rate\nacc. to contract","Daily rate\nacc. to contract","Quantity",null,"Amount ","Remarks",null,null,null,null,null,null,"Reserved for GIZ"]
["Remuneration item",null,null,null,null,"Months","Days **"]
["Fee (No. 5.4 General Conditions)",null,null,null,null,null,null,{"$f":"IF(NOT(D22=\"\"),D22*(F22+ROUND((G22/30),3)),IF(NOT(E22=\"\"),E22*G22,0))","v":0}]
["Fee (No. 5.4 General Conditions)",null,null,null,null,null,null,{"$f":"IF(NOT(D23=\"\"),D23*(F23+ROUND((G23/30),3)),IF(NOT(E23=\"\"),E23*G23,0))","v":0}]
["Per diem (No. 5.6. General Conditions)",null,null,null,null,null,null,{"$f":"IF(NOT(D24=\"\"),D24*(F24+ROUND((G24/30),3)),IF(NOT(E24=\"\"),E24*G24,0))","v":0}]
["Accommodation (No. 5.7 General Conditions)",null,null,null,null,null,null,{"$f":"IF(NOT(D25=\"\"),D25*(F25+ROUND((G25/30),3)),IF(NOT(E25=\"\"),E25*G25,0))","v":0}]
[]
["Travel expenses"]
["Air travel (No. 5.8 General Conditions)"]
[null,"Name of traveller",null,"Travel dates",null,null,null,"Amount\n (per voucher or lump sum)",null,null,"Amount ","Remarks",null,null,null,null,"Reserved for GIZ"]
["No.",null,"Type of flight","Destination","Outward flight\n(dd.mm.yyyy)","Homeward flight (dd.mm.yyyy)","Type of reimbursement",null,"Currency","Rate/\nquantity*"]
[1,null,"Please select",null,null,null,"Please select",null,null,null,{"$f":"H31*J31","v":0}]
[2,null,null,null,null,null,null,null,null,null,{"$f":"H32*J32","v":0}]
[3,null,null,null,null,null,null,null,null,null,0]
[4,null,null,null,null,null,null,null,null,null,0]
[5,null,null,null,null,null,null,null,null,null,0]
[6,null,null,null,null,null,null,null,null,null,0]
["TOTAL:",null,null,null,null,null,null,null,null,{"$f":"'Invoice overview'!F32","v":"EUR"},{"$f":"SUM(K31:K36)","v":0}]
[]
["Other travel expenses (No. 5.9 General Conditions)"]
["No.","Country of travel","Nature of travel expenses","Start\n(dd.mm.yyyy)","End\n(dd.mm.yyyy)","Reason for travel","Type of reimbursement","Amount\n (per voucher or lump sum)","Currency","Rate/\nquantity*","Amount ","Remarks",null,null,null,null,"Reserved for GIZ"]
[1,null,"Please select",null,null,null,"Please select",null,null,null,{"$f":"H41*J41","v":0}]
[2,null,null,null,null,null,null,null,null,null,{"$f":"H42*J42","v":0}]
[3,null,null,null,null,null,null,null,null,null,0]
[4,null,null,null,null,null,null,null,null,null,0]
["TOTAL:",null,null,null,null,null,null,null,null,{"$f":"'Invoice overview'!F32","v":"EUR"},{"$f":"SUM(K41:K44)","v":0}]
[]
["Other travel expenses (No. 5.9 General Conditions) MONTHLY LUMP SUM"]
["No.","Accounting period",null,"Nature of travel expenses",null,"Type of reimbursement","Monthly rate\nacc. to contract","Daily rate\nacc. to contract","Amount","Remarks",null,null,null,null,null,"Reserved for GIZ"]
[null,"Months","Days**"]
[1,null,null,"Please select",null,"Lump sum/Month or day",null,null,{"$f":"IF(NOT(G50=\"\"),G50*(B50+ROUND((C50/30),3)),IF(NOT(H50=\"\"),H50*C50,0))","v":0}]
[2,null,null,null,null,"Lump sum/Month or day",null,null,{"$f":"IF(NOT(G51=\"\"),G51*(B51+ROUND((C51/30),3)),IF(NOT(H51=\"\"),H51*C51,0))","v":0}]
["Total:",null,null,null,null,null,null,{"$f":"'Invoice overview'!F32","v":"EUR"},{"$f":"SUM(I50:I51)","v":0}]
[]
["Relocation goods (No. 5.10. General Conditions)"]
["Lump sum (in contract currency)",null,"Quantity","Rate","Amount","Remarks",null,null,null,"Reserved for GIZ"]
[null,null,1,null,{"$f":"D56*C56","v":0}]
[null,null,null,null,null,null,null,null,null,null,null,null,"Total for personnel deployment ",null,null,{"$f":"H22+H23+H24+H25+K37+K45+I52+E56","v":0}]
[]
[]
[]
[]
[]
[]
[]
[]
[]
[]
[]
[]
[]
[]
[]
[]
[]
[]
[]
[]
[]
[]
[]
[]
[]
[]
[]
[]
[]
[]
[]
[]
[]
[]
[]
[]
[]
[]
[]
[]
[]
[]
[]
[]
[]
[]
[]
[]
[]
[]
[]
[]
[]
[]
[]
[null,null,null,null,null,null,null,null,null,null,null,null,null,null,null,null,null,null,null,null,null,null,null,null,null,null,null,null,null,null,null,null,null,null,null,null,null,null,"Please select"]
[null,null,null,null,null,null,null,null,null,null,null,null,null,null,null,null,null,null,null,null,null,null,null,null,null,null,null,null,null,null,null,null,null,null,null,null,null,null,"Expert (outward and homeward journeys)"]
[null,null,null,null,null,null,null,null,null,null,null,null,null,null,null,null,null,null,null,null,null,null,null,null,null,null,null,null,null,null,null,null,null,null,null,null,null,null,"Dependants (outward and homeward journeys) "]
[null,null,null,null,null,null,null,null,null,null,null,null,null,null,null,null,null,null,null,null,null,null,null,null,null,null,null,null,null,null,null,null,null,null,null,null,null,null,"Vacation flights"]
[null,null,null,null,null,null,null,null,null,null,null,null,null,null,null,null,null,null,null,null,null,null,null,null,null,null,null,null,null,null,null,null,null,null,null,null,null,null,"Regional and national flights"]
[null,null,null,null,null,null,null,null,null,null,null,null,null,null,null,null,null,null,null,null,null,null,null,null,null,null,null,null,null,null,null,null,null,null,null,null,null,null,"Other flights"]
[]
[null,null,null,null,null,null,null,null,null,null,null,null,null,null,null,null,null,null,null,null,null,null,null,null,null,null,null,null,null,null,null,null,null,null,null,null,null,null,"Please select"]
[null,null,null,null,null,null,null,null,null,null,null,null,null,null,null,null,null,null,null,null,null,null,null,null,null,null,null,null,null,null,null,null,null,null,null,null,null,null,"Lump sum"]
[null,null,null,null,null,null,null,null,null,null,null,null,null,null,null,null,null,null,null,null,null,null,null,null,null,null,null,null,null,null,null,null,null,null,null,null,null,null,"Against evidence"]
[]
[null,null,null,null,null,null,null,null,null,null,null,null,null,null,null,null,null,null,null,null,null,null,null,null,null,null,null,null,null,null,null,null,null,null,null,null,null,null,"Please select"]
[null,null,null,null,null,null,null,null,null,null,null,null,null,null,null,null,null,null,null,null,null,null,null,null,null,null,null,null,null,null,null,null,null,null,null,null,null,null,"Long-term expert, int."]
[null,null,null,null,null,null,null,null,null,null,null,null,null,null,null,null,null,null,null,null,null,null,null,null,null,null,null,null,null,null,null,null,null,null,null,null,null,null,"Long-term expert, reg."]
[null,null,null,null,null,null,null,null,null,null,null,null,null,null,null,null,null,null,null,null,null,null,null,null,null,null,null,null,null,null,null,null,null,null,null,null,null,null,"Long-term expert, nat."]
[null,null,null,null,null,null,null,null,null,null,null,null,null,null,null,null,null,null,null,null,null,null,null,null,null,null,null,null,null,null,null,null,null,null,null,null,null,null,"Short-term expert, int."]
[null,null,null,null,null,null,null,null,null,null,null,null,null,null,null,null,null,null,null,null,null,null,null,null,null,null,null,null,null,null,null,null,null,null,null,null,null,null,"Short-term expert, reg."]
[null,null,null,null,null,null,null,null,null,null,null,null,null,null,null,null,null,null,null,null,null,null,null,null,null,null,null,null,null,null,null,null,null,null,null,null,null,null,"Short-term expert, nat."]
[null,null,null,null,null,null,null,null,null,null,null,null,null,null,null,null,null,null,null,null,null,null,null,null,null,null,null,null,null,null,null,null,null,null,null,null,null,null,"Other (please define)"]
[]
[null,null,null,null,null,null,null,null,null,null,null,null,null,null,null,null,null,null,null,null,null,null,null,null,null,null,null,null,null,null,null,null,null,null,null,null,null,null,"Please select"]
[null,null,null,null,null,null,null,null,null,null,null,null,null,null,null,null,null,null,null,null,null,null,null,null,null,null,null,null,null,null,null,null,null,null,null,null,null,null,"Travel expenses outside the country"]
[null,null,null,null,null,null,null,null,null,null,null,null,null,null,null,null,null,null,null,null,null,null,null,null,null,null,null,null,null,null,null,null,null,null,null,null,null,null,"Travel expenses in the country"]

{"sheet":"Expert sheet (months or d (19)","index":19,"n_rows":135,"n_cols":39,"rows_kept":135,"cut":false,"hidden":true,"merged":[[55,0,55,1],[55,5,55,8],[55,9,55,11],[56,12,56,14],[49,3,49,4],[49,9,49,14],[50,3,50,4],[50,9,50,14],[51,3,51,4],[51,9,51,14],[54,5,54,8],[54,9,54,11],[46,0,46,16],[47,0,48,0],[47,1,47,2],[47,3,48,4],[47,5,48,5],[47,6,48,6],[47,7,48,7],[47,8,48,8],[47,9,48,14],[47,15,48,16],[40,11,40,15],[41,11,41,15],[42,11,42,15],[43,11,43,15],[44,3,44,4],[44,11,44,15],[36,3,36,4],[36,11,36,15],[36,16,36,17],[38,14,38,15],[39,11,39,15],[39,16,39,17],[33,11,33,15],[33,16,33,17],[34,11,34,15],[34,16,34,17],[35,11,35,15],[35,16,35,17],[30,11,30,15],[30,16,30,17],[31,11,31,15],[31,16,31,17],[32,11,32,15],[32,16,32,17],[26,11,26,17],[28,1,29,1],[28,3,28,5],[28,10,29,10],[28,11,29,15],[28,16,29,17],[21,8,21,14],[21,15,21,16],[23,8,23,14],[23,15,23,16],[24,8,24,14],[24,15,24,16],[22,8,22,14],[19,15,20,16],[15,9,15,13],[15,14,15,15],[16,9,16,13],[16,14,16,15],[19,8,20,14],[16,19,16,20],[18,0,18,16],[12,9,12,13],[12,14,12,15],[13,0,13,5],[13,9,13,13],[13,14,13,15],[14,9,14,13],[14,14,14,15],[6,13,6,14],[7,2,7,4],[8,2,8,4],[9,2,9,4],[11,9,11,13],[11,14,11,15],[5,15,7,15],[6,2,6,4],[6,7,6,8],[6,9,6,10],[6,11,6,12],[1,3,1,4],[1,7,1,9],[5,7,5,8],[5,9,5,12],[5,13,5,14],[6,0,6,1],[9,0,9,1],[21,0,21,2],[22,0,22,2],[28,7,29,7],[19,3,20,3],[19,4,20,4],[19,5,19,6],[19,7,20,7]]}
["Statement on personnel deployment"]
[null,"Contract number:",null,"Processing no./Cost centre:",null,null,null,"Accounting period:"]
[null,{"$f":"'Invoice overview'!A28","v":0},null,null,{"$f":"'Invoice overview'!C28","v":0},null,null,null,null,{"$f":"_xlfn.TEXTJOIN(\"   \",FALSE,IF('Invoice overview'!$G$28 > 0, TEXT('Invoice overview'!$G$28,\"TT.MM.JJJJ\"),\"\"),\"until\",IF('Invoice overview'!$I$28 > 0, TEXT('Invoice overview'!$I$28,\"TT.MM.JJJJ\"),\"\"))","v":"   until   "}]
[]
[]
["Personal data",null,null,null,null,null,"Periods of assignment","Total scheduled time",null,"Accounting period ",null,null,null,"Actual time ",null,"Remarks"]
["Family name, given name:",null,null,null,null,null,null,"Acc. to contract",null,"Actual period",null,"Period",null,"Total"]
["Function:",null,"Please select",null,null,null,null,"Months","Days","dd.mm.yyyy","dd.mm.yyyy","Months","Days","Months","Days"]
["Description of function:",null,null,null,null,null,"Germany"]
["Expert no. per price schedule",null,null,null,null,null,"Other Countries"]
[]
[null,null,null,null,null,null,"Details on leave and sickness",null,null,"Remarks",null,null,null,null,"Reserved for GIZ"]
["Link to assignment period calculation sheet for short-term expert pools:",null,null,null,null,null,"Total contractual entitlement (days)",null,{"$f":"IF( (SUM(H9:H10)) >= 4, (SUM(H9:H10)) * 4, 0)","v":0}]
["https://www.giz.de/de/downloads/giz2012-de-Hilfe_zur_Berechnung_der_Einsatzzeit_von_KZE-Pools.xls",null,null,null,null,null,"Remaining entitlement (days) *"]
[null,null,null,null,null,null,"Leave taken (days)*"]
[null,null,null,null,null,null,"Remaining leave (days)",null,{"$f":"IF(I14>0,I14-I15,I13-I15)","v":0}]
[null,null,null,null,null,null,"Sickness (days)"]
[]
["Personnel costs"]
[null,null,null,"Monthly rate\nacc. to contract","Daily rate\nacc. to contract","Quantity",null,"Amount ","Remarks",null,null,null,null,null,null,"Reserved for GIZ"]
["Remuneration item",null,null,null,null,"Months","Days **"]
["Fee (No. 5.4 General Conditions)",null,null,null,null,null,null,{"$f":"IF(NOT(D22=\"\"),D22*(F22+ROUND((G22/30),3)),IF(NOT(E22=\"\"),E22*G22,0))","v":0}]
["Fee (No. 5.4 General Conditions)",null,null,null,null,null,null,{"$f":"IF(NOT(D23=\"\"),D23*(F23+ROUND((G23/30),3)),IF(NOT(E23=\"\"),E23*G23,0))","v":0}]
["Per diem (No. 5.6. General Conditions)",null,null,null,null,null,null,{"$f":"IF(NOT(D24=\"\"),D24*(F24+ROUND((G24/30),3)),IF(NOT(E24=\"\"),E24*G24,0))","v":0}]
["Accommodation (No. 5.7 General Conditions)",null,null,null,null,null,null,{"$f":"IF(NOT(D25=\"\"),D25*(F25+ROUND((G25/30),3)),IF(NOT(E25=\"\"),E25*G25,0))","v":0}]
[]
["Travel expenses"]
["Air travel (No. 5.8 General Conditions)"]
[null,"Name of traveller",null,"Travel dates",null,null,null,"Amount\n (per voucher or lump sum)",null,null,"Amount ","Remarks",null,null,null,null,"Reserved for GIZ"]
["No.",null,"Type of flight","Destination","Outward flight\n(dd.mm.yyyy)","Homeward flight (dd.mm.yyyy)","Type of reimbursement",null,"Currency","Rate/\nquantity*"]
[1,null,"Please select",null,null,null,"Please select",null,null,null,{"$f":"H31*J31","v":0}]
[2,null,null,null,null,null,null,null,null,null,{"$f":"H32*J32","v":0}]
[3,null,null,null,null,null,null,null,null,null,0]
[4,null,null,null,null,null,null,null,null,null,0]
[5,null,null,null,null,null,null,null,null,null,0]
[6,null,null,null,null,null,null,null,null,null,0]
["TOTAL:",null,null,null,null,null,null,null,null,{"$f":"'Invoice overview'!F32","v":"EUR"},{"$f":"SUM(K31:K36)","v":0}]
[]
["Other travel expenses (No. 5.9 General Conditions)"]
["No.","Country of travel","Nature of travel expenses","Start\n(dd.mm.yyyy)","End\n(dd.mm.yyyy)","Reason for travel","Type of reimbursement","Amount\n (per voucher or lump sum)","Currency","Rate/\nquantity*","Amount ","Remarks",null,null,null,null,"Reserved for GIZ"]
[1,null,"Please select",null,null,null,"Please select",null,null,null,{"$f":"H41*J41","v":0}]
[2,null,null,null,null,null,null,null,null,null,{"$f":"H42*J42","v":0}]
[3,null,null,null,null,null,null,null,null,null,0]
[4,null,null,null,null,null,null,null,null,null,0]
["TOTAL:",null,null,null,null,null,null,null,null,{"$f":"'Invoice overview'!F32","v":"EUR"},{"$f":"SUM(K41:K44)","v":0}]
[]
["Other travel expenses (No. 5.9 General Conditions) MONTHLY LUMP SUM"]
["No.","Accounting period",null,"Nature of travel expenses",null,"Type of reimbursement","Monthly rate\nacc. to contract","Daily rate\nacc. to contract","Amount","Remarks",null,null,null,null,null,"Reserved for GIZ"]
[null,"Months","Days**"]
[1,null,null,"Please select",null,"Lump sum/Month or day",null,null,{"$f":"IF(NOT(G50=\"\"),G50*(B50+ROUND((C50/30),3)),IF(NOT(H50=\"\"),H50*C50,0))","v":0}]
[2,null,null,null,null,"Lump sum/Month or day",null,null,{"$f":"IF(NOT(G51=\"\"),G51*(B51+ROUND((C51/30),3)),IF(NOT(H51=\"\"),H51*C51,0))","v":0}]
["Total:",null,null,null,null,null,null,{"$f":"'Invoice overview'!F32","v":"EUR"},{"$f":"SUM(I50:I51)","v":0}]
[]
["Relocation goods (No. 5.10. General Conditions)"]
["Lump sum (in contract currency)",null,"Quantity","Rate","Amount","Remarks",null,null,null,"Reserved for GIZ"]
[null,null,1,null,{"$f":"D56*C56","v":0}]
[null,null,null,null,null,null,null,null,null,null,null,null,"Total for personnel deployment ",null,null,{"$f":"H22+H23+H24+H25+K37+K45+I52+E56","v":0}]
[]
[]
[]
[]
[]
[]
[]
[]
[]
[]
[]
[]
[]
[]
[]
[]
[]
[]
[]
[]
[]
[]
[]
[]
[]
[]
[]
[]
[]
[]
[]
[]
[]
[]
[]
[]
[]
[]
[]
[]
[]
[]
[]
[]
[]
[]
[]
[]
[]
[]
[]
[]
[]
[]
[]
[null,null,null,null,null,null,null,null,null,null,null,null,null,null,null,null,null,null,null,null,null,null,null,null,null,null,null,null,null,null,null,null,null,null,null,null,null,null,"Please select"]
[null,null,null,null,null,null,null,null,null,null,null,null,null,null,null,null,null,null,null,null,null,null,null,null,null,null,null,null,null,null,null,null,null,null,null,null,null,null,"Expert (outward and homeward journeys)"]
[null,null,null,null,null,null,null,null,null,null,null,null,null,null,null,null,null,null,null,null,null,null,null,null,null,null,null,null,null,null,null,null,null,null,null,null,null,null,"Dependants (outward and homeward journeys) "]
[null,null,null,null,null,null,null,null,null,null,null,null,null,null,null,null,null,null,null,null,null,null,null,null,null,null,null,null,null,null,null,null,null,null,null,null,null,null,"Vacation flights"]
[null,null,null,null,null,null,null,null,null,null,null,null,null,null,null,null,null,null,null,null,null,null,null,null,null,null,null,null,null,null,null,null,null,null,null,null,null,null,"Regional and national flights"]
[null,null,null,null,null,null,null,null,null,null,null,null,null,null,null,null,null,null,null,null,null,null,null,null,null,null,null,null,null,null,null,null,null,null,null,null,null,null,"Other flights"]
[]
[null,null,null,null,null,null,null,null,null,null,null,null,null,null,null,null,null,null,null,null,null,null,null,null,null,null,null,null,null,null,null,null,null,null,null,null,null,null,"Please select"]
[null,null,null,null,null,null,null,null,null,null,null,null,null,null,null,null,null,null,null,null,null,null,null,null,null,null,null,null,null,null,null,null,null,null,null,null,null,null,"Lump sum"]
[null,null,null,null,null,null,null,null,null,null,null,null,null,null,null,null,null,null,null,null,null,null,null,null,null,null,null,null,null,null,null,null,null,null,null,null,null,null,"Against evidence"]
[]
[null,null,null,null,null,null,null,null,null,null,null,null,null,null,null,null,null,null,null,null,null,null,null,null,null,null,null,null,null,null,null,null,null,null,null,null,null,null,"Please select"]
[null,null,null,null,null,null,null,null,null,null,null,null,null,null,null,null,null,null,null,null,null,null,null,null,null,null,null,null,null,null,null,null,null,null,null,null,null,null,"Long-term expert, int."]
[null,null,null,null,null,null,null,null,null,null,null,null,null,null,null,null,null,null,null,null,null,null,null,null,null,null,null,null,null,null,null,null,null,null,null,null,null,null,"Long-term expert, reg."]
[null,null,null,null,null,null,null,null,null,null,null,null,null,null,null,null,null,null,null,null,null,null,null,null,null,null,null,null,null,null,null,null,null,null,null,null,null,null,"Long-term expert, nat."]
[null,null,null,null,null,null,null,null,null,null,null,null,null,null,null,null,null,null,null,null,null,null,null,null,null,null,null,null,null,null,null,null,null,null,null,null,null,null,"Short-term expert, int."]
[null,null,null,null,null,null,null,null,null,null,null,null,null,null,null,null,null,null,null,null,null,null,null,null,null,null,null,null,null,null,null,null,null,null,null,null,null,null,"Short-term expert, reg."]
[null,null,null,null,null,null,null,null,null,null,null,null,null,null,null,null,null,null,null,null,null,null,null,null,null,null,null,null,null,null,null,null,null,null,null,null,null,null,"Short-term expert, nat."]
[null,null,null,null,null,null,null,null,null,null,null,null,null,null,null,null,null,null,null,null,null,null,null,null,null,null,null,null,null,null,null,null,null,null,null,null,null,null,"Other (please define)"]
[]
[null,null,null,null,null,null,null,null,null,null,null,null,null,null,null,null,null,null,null,null,null,null,null,null,null,null,null,null,null,null,null,null,null,null,null,null,null,null,"Please select"]
[null,null,null,null,null,null,null,null,null,null,null,null,null,null,null,null,null,null,null,null,null,null,null,null,null,null,null,null,null,null,null,null,null,null,null,null,null,null,"Travel expenses outside the country"]
[null,null,null,null,null,null,null,null,null,null,null,null,null,null,null,null,null,null,null,null,null,null,null,null,null,null,null,null,null,null,null,null,null,null,null,null,null,null,"Travel expenses in the country"]

{"sheet":"Expert sheet (months or d (20)","index":20,"n_rows":135,"n_cols":39,"rows_kept":135,"cut":false,"hidden":true,"merged":[[55,0,55,1],[55,5,55,8],[55,9,55,11],[56,12,56,14],[49,3,49,4],[49,9,49,14],[50,3,50,4],[50,9,50,14],[51,3,51,4],[51,9,51,14],[54,5,54,8],[54,9,54,11],[46,0,46,16],[47,0,48,0],[47,1,47,2],[47,3,48,4],[47,5,48,5],[47,6,48,6],[47,7,48,7],[47,8,48,8],[47,9,48,14],[47,15,48,16],[40,11,40,15],[41,11,41,15],[42,11,42,15],[43,11,43,15],[44,3,44,4],[44,11,44,15],[36,3,36,4],[36,11,36,15],[36,16,36,17],[38,14,38,15],[39,11,39,15],[39,16,39,17],[33,11,33,15],[33,16,33,17],[34,11,34,15],[34,16,34,17],[35,11,35,15],[35,16,35,17],[30,11,30,15],[30,16,30,17],[31,11,31,15],[31,16,31,17],[32,11,32,15],[32,16,32,17],[26,11,26,17],[28,1,29,1],[28,3,28,5],[28,10,29,10],[28,11,29,15],[28,16,29,17],[21,8,21,14],[21,15,21,16],[23,8,23,14],[23,15,23,16],[24,8,24,14],[24,15,24,16],[22,8,22,14],[19,15,20,16],[15,9,15,13],[15,14,15,15],[16,9,16,13],[16,14,16,15],[19,8,20,14],[16,19,16,20],[18,0,18,16],[12,9,12,13],[12,14,12,15],[13,0,13,5],[13,9,13,13],[13,14,13,15],[14,9,14,13],[14,14,14,15],[6,13,6,14],[7,2,7,4],[8,2,8,4],[9,2,9,4],[11,9,11,13],[11,14,11,15],[5,15,7,15],[6,2,6,4],[6,7,6,8],[6,9,6,10],[6,11,6,12],[1,3,1,4],[1,7,1,9],[5,7,5,8],[5,9,5,12],[5,13,5,14],[6,0,6,1],[9,0,9,1],[21,0,21,2],[22,0,22,2],[28,7,29,7],[19,3,20,3],[19,4,20,4],[19,5,19,6],[19,7,20,7]]}
["Statement on personnel deployment"]
[null,"Contract number:",null,"Processing no./Cost centre:",null,null,null,"Accounting period:"]
[null,{"$f":"'Invoice overview'!A28","v":0},null,null,{"$f":"'Invoice overview'!C28","v":0},null,null,null,null,{"$f":"_xlfn.TEXTJOIN(\"   \",FALSE,IF('Invoice overview'!$G$28 > 0, TEXT('Invoice overview'!$G$28,\"TT.MM.JJJJ\"),\"\"),\"until\",IF('Invoice overview'!$I$28 > 0, TEXT('Invoice overview'!$I$28,\"TT.MM.JJJJ\"),\"\"))","v":"   until   "}]
[]
[]
["Personal data",null,null,null,null,null,"Periods of assignment","Total scheduled time",null,"Accounting period ",null,null,null,"Actual time ",null,"Remarks"]
["Family name, given name:",null,null,null,null,null,null,"Acc. to contract",null,"Actual period",null,"Period",null,"Total"]
["Function:",null,"Please select",null,null,null,null,"Months","Days","dd.mm.yyyy","dd.mm.yyyy","Months","Days","Months","Days"]
["Description of function:",null,null,null,null,null,"Germany"]
["Expert no. per price schedule",null,null,null,null,null,"Other Countries"]
[]
[null,null,null,null,null,null,"Details on leave and sickness",null,null,"Remarks",null,null,null,null,"Reserved for GIZ"]
["Link to assignment period calculation sheet for short-term expert pools:",null,null,null,null,null,"Total contractual entitlement (days)",null,{"$f":"IF( (SUM(H9:H10)) >= 4, (SUM(H9:H10)) * 4, 0)","v":0}]
["https://www.giz.de/de/downloads/giz2012-de-Hilfe_zur_Berechnung_der_Einsatzzeit_von_KZE-Pools.xls",null,null,null,null,null,"Remaining entitlement (days) *"]
[null,null,null,null,null,null,"Leave taken (days)*"]
[null,null,null,null,null,null,"Remaining leave (days)",null,{"$f":"IF(I14>0,I14-I15,I13-I15)","v":0}]
[null,null,null,null,null,null,"Sickness (days)"]
[]
["Personnel costs"]
[null,null,null,"Monthly rate\nacc. to contract","Daily rate\nacc. to contract","Quantity",null,"Amount ","Remarks",null,null,null,null,null,null,"Reserved for GIZ"]
["Remuneration item",null,null,null,null,"Months","Days **"]
["Fee (No. 5.4 General Conditions)",null,null,null,null,null,null,{"$f":"IF(NOT(D22=\"\"),D22*(F22+ROUND((G22/30),3)),IF(NOT(E22=\"\"),E22*G22,0))","v":0}]
["Fee (No. 5.4 General Conditions)",null,null,null,null,null,null,{"$f":"IF(NOT(D23=\"\"),D23*(F23+ROUND((G23/30),3)),IF(NOT(E23=\"\"),E23*G23,0))","v":0}]
["Per diem (No. 5.6. General Conditions)",null,null,null,null,null,null,{"$f":"IF(NOT(D24=\"\"),D24*(F24+ROUND((G24/30),3)),IF(NOT(E24=\"\"),E24*G24,0))","v":0}]
["Accommodation (No. 5.7 General Conditions)",null,null,null,null,null,null,{"$f":"IF(NOT(D25=\"\"),D25*(F25+ROUND((G25/30),3)),IF(NOT(E25=\"\"),E25*G25,0))","v":0}]
[]
["Travel expenses"]
["Air travel (No. 5.8 General Conditions)"]
[null,"Name of traveller",null,"Travel dates",null,null,null,"Amount\n (per voucher or lump sum)",null,null,"Amount ","Remarks",null,null,null,null,"Reserved for GIZ"]
["No.",null,"Type of flight","Destination","Outward flight\n(dd.mm.yyyy)","Homeward flight (dd.mm.yyyy)","Type of reimbursement",null,"Currency","Rate/\nquantity*"]
[1,null,"Please select",null,null,null,"Please select",null,null,null,{"$f":"H31*J31","v":0}]
[2,null,null,null,null,null,null,null,null,null,{"$f":"H32*J32","v":0}]
[3,null,null,null,null,null,null,null,null,null,0]
[4,null,null,null,null,null,null,null,null,null,0]
[5,null,null,null,null,null,null,null,null,null,0]
[6,null,null,null,null,null,null,null,null,null,0]
["TOTAL:",null,null,null,null,null,null,null,null,{"$f":"'Invoice overview'!F32","v":"EUR"},{"$f":"SUM(K31:K36)","v":0}]
[]
["Other travel expenses (No. 5.9 General Conditions)"]
["No.","Country of travel","Nature of travel expenses","Start\n(dd.mm.yyyy)","End\n(dd.mm.yyyy)","Reason for travel","Type of reimbursement","Amount\n (per voucher or lump sum)","Currency","Rate/\nquantity*","Amount ","Remarks",null,null,null,null,"Reserved for GIZ"]
[1,null,"Please select",null,null,null,"Please select",null,null,null,{"$f":"H41*J41","v":0}]
[2,null,null,null,null,null,null,null,null,null,{"$f":"H42*J42","v":0}]
[3,null,null,null,null,null,null,null,null,null,0]
[4,null,null,null,null,null,null,null,null,null,0]
["TOTAL:",null,null,null,null,null,null,null,null,{"$f":"'Invoice overview'!F32","v":"EUR"},{"$f":"SUM(K41:K44)","v":0}]
[]
["Other travel expenses (No. 5.9 General Conditions) MONTHLY LUMP SUM"]
["No.","Accounting period",null,"Nature of travel expenses",null,"Type of reimbursement","Monthly rate\nacc. to contract","Daily rate\nacc. to contract","Amount","Remarks",null,null,null,null,null,"Reserved for GIZ"]
[null,"Months","Days**"]
[1,null,null,"Please select",null,"Lump sum/Month or day",null,null,{"$f":"IF(NOT(G50=\"\"),G50*(B50+ROUND((C50/30),3)),IF(NOT(H50=\"\"),H50*C50,0))","v":0}]
[2,null,null,null,null,"Lump sum/Month or day",null,null,{"$f":"IF(NOT(G51=\"\"),G51*(B51+ROUND((C51/30),3)),IF(NOT(H51=\"\"),H51*C51,0))","v":0}]
["Total:",null,null,null,null,null,null,{"$f":"'Invoice overview'!F32","v":"EUR"},{"$f":"SUM(I50:I51)","v":0}]
[]
["Relocation goods (No. 5.10. General Conditions)"]
["Lump sum (in contract currency)",null,"Quantity","Rate","Amount","Remarks",null,null,null,"Reserved for GIZ"]
[null,null,1,null,{"$f":"D56*C56","v":0}]
[null,null,null,null,null,null,null,null,null,null,null,null,"Total for personnel deployment ",null,null,{"$f":"H22+H23+H24+H25+K37+K45+I52+E56","v":0}]
[]
[]
[]
[]
[]
[]
[]
[]
[]
[]
[]
[]
[]
[]
[]
[]
[]
[]
[]
[]
[]
[]
[]
[]
[]
[]
[]
[]
[]
[]
[]
[]
[]
[]
[]
[]
[]
[]
[]
[]
[]
[]
[]
[]
[]
[]
[]
[]
[]
[]
[]
[]
[]
[]
[]
[null,null,null,null,null,null,null,null,null,null,null,null,null,null,null,null,null,null,null,null,null,null,null,null,null,null,null,null,null,null,null,null,null,null,null,null,null,null,"Please select"]
[null,null,null,null,null,null,null,null,null,null,null,null,null,null,null,null,null,null,null,null,null,null,null,null,null,null,null,null,null,null,null,null,null,null,null,null,null,null,"Expert (outward and homeward journeys)"]
[null,null,null,null,null,null,null,null,null,null,null,null,null,null,null,null,null,null,null,null,null,null,null,null,null,null,null,null,null,null,null,null,null,null,null,null,null,null,"Dependants (outward and homeward journeys) "]
[null,null,null,null,null,null,null,null,null,null,null,null,null,null,null,null,null,null,null,null,null,null,null,null,null,null,null,null,null,null,null,null,null,null,null,null,null,null,"Vacation flights"]
[null,null,null,null,null,null,null,null,null,null,null,null,null,null,null,null,null,null,null,null,null,null,null,null,null,null,null,null,null,null,null,null,null,null,null,null,null,null,"Regional and national flights"]
[null,null,null,null,null,null,null,null,null,null,null,null,null,null,null,null,null,null,null,null,null,null,null,null,null,null,null,null,null,null,null,null,null,null,null,null,null,null,"Other flights"]
[]
[null,null,null,null,null,null,null,null,null,null,null,null,null,null,null,null,null,null,null,null,null,null,null,null,null,null,null,null,null,null,null,null,null,null,null,null,null,null,"Please select"]
[null,null,null,null,null,null,null,null,null,null,null,null,null,null,null,null,null,null,null,null,null,null,null,null,null,null,null,null,null,null,null,null,null,null,null,null,null,null,"Lump sum"]
[null,null,null,null,null,null,null,null,null,null,null,null,null,null,null,null,null,null,null,null,null,null,null,null,null,null,null,null,null,null,null,null,null,null,null,null,null,null,"Against evidence"]
[]
[null,null,null,null,null,null,null,null,null,null,null,null,null,null,null,null,null,null,null,null,null,null,null,null,null,null,null,null,null,null,null,null,null,null,null,null,null,null,"Please select"]
[null,null,null,null,null,null,null,null,null,null,null,null,null,null,null,null,null,null,null,null,null,null,null,null,null,null,null,null,null,null,null,null,null,null,null,null,null,null,"Long-term expert, int."]
[null,null,null,null,null,null,null,null,null,null,null,null,null,null,null,null,null,null,null,null,null,null,null,null,null,null,null,null,null,null,null,null,null,null,null,null,null,null,"Long-term expert, reg."]
[null,null,null,null,null,null,null,null,null,null,null,null,null,null,null,null,null,null,null,null,null,null,null,null,null,null,null,null,null,null,null,null,null,null,null,null,null,null,"Long-term expert, nat."]
[null,null,null,null,null,null,null,null,null,null,null,null,null,null,null,null,null,null,null,null,null,null,null,null,null,null,null,null,null,null,null,null,null,null,null,null,null,null,"Short-term expert, int."]
[null,null,null,null,null,null,null,null,null,null,null,null,null,null,null,null,null,null,null,null,null,null,null,null,null,null,null,null,null,null,null,null,null,null,null,null,null,null,"Short-term expert, reg."]
[null,null,null,null,null,null,null,null,null,null,null,null,null,null,null,null,null,null,null,null,null,null,null,null,null,null,null,null,null,null,null,null,null,null,null,null,null,null,"Short-term expert, nat."]
[null,null,null,null,null,null,null,null,null,null,null,null,null,null,null,null,null,null,null,null,null,null,null,null,null,null,null,null,null,null,null,null,null,null,null,null,null,null,"Other (please define)"]
[]
[null,null,null,null,null,null,null,null,null,null,null,null,null,null,null,null,null,null,null,null,null,null,null,null,null,null,null,null,null,null,null,null,null,null,null,null,null,null,"Please select"]
[null,null,null,null,null,null,null,null,null,null,null,null,null,null,null,null,null,null,null,null,null,null,null,null,null,null,null,null,null,null,null,null,null,null,null,null,null,null,"Travel expenses outside the country"]
[null,null,null,null,null,null,null,null,null,null,null,null,null,null,null,null,null,null,null,null,null,null,null,null,null,null,null,null,null,null,null,null,null,null,null,null,null,null,"Travel expenses in the country"]

{"sheet":"Expert sheet (months or d (21)","index":21,"n_rows":135,"n_cols":39,"rows_kept":135,"cut":false,"hidden":true,"merged":[[55,0,55,1],[55,5,55,8],[55,9,55,11],[56,12,56,14],[49,3,49,4],[49,9,49,14],[50,3,50,4],[50,9,50,14],[51,3,51,4],[51,9,51,14],[54,5,54,8],[54,9,54,11],[46,0,46,16],[47,0,48,0],[47,1,47,2],[47,3,48,4],[47,5,48,5],[47,6,48,6],[47,7,48,7],[47,8,48,8],[47,9,48,14],[47,15,48,16],[40,11,40,15],[41,11,41,15],[42,11,42,15],[43,11,43,15],[44,3,44,4],[44,11,44,15],[36,3,36,4],[36,11,36,15],[36,16,36,17],[38,14,38,15],[39,11,39,15],[39,16,39,17],[33,11,33,15],[33,16,33,17],[34,11,34,15],[34,16,34,17],[35,11,35,15],[35,16,35,17],[30,11,30,15],[30,16,30,17],[31,11,31,15],[31,16,31,17],[32,11,32,15],[32,16,32,17],[26,11,26,17],[28,1,29,1],[28,3,28,5],[28,10,29,10],[28,11,29,15],[28,16,29,17],[21,8,21,14],[21,15,21,16],[23,8,23,14],[23,15,23,16],[24,8,24,14],[24,15,24,16],[22,8,22,14],[19,15,20,16],[15,9,15,13],[15,14,15,15],[16,9,16,13],[16,14,16,15],[19,8,20,14],[16,19,16,20],[18,0,18,16],[12,9,12,13],[12,14,12,15],[13,0,13,5],[13,9,13,13],[13,14,13,15],[14,9,14,13],[14,14,14,15],[6,13,6,14],[7,2,7,4],[8,2,8,4],[9,2,9,4],[11,9,11,13],[11,14,11,15],[5,15,7,15],[6,2,6,4],[6,7,6,8],[6,9,6,10],[6,11,6,12],[1,3,1,4],[1,7,1,9],[5,7,5,8],[5,9,5,12],[5,13,5,14],[6,0,6,1],[9,0,9,1],[21,0,21,2],[22,0,22,2],[28,7,29,7],[19,3,20,3],[19,4,20,4],[19,5,19,6],[19,7,20,7]]}
["Statement on personnel deployment"]
[null,"Contract number:",null,"Processing no./Cost centre:",null,null,null,"Accounting period:"]
[null,{"$f":"'Invoice overview'!A28","v":0},null,null,{"$f":"'Invoice overview'!C28","v":0},null,null,null,null,{"$f":"_xlfn.TEXTJOIN(\"   \",FALSE,IF('Invoice overview'!$G$28 > 0, TEXT('Invoice overview'!$G$28,\"TT.MM.JJJJ\"),\"\"),\"until\",IF('Invoice overview'!$I$28 > 0, TEXT('Invoice overview'!$I$28,\"TT.MM.JJJJ\"),\"\"))","v":"   until   "}]
[]
[]
["Personal data",null,null,null,null,null,"Periods of assignment","Total scheduled time",null,"Accounting period ",null,null,null,"Actual time ",null,"Remarks"]
["Family name, given name:",null,null,null,null,null,null,"Acc. to contract",null,"Actual period",null,"Period",null,"Total"]
["Function:",null,"Please select",null,null,null,null,"Months","Days","dd.mm.yyyy","dd.mm.yyyy","Months","Days","Months","Days"]
["Description of function:",null,null,null,null,null,"Germany"]
["Expert no. per price schedule",null,null,null,null,null,"Other Countries"]
[]
[null,null,null,null,null,null,"Details on leave and sickness",null,null,"Remarks",null,null,null,null,"Reserved for GIZ"]
["Link to assignment period calculation sheet for short-term expert pools:",null,null,null,null,null,"Total contractual entitlement (days)",null,{"$f":"IF( (SUM(H9:H10)) >= 4, (SUM(H9:H10)) * 4, 0)","v":0}]
["https://www.giz.de/de/downloads/giz2012-de-Hilfe_zur_Berechnung_der_Einsatzzeit_von_KZE-Pools.xls",null,null,null,null,null,"Remaining entitlement (days) *"]
[null,null,null,null,null,null,"Leave taken (days)*"]
[null,null,null,null,null,null,"Remaining leave (days)",null,{"$f":"IF(I14>0,I14-I15,I13-I15)","v":0}]
[null,null,null,null,null,null,"Sickness (days)"]
[]
["Personnel costs"]
[null,null,null,"Monthly rate\nacc. to contract","Daily rate\nacc. to contract","Quantity",null,"Amount ","Remarks",null,null,null,null,null,null,"Reserved for GIZ"]
["Remuneration item",null,null,null,null,"Months","Days **"]
["Fee (No. 5.4 General Conditions)",null,null,null,null,null,null,{"$f":"IF(NOT(D22=\"\"),D22*(F22+ROUND((G22/30),3)),IF(NOT(E22=\"\"),E22*G22,0))","v":0}]
["Fee (No. 5.4 General Conditions)",null,null,null,null,null,null,{"$f":"IF(NOT(D23=\"\"),D23*(F23+ROUND((G23/30),3)),IF(NOT(E23=\"\"),E23*G23,0))","v":0}]
["Per diem (No. 5.6. General Conditions)",null,null,null,null,null,null,{"$f":"IF(NOT(D24=\"\"),D24*(F24+ROUND((G24/30),3)),IF(NOT(E24=\"\"),E24*G24,0))","v":0}]
["Accommodation (No. 5.7 General Conditions)",null,null,null,null,null,null,{"$f":"IF(NOT(D25=\"\"),D25*(F25+ROUND((G25/30),3)),IF(NOT(E25=\"\"),E25*G25,0))","v":0}]
[]
["Travel expenses"]
["Air travel (No. 5.8 General Conditions)"]
[null,"Name of traveller",null,"Travel dates",null,null,null,"Amount\n (per voucher or lump sum)",null,null,"Amount ","Remarks",null,null,null,null,"Reserved for GIZ"]
["No.",null,"Type of flight","Destination","Outward flight\n(dd.mm.yyyy)","Homeward flight (dd.mm.yyyy)","Type of reimbursement",null,"Currency","Rate/\nquantity*"]
[1,null,"Please select",null,null,null,"Please select",null,null,null,{"$f":"H31*J31","v":0}]
[2,null,null,null,null,null,null,null,null,null,{"$f":"H32*J32","v":0}]
[3,null,null,null,null,null,null,null,null,null,0]
[4,null,null,null,null,null,null,null,null,null,0]
[5,null,null,null,null,null,null,null,null,null,0]
[6,null,null,null,null,null,null,null,null,null,0]
["TOTAL:",null,null,null,null,null,null,null,null,{"$f":"'Invoice overview'!F32","v":"EUR"},{"$f":"SUM(K31:K36)","v":0}]
[]
["Other travel expenses (No. 5.9 General Conditions)"]
["No.","Country of travel","Nature of travel expenses","Start\n(dd.mm.yyyy)","End\n(dd.mm.yyyy)","Reason for travel","Type of reimbursement","Amount\n (per voucher or lump sum)","Currency","Rate/\nquantity*","Amount ","Remarks",null,null,null,null,"Reserved for GIZ"]
[1,null,"Please select",null,null,null,"Please select",null,null,null,{"$f":"H41*J41","v":0}]
[2,null,null,null,null,null,null,null,null,null,{"$f":"H42*J42","v":0}]
[3,null,null,null,null,null,null,null,null,null,0]
[4,null,null,null,null,null,null,null,null,null,0]
["TOTAL:",null,null,null,null,null,null,null,null,{"$f":"'Invoice overview'!F32","v":"EUR"},{"$f":"SUM(K41:K44)","v":0}]
[]
["Other travel expenses (No. 5.9 General Conditions) MONTHLY LUMP SUM"]
["No.","Accounting period",null,"Nature of travel expenses",null,"Type of reimbursement","Monthly rate\nacc. to contract","Daily rate\nacc. to contract","Amount","Remarks",null,null,null,null,null,"Reserved for GIZ"]
[null,"Months","Days**"]
[1,null,null,"Please select",null,"Lump sum/Month or day",null,null,{"$f":"IF(NOT(G50=\"\"),G50*(B50+ROUND((C50/30),3)),IF(NOT(H50=\"\"),H50*C50,0))","v":0}]
[2,null,null,null,null,"Lump sum/Month or day",null,null,{"$f":"IF(NOT(G51=\"\"),G51*(B51+ROUND((C51/30),3)),IF(NOT(H51=\"\"),H51*C51,0))","v":0}]
["Total:",null,null,null,null,null,null,{"$f":"'Invoice overview'!F32","v":"EUR"},{"$f":"SUM(I50:I51)","v":0}]
[]
["Relocation goods (No. 5.10. General Conditions)"]
["Lump sum (in contract currency)",null,"Quantity","Rate","Amount","Remarks",null,null,null,"Reserved for GIZ"]
[null,null,1,null,{"$f":"D56*C56","v":0}]
[null,null,null,null,null,null,null,null,null,null,null,null,"Total for personnel deployment ",null,null,{"$f":"H22+H23+H24+H25+K37+K45+I52+E56","v":0}]
[]
[]
[]
[]
[]
[]
[]
[]
[]
[]
[]
[]
[]
[]
[]
[]
[]
[]
[]
[]
[]
[]
[]
[]
[]
[]
[]
[]
[]
[]
[]
[]
[]
[]
[]
[]
[]
[]
[]
[]
[]
[]
[]
[]
[]
[]
[]
[]
[]
[]
[]
[]
[]
[]
[]
[null,null,null,null,null,null,null,null,null,null,null,null,null,null,null,null,null,null,null,null,null,null,null,null,null,null,null,null,null,null,null,null,null,null,null,null,null,null,"Please select"]
[null,null,null,null,null,null,null,null,null,null,null,null,null,null,null,null,null,null,null,null,null,null,null,null,null,null,null,null,null,null,null,null,null,null,null,null,null,null,"Expert (outward and homeward journeys)"]
[null,null,null,null,null,null,null,null,null,null,null,null,null,null,null,null,null,null,null,null,null,null,null,null,null,null,null,null,null,null,null,null,null,null,null,null,null,null,"Dependants (outward and homeward journeys) "]
[null,null,null,null,null,null,null,null,null,null,null,null,null,null,null,null,null,null,null,null,null,null,null,null,null,null,null,null,null,null,null,null,null,null,null,null,null,null,"Vacation flights"]
[null,null,null,null,null,null,null,null,null,null,null,null,null,null,null,null,null,null,null,null,null,null,null,null,null,null,null,null,null,null,null,null,null,null,null,null,null,null,"Regional and national flights"]
[null,null,null,null,null,null,null,null,null,null,null,null,null,null,null,null,null,null,null,null,null,null,null,null,null,null,null,null,null,null,null,null,null,null,null,null,null,null,"Other flights"]
[]
[null,null,null,null,null,null,null,null,null,null,null,null,null,null,null,null,null,null,null,null,null,null,null,null,null,null,null,null,null,null,null,null,null,null,null,null,null,null,"Please select"]
[null,null,null,null,null,null,null,null,null,null,null,null,null,null,null,null,null,null,null,null,null,null,null,null,null,null,null,null,null,null,null,null,null,null,null,null,null,null,"Lump sum"]
[null,null,null,null,null,null,null,null,null,null,null,null,null,null,null,null,null,null,null,null,null,null,null,null,null,null,null,null,null,null,null,null,null,null,null,null,null,null,"Against evidence"]
[]
[null,null,null,null,null,null,null,null,null,null,null,null,null,null,null,null,null,null,null,null,null,null,null,null,null,null,null,null,null,null,null,null,null,null,null,null,null,null,"Please select"]
[null,null,null,null,null,null,null,null,null,null,null,null,null,null,null,null,null,null,null,null,null,null,null,null,null,null,null,null,null,null,null,null,null,null,null,null,null,null,"Long-term expert, int."]
[null,null,null,null,null,null,null,null,null,null,null,null,null,null,null,null,null,null,null,null,null,null,null,null,null,null,null,null,null,null,null,null,null,null,null,null,null,null,"Long-term expert, reg."]
[null,null,null,null,null,null,null,null,null,null,null,null,null,null,null,null,null,null,null,null,null,null,null,null,null,null,null,null,null,null,null,null,null,null,null,null,null,null,"Long-term expert, nat."]
[null,null,null,null,null,null,null,null,null,null,null,null,null,null,null,null,null,null,null,null,null,null,null,null,null,null,null,null,null,null,null,null,null,null,null,null,null,null,"Short-term expert, int."]
[null,null,null,null,null,null,null,null,null,null,null,null,null,null,null,null,null,null,null,null,null,null,null,null,null,null,null,null,null,null,null,null,null,null,null,null,null,null,"Short-term expert, reg."]
[null,null,null,null,null,null,null,null,null,null,null,null,null,null,null,null,null,null,null,null,null,null,null,null,null,null,null,null,null,null,null,null,null,null,null,null,null,null,"Short-term expert, nat."]
[null,null,null,null,null,null,null,null,null,null,null,null,null,null,null,null,null,null,null,null,null,null,null,null,null,null,null,null,null,null,null,null,null,null,null,null,null,null,"Other (please define)"]
[]
[null,null,null,null,null,null,null,null,null,null,null,null,null,null,null,null,null,null,null,null,null,null,null,null,null,null,null,null,null,null,null,null,null,null,null,null,null,null,"Please select"]
[null,null,null,null,null,null,null,null,null,null,null,null,null,null,null,null,null,null,null,null,null,null,null,null,null,null,null,null,null,null,null,null,null,null,null,null,null,null,"Travel expenses outside the country"]
[null,null,null,null,null,null,null,null,null,null,null,null,null,null,null,null,null,null,null,null,null,null,null,null,null,null,null,null,null,null,null,null,null,null,null,null,null,null,"Travel expenses in the country"]

{"sheet":"Expert sheet (months or d (22)","index":22,"n_rows":135,"n_cols":39,"rows_kept":135,"cut":false,"hidden":true,"merged":[[55,0,55,1],[55,5,55,8],[55,9,55,11],[56,12,56,14],[49,3,49,4],[49,9,49,14],[50,3,50,4],[50,9,50,14],[51,3,51,4],[51,9,51,14],[54,5,54,8],[54,9,54,11],[46,0,46,16],[47,0,48,0],[47,1,47,2],[47,3,48,4],[47,5,48,5],[47,6,48,6],[47,7,48,7],[47,8,48,8],[47,9,48,14],[47,15,48,16],[40,11,40,15],[41,11,41,15],[42,11,42,15],[43,11,43,15],[44,3,44,4],[44,11,44,15],[36,3,36,4],[36,11,36,15],[36,16,36,17],[38,14,38,15],[39,11,39,15],[39,16,39,17],[33,11,33,15],[33,16,33,17],[34,11,34,15],[34,16,34,17],[35,11,35,15],[35,16,35,17],[30,11,30,15],[30,16,30,17],[31,11,31,15],[31,16,31,17],[32,11,32,15],[32,16,32,17],[26,11,26,17],[28,1,29,1],[28,3,28,5],[28,10,29,10],[28,11,29,15],[28,16,29,17],[21,8,21,14],[21,15,21,16],[23,8,23,14],[23,15,23,16],[24,8,24,14],[24,15,24,16],[22,8,22,14],[19,15,20,16],[15,9,15,13],[15,14,15,15],[16,9,16,13],[16,14,16,15],[19,8,20,14],[16,19,16,20],[18,0,18,16],[12,9,12,13],[12,14,12,15],[13,0,13,5],[13,9,13,13],[13,14,13,15],[14,9,14,13],[14,14,14,15],[6,13,6,14],[7,2,7,4],[8,2,8,4],[9,2,9,4],[11,9,11,13],[11,14,11,15],[5,15,7,15],[6,2,6,4],[6,7,6,8],[6,9,6,10],[6,11,6,12],[1,3,1,4],[1,7,1,9],[5,7,5,8],[5,9,5,12],[5,13,5,14],[6,0,6,1],[9,0,9,1],[21,0,21,2],[22,0,22,2],[28,7,29,7],[19,3,20,3],[19,4,20,4],[19,5,19,6],[19,7,20,7]]}
["Statement on personnel deployment"]
[null,"Contract number:",null,"Processing no./Cost centre:",null,null,null,"Accounting period:"]
[null,{"$f":"'Invoice overview'!A28","v":0},null,null,{"$f":"'Invoice overview'!C28","v":0},null,null,null,null,{"$f":"_xlfn.TEXTJOIN(\"   \",FALSE,IF('Invoice overview'!$G$28 > 0, TEXT('Invoice overview'!$G$28,\"TT.MM.JJJJ\"),\"\"),\"until\",IF('Invoice overview'!$I$28 > 0, TEXT('Invoice overview'!$I$28,\"TT.MM.JJJJ\"),\"\"))","v":"   until   "}]
[]
[]
["Personal data",null,null,null,null,null,"Periods of assignment","Total scheduled time",null,"Accounting period ",null,null,null,"Actual time ",null,"Remarks"]
["Family name, given name:",null,null,null,null,null,null,"Acc. to contract",null,"Actual period",null,"Period",null,"Total"]
["Function:",null,"Please select",null,null,null,null,"Months","Days","dd.mm.yyyy","dd.mm.yyyy","Months","Days","Months","Days"]
["Description of function:",null,null,null,null,null,"Germany"]
["Expert no. per price schedule",null,null,null,null,null,"Other Countries"]
[]
[null,null,null,null,null,null,"Details on leave and sickness",null,null,"Remarks",null,null,null,null,"Reserved for GIZ"]
["Link to assignment period calculation sheet for short-term expert pools:",null,null,null,null,null,"Total contractual entitlement (days)",null,{"$f":"IF( (SUM(H9:H10)) >= 4, (SUM(H9:H10)) * 4, 0)","v":0}]
["https://www.giz.de/de/downloads/giz2012-de-Hilfe_zur_Berechnung_der_Einsatzzeit_von_KZE-Pools.xls",null,null,null,null,null,"Remaining entitlement (days) *"]
[null,null,null,null,null,null,"Leave taken (days)*"]
[null,null,null,null,null,null,"Remaining leave (days)",null,{"$f":"IF(I14>0,I14-I15,I13-I15)","v":0}]
[null,null,null,null,null,null,"Sickness (days)"]
[]
["Personnel costs"]
[null,null,null,"Monthly rate\nacc. to contract","Daily rate\nacc. to contract","Quantity",null,"Amount ","Remarks",null,null,null,null,null,null,"Reserved for GIZ"]
["Remuneration item",null,null,null,null,"Months","Days **"]
["Fee (No. 5.4 General Conditions)",null,null,null,null,null,null,{"$f":"IF(NOT(D22=\"\"),D22*(F22+ROUND((G22/30),3)),IF(NOT(E22=\"\"),E22*G22,0))","v":0}]
["Fee (No. 5.4 General Conditions)",null,null,null,null,null,null,{"$f":"IF(NOT(D23=\"\"),D23*(F23+ROUND((G23/30),3)),IF(NOT(E23=\"\"),E23*G23,0))","v":0}]
["Per diem (No. 5.6. General Conditions)",null,null,null,null,null,null,{"$f":"IF(NOT(D24=\"\"),D24*(F24+ROUND((G24/30),3)),IF(NOT(E24=\"\"),E24*G24,0))","v":0}]
["Accommodation (No. 5.7 General Conditions)",null,null,null,null,null,null,{"$f":"IF(NOT(D25=\"\"),D25*(F25+ROUND((G25/30),3)),IF(NOT(E25=\"\"),E25*G25,0))","v":0}]
[]
["Travel expenses"]
["Air travel (No. 5.8 General Conditions)"]
[null,"Name of traveller",null,"Travel dates",null,null,null,"Amount\n (per voucher or lump sum)",null,null,"Amount ","Remarks",null,null,null,null,"Reserved for GIZ"]
["No.",null,"Type of flight","Destination","Outward flight\n(dd.mm.yyyy)","Homeward flight (dd.mm.yyyy)","Type of reimbursement",null,"Currency","Rate/\nquantity*"]
[1,null,"Please select",null,null,null,"Please select",null,null,null,{"$f":"H31*J31","v":0}]
[2,null,null,null,null,null,null,null,null,null,{"$f":"H32*J32","v":0}]
[3,null,null,null,null,null,null,null,null,null,0]
[4,null,null,null,null,null,null,null,null,null,0]
[5,null,null,null,null,null,null,null,null,null,0]
[6,null,null,null,null,null,null,null,null,null,0]
["TOTAL:",null,null,null,null,null,null,null,null,{"$f":"'Invoice overview'!F32","v":"EUR"},{"$f":"SUM(K31:K36)","v":0}]
[]
["Other travel expenses (No. 5.9 General Conditions)"]
["No.","Country of travel","Nature of travel expenses","Start\n(dd.mm.yyyy)","End\n(dd.mm.yyyy)","Reason for travel","Type of reimbursement","Amount\n (per voucher or lump sum)","Currency","Rate/\nquantity*","Amount ","Remarks",null,null,null,null,"Reserved for GIZ"]
[1,null,"Please select",null,null,null,"Please select",null,null,null,{"$f":"H41*J41","v":0}]
[2,null,null,null,null,null,null,null,null,null,{"$f":"H42*J42","v":0}]
[3,null,null,null,null,null,null,null,null,null,0]
[4,null,null,null,null,null,null,null,null,null,0]
["TOTAL:",null,null,null,null,null,null,null,null,{"$f":"'Invoice overview'!F32","v":"EUR"},{"$f":"SUM(K41:K44)","v":0}]
[]
["Other travel expenses (No. 5.9 General Conditions) MONTHLY LUMP SUM"]
["No.","Accounting period",null,"Nature of travel expenses",null,"Type of reimbursement","Monthly rate\nacc. to contract","Daily rate\nacc. to contract","Amount","Remarks",null,null,null,null,null,"Reserved for GIZ"]
[null,"Months","Days**"]
[1,null,null,"Please select",null,"Lump sum/Month or day",null,null,{"$f":"IF(NOT(G50=\"\"),G50*(B50+ROUND((C50/30),3)),IF(NOT(H50=\"\"),H50*C50,0))","v":0}]
[2,null,null,null,null,"Lump sum/Month or day",null,null,{"$f":"IF(NOT(G51=\"\"),G51*(B51+ROUND((C51/30),3)),IF(NOT(H51=\"\"),H51*C51,0))","v":0}]
["Total:",null,null,null,null,null,null,{"$f":"'Invoice overview'!F32","v":"EUR"},{"$f":"SUM(I50:I51)","v":0}]
[]
["Relocation goods (No. 5.10. General Conditions)"]
["Lump sum (in contract currency)",null,"Quantity","Rate","Amount","Remarks",null,null,null,"Reserved for GIZ"]
[null,null,1,null,{"$f":"D56*C56","v":0}]
[null,null,null,null,null,null,null,null,null,null,null,null,"Total for personnel deployment ",null,null,{"$f":"H22+H23+H24+H25+K37+K45+I52+E56","v":0}]
[]
[]
[]
[]
[]
[]
[]
[]
[]
[]
[]
[]
[]
[]
[]
[]
[]
[]
[]
[]
[]
[]
[]
[]
[]
[]
[]
[]
[]
[]
[]
[]
[]
[]
[]
[]
[]
[]
[]
[]
[]
[]
[]
[]
[]
[]
[]
[]
[]
[]
[]
[]
[]
[]
[]
[null,null,null,null,null,null,null,null,null,null,null,null,null,null,null,null,null,null,null,null,null,null,null,null,null,null,null,null,null,null,null,null,null,null,null,null,null,null,"Please select"]
[null,null,null,null,null,null,null,null,null,null,null,null,null,null,null,null,null,null,null,null,null,null,null,null,null,null,null,null,null,null,null,null,null,null,null,null,null,null,"Expert (outward and homeward journeys)"]
[null,null,null,null,null,null,null,null,null,null,null,null,null,null,null,null,null,null,null,null,null,null,null,null,null,null,null,null,null,null,null,null,null,null,null,null,null,null,"Dependants (outward and homeward journeys) "]
[null,null,null,null,null,null,null,null,null,null,null,null,null,null,null,null,null,null,null,null,null,null,null,null,null,null,null,null,null,null,null,null,null,null,null,null,null,null,"Vacation flights"]
[null,null,null,null,null,null,null,null,null,null,null,null,null,null,null,null,null,null,null,null,null,null,null,null,null,null,null,null,null,null,null,null,null,null,null,null,null,null,"Regional and national flights"]
[null,null,null,null,null,null,null,null,null,null,null,null,null,null,null,null,null,null,null,null,null,null,null,null,null,null,null,null,null,null,null,null,null,null,null,null,null,null,"Other flights"]
[]
[null,null,null,null,null,null,null,null,null,null,null,null,null,null,null,null,null,null,null,null,null,null,null,null,null,null,null,null,null,null,null,null,null,null,null,null,null,null,"Please select"]
[null,null,null,null,null,null,null,null,null,null,null,null,null,null,null,null,null,null,null,null,null,null,null,null,null,null,null,null,null,null,null,null,null,null,null,null,null,null,"Lump sum"]
[null,null,null,null,null,null,null,null,null,null,null,null,null,null,null,null,null,null,null,null,null,null,null,null,null,null,null,null,null,null,null,null,null,null,null,null,null,null,"Against evidence"]
[]
[null,null,null,null,null,null,null,null,null,null,null,null,null,null,null,null,null,null,null,null,null,null,null,null,null,null,null,null,null,null,null,null,null,null,null,null,null,null,"Please select"]
[null,null,null,null,null,null,null,null,null,null,null,null,null,null,null,null,null,null,null,null,null,null,null,null,null,null,null,null,null,null,null,null,null,null,null,null,null,null,"Long-term expert, int."]
[null,null,null,null,null,null,null,null,null,null,null,null,null,null,null,null,null,null,null,null,null,null,null,null,null,null,null,null,null,null,null,null,null,null,null,null,null,null,"Long-term expert, reg."]
[null,null,null,null,null,null,null,null,null,null,null,null,null,null,null,null,null,null,null,null,null,null,null,null,null,null,null,null,null,null,null,null,null,null,null,null,null,null,"Long-term expert, nat."]
[null,null,null,null,null,null,null,null,null,null,null,null,null,null,null,null,null,null,null,null,null,null,null,null,null,null,null,null,null,null,null,null,null,null,null,null,null,null,"Short-term expert, int."]
[null,null,null,null,null,null,null,null,null,null,null,null,null,null,null,null,null,null,null,null,null,null,null,null,null,null,null,null,null,null,null,null,null,null,null,null,null,null,"Short-term expert, reg."]
[null,null,null,null,null,null,null,null,null,null,null,null,null,null,null,null,null,null,null,null,null,null,null,null,null,null,null,null,null,null,null,null,null,null,null,null,null,null,"Short-term expert, nat."]
[null,null,null,null,null,null,null,null,null,null,null,null,null,null,null,null,null,null,null,null,null,null,null,null,null,null,null,null,null,null,null,null,null,null,null,null,null,null,"Other (please define)"]
[]
[null,null,null,null,null,null,null,null,null,null,null,null,null,null,null,null,null,null,null,null,null,null,null,null,null,null,null,null,null,null,null,null,null,null,null,null,null,null,"Please select"]
[null,null,null,null,null,null,null,null,null,null,null,null,null,null,null,null,null,null,null,null,null,null,null,null,null,null,null,null,null,null,null,null,null,null,null,null,null,null,"Travel expenses outside the country"]
[null,null,null,null,null,null,null,null,null,null,null,null,null,null,null,null,null,null,null,null,null,null,null,null,null,null,null,null,null,null,null,null,null,null,null,null,null,null,"Travel expenses in the country"]

{"sheet":"Expert sheet (months or d (23)","index":23,"n_rows":135,"n_cols":39,"rows_kept":135,"cut":false,"hidden":true,"merged":[[55,0,55,1],[55,5,55,8],[55,9,55,11],[56,12,56,14],[49,3,49,4],[49,9,49,14],[50,3,50,4],[50,9,50,14],[51,3,51,4],[51,9,51,14],[54,5,54,8],[54,9,54,11],[46,0,46,16],[47,0,48,0],[47,1,47,2],[47,3,48,4],[47,5,48,5],[47,6,48,6],[47,7,48,7],[47,8,48,8],[47,9,48,14],[47,15,48,16],[40,11,40,15],[41,11,41,15],[42,11,42,15],[43,11,43,15],[44,3,44,4],[44,11,44,15],[36,3,36,4],[36,11,36,15],[36,16,36,17],[38,14,38,15],[39,11,39,15],[39,16,39,17],[33,11,33,15],[33,16,33,17],[34,11,34,15],[34,16,34,17],[35,11,35,15],[35,16,35,17],[30,11,30,15],[30,16,30,17],[31,11,31,15],[31,16,31,17],[32,11,32,15],[32,16,32,17],[26,11,26,17],[28,1,29,1],[28,3,28,5],[28,10,29,10],[28,11,29,15],[28,16,29,17],[21,8,21,14],[21,15,21,16],[23,8,23,14],[23,15,23,16],[24,8,24,14],[24,15,24,16],[22,8,22,14],[19,15,20,16],[15,9,15,13],[15,14,15,15],[16,9,16,13],[16,14,16,15],[19,8,20,14],[16,19,16,20],[18,0,18,16],[12,9,12,13],[12,14,12,15],[13,0,13,5],[13,9,13,13],[13,14,13,15],[14,9,14,13],[14,14,14,15],[6,13,6,14],[7,2,7,4],[8,2,8,4],[9,2,9,4],[11,9,11,13],[11,14,11,15],[5,15,7,15],[6,2,6,4],[6,7,6,8],[6,9,6,10],[6,11,6,12],[1,3,1,4],[1,7,1,9],[5,7,5,8],[5,9,5,12],[5,13,5,14],[6,0,6,1],[9,0,9,1],[21,0,21,2],[22,0,22,2],[28,7,29,7],[19,3,20,3],[19,4,20,4],[19,5,19,6],[19,7,20,7]]}
["Statement on personnel deployment"]
[null,"Contract number:",null,"Processing no./Cost centre:",null,null,null,"Accounting period:"]
[null,{"$f":"'Invoice overview'!A28","v":0},null,null,{"$f":"'Invoice overview'!C28","v":0},null,null,null,null,{"$f":"_xlfn.TEXTJOIN(\"   \",FALSE,IF('Invoice overview'!$G$28 > 0, TEXT('Invoice overview'!$G$28,\"TT.MM.JJJJ\"),\"\"),\"until\",IF('Invoice overview'!$I$28 > 0, TEXT('Invoice overview'!$I$28,\"TT.MM.JJJJ\"),\"\"))","v":"   until   "}]
[]
[]
["Personal data",null,null,null,null,null,"Periods of assignment","Total scheduled time",null,"Accounting period ",null,null,null,"Actual time ",null,"Remarks"]
["Family name, given name:",null,null,null,null,null,null,"Acc. to contract",null,"Actual period",null,"Period",null,"Total"]
["Function:",null,"Please select",null,null,null,null,"Months","Days","dd.mm.yyyy","dd.mm.yyyy","Months","Days","Months","Days"]
["Description of function:",null,null,null,null,null,"Germany"]
["Expert no. per price schedule",null,null,null,null,null,"Other Countries"]
[]
[null,null,null,null,null,null,"Details on leave and sickness",null,null,"Remarks",null,null,null,null,"Reserved for GIZ"]
["Link to assignment period calculation sheet for short-term expert pools:",null,null,null,null,null,"Total contractual entitlement (days)",null,{"$f":"IF( (SUM(H9:H10)) >= 4, (SUM(H9:H10)) * 4, 0)","v":0}]
["https://www.giz.de/de/downloads/giz2012-de-Hilfe_zur_Berechnung_der_Einsatzzeit_von_KZE-Pools.xls",null,null,null,null,null,"Remaining entitlement (days) *"]
[null,null,null,null,null,null,"Leave taken (days)*"]
[null,null,null,null,null,null,"Remaining leave (days)",null,{"$f":"IF(I14>0,I14-I15,I13-I15)","v":0}]
[null,null,null,null,null,null,"Sickness (days)"]
[]
["Personnel costs"]
[null,null,null,"Monthly rate\nacc. to contract","Daily rate\nacc. to contract","Quantity",null,"Amount ","Remarks",null,null,null,null,null,null,"Reserved for GIZ"]
["Remuneration item",null,null,null,null,"Months","Days **"]
["Fee (No. 5.4 General Conditions)",null,null,null,null,null,null,{"$f":"IF(NOT(D22=\"\"),D22*(F22+ROUND((G22/30),3)),IF(NOT(E22=\"\"),E22*G22,0))","v":0}]
["Fee (No. 5.4 General Conditions)",null,null,null,null,null,null,{"$f":"IF(NOT(D23=\"\"),D23*(F23+ROUND((G23/30),3)),IF(NOT(E23=\"\"),E23*G23,0))","v":0}]
["Per diem (No. 5.6. General Conditions)",null,null,null,null,null,null,{"$f":"IF(NOT(D24=\"\"),D24*(F24+ROUND((G24/30),3)),IF(NOT(E24=\"\"),E24*G24,0))","v":0}]
["Accommodation (No. 5.7 General Conditions)",null,null,null,null,null,null,{"$f":"IF(NOT(D25=\"\"),D25*(F25+ROUND((G25/30),3)),IF(NOT(E25=\"\"),E25*G25,0))","v":0}]
[]
["Travel expenses"]
["Air travel (No. 5.8 General Conditions)"]
[null,"Name of traveller",null,"Travel dates",null,null,null,"Amount\n (per voucher or lump sum)",null,null,"Amount ","Remarks",null,null,null,null,"Reserved for GIZ"]
["No.",null,"Type of flight","Destination","Outward flight\n(dd.mm.yyyy)","Homeward flight (dd.mm.yyyy)","Type of reimbursement",null,"Currency","Rate/\nquantity*"]
[1,null,"Please select",null,null,null,"Please select",null,null,null,{"$f":"H31*J31","v":0}]
[2,null,null,null,null,null,null,null,null,null,{"$f":"H32*J32","v":0}]
[3,null,null,null,null,null,null,null,null,null,0]
[4,null,null,null,null,null,null,null,null,null,0]
[5,null,null,null,null,null,null,null,null,null,0]
[6,null,null,null,null,null,null,null,null,null,0]
["TOTAL:",null,null,null,null,null,null,null,null,{"$f":"'Invoice overview'!F32","v":"EUR"},{"$f":"SUM(K31:K36)","v":0}]
[]
["Other travel expenses (No. 5.9 General Conditions)"]
["No.","Country of travel","Nature of travel expenses","Start\n(dd.mm.yyyy)","End\n(dd.mm.yyyy)","Reason for travel","Type of reimbursement","Amount\n (per voucher or lump sum)","Currency","Rate/\nquantity*","Amount ","Remarks",null,null,null,null,"Reserved for GIZ"]
[1,null,"Please select",null,null,null,"Please select",null,null,null,{"$f":"H41*J41","v":0}]
[2,null,null,null,null,null,null,null,null,null,{"$f":"H42*J42","v":0}]
[3,null,null,null,null,null,null,null,null,null,0]
[4,null,null,null,null,null,null,null,null,null,0]
["TOTAL:",null,null,null,null,null,null,null,null,{"$f":"'Invoice overview'!F32","v":"EUR"},{"$f":"SUM(K41:K44)","v":0}]
[]
["Other travel expenses (No. 5.9 General Conditions) MONTHLY LUMP SUM"]
["No.","Accounting period",null,"Nature of travel expenses",null,"Type of reimbursement","Monthly rate\nacc. to contract","Daily rate\nacc. to contract","Amount","Remarks",null,null,null,null,null,"Reserved for GIZ"]
[null,"Months","Days**"]
[1,null,null,"Please select",null,"Lump sum/Month or day",null,null,{"$f":"IF(NOT(G50=\"\"),G50*(B50+ROUND((C50/30),3)),IF(NOT(H50=\"\"),H50*C50,0))","v":0}]
[2,null,null,null,null,"Lump sum/Month or day",null,null,{"$f":"IF(NOT(G51=\"\"),G51*(B51+ROUND((C51/30),3)),IF(NOT(H51=\"\"),H51*C51,0))","v":0}]
["Total:",null,null,null,null,null,null,{"$f":"'Invoice overview'!F32","v":"EUR"},{"$f":"SUM(I50:I51)","v":0}]
[]
["Relocation goods (No. 5.10. General Conditions)"]
["Lump sum (in contract currency)",null,"Quantity","Rate","Amount","Remarks",null,null,null,"Reserved for GIZ"]
[null,null,1,null,{"$f":"D56*C56","v":0}]
[null,null,null,null,null,null,null,null,null,null,null,null,"Total for personnel deployment ",null,null,{"$f":"H22+H23+H24+H25+K37+K45+I52+E56","v":0}]
[]
[]
[]
[]
[]
[]
[]
[]
[]
[]
[]
[]
[]
[]
[]
[]
[]
[]
[]
[]
[]
[]
[]
[]
[]
[]
[]
[]
[]
[]
[]
[]
[]
[]
[]
[]
[]
[]
[]
[]
[]
[]
[]
[]
[]
[]
[]
[]
[]
[]
[]
[]
[]
[]
[]
[null,null,null,null,null,null,null,null,null,null,null,null,null,null,null,null,null,null,null,null,null,null,null,null,null,null,null,null,null,null,null,null,null,null,null,null,null,null,"Please select"]
[null,null,null,null,null,null,null,null,null,null,null,null,null,null,null,null,null,null,null,null,null,null,null,null,null,null,null,null,null,null,null,null,null,null,null,null,null,null,"Expert (outward and homeward journeys)"]
[null,null,null,null,null,null,null,null,null,null,null,null,null,null,null,null,null,null,null,null,null,null,null,null,null,null,null,null,null,null,null,null,null,null,null,null,null,null,"Dependants (outward and homeward journeys) "]
[null,null,null,null,null,null,null,null,null,null,null,null,null,null,null,null,null,null,null,null,null,null,null,null,null,null,null,null,null,null,null,null,null,null,null,null,null,null,"Vacation flights"]
[null,null,null,null,null,null,null,null,null,null,null,null,null,null,null,null,null,null,null,null,null,null,null,null,null,null,null,null,null,null,null,null,null,null,null,null,null,null,"Regional and national flights"]
[null,null,null,null,null,null,null,null,null,null,null,null,null,null,null,null,null,null,null,null,null,null,null,null,null,null,null,null,null,null,null,null,null,null,null,null,null,null,"Other flights"]
[]
[null,null,null,null,null,null,null,null,null,null,null,null,null,null,null,null,null,null,null,null,null,null,null,null,null,null,null,null,null,null,null,null,null,null,null,null,null,null,"Please select"]
[null,null,null,null,null,null,null,null,null,null,null,null,null,null,null,null,null,null,null,null,null,null,null,null,null,null,null,null,null,null,null,null,null,null,null,null,null,null,"Lump sum"]
[null,null,null,null,null,null,null,null,null,null,null,null,null,null,null,null,null,null,null,null,null,null,null,null,null,null,null,null,null,null,null,null,null,null,null,null,null,null,"Against evidence"]
[]
[null,null,null,null,null,null,null,null,null,null,null,null,null,null,null,null,null,null,null,null,null,null,null,null,null,null,null,null,null,null,null,null,null,null,null,null,null,null,"Please select"]
[null,null,null,null,null,null,null,null,null,null,null,null,null,null,null,null,null,null,null,null,null,null,null,null,null,null,null,null,null,null,null,null,null,null,null,null,null,null,"Long-term expert, int."]
[null,null,null,null,null,null,null,null,null,null,null,null,null,null,null,null,null,null,null,null,null,null,null,null,null,null,null,null,null,null,null,null,null,null,null,null,null,null,"Long-term expert, reg."]
[null,null,null,null,null,null,null,null,null,null,null,null,null,null,null,null,null,null,null,null,null,null,null,null,null,null,null,null,null,null,null,null,null,null,null,null,null,null,"Long-term expert, nat."]
[null,null,null,null,null,null,null,null,null,null,null,null,null,null,null,null,null,null,null,null,null,null,null,null,null,null,null,null,null,null,null,null,null,null,null,null,null,null,"Short-term expert, int."]
[null,null,null,null,null,null,null,null,null,null,null,null,null,null,null,null,null,null,null,null,null,null,null,null,null,null,null,null,null,null,null,null,null,null,null,null,null,null,"Short-term expert, reg."]
[null,null,null,null,null,null,null,null,null,null,null,null,null,null,null,null,null,null,null,null,null,null,null,null,null,null,null,null,null,null,null,null,null,null,null,null,null,null,"Short-term expert, nat."]
[null,null,null,null,null,null,null,null,null,null,null,null,null,null,null,null,null,null,null,null,null,null,null,null,null,null,null,null,null,null,null,null,null,null,null,null,null,null,"Other (please define)"]
[]
[null,null,null,null,null,null,null,null,null,null,null,null,null,null,null,null,null,null,null,null,null,null,null,null,null,null,null,null,null,null,null,null,null,null,null,null,null,null,"Please select"]
[null,null,null,null,null,null,null,null,null,null,null,null,null,null,null,null,null,null,null,null,null,null,null,null,null,null,null,null,null,null,null,null,null,null,null,null,null,null,"Travel expenses outside the country"]
[null,null,null,null,null,null,null,null,null,null,null,null,null,null,null,null,null,null,null,null,null,null,null,null,null,null,null,null,null,null,null,null,null,null,null,null,null,null,"Travel expenses in the country"]

{"sheet":"Expert sheet (months or d (24)","index":24,"n_rows":135,"n_cols":39,"rows_kept":135,"cut":false,"hidden":true,"merged":[[55,0,55,1],[55,5,55,8],[55,9,55,11],[56,12,56,14],[49,3,49,4],[49,9,49,14],[50,3,50,4],[50,9,50,14],[51,3,51,4],[51,9,51,14],[54,5,54,8],[54,9,54,11],[46,0,46,16],[47,0,48,0],[47,1,47,2],[47,3,48,4],[47,5,48,5],[47,6,48,6],[47,7,48,7],[47,8,48,8],[47,9,48,14],[47,15,48,16],[40,11,40,15],[41,11,41,15],[42,11,42,15],[43,11,43,15],[44,3,44,4],[44,11,44,15],[36,3,36,4],[36,11,36,15],[36,16,36,17],[38,14,38,15],[39,11,39,15],[39,16,39,17],[33,11,33,15],[33,16,33,17],[34,11,34,15],[34,16,34,17],[35,11,35,15],[35,16,35,17],[30,11,30,15],[30,16,30,17],[31,11,31,15],[31,16,31,17],[32,11,32,15],[32,16,32,17],[26,11,26,17],[28,1,29,1],[28,3,28,5],[28,10,29,10],[28,11,29,15],[28,16,29,17],[21,8,21,14],[21,15,21,16],[23,8,23,14],[23,15,23,16],[24,8,24,14],[24,15,24,16],[22,8,22,14],[19,15,20,16],[15,9,15,13],[15,14,15,15],[16,9,16,13],[16,14,16,15],[19,8,20,14],[16,19,16,20],[18,0,18,16],[12,9,12,13],[12,14,12,15],[13,0,13,5],[13,9,13,13],[13,14,13,15],[14,9,14,13],[14,14,14,15],[6,13,6,14],[7,2,7,4],[8,2,8,4],[9,2,9,4],[11,9,11,13],[11,14,11,15],[5,15,7,15],[6,2,6,4],[6,7,6,8],[6,9,6,10],[6,11,6,12],[1,3,1,4],[1,7,1,9],[5,7,5,8],[5,9,5,12],[5,13,5,14],[6,0,6,1],[9,0,9,1],[21,0,21,2],[22,0,22,2],[28,7,29,7],[19,3,20,3],[19,4,20,4],[19,5,19,6],[19,7,20,7]]}
["Statement on personnel deployment"]
[null,"Contract number:",null,"Processing no./Cost centre:",null,null,null,"Accounting period:"]
[null,{"$f":"'Invoice overview'!A28","v":0},null,null,{"$f":"'Invoice overview'!C28","v":0},null,null,null,null,{"$f":"_xlfn.TEXTJOIN(\"   \",FALSE,IF('Invoice overview'!$G$28 > 0, TEXT('Invoice overview'!$G$28,\"TT.MM.JJJJ\"),\"\"),\"until\",IF('Invoice overview'!$I$28 > 0, TEXT('Invoice overview'!$I$28,\"TT.MM.JJJJ\"),\"\"))","v":"   until   "}]
[]
[]
["Personal data",null,null,null,null,null,"Periods of assignment","Total scheduled time",null,"Accounting period ",null,null,null,"Actual time ",null,"Remarks"]
["Family name, given name:",null,null,null,null,null,null,"Acc. to contract",null,"Actual period",null,"Period",null,"Total"]
["Function:",null,"Please select",null,null,null,null,"Months","Days","dd.mm.yyyy","dd.mm.yyyy","Months","Days","Months","Days"]
["Description of function:",null,null,null,null,null,"Germany"]
["Expert no. per price schedule",null,null,null,null,null,"Other Countries"]
[]
[null,null,null,null,null,null,"Details on leave and sickness",null,null,"Remarks",null,null,null,null,"Reserved for GIZ"]
["Link to assignment period calculation sheet for short-term expert pools:",null,null,null,null,null,"Total contractual entitlement (days)",null,{"$f":"IF( (SUM(H9:H10)) >= 4, (SUM(H9:H10)) * 4, 0)","v":0}]
["https://www.giz.de/de/downloads/giz2012-de-Hilfe_zur_Berechnung_der_Einsatzzeit_von_KZE-Pools.xls",null,null,null,null,null,"Remaining entitlement (days) *"]
[null,null,null,null,null,null,"Leave taken (days)*"]
[null,null,null,null,null,null,"Remaining leave (days)",null,{"$f":"IF(I14>0,I14-I15,I13-I15)","v":0}]
[null,null,null,null,null,null,"Sickness (days)"]
[]
["Personnel costs"]
[null,null,null,"Monthly rate\nacc. to contract","Daily rate\nacc. to contract","Quantity",null,"Amount ","Remarks",null,null,null,null,null,null,"Reserved for GIZ"]
["Remuneration item",null,null,null,null,"Months","Days **"]
["Fee (No. 5.4 General Conditions)",null,null,null,null,null,null,{"$f":"IF(NOT(D22=\"\"),D22*(F22+ROUND((G22/30),3)),IF(NOT(E22=\"\"),E22*G22,0))","v":0}]
["Fee (No. 5.4 General Conditions)",null,null,null,null,null,null,{"$f":"IF(NOT(D23=\"\"),D23*(F23+ROUND((G23/30),3)),IF(NOT(E23=\"\"),E23*G23,0))","v":0}]
["Per diem (No. 5.6. General Conditions)",null,null,null,null,null,null,{"$f":"IF(NOT(D24=\"\"),D24*(F24+ROUND((G24/30),3)),IF(NOT(E24=\"\"),E24*G24,0))","v":0}]
["Accommodation (No. 5.7 General Conditions)",null,null,null,null,null,null,{"$f":"IF(NOT(D25=\"\"),D25*(F25+ROUND((G25/30),3)),IF(NOT(E25=\"\"),E25*G25,0))","v":0}]
[]
["Travel expenses"]
["Air travel (No. 5.8 General Conditions)"]
[null,"Name of traveller",null,"Travel dates",null,null,null,"Amount\n (per voucher or lump sum)",null,null,"Amount ","Remarks",null,null,null,null,"Reserved for GIZ"]
["No.",null,"Type of flight","Destination","Outward flight\n(dd.mm.yyyy)","Homeward flight (dd.mm.yyyy)","Type of reimbursement",null,"Currency","Rate/\nquantity*"]
[1,null,"Please select",null,null,null,"Please select",null,null,null,{"$f":"H31*J31","v":0}]
[2,null,null,null,null,null,null,null,null,null,{"$f":"H32*J32","v":0}]
[3,null,null,null,null,null,null,null,null,null,0]
[4,null,null,null,null,null,null,null,null,null,0]
[5,null,null,null,null,null,null,null,null,null,0]
[6,null,null,null,null,null,null,null,null,null,0]
["TOTAL:",null,null,null,null,null,null,null,null,{"$f":"'Invoice overview'!F32","v":"EUR"},{"$f":"SUM(K31:K36)","v":0}]
[]
["Other travel expenses (No. 5.9 General Conditions)"]
["No.","Country of travel","Nature of travel expenses","Start\n(dd.mm.yyyy)","End\n(dd.mm.yyyy)","Reason for travel","Type of reimbursement","Amount\n (per voucher or lump sum)","Currency","Rate/\nquantity*","Amount ","Remarks",null,null,null,null,"Reserved for GIZ"]
[1,null,"Please select",null,null,null,"Please select",null,null,null,{"$f":"H41*J41","v":0}]
[2,null,null,null,null,null,null,null,null,null,{"$f":"H42*J42","v":0}]
[3,null,null,null,null,null,null,null,null,null,0]
[4,null,null,null,null,null,null,null,null,null,0]
["TOTAL:",null,null,null,null,null,null,null,null,{"$f":"'Invoice overview'!F32","v":"EUR"},{"$f":"SUM(K41:K44)","v":0}]
[]
["Other travel expenses (No. 5.9 General Conditions) MONTHLY LUMP SUM"]
["No.","Accounting period",null,"Nature of travel expenses",null,"Type of reimbursement","Monthly rate\nacc. to contract","Daily rate\nacc. to contract","Amount","Remarks",null,null,null,null,null,"Reserved for GIZ"]
[null,"Months","Days**"]
[1,null,null,"Please select",null,"Lump sum/Month or day",null,null,{"$f":"IF(NOT(G50=\"\"),G50*(B50+ROUND((C50/30),3)),IF(NOT(H50=\"\"),H50*C50,0))","v":0}]
[2,null,null,null,null,"Lump sum/Month or day",null,null,{"$f":"IF(NOT(G51=\"\"),G51*(B51+ROUND((C51/30),3)),IF(NOT(H51=\"\"),H51*C51,0))","v":0}]
["Total:",null,null,null,null,null,null,{"$f":"'Invoice overview'!F32","v":"EUR"},{"$f":"SUM(I50:I51)","v":0}]
[]
["Relocation goods (No. 5.10. General Conditions)"]
["Lump sum (in contract currency)",null,"Quantity","Rate","Amount","Remarks",null,null,null,"Reserved for GIZ"]
[null,null,1,null,{"$f":"D56*C56","v":0}]
[null,null,null,null,null,null,null,null,null,null,null,null,"Total for personnel deployment ",null,null,{"$f":"H22+H23+H24+H25+K37+K45+I52+E56","v":0}]
[]
[]
[]
[]
[]
[]
[]
[]
[]
[]
[]
[]
[]
[]
[]
[]
[]
[]
[]
[]
[]
[]
[]
[]
[]
[]
[]
[]
[]
[]
[]
[]
[]
[]
[]
[]
[]
[]
[]
[]
[]
[]
[]
[]
[]
[]
[]
[]
[]
[]
[]
[]
[]
[]
[]
[null,null,null,null,null,null,null,null,null,null,null,null,null,null,null,null,null,null,null,null,null,null,null,null,null,null,null,null,null,null,null,null,null,null,null,null,null,null,"Please select"]
[null,null,null,null,null,null,null,null,null,null,null,null,null,null,null,null,null,null,null,null,null,null,null,null,null,null,null,null,null,null,null,null,null,null,null,null,null,null,"Expert (outward and homeward journeys)"]
[null,null,null,null,null,null,null,null,null,null,null,null,null,null,null,null,null,null,null,null,null,null,null,null,null,null,null,null,null,null,null,null,null,null,null,null,null,null,"Dependants (outward and homeward journeys) "]
[null,null,null,null,null,null,null,null,null,null,null,null,null,null,null,null,null,null,null,null,null,null,null,null,null,null,null,null,null,null,null,null,null,null,null,null,null,null,"Vacation flights"]
[null,null,null,null,null,null,null,null,null,null,null,null,null,null,null,null,null,null,null,null,null,null,null,null,null,null,null,null,null,null,null,null,null,null,null,null,null,null,"Regional and national flights"]
[null,null,null,null,null,null,null,null,null,null,null,null,null,null,null,null,null,null,null,null,null,null,null,null,null,null,null,null,null,null,null,null,null,null,null,null,null,null,"Other flights"]
[]
[null,null,null,null,null,null,null,null,null,null,null,null,null,null,null,null,null,null,null,null,null,null,null,null,null,null,null,null,null,null,null,null,null,null,null,null,null,null,"Please select"]
[null,null,null,null,null,null,null,null,null,null,null,null,null,null,null,null,null,null,null,null,null,null,null,null,null,null,null,null,null,null,null,null,null,null,null,null,null,null,"Lump sum"]
[null,null,null,null,null,null,null,null,null,null,null,null,null,null,null,null,null,null,null,null,null,null,null,null,null,null,null,null,null,null,null,null,null,null,null,null,null,null,"Against evidence"]
[]
[null,null,null,null,null,null,null,null,null,null,null,null,null,null,null,null,null,null,null,null,null,null,null,null,null,null,null,null,null,null,null,null,null,null,null,null,null,null,"Please select"]
[null,null,null,null,null,null,null,null,null,null,null,null,null,null,null,null,null,null,null,null,null,null,null,null,null,null,null,null,null,null,null,null,null,null,null,null,null,null,"Long-term expert, int."]
[null,null,null,null,null,null,null,null,null,null,null,null,null,null,null,null,null,null,null,null,null,null,null,null,null,null,null,null,null,null,null,null,null,null,null,null,null,null,"Long-term expert, reg."]
[null,null,null,null,null,null,null,null,null,null,null,null,null,null,null,null,null,null,null,null,null,null,null,null,null,null,null,null,null,null,null,null,null,null,null,null,null,null,"Long-term expert, nat."]
[null,null,null,null,null,null,null,null,null,null,null,null,null,null,null,null,null,null,null,null,null,null,null,null,null,null,null,null,null,null,null,null,null,null,null,null,null,null,"Short-term expert, int."]
[null,null,null,null,null,null,null,null,null,null,null,null,null,null,null,null,null,null,null,null,null,null,null,null,null,null,null,null,null,null,null,null,null,null,null,null,null,null,"Short-term expert, reg."]
[null,null,null,null,null,null,null,null,null,null,null,null,null,null,null,null,null,null,null,null,null,null,null,null,null,null,null,null,null,null,null,null,null,null,null,null,null,null,"Short-term expert, nat."]
[null,null,null,null,null,null,null,null,null,null,null,null,null,null,null,null,null,null,null,null,null,null,null,null,null,null,null,null,null,null,null,null,null,null,null,null,null,null,"Other (please define)"]
[]
[null,null,null,null,null,null,null,null,null,null,null,null,null,null,null,null,null,null,null,null,null,null,null,null,null,null,null,null,null,null,null,null,null,null,null,null,null,null,"Please select"]
[null,null,null,null,null,null,null,null,null,null,null,null,null,null,null,null,null,null,null,null,null,null,null,null,null,null,null,null,null,null,null,null,null,null,null,null,null,null,"Travel expenses outside the country"]
[null,null,null,null,null,null,null,null,null,null,null,null,null,null,null,null,null,null,null,null,null,null,null,null,null,null,null,null,null,null,null,null,null,null,null,null,null,null,"Travel expenses in the country"]

{"sheet":"Expert sheet (months or d (25)","index":25,"n_rows":135,"n_cols":39,"rows_kept":135,"cut":false,"hidden":true,"merged":[[55,0,55,1],[55,5,55,8],[55,9,55,11],[56,12,56,14],[49,3,49,4],[49,9,49,14],[50,3,50,4],[50,9,50,14],[51,3,51,4],[51,9,51,14],[54,5,54,8],[54,9,54,11],[46,0,46,16],[47,0,48,0],[47,1,47,2],[47,3,48,4],[47,5,48,5],[47,6,48,6],[47,7,48,7],[47,8,48,8],[47,9,48,14],[47,15,48,16],[40,11,40,15],[41,11,41,15],[42,11,42,15],[43,11,43,15],[44,3,44,4],[44,11,44,15],[36,3,36,4],[36,11,36,15],[36,16,36,17],[38,14,38,15],[39,11,39,15],[39,16,39,17],[33,11,33,15],[33,16,33,17],[34,11,34,15],[34,16,34,17],[35,11,35,15],[35,16,35,17],[30,11,30,15],[30,16,30,17],[31,11,31,15],[31,16,31,17],[32,11,32,15],[32,16,32,17],[26,11,26,17],[28,1,29,1],[28,3,28,5],[28,10,29,10],[28,11,29,15],[28,16,29,17],[21,8,21,14],[21,15,21,16],[23,8,23,14],[23,15,23,16],[24,8,24,14],[24,15,24,16],[22,8,22,14],[19,15,20,16],[15,9,15,13],[15,14,15,15],[16,9,16,13],[16,14,16,15],[19,8,20,14],[16,19,16,20],[18,0,18,16],[12,9,12,13],[12,14,12,15],[13,0,13,5],[13,9,13,13],[13,14,13,15],[14,9,14,13],[14,14,14,15],[6,13,6,14],[7,2,7,4],[8,2,8,4],[9,2,9,4],[11,9,11,13],[11,14,11,15],[5,15,7,15],[6,2,6,4],[6,7,6,8],[6,9,6,10],[6,11,6,12],[1,3,1,4],[1,7,1,9],[5,7,5,8],[5,9,5,12],[5,13,5,14],[6,0,6,1],[9,0,9,1],[21,0,21,2],[22,0,22,2],[28,7,29,7],[19,3,20,3],[19,4,20,4],[19,5,19,6],[19,7,20,7]]}
["Statement on personnel deployment"]
[null,"Contract number:",null,"Processing no./Cost centre:",null,null,null,"Accounting period:"]
[null,{"$f":"'Invoice overview'!A28","v":0},null,null,{"$f":"'Invoice overview'!C28","v":0},null,null,null,null,{"$f":"_xlfn.TEXTJOIN(\"   \",FALSE,IF('Invoice overview'!$G$28 > 0, TEXT('Invoice overview'!$G$28,\"TT.MM.JJJJ\"),\"\"),\"until\",IF('Invoice overview'!$I$28 > 0, TEXT('Invoice overview'!$I$28,\"TT.MM.JJJJ\"),\"\"))","v":"   until   "}]
[]
[]
["Personal data",null,null,null,null,null,"Periods of assignment","Total scheduled time",null,"Accounting period ",null,null,null,"Actual time ",null,"Remarks"]
["Family name, given name:",null,null,null,null,null,null,"Acc. to contract",null,"Actual period",null,"Period",null,"Total"]
["Function:",null,"Please select",null,null,null,null,"Months","Days","dd.mm.yyyy","dd.mm.yyyy","Months","Days","Months","Days"]
["Description of function:",null,null,null,null,null,"Germany"]
["Expert no. per price schedule",null,null,null,null,null,"Other Countries"]
[]
[null,null,null,null,null,null,"Details on leave and sickness",null,null,"Remarks",null,null,null,null,"Reserved for GIZ"]
["Link to assignment period calculation sheet for short-term expert pools:",null,null,null,null,null,"Total contractual entitlement (days)",null,{"$f":"IF( (SUM(H9:H10)) >= 4, (SUM(H9:H10)) * 4, 0)","v":0}]
["https://www.giz.de/de/downloads/giz2012-de-Hilfe_zur_Berechnung_der_Einsatzzeit_von_KZE-Pools.xls",null,null,null,null,null,"Remaining entitlement (days) *"]
[null,null,null,null,null,null,"Leave taken (days)*"]
[null,null,null,null,null,null,"Remaining leave (days)",null,{"$f":"IF(I14>0,I14-I15,I13-I15)","v":0}]
[null,null,null,null,null,null,"Sickness (days)"]
[]
["Personnel costs"]
[null,null,null,"Monthly rate\nacc. to contract","Daily rate\nacc. to contract","Quantity",null,"Amount ","Remarks",null,null,null,null,null,null,"Reserved for GIZ"]
["Remuneration item",null,null,null,null,"Months","Days **"]
["Fee (No. 5.4 General Conditions)",null,null,null,null,null,null,{"$f":"IF(NOT(D22=\"\"),D22*(F22+ROUND((G22/30),3)),IF(NOT(E22=\"\"),E22*G22,0))","v":0}]
["Fee (No. 5.4 General Conditions)",null,null,null,null,null,null,{"$f":"IF(NOT(D23=\"\"),D23*(F23+ROUND((G23/30),3)),IF(NOT(E23=\"\"),E23*G23,0))","v":0}]
["Per diem (No. 5.6. General Conditions)",null,null,null,null,null,null,{"$f":"IF(NOT(D24=\"\"),D24*(F24+ROUND((G24/30),3)),IF(NOT(E24=\"\"),E24*G24,0))","v":0}]
["Accommodation (No. 5.7 General Conditions)",null,null,null,null,null,null,{"$f":"IF(NOT(D25=\"\"),D25*(F25+ROUND((G25/30),3)),IF(NOT(E25=\"\"),E25*G25,0))","v":0}]
[]
["Travel expenses"]
["Air travel (No. 5.8 General Conditions)"]
[null,"Name of traveller",null,"Travel dates",null,null,null,"Amount\n (per voucher or lump sum)",null,null,"Amount ","Remarks",null,null,null,null,"Reserved for GIZ"]
["No.",null,"Type of flight","Destination","Outward flight\n(dd.mm.yyyy)","Homeward flight (dd.mm.yyyy)","Type of reimbursement",null,"Currency","Rate/\nquantity*"]
[1,null,"Please select",null,null,null,"Please select",null,null,null,{"$f":"H31*J31","v":0}]
[2,null,null,null,null,null,null,null,null,null,{"$f":"H32*J32","v":0}]
[3,null,null,null,null,null,null,null,null,null,0]
[4,null,null,null,null,null,null,null,null,null,0]
[5,null,null,null,null,null,null,null,null,null,0]
[6,null,null,null,null,null,null,null,null,null,0]
["TOTAL:",null,null,null,null,null,null,null,null,{"$f":"'Invoice overview'!F32","v":"EUR"},{"$f":"SUM(K31:K36)","v":0}]
[]
["Other travel expenses (No. 5.9 General Conditions)"]
["No.","Country of travel","Nature of travel expenses","Start\n(dd.mm.yyyy)","End\n(dd.mm.yyyy)","Reason for travel","Type of reimbursement","Amount\n (per voucher or lump sum)","Currency","Rate/\nquantity*","Amount ","Remarks",null,null,null,null,"Reserved for GIZ"]
[1,null,"Please select",null,null,null,"Please select",null,null,null,{"$f":"H41*J41","v":0}]
[2,null,null,null,null,null,null,null,null,null,{"$f":"H42*J42","v":0}]
[3,null,null,null,null,null,null,null,null,null,0]
[4,null,null,null,null,null,null,null,null,null,0]
["TOTAL:",null,null,null,null,null,null,null,null,{"$f":"'Invoice overview'!F32","v":"EUR"},{"$f":"SUM(K41:K44)","v":0}]
[]
["Other travel expenses (No. 5.9 General Conditions) MONTHLY LUMP SUM"]
["No.","Accounting period",null,"Nature of travel expenses",null,"Type of reimbursement","Monthly rate\nacc. to contract","Daily rate\nacc. to contract","Amount","Remarks",null,null,null,null,null,"Reserved for GIZ"]
[null,"Months","Days**"]
[1,null,null,"Please select",null,"Lump sum/Month or day",null,null,{"$f":"IF(NOT(G50=\"\"),G50*(B50+ROUND((C50/30),3)),IF(NOT(H50=\"\"),H50*C50,0))","v":0}]
[2,null,null,null,null,"Lump sum/Month or day",null,null,{"$f":"IF(NOT(G51=\"\"),G51*(B51+ROUND((C51/30),3)),IF(NOT(H51=\"\"),H51*C51,0))","v":0}]
["Total:",null,null,null,null,null,null,{"$f":"'Invoice overview'!F32","v":"EUR"},{"$f":"SUM(I50:I51)","v":0}]
[]
["Relocation goods (No. 5.10. General Conditions)"]
["Lump sum (in contract currency)",null,"Quantity","Rate","Amount","Remarks",null,null,null,"Reserved for GIZ"]
[null,null,1,null,{"$f":"D56*C56","v":0}]
[null,null,null,null,null,null,null,null,null,null,null,null,"Total for personnel deployment ",null,null,{"$f":"H22+H23+H24+H25+K37+K45+I52+E56","v":0}]
[]
[]
[]
[]
[]
[]
[]
[]
[]
[]
[]
[]
[]
[]
[]
[]
[]
[]
[]
[]
[]
[]
[]
[]
[]
[]
[]
[]
[]
[]
[]
[]
[]
[]
[]
[]
[]
[]
[]
[]
[]
[]
[]
[]
[]
[]
[]
[]
[]
[]
[]
[]
[]
[]
[]
[null,null,null,null,null,null,null,null,null,null,null,null,null,null,null,null,null,null,null,null,null,null,null,null,null,null,null,null,null,null,null,null,null,null,null,null,null,null,"Please select"]
[null,null,null,null,null,null,null,null,null,null,null,null,null,null,null,null,null,null,null,null,null,null,null,null,null,null,null,null,null,null,null,null,null,null,null,null,null,null,"Expert (outward and homeward journeys)"]
[null,null,null,null,null,null,null,null,null,null,null,null,null,null,null,null,null,null,null,null,null,null,null,null,null,null,null,null,null,null,null,null,null,null,null,null,null,null,"Dependants (outward and homeward journeys) "]
[null,null,null,null,null,null,null,null,null,null,null,null,null,null,null,null,null,null,null,null,null,null,null,null,null,null,null,null,null,null,null,null,null,null,null,null,null,null,"Vacation flights"]
[null,null,null,null,null,null,null,null,null,null,null,null,null,null,null,null,null,null,null,null,null,null,null,null,null,null,null,null,null,null,null,null,null,null,null,null,null,null,"Regional and national flights"]
[null,null,null,null,null,null,null,null,null,null,null,null,null,null,null,null,null,null,null,null,null,null,null,null,null,null,null,null,null,null,null,null,null,null,null,null,null,null,"Other flights"]
[]
[null,null,null,null,null,null,null,null,null,null,null,null,null,null,null,null,null,null,null,null,null,null,null,null,null,null,null,null,null,null,null,null,null,null,null,null,null,null,"Please select"]
[null,null,null,null,null,null,null,null,null,null,null,null,null,null,null,null,null,null,null,null,null,null,null,null,null,null,null,null,null,null,null,null,null,null,null,null,null,null,"Lump sum"]
[null,null,null,null,null,null,null,null,null,null,null,null,null,null,null,null,null,null,null,null,null,null,null,null,null,null,null,null,null,null,null,null,null,null,null,null,null,null,"Against evidence"]
[]
[null,null,null,null,null,null,null,null,null,null,null,null,null,null,null,null,null,null,null,null,null,null,null,null,null,null,null,null,null,null,null,null,null,null,null,null,null,null,"Please select"]
[null,null,null,null,null,null,null,null,null,null,null,null,null,null,null,null,null,null,null,null,null,null,null,null,null,null,null,null,null,null,null,null,null,null,null,null,null,null,"Long-term expert, int."]
[null,null,null,null,null,null,null,null,null,null,null,null,null,null,null,null,null,null,null,null,null,null,null,null,null,null,null,null,null,null,null,null,null,null,null,null,null,null,"Long-term expert, reg."]
[null,null,null,null,null,null,null,null,null,null,null,null,null,null,null,null,null,null,null,null,null,null,null,null,null,null,null,null,null,null,null,null,null,null,null,null,null,null,"Long-term expert, nat."]
[null,null,null,null,null,null,null,null,null,null,null,null,null,null,null,null,null,null,null,null,null,null,null,null,null,null,null,null,null,null,null,null,null,null,null,null,null,null,"Short-term expert, int."]
[null,null,null,null,null,null,null,null,null,null,null,null,null,null,null,null,null,null,null,null,null,null,null,null,null,null,null,null,null,null,null,null,null,null,null,null,null,null,"Short-term expert, reg."]
[null,null,null,null,null,null,null,null,null,null,null,null,null,null,null,null,null,null,null,null,null,null,null,null,null,null,null,null,null,null,null,null,null,null,null,null,null,null,"Short-term expert, nat."]
[null,null,null,null,null,null,null,null,null,null,null,null,null,null,null,null,null,null,null,null,null,null,null,null,null,null,null,null,null,null,null,null,null,null,null,null,null,null,"Other (please define)"]
[]
[null,null,null,null,null,null,null,null,null,null,null,null,null,null,null,null,null,null,null,null,null,null,null,null,null,null,null,null,null,null,null,null,null,null,null,null,null,null,"Please select"]
[null,null,null,null,null,null,null,null,null,null,null,null,null,null,null,null,null,null,null,null,null,null,null,null,null,null,null,null,null,null,null,null,null,null,null,null,null,null,"Travel expenses outside the country"]
[null,null,null,null,null,null,null,null,null,null,null,null,null,null,null,null,null,null,null,null,null,null,null,null,null,null,null,null,null,null,null,null,null,null,null,null,null,null,"Travel expenses in the country"]

{"sheet":"Expert sheet (months or d (26)","index":26,"n_rows":135,"n_cols":39,"rows_kept":135,"cut":false,"hidden":true,"merged":[[55,0,55,1],[55,5,55,8],[55,9,55,11],[56,12,56,14],[49,3,49,4],[49,9,49,14],[50,3,50,4],[50,9,50,14],[51,3,51,4],[51,9,51,14],[54,5,54,8],[54,9,54,11],[46,0,46,16],[47,0,48,0],[47,1,47,2],[47,3,48,4],[47,5,48,5],[47,6,48,6],[47,7,48,7],[47,8,48,8],[47,9,48,14],[47,15,48,16],[40,11,40,15],[41,11,41,15],[42,11,42,15],[43,11,43,15],[44,3,44,4],[44,11,44,15],[36,3,36,4],[36,11,36,15],[36,16,36,17],[38,14,38,15],[39,11,39,15],[39,16,39,17],[33,11,33,15],[33,16,33,17],[34,11,34,15],[34,16,34,17],[35,11,35,15],[35,16,35,17],[30,11,30,15],[30,16,30,17],[31,11,31,15],[31,16,31,17],[32,11,32,15],[32,16,32,17],[26,11,26,17],[28,1,29,1],[28,3,28,5],[28,10,29,10],[28,11,29,15],[28,16,29,17],[21,8,21,14],[21,15,21,16],[23,8,23,14],[23,15,23,16],[24,8,24,14],[24,15,24,16],[22,8,22,14],[19,15,20,16],[15,9,15,13],[15,14,15,15],[16,9,16,13],[16,14,16,15],[19,8,20,14],[16,19,16,20],[18,0,18,16],[12,9,12,13],[12,14,12,15],[13,0,13,5],[13,9,13,13],[13,14,13,15],[14,9,14,13],[14,14,14,15],[6,13,6,14],[7,2,7,4],[8,2,8,4],[9,2,9,4],[11,9,11,13],[11,14,11,15],[5,15,7,15],[6,2,6,4],[6,7,6,8],[6,9,6,10],[6,11,6,12],[1,3,1,4],[1,7,1,9],[5,7,5,8],[5,9,5,12],[5,13,5,14],[6,0,6,1],[9,0,9,1],[21,0,21,2],[22,0,22,2],[28,7,29,7],[19,3,20,3],[19,4,20,4],[19,5,19,6],[19,7,20,7]]}
["Statement on personnel deployment"]
[null,"Contract number:",null,"Processing no./Cost centre:",null,null,null,"Accounting period:"]
[null,{"$f":"'Invoice overview'!A28","v":0},null,null,{"$f":"'Invoice overview'!C28","v":0},null,null,null,null,{"$f":"_xlfn.TEXTJOIN(\"   \",FALSE,IF('Invoice overview'!$G$28 > 0, TEXT('Invoice overview'!$G$28,\"TT.MM.JJJJ\"),\"\"),\"until\",IF('Invoice overview'!$I$28 > 0, TEXT('Invoice overview'!$I$28,\"TT.MM.JJJJ\"),\"\"))","v":"   until   "}]
[]
[]
["Personal data",null,null,null,null,null,"Periods of assignment","Total scheduled time",null,"Accounting period ",null,null,null,"Actual time ",null,"Remarks"]
["Family name, given name:",null,null,null,null,null,null,"Acc. to contract",null,"Actual period",null,"Period",null,"Total"]
["Function:",null,"Please select",null,null,null,null,"Months","Days","dd.mm.yyyy","dd.mm.yyyy","Months","Days","Months","Days"]
["Description of function:",null,null,null,null,null,"Germany"]
["Expert no. per price schedule",null,null,null,null,null,"Other Countries"]
[]
[null,null,null,null,null,null,"Details on leave and sickness",null,null,"Remarks",null,null,null,null,"Reserved for GIZ"]
["Link to assignment period calculation sheet for short-term expert pools:",null,null,null,null,null,"Total contractual entitlement (days)",null,{"$f":"IF( (SUM(H9:H10)) >= 4, (SUM(H9:H10)) * 4, 0)","v":0}]
["https://www.giz.de/de/downloads/giz2012-de-Hilfe_zur_Berechnung_der_Einsatzzeit_von_KZE-Pools.xls",null,null,null,null,null,"Remaining entitlement (days) *"]
[null,null,null,null,null,null,"Leave taken (days)*"]
[null,null,null,null,null,null,"Remaining leave (days)",null,{"$f":"IF(I14>0,I14-I15,I13-I15)","v":0}]
[null,null,null,null,null,null,"Sickness (days)"]
[]
["Personnel costs"]
[null,null,null,"Monthly rate\nacc. to contract","Daily rate\nacc. to contract","Quantity",null,"Amount ","Remarks",null,null,null,null,null,null,"Reserved for GIZ"]
["Remuneration item",null,null,null,null,"Months","Days **"]
["Fee (No. 5.4 General Conditions)",null,null,null,null,null,null,{"$f":"IF(NOT(D22=\"\"),D22*(F22+ROUND((G22/30),3)),IF(NOT(E22=\"\"),E22*G22,0))","v":0}]
["Fee (No. 5.4 General Conditions)",null,null,null,null,null,null,{"$f":"IF(NOT(D23=\"\"),D23*(F23+ROUND((G23/30),3)),IF(NOT(E23=\"\"),E23*G23,0))","v":0}]
["Per diem (No. 5.6. General Conditions)",null,null,null,null,null,null,{"$f":"IF(NOT(D24=\"\"),D24*(F24+ROUND((G24/30),3)),IF(NOT(E24=\"\"),E24*G24,0))","v":0}]
["Accommodation (No. 5.7 General Conditions)",null,null,null,null,null,null,{"$f":"IF(NOT(D25=\"\"),D25*(F25+ROUND((G25/30),3)),IF(NOT(E25=\"\"),E25*G25,0))","v":0}]
[]
["Travel expenses"]
["Air travel (No. 5.8 General Conditions)"]
[null,"Name of traveller",null,"Travel dates",null,null,null,"Amount\n (per voucher or lump sum)",null,null,"Amount ","Remarks",null,null,null,null,"Reserved for GIZ"]
["No.",null,"Type of flight","Destination","Outward flight\n(dd.mm.yyyy)","Homeward flight (dd.mm.yyyy)","Type of reimbursement",null,"Currency","Rate/\nquantity*"]
[1,null,"Please select",null,null,null,"Please select",null,null,null,{"$f":"H31*J31","v":0}]
[2,null,null,null,null,null,null,null,null,null,{"$f":"H32*J32","v":0}]
[3,null,null,null,null,null,null,null,null,null,0]
[4,null,null,null,null,null,null,null,null,null,0]
[5,null,null,null,null,null,null,null,null,null,0]
[6,null,null,null,null,null,null,null,null,null,0]
["TOTAL:",null,null,null,null,null,null,null,null,{"$f":"'Invoice overview'!F32","v":"EUR"},{"$f":"SUM(K31:K36)","v":0}]
[]
["Other travel expenses (No. 5.9 General Conditions)"]
["No.","Country of travel","Nature of travel expenses","Start\n(dd.mm.yyyy)","End\n(dd.mm.yyyy)","Reason for travel","Type of reimbursement","Amount\n (per voucher or lump sum)","Currency","Rate/\nquantity*","Amount ","Remarks",null,null,null,null,"Reserved for GIZ"]
[1,null,"Please select",null,null,null,"Please select",null,null,null,{"$f":"H41*J41","v":0}]
[2,null,null,null,null,null,null,null,null,null,{"$f":"H42*J42","v":0}]
[3,null,null,null,null,null,null,null,null,null,0]
[4,null,null,null,null,null,null,null,null,null,0]
["TOTAL:",null,null,null,null,null,null,null,null,{"$f":"'Invoice overview'!F32","v":"EUR"},{"$f":"SUM(K41:K44)","v":0}]
[]
["Other travel expenses (No. 5.9 General Conditions) MONTHLY LUMP SUM"]
["No.","Accounting period",null,"Nature of travel expenses",null,"Type of reimbursement","Monthly rate\nacc. to contract","Daily rate\nacc. to contract","Amount","Remarks",null,null,null,null,null,"Reserved for GIZ"]
[null,"Months","Days**"]
[1,null,null,"Please select",null,"Lump sum/Month or day",null,null,{"$f":"IF(NOT(G50=\"\"),G50*(B50+ROUND((C50/30),3)),IF(NOT(H50=\"\"),H50*C50,0))","v":0}]
[2,null,null,null,null,"Lump sum/Month or day",null,null,{"$f":"IF(NOT(G51=\"\"),G51*(B51+ROUND((C51/30),3)),IF(NOT(H51=\"\"),H51*C51,0))","v":0}]
["Total:",null,null,null,null,null,null,{"$f":"'Invoice overview'!F32","v":"EUR"},{"$f":"SUM(I50:I51)","v":0}]
[]
["Relocation goods (No. 5.10. General Conditions)"]
["Lump sum (in contract currency)",null,"Quantity","Rate","Amount","Remarks",null,null,null,"Reserved for GIZ"]
[null,null,1,null,{"$f":"D56*C56","v":0}]
[null,null,null,null,null,null,null,null,null,null,null,null,"Total for personnel deployment ",null,null,{"$f":"H22+H23+H24+H25+K37+K45+I52+E56","v":0}]
[]
[]
[]
[]
[]
[]
[]
[]
[]
[]
[]
[]
[]
[]
[]
[]
[]
[]
[]
[]
[]
[]
[]
[]
[]
[]
[]
[]
[]
[]
[]
[]
[]
[]
[]
[]
[]
[]
[]
[]
[]
[]
[]
[]
[]
[]
[]
[]
[]
[]
[]
[]
[]
[]
[]
[null,null,null,null,null,null,null,null,null,null,null,null,null,null,null,null,null,null,null,null,null,null,null,null,null,null,null,null,null,null,null,null,null,null,null,null,null,null,"Please select"]
[null,null,null,null,null,null,null,null,null,null,null,null,null,null,null,null,null,null,null,null,null,null,null,null,null,null,null,null,null,null,null,null,null,null,null,null,null,null,"Expert (outward and homeward journeys)"]
[null,null,null,null,null,null,null,null,null,null,null,null,null,null,null,null,null,null,null,null,null,null,null,null,null,null,null,null,null,null,null,null,null,null,null,null,null,null,"Dependants (outward and homeward journeys) "]
[null,null,null,null,null,null,null,null,null,null,null,null,null,null,null,null,null,null,null,null,null,null,null,null,null,null,null,null,null,null,null,null,null,null,null,null,null,null,"Vacation flights"]
[null,null,null,null,null,null,null,null,null,null,null,null,null,null,null,null,null,null,null,null,null,null,null,null,null,null,null,null,null,null,null,null,null,null,null,null,null,null,"Regional and national flights"]
[null,null,null,null,null,null,null,null,null,null,null,null,null,null,null,null,null,null,null,null,null,null,null,null,null,null,null,null,null,null,null,null,null,null,null,null,null,null,"Other flights"]
[]
[null,null,null,null,null,null,null,null,null,null,null,null,null,null,null,null,null,null,null,null,null,null,null,null,null,null,null,null,null,null,null,null,null,null,null,null,null,null,"Please select"]
[null,null,null,null,null,null,null,null,null,null,null,null,null,null,null,null,null,null,null,null,null,null,null,null,null,null,null,null,null,null,null,null,null,null,null,null,null,null,"Lump sum"]
[null,null,null,null,null,null,null,null,null,null,null,null,null,null,null,null,null,null,null,null,null,null,null,null,null,null,null,null,null,null,null,null,null,null,null,null,null,null,"Against evidence"]
[]
[null,null,null,null,null,null,null,null,null,null,null,null,null,null,null,null,null,null,null,null,null,null,null,null,null,null,null,null,null,null,null,null,null,null,null,null,null,null,"Please select"]
[null,null,null,null,null,null,null,null,null,null,null,null,null,null,null,null,null,null,null,null,null,null,null,null,null,null,null,null,null,null,null,null,null,null,null,null,null,null,"Long-term expert, int."]
[null,null,null,null,null,null,null,null,null,null,null,null,null,null,null,null,null,null,null,null,null,null,null,null,null,null,null,null,null,null,null,null,null,null,null,null,null,null,"Long-term expert, reg."]
[null,null,null,null,null,null,null,null,null,null,null,null,null,null,null,null,null,null,null,null,null,null,null,null,null,null,null,null,null,null,null,null,null,null,null,null,null,null,"Long-term expert, nat."]
[null,null,null,null,null,null,null,null,null,null,null,null,null,null,null,null,null,null,null,null,null,null,null,null,null,null,null,null,null,null,null,null,null,null,null,null,null,null,"Short-term expert, int."]
[null,null,null,null,null,null,null,null,null,null,null,null,null,null,null,null,null,null,null,null,null,null,null,null,null,null,null,null,null,null,null,null,null,null,null,null,null,null,"Short-term expert, reg."]
[null,null,null,null,null,null,null,null,null,null,null,null,null,null,null,null,null,null,null,null,null,null,null,null,null,null,null,null,null,null,null,null,null,null,null,null,null,null,"Short-term expert, nat."]
[null,null,null,null,null,null,null,null,null,null,null,null,null,null,null,null,null,null,null,null,null,null,null,null,null,null,null,null,null,null,null,null,null,null,null,null,null,null,"Other (please define)"]
[]
[null,null,null,null,null,null,null,null,null,null,null,null,null,null,null,null,null,null,null,null,null,null,null,null,null,null,null,null,null,null,null,null,null,null,null,null,null,null,"Please select"]
[null,null,null,null,null,null,null,null,null,null,null,null,null,null,null,null,null,null,null,null,null,null,null,null,null,null,null,null,null,null,null,null,null,null,null,null,null,null,"Travel expenses outside the country"]
[null,null,null,null,null,null,null,null,null,null,null,null,null,null,null,null,null,null,null,null,null,null,null,null,null,null,null,null,null,null,null,null,null,null,null,null,null,null,"Travel expenses in the country"]

{"sheet":"Expert sheet (months or d (27)","index":27,"n_rows":135,"n_cols":39,"rows_kept":135,"cut":false,"hidden":true,"merged":[[55,0,55,1],[55,5,55,8],[55,9,55,11],[56,12,56,14],[49,3,49,4],[49,9,49,14],[50,3,50,4],[50,9,50,14],[51,3,51,4],[51,9,51,14],[54,5,54,8],[54,9,54,11],[46,0,46,16],[47,0,48,0],[47,1,47,2],[47,3,48,4],[47,5,48,5],[47,6,48,6],[47,7,48,7],[47,8,48,8],[47,9,48,14],[47,15,48,16],[40,11,40,15],[41,11,41,15],[42,11,42,15],[43,11,43,15],[44,3,44,4],[44,11,44,15],[36,3,36,4],[36,11,36,15],[36,16,36,17],[38,14,38,15],[39,11,39,15],[39,16,39,17],[33,11,33,15],[33,16,33,17],[34,11,34,15],[34,16,34,17],[35,11,35,15],[35,16,35,17],[30,11,30,15],[30,16,30,17],[31,11,31,15],[31,16,31,17],[32,11,32,15],[32,16,32,17],[26,11,26,17],[28,1,29,1],[28,3,28,5],[28,10,29,10],[28,11,29,15],[28,16,29,17],[21,8,21,14],[21,15,21,16],[23,8,23,14],[23,15,23,16],[24,8,24,14],[24,15,24,16],[22,8,22,14],[19,15,20,16],[15,9,15,13],[15,14,15,15],[16,9,16,13],[16,14,16,15],[19,8,20,14],[16,19,16,20],[18,0,18,16],[12,9,12,13],[12,14,12,15],[13,0,13,5],[13,9,13,13],[13,14,13,15],[14,9,14,13],[14,14,14,15],[6,13,6,14],[7,2,7,4],[8,2,8,4],[9,2,9,4],[11,9,11,13],[11,14,11,15],[5,15,7,15],[6,2,6,4],[6,7,6,8],[6,9,6,10],[6,11,6,12],[1,3,1,4],[1,7,1,9],[5,7,5,8],[5,9,5,12],[5,13,5,14],[6,0,6,1],[9,0,9,1],[21,0,21,2],[22,0,22,2],[28,7,29,7],[19,3,20,3],[19,4,20,4],[19,5,19,6],[19,7,20,7]]}
["Statement on personnel deployment"]
[null,"Contract number:",null,"Processing no./Cost centre:",null,null,null,"Accounting period:"]
[null,{"$f":"'Invoice overview'!A28","v":0},null,null,{"$f":"'Invoice overview'!C28","v":0},null,null,null,null,{"$f":"_xlfn.TEXTJOIN(\"   \",FALSE,IF('Invoice overview'!$G$28 > 0, TEXT('Invoice overview'!$G$28,\"TT.MM.JJJJ\"),\"\"),\"until\",IF('Invoice overview'!$I$28 > 0, TEXT('Invoice overview'!$I$28,\"TT.MM.JJJJ\"),\"\"))","v":"   until   "}]
[]
[]
["Personal data",null,null,null,null,null,"Periods of assignment","Total scheduled time",null,"Accounting period ",null,null,null,"Actual time ",null,"Remarks"]
["Family name, given name:",null,null,null,null,null,null,"Acc. to contract",null,"Actual period",null,"Period",null,"Total"]
["Function:",null,"Please select",null,null,null,null,"Months","Days","dd.mm.yyyy","dd.mm.yyyy","Months","Days","Months","Days"]
["Description of function:",null,null,null,null,null,"Germany"]
["Expert no. per price schedule",null,null,null,null,null,"Other Countries"]
[]
[null,null,null,null,null,null,"Details on leave and sickness",null,null,"Remarks",null,null,null,null,"Reserved for GIZ"]
["Link to assignment period calculation sheet for short-term expert pools:",null,null,null,null,null,"Total contractual entitlement (days)",null,{"$f":"IF( (SUM(H9:H10)) >= 4, (SUM(H9:H10)) * 4, 0)","v":0}]
["https://www.giz.de/de/downloads/giz2012-de-Hilfe_zur_Berechnung_der_Einsatzzeit_von_KZE-Pools.xls",null,null,null,null,null,"Remaining entitlement (days) *"]
[null,null,null,null,null,null,"Leave taken (days)*"]
[null,null,null,null,null,null,"Remaining leave (days)",null,{"$f":"IF(I14>0,I14-I15,I13-I15)","v":0}]
[null,null,null,null,null,null,"Sickness (days)"]
[]
["Personnel costs"]
[null,null,null,"Monthly rate\nacc. to contract","Daily rate\nacc. to contract","Quantity",null,"Amount ","Remarks",null,null,null,null,null,null,"Reserved for GIZ"]
["Remuneration item",null,null,null,null,"Months","Days **"]
["Fee (No. 5.4 General Conditions)",null,null,null,null,null,null,{"$f":"IF(NOT(D22=\"\"),D22*(F22+ROUND((G22/30),3)),IF(NOT(E22=\"\"),E22*G22,0))","v":0}]
["Fee (No. 5.4 General Conditions)",null,null,null,null,null,null,{"$f":"IF(NOT(D23=\"\"),D23*(F23+ROUND((G23/30),3)),IF(NOT(E23=\"\"),E23*G23,0))","v":0}]
["Per diem (No. 5.6. General Conditions)",null,null,null,null,null,null,{"$f":"IF(NOT(D24=\"\"),D24*(F24+ROUND((G24/30),3)),IF(NOT(E24=\"\"),E24*G24,0))","v":0}]
["Accommodation (No. 5.7 General Conditions)",null,null,null,null,null,null,{"$f":"IF(NOT(D25=\"\"),D25*(F25+ROUND((G25/30),3)),IF(NOT(E25=\"\"),E25*G25,0))","v":0}]
[]
["Travel expenses"]
["Air travel (No. 5.8 General Conditions)"]
[null,"Name of traveller",null,"Travel dates",null,null,null,"Amount\n (per voucher or lump sum)",null,null,"Amount ","Remarks",null,null,null,null,"Reserved for GIZ"]
["No.",null,"Type of flight","Destination","Outward flight\n(dd.mm.yyyy)","Homeward flight (dd.mm.yyyy)","Type of reimbursement",null,"Currency","Rate/\nquantity*"]
[1,null,"Please select",null,null,null,"Please select",null,null,null,{"$f":"H31*J31","v":0}]
[2,null,null,null,null,null,null,null,null,null,{"$f":"H32*J32","v":0}]
[3,null,null,null,null,null,null,null,null,null,0]
[4,null,null,null,null,null,null,null,null,null,0]
[5,null,null,null,null,null,null,null,null,null,0]
[6,null,null,null,null,null,null,null,null,null,0]
["TOTAL:",null,null,null,null,null,null,null,null,{"$f":"'Invoice overview'!F32","v":"EUR"},{"$f":"SUM(K31:K36)","v":0}]
[]
["Other travel expenses (No. 5.9 General Conditions)"]
["No.","Country of travel","Nature of travel expenses","Start\n(dd.mm.yyyy)","End\n(dd.mm.yyyy)","Reason for travel","Type of reimbursement","Amount\n (per voucher or lump sum)","Currency","Rate/\nquantity*","Amount ","Remarks",null,null,null,null,"Reserved for GIZ"]
[1,null,"Please select",null,null,null,"Please select",null,null,null,{"$f":"H41*J41","v":0}]
[2,null,null,null,null,null,null,null,null,null,{"$f":"H42*J42","v":0}]
[3,null,null,null,null,null,null,null,null,null,0]
[4,null,null,null,null,null,null,null,null,null,0]
["TOTAL:",null,null,null,null,null,null,null,null,{"$f":"'Invoice overview'!F32","v":"EUR"},{"$f":"SUM(K41:K44)","v":0}]
[]
["Other travel expenses (No. 5.9 General Conditions) MONTHLY LUMP SUM"]
["No.","Accounting period",null,"Nature of travel expenses",null,"Type of reimbursement","Monthly rate\nacc. to contract","Daily rate\nacc. to contract","Amount","Remarks",null,null,null,null,null,"Reserved for GIZ"]
[null,"Months","Days**"]
[1,null,null,"Please select",null,"Lump sum/Month or day",null,null,{"$f":"IF(NOT(G50=\"\"),G50*(B50+ROUND((C50/30),3)),IF(NOT(H50=\"\"),H50*C50,0))","v":0}]
[2,null,null,null,null,"Lump sum/Month or day",null,null,{"$f":"IF(NOT(G51=\"\"),G51*(B51+ROUND((C51/30),3)),IF(NOT(H51=\"\"),H51*C51,0))","v":0}]
["Total:",null,null,null,null,null,null,{"$f":"'Invoice overview'!F32","v":"EUR"},{"$f":"SUM(I50:I51)","v":0}]
[]
["Relocation goods (No. 5.10. General Conditions)"]
["Lump sum (in contract currency)",null,"Quantity","Rate","Amount","Remarks",null,null,null,"Reserved for GIZ"]
[null,null,1,null,{"$f":"D56*C56","v":0}]
[null,null,null,null,null,null,null,null,null,null,null,null,"Total for personnel deployment ",null,null,{"$f":"H22+H23+H24+H25+K37+K45+I52+E56","v":0}]
[]
[]
[]
[]
[]
[]
[]
[]
[]
[]
[]
[]
[]
[]
[]
[]
[]
[]
[]
[]
[]
[]
[]
[]
[]
[]
[]
[]
[]
[]
[]
[]
[]
[]
[]
[]
[]
[]
[]
[]
[]
[]
[]
[]
[]
[]
[]
[]
[]
[]
[]
[]
[]
[]
[]
[null,null,null,null,null,null,null,null,null,null,null,null,null,null,null,null,null,null,null,null,null,null,null,null,null,null,null,null,null,null,null,null,null,null,null,null,null,null,"Please select"]
[null,null,null,null,null,null,null,null,null,null,null,null,null,null,null,null,null,null,null,null,null,null,null,null,null,null,null,null,null,null,null,null,null,null,null,null,null,null,"Expert (outward and homeward journeys)"]
[null,null,null,null,null,null,null,null,null,null,null,null,null,null,null,null,null,null,null,null,null,null,null,null,null,null,null,null,null,null,null,null,null,null,null,null,null,null,"Dependants (outward and homeward journeys) "]
[null,null,null,null,null,null,null,null,null,null,null,null,null,null,null,null,null,null,null,null,null,null,null,null,null,null,null,null,null,null,null,null,null,null,null,null,null,null,"Vacation flights"]
[null,null,null,null,null,null,null,null,null,null,null,null,null,null,null,null,null,null,null,null,null,null,null,null,null,null,null,null,null,null,null,null,null,null,null,null,null,null,"Regional and national flights"]
[null,null,null,null,null,null,null,null,null,null,null,null,null,null,null,null,null,null,null,null,null,null,null,null,null,null,null,null,null,null,null,null,null,null,null,null,null,null,"Other flights"]
[]
[null,null,null,null,null,null,null,null,null,null,null,null,null,null,null,null,null,null,null,null,null,null,null,null,null,null,null,null,null,null,null,null,null,null,null,null,null,null,"Please select"]
[null,null,null,null,null,null,null,null,null,null,null,null,null,null,null,null,null,null,null,null,null,null,null,null,null,null,null,null,null,null,null,null,null,null,null,null,null,null,"Lump sum"]
[null,null,null,null,null,null,null,null,null,null,null,null,null,null,null,null,null,null,null,null,null,null,null,null,null,null,null,null,null,null,null,null,null,null,null,null,null,null,"Against evidence"]
[]
[null,null,null,null,null,null,null,null,null,null,null,null,null,null,null,null,null,null,null,null,null,null,null,null,null,null,null,null,null,null,null,null,null,null,null,null,null,null,"Please select"]
[null,null,null,null,null,null,null,null,null,null,null,null,null,null,null,null,null,null,null,null,null,null,null,null,null,null,null,null,null,null,null,null,null,null,null,null,null,null,"Long-term expert, int."]
[null,null,null,null,null,null,null,null,null,null,null,null,null,null,null,null,null,null,null,null,null,null,null,null,null,null,null,null,null,null,null,null,null,null,null,null,null,null,"Long-term expert, reg."]
[null,null,null,null,null,null,null,null,null,null,null,null,null,null,null,null,null,null,null,null,null,null,null,null,null,null,null,null,null,null,null,null,null,null,null,null,null,null,"Long-term expert, nat."]
[null,null,null,null,null,null,null,null,null,null,null,null,null,null,null,null,null,null,null,null,null,null,null,null,null,null,null,null,null,null,null,null,null,null,null,null,null,null,"Short-term expert, int."]
[null,null,null,null,null,null,null,null,null,null,null,null,null,null,null,null,null,null,null,null,null,null,null,null,null,null,null,null,null,null,null,null,null,null,null,null,null,null,"Short-term expert, reg."]
[null,null,null,null,null,null,null,null,null,null,null,null,null,null,null,null,null,null,null,null,null,null,null,null,null,null,null,null,null,null,null,null,null,null,null,null,null,null,"Short-term expert, nat."]
[null,null,null,null,null,null,null,null,null,null,null,null,null,null,null,null,null,null,null,null,null,null,null,null,null,null,null,null,null,null,null,null,null,null,null,null,null,null,"Other (please define)"]
[]
[null,null,null,null,null,null,null,null,null,null,null,null,null,null,null,null,null,null,null,null,null,null,null,null,null,null,null,null,null,null,null,null,null,null,null,null,null,null,"Please select"]
[null,null,null,null,null,null,null,null,null,null,null,null,null,null,null,null,null,null,null,null,null,null,null,null,null,null,null,null,null,null,null,null,null,null,null,null,null,null,"Travel expenses outside the country"]
[null,null,null,null,null,null,null,null,null,null,null,null,null,null,null,null,null,null,null,null,null,null,null,null,null,null,null,null,null,null,null,null,null,null,null,null,null,null,"Travel expenses in the country"]

{"sheet":"Expert sheet (months or d (28)","index":28,"n_rows":135,"n_cols":39,"rows_kept":135,"cut":false,"hidden":true,"merged":[[55,0,55,1],[55,5,55,8],[55,9,55,11],[56,12,56,14],[49,3,49,4],[49,9,49,14],[50,3,50,4],[50,9,50,14],[51,3,51,4],[51,9,51,14],[54,5,54,8],[54,9,54,11],[46,0,46,16],[47,0,48,0],[47,1,47,2],[47,3,48,4],[47,5,48,5],[47,6,48,6],[47,7,48,7],[47,8,48,8],[47,9,48,14],[47,15,48,16],[40,11,40,15],[41,11,41,15],[42,11,42,15],[43,11,43,15],[44,3,44,4],[44,11,44,15],[36,3,36,4],[36,11,36,15],[36,16,36,17],[38,14,38,15],[39,11,39,15],[39,16,39,17],[33,11,33,15],[33,16,33,17],[34,11,34,15],[34,16,34,17],[35,11,35,15],[35,16,35,17],[30,11,30,15],[30,16,30,17],[31,11,31,15],[31,16,31,17],[32,11,32,15],[32,16,32,17],[26,11,26,17],[28,1,29,1],[28,3,28,5],[28,10,29,10],[28,11,29,15],[28,16,29,17],[21,8,21,14],[21,15,21,16],[23,8,23,14],[23,15,23,16],[24,8,24,14],[24,15,24,16],[22,8,22,14],[19,15,20,16],[15,9,15,13],[15,14,15,15],[16,9,16,13],[16,14,16,15],[19,8,20,14],[16,19,16,20],[18,0,18,16],[12,9,12,13],[12,14,12,15],[13,0,13,5],[13,9,13,13],[13,14,13,15],[14,9,14,13],[14,14,14,15],[6,13,6,14],[7,2,7,4],[8,2,8,4],[9,2,9,4],[11,9,11,13],[11,14,11,15],[5,15,7,15],[6,2,6,4],[6,7,6,8],[6,9,6,10],[6,11,6,12],[1,3,1,4],[1,7,1,9],[5,7,5,8],[5,9,5,12],[5,13,5,14],[6,0,6,1],[9,0,9,1],[21,0,21,2],[22,0,22,2],[28,7,29,7],[19,3,20,3],[19,4,20,4],[19,5,19,6],[19,7,20,7]]}
["Statement on personnel deployment"]
[null,"Contract number:",null,"Processing no./Cost centre:",null,null,null,"Accounting period:"]
[null,{"$f":"'Invoice overview'!A28","v":0},null,null,{"$f":"'Invoice overview'!C28","v":0},null,null,null,null,{"$f":"_xlfn.TEXTJOIN(\"   \",FALSE,IF('Invoice overview'!$G$28 > 0, TEXT('Invoice overview'!$G$28,\"TT.MM.JJJJ\"),\"\"),\"until\",IF('Invoice overview'!$I$28 > 0, TEXT('Invoice overview'!$I$28,\"TT.MM.JJJJ\"),\"\"))","v":"   until   "}]
[]
[]
["Personal data",null,null,null,null,null,"Periods of assignment","Total scheduled time",null,"Accounting period ",null,null,null,"Actual time ",null,"Remarks"]
["Family name, given name:",null,null,null,null,null,null,"Acc. to contract",null,"Actual period",null,"Period",null,"Total"]
["Function:",null,"Please select",null,null,null,null,"Months","Days","dd.mm.yyyy","dd.mm.yyyy","Months","Days","Months","Days"]
["Description of function:",null,null,null,null,null,"Germany"]
["Expert no. per price schedule",null,null,null,null,null,"Other Countries"]
[]
[null,null,null,null,null,null,"Details on leave and sickness",null,null,"Remarks",null,null,null,null,"Reserved for GIZ"]
["Link to assignment period calculation sheet for short-term expert pools:",null,null,null,null,null,"Total contractual entitlement (days)",null,{"$f":"IF( (SUM(H9:H10)) >= 4, (SUM(H9:H10)) * 4, 0)","v":0}]
["https://www.giz.de/de/downloads/giz2012-de-Hilfe_zur_Berechnung_der_Einsatzzeit_von_KZE-Pools.xls",null,null,null,null,null,"Remaining entitlement (days) *"]
[null,null,null,null,null,null,"Leave taken (days)*"]
[null,null,null,null,null,null,"Remaining leave (days)",null,{"$f":"IF(I14>0,I14-I15,I13-I15)","v":0}]
[null,null,null,null,null,null,"Sickness (days)"]
[]
["Personnel costs"]
[null,null,null,"Monthly rate\nacc. to contract","Daily rate\nacc. to contract","Quantity",null,"Amount ","Remarks",null,null,null,null,null,null,"Reserved for GIZ"]
["Remuneration item",null,null,null,null,"Months","Days **"]
["Fee (No. 5.4 General Conditions)",null,null,null,null,null,null,{"$f":"IF(NOT(D22=\"\"),D22*(F22+ROUND((G22/30),3)),IF(NOT(E22=\"\"),E22*G22,0))","v":0}]
["Fee (No. 5.4 General Conditions)",null,null,null,null,null,null,{"$f":"IF(NOT(D23=\"\"),D23*(F23+ROUND((G23/30),3)),IF(NOT(E23=\"\"),E23*G23,0))","v":0}]
["Per diem (No. 5.6. General Conditions)",null,null,null,null,null,null,{"$f":"IF(NOT(D24=\"\"),D24*(F24+ROUND((G24/30),3)),IF(NOT(E24=\"\"),E24*G24,0))","v":0}]
["Accommodation (No. 5.7 General Conditions)",null,null,null,null,null,null,{"$f":"IF(NOT(D25=\"\"),D25*(F25+ROUND((G25/30),3)),IF(NOT(E25=\"\"),E25*G25,0))","v":0}]
[]
["Travel expenses"]
["Air travel (No. 5.8 General Conditions)"]
[null,"Name of traveller",null,"Travel dates",null,null,null,"Amount\n (per voucher or lump sum)",null,null,"Amount ","Remarks",null,null,null,null,"Reserved for GIZ"]
["No.",null,"Type of flight","Destination","Outward flight\n(dd.mm.yyyy)","Homeward flight (dd.mm.yyyy)","Type of reimbursement",null,"Currency","Rate/\nquantity*"]
[1,null,"Please select",null,null,null,"Please select",null,null,null,{"$f":"H31*J31","v":0}]
[2,null,null,null,null,null,null,null,null,null,{"$f":"H32*J32","v":0}]
[3,null,null,null,null,null,null,null,null,null,0]
[4,null,null,null,null,null,null,null,null,null,0]
[5,null,null,null,null,null,null,null,null,null,0]
[6,null,null,null,null,null,null,null,null,null,0]
["TOTAL:",null,null,null,null,null,null,null,null,{"$f":"'Invoice overview'!F32","v":"EUR"},{"$f":"SUM(K31:K36)","v":0}]
[]
["Other travel expenses (No. 5.9 General Conditions)"]
["No.","Country of travel","Nature of travel expenses","Start\n(dd.mm.yyyy)","End\n(dd.mm.yyyy)","Reason for travel","Type of reimbursement","Amount\n (per voucher or lump sum)","Currency","Rate/\nquantity*","Amount ","Remarks",null,null,null,null,"Reserved for GIZ"]
[1,null,"Please select",null,null,null,"Please select",null,null,null,{"$f":"H41*J41","v":0}]
[2,null,null,null,null,null,null,null,null,null,{"$f":"H42*J42","v":0}]
[3,null,null,null,null,null,null,null,null,null,0]
[4,null,null,null,null,null,null,null,null,null,0]
["TOTAL:",null,null,null,null,null,null,null,null,{"$f":"'Invoice overview'!F32","v":"EUR"},{"$f":"SUM(K41:K44)","v":0}]
[]
["Other travel expenses (No. 5.9 General Conditions) MONTHLY LUMP SUM"]
["No.","Accounting period",null,"Nature of travel expenses",null,"Type of reimbursement","Monthly rate\nacc. to contract","Daily rate\nacc. to contract","Amount","Remarks",null,null,null,null,null,"Reserved for GIZ"]
[null,"Months","Days**"]
[1,null,null,"Please select",null,"Lump sum/Month or day",null,null,{"$f":"IF(NOT(G50=\"\"),G50*(B50+ROUND((C50/30),3)),IF(NOT(H50=\"\"),H50*C50,0))","v":0}]
[2,null,null,null,null,"Lump sum/Month or day",null,null,{"$f":"IF(NOT(G51=\"\"),G51*(B51+ROUND((C51/30),3)),IF(NOT(H51=\"\"),H51*C51,0))","v":0}]
["Total:",null,null,null,null,null,null,{"$f":"'Invoice overview'!F32","v":"EUR"},{"$f":"SUM(I50:I51)","v":0}]
[]
["Relocation goods (No. 5.10. General Conditions)"]
["Lump sum (in contract currency)",null,"Quantity","Rate","Amount","Remarks",null,null,null,"Reserved for GIZ"]
[null,null,1,null,{"$f":"D56*C56","v":0}]
[null,null,null,null,null,null,null,null,null,null,null,null,"Total for personnel deployment ",null,null,{"$f":"H22+H23+H24+H25+K37+K45+I52+E56","v":0}]
[]
[]
[]
[]
[]
[]
[]
[]
[]
[]
[]
[]
[]
[]
[]
[]
[]
[]
[]
[]
[]
[]
[]
[]
[]
[]
[]
[]
[]
[]
[]
[]
[]
[]
[]
[]
[]
[]
[]
[]
[]
[]
[]
[]
[]
[]
[]
[]
[]
[]
[]
[]
[]
[]
[]
[null,null,null,null,null,null,null,null,null,null,null,null,null,null,null,null,null,null,null,null,null,null,null,null,null,null,null,null,null,null,null,null,null,null,null,null,null,null,"Please select"]
[null,null,null,null,null,null,null,null,null,null,null,null,null,null,null,null,null,null,null,null,null,null,null,null,null,null,null,null,null,null,null,null,null,null,null,null,null,null,"Expert (outward and homeward journeys)"]
[null,null,null,null,null,null,null,null,null,null,null,null,null,null,null,null,null,null,null,null,null,null,null,null,null,null,null,null,null,null,null,null,null,null,null,null,null,null,"Dependants (outward and homeward journeys) "]
[null,null,null,null,null,null,null,null,null,null,null,null,null,null,null,null,null,null,null,null,null,null,null,null,null,null,null,null,null,null,null,null,null,null,null,null,null,null,"Vacation flights"]
[null,null,null,null,null,null,null,null,null,null,null,null,null,null,null,null,null,null,null,null,null,null,null,null,null,null,null,null,null,null,null,null,null,null,null,null,null,null,"Regional and national flights"]
[null,null,null,null,null,null,null,null,null,null,null,null,null,null,null,null,null,null,null,null,null,null,null,null,null,null,null,null,null,null,null,null,null,null,null,null,null,null,"Other flights"]
[]
[null,null,null,null,null,null,null,null,null,null,null,null,null,null,null,null,null,null,null,null,null,null,null,null,null,null,null,null,null,null,null,null,null,null,null,null,null,null,"Please select"]
[null,null,null,null,null,null,null,null,null,null,null,null,null,null,null,null,null,null,null,null,null,null,null,null,null,null,null,null,null,null,null,null,null,null,null,null,null,null,"Lump sum"]
[null,null,null,null,null,null,null,null,null,null,null,null,null,null,null,null,null,null,null,null,null,null,null,null,null,null,null,null,null,null,null,null,null,null,null,null,null,null,"Against evidence"]
[]
[null,null,null,null,null,null,null,null,null,null,null,null,null,null,null,null,null,null,null,null,null,null,null,null,null,null,null,null,null,null,null,null,null,null,null,null,null,null,"Please select"]
[null,null,null,null,null,null,null,null,null,null,null,null,null,null,null,null,null,null,null,null,null,null,null,null,null,null,null,null,null,null,null,null,null,null,null,null,null,null,"Long-term expert, int."]
[null,null,null,null,null,null,null,null,null,null,null,null,null,null,null,null,null,null,null,null,null,null,null,null,null,null,null,null,null,null,null,null,null,null,null,null,null,null,"Long-term expert, reg."]
[null,null,null,null,null,null,null,null,null,null,null,null,null,null,null,null,null,null,null,null,null,null,null,null,null,null,null,null,null,null,null,null,null,null,null,null,null,null,"Long-term expert, nat."]
[null,null,null,null,null,null,null,null,null,null,null,null,null,null,null,null,null,null,null,null,null,null,null,null,null,null,null,null,null,null,null,null,null,null,null,null,null,null,"Short-term expert, int."]
[null,null,null,null,null,null,null,null,null,null,null,null,null,null,null,null,null,null,null,null,null,null,null,null,null,null,null,null,null,null,null,null,null,null,null,null,null,null,"Short-term expert, reg."]
[null,null,null,null,null,null,null,null,null,null,null,null,null,null,null,null,null,null,null,null,null,null,null,null,null,null,null,null,null,null,null,null,null,null,null,null,null,null,"Short-term expert, nat."]
[null,null,null,null,null,null,null,null,null,null,null,null,null,null,null,null,null,null,null,null,null,null,null,null,null,null,null,null,null,null,null,null,null,null,null,null,null,null,"Other (please define)"]
[]
[null,null,null,null,null,null,null,null,null,null,null,null,null,null,null,null,null,null,null,null,null,null,null,null,null,null,null,null,null,null,null,null,null,null,null,null,null,null,"Please select"]
[null,null,null,null,null,null,null,null,null,null,null,null,null,null,null,null,null,null,null,null,null,null,null,null,null,null,null,null,null,null,null,null,null,null,null,null,null,null,"Travel expenses outside the country"]
[null,null,null,null,null,null,null,null,null,null,null,null,null,null,null,null,null,null,null,null,null,null,null,null,null,null,null,null,null,null,null,null,null,null,null,null,null,null,"Travel expenses in the country"]

{"sheet":"Expert sheet (months or d (29)","index":29,"n_rows":135,"n_cols":39,"rows_kept":135,"cut":false,"hidden":true,"merged":[[55,0,55,1],[55,5,55,8],[55,9,55,11],[56,12,56,14],[49,3,49,4],[49,9,49,14],[50,3,50,4],[50,9,50,14],[51,3,51,4],[51,9,51,14],[54,5,54,8],[54,9,54,11],[46,0,46,16],[47,0,48,0],[47,1,47,2],[47,3,48,4],[47,5,48,5],[47,6,48,6],[47,7,48,7],[47,8,48,8],[47,9,48,14],[47,15,48,16],[40,11,40,15],[41,11,41,15],[42,11,42,15],[43,11,43,15],[44,3,44,4],[44,11,44,15],[36,3,36,4],[36,11,36,15],[36,16,36,17],[38,14,38,15],[39,11,39,15],[39,16,39,17],[33,11,33,15],[33,16,33,17],[34,11,34,15],[34,16,34,17],[35,11,35,15],[35,16,35,17],[30,11,30,15],[30,16,30,17],[31,11,31,15],[31,16,31,17],[32,11,32,15],[32,16,32,17],[26,11,26,17],[28,1,29,1],[28,3,28,5],[28,10,29,10],[28,11,29,15],[28,16,29,17],[21,8,21,14],[21,15,21,16],[23,8,23,14],[23,15,23,16],[24,8,24,14],[24,15,24,16],[22,8,22,14],[19,15,20,16],[15,9,15,13],[15,14,15,15],[16,9,16,13],[16,14,16,15],[19,8,20,14],[16,19,16,20],[18,0,18,16],[12,9,12,13],[12,14,12,15],[13,0,13,5],[13,9,13,13],[13,14,13,15],[14,9,14,13],[14,14,14,15],[6,13,6,14],[7,2,7,4],[8,2,8,4],[9,2,9,4],[11,9,11,13],[11,14,11,15],[5,15,7,15],[6,2,6,4],[6,7,6,8],[6,9,6,10],[6,11,6,12],[1,3,1,4],[1,7,1,9],[5,7,5,8],[5,9,5,12],[5,13,5,14],[6,0,6,1],[9,0,9,1],[21,0,21,2],[22,0,22,2],[28,7,29,7],[19,3,20,3],[19,4,20,4],[19,5,19,6],[19,7,20,7]]}
["Statement on personnel deployment"]
[null,"Contract number:",null,"Processing no./Cost centre:",null,null,null,"Accounting period:"]
[null,{"$f":"'Invoice overview'!A28","v":0},null,null,{"$f":"'Invoice overview'!C28","v":0},null,null,null,null,{"$f":"_xlfn.TEXTJOIN(\"   \",FALSE,IF('Invoice overview'!$G$28 > 0, TEXT('Invoice overview'!$G$28,\"TT.MM.JJJJ\"),\"\"),\"until\",IF('Invoice overview'!$I$28 > 0, TEXT('Invoice overview'!$I$28,\"TT.MM.JJJJ\"),\"\"))","v":"   until   "}]
[]
[]
["Personal data",null,null,null,null,null,"Periods of assignment","Total scheduled time",null,"Accounting period ",null,null,null,"Actual time ",null,"Remarks"]
["Family name, given name:",null,null,null,null,null,null,"Acc. to contract",null,"Actual period",null,"Period",null,"Total"]
["Function:",null,"Please select",null,null,null,null,"Months","Days","dd.mm.yyyy","dd.mm.yyyy","Months","Days","Months","Days"]
["Description of function:",null,null,null,null,null,"Germany"]
["Expert no. per price schedule",null,null,null,null,null,"Other Countries"]
[]
[null,null,null,null,null,null,"Details on leave and sickness",null,null,"Remarks",null,null,null,null,"Reserved for GIZ"]
["Link to assignment period calculation sheet for short-term expert pools:",null,null,null,null,null,"Total contractual entitlement (days)",null,{"$f":"IF( (SUM(H9:H10)) >= 4, (SUM(H9:H10)) * 4, 0)","v":0}]
["https://www.giz.de/de/downloads/giz2012-de-Hilfe_zur_Berechnung_der_Einsatzzeit_von_KZE-Pools.xls",null,null,null,null,null,"Remaining entitlement (days) *"]
[null,null,null,null,null,null,"Leave taken (days)*"]
[null,null,null,null,null,null,"Remaining leave (days)",null,{"$f":"IF(I14>0,I14-I15,I13-I15)","v":0}]
[null,null,null,null,null,null,"Sickness (days)"]
[]
["Personnel costs"]
[null,null,null,"Monthly rate\nacc. to contract","Daily rate\nacc. to contract","Quantity",null,"Amount ","Remarks",null,null,null,null,null,null,"Reserved for GIZ"]
["Remuneration item",null,null,null,null,"Months","Days **"]
["Fee (No. 5.4 General Conditions)",null,null,null,null,null,null,{"$f":"IF(NOT(D22=\"\"),D22*(F22+ROUND((G22/30),3)),IF(NOT(E22=\"\"),E22*G22,0))","v":0}]
["Fee (No. 5.4 General Conditions)",null,null,null,null,null,null,{"$f":"IF(NOT(D23=\"\"),D23*(F23+ROUND((G23/30),3)),IF(NOT(E23=\"\"),E23*G23,0))","v":0}]
["Per diem (No. 5.6. General Conditions)",null,null,null,null,null,null,{"$f":"IF(NOT(D24=\"\"),D24*(F24+ROUND((G24/30),3)),IF(NOT(E24=\"\"),E24*G24,0))","v":0}]
["Accommodation (No. 5.7 General Conditions)",null,null,null,null,null,null,{"$f":"IF(NOT(D25=\"\"),D25*(F25+ROUND((G25/30),3)),IF(NOT(E25=\"\"),E25*G25,0))","v":0}]
[]
["Travel expenses"]
["Air travel (No. 5.8 General Conditions)"]
[null,"Name of traveller",null,"Travel dates",null,null,null,"Amount\n (per voucher or lump sum)",null,null,"Amount ","Remarks",null,null,null,null,"Reserved for GIZ"]
["No.",null,"Type of flight","Destination","Outward flight\n(dd.mm.yyyy)","Homeward flight (dd.mm.yyyy)","Type of reimbursement",null,"Currency","Rate/\nquantity*"]
[1,null,"Please select",null,null,null,"Please select",null,null,null,{"$f":"H31*J31","v":0}]
[2,null,null,null,null,null,null,null,null,null,{"$f":"H32*J32","v":0}]
[3,null,null,null,null,null,null,null,null,null,0]
[4,null,null,null,null,null,null,null,null,null,0]
[5,null,null,null,null,null,null,null,null,null,0]
[6,null,null,null,null,null,null,null,null,null,0]
["TOTAL:",null,null,null,null,null,null,null,null,{"$f":"'Invoice overview'!F32","v":"EUR"},{"$f":"SUM(K31:K36)","v":0}]
[]
["Other travel expenses (No. 5.9 General Conditions)"]
["No.","Country of travel","Nature of travel expenses","Start\n(dd.mm.yyyy)","End\n(dd.mm.yyyy)","Reason for travel","Type of reimbursement","Amount\n (per voucher or lump sum)","Currency","Rate/\nquantity*","Amount ","Remarks",null,null,null,null,"Reserved for GIZ"]
[1,null,"Please select",null,null,null,"Please select",null,null,null,{"$f":"H41*J41","v":0}]
[2,null,null,null,null,null,null,null,null,null,{"$f":"H42*J42","v":0}]
[3,null,null,null,null,null,null,null,null,null,0]
[4,null,null,null,null,null,null,null,null,null,0]
["TOTAL:",null,null,null,null,null,null,null,null,{"$f":"'Invoice overview'!F32","v":"EUR"},{"$f":"SUM(K41:K44)","v":0}]
[]
["Other travel expenses (No. 5.9 General Conditions) MONTHLY LUMP SUM"]
["No.","Accounting period",null,"Nature of travel expenses",null,"Type of reimbursement","Monthly rate\nacc. to contract","Daily rate\nacc. to contract","Amount","Remarks",null,null,null,null,null,"Reserved for GIZ"]
[null,"Months","Days**"]
[1,null,null,"Please select",null,"Lump sum/Month or day",null,null,{"$f":"IF(NOT(G50=\"\"),G50*(B50+ROUND((C50/30),3)),IF(NOT(H50=\"\"),H50*C50,0))","v":0}]
[2,null,null,null,null,"Lump sum/Month or day",null,null,{"$f":"IF(NOT(G51=\"\"),G51*(B51+ROUND((C51/30),3)),IF(NOT(H51=\"\"),H51*C51,0))","v":0}]
["Total:",null,null,null,null,null,null,{"$f":"'Invoice overview'!F32","v":"EUR"},{"$f":"SUM(I50:I51)","v":0}]
[]
["Relocation goods (No. 5.10. General Conditions)"]
["Lump sum (in contract currency)",null,"Quantity","Rate","Amount","Remarks",null,null,null,"Reserved for GIZ"]
[null,null,1,null,{"$f":"D56*C56","v":0}]
[null,null,null,null,null,null,null,null,null,null,null,null,"Total for personnel deployment ",null,null,{"$f":"H22+H23+H24+H25+K37+K45+I52+E56","v":0}]
[]
[]
[]
[]
[]
[]
[]
[]
[]
[]
[]
[]
[]
[]
[]
[]
[]
[]
[]
[]
[]
[]
[]
[]
[]
[]
[]
[]
[]
[]
[]
[]
[]
[]
[]
[]
[]
[]
[]
[]
[]
[]
[]
[]
[]
[]
[]
[]
[]
[]
[]
[]
[]
[]
[]
[null,null,null,null,null,null,null,null,null,null,null,null,null,null,null,null,null,null,null,null,null,null,null,null,null,null,null,null,null,null,null,null,null,null,null,null,null,null,"Please select"]
[null,null,null,null,null,null,null,null,null,null,null,null,null,null,null,null,null,null,null,null,null,null,null,null,null,null,null,null,null,null,null,null,null,null,null,null,null,null,"Expert (outward and homeward journeys)"]
[null,null,null,null,null,null,null,null,null,null,null,null,null,null,null,null,null,null,null,null,null,null,null,null,null,null,null,null,null,null,null,null,null,null,null,null,null,null,"Dependants (outward and homeward journeys) "]
[null,null,null,null,null,null,null,null,null,null,null,null,null,null,null,null,null,null,null,null,null,null,null,null,null,null,null,null,null,null,null,null,null,null,null,null,null,null,"Vacation flights"]
[null,null,null,null,null,null,null,null,null,null,null,null,null,null,null,null,null,null,null,null,null,null,null,null,null,null,null,null,null,null,null,null,null,null,null,null,null,null,"Regional and national flights"]
[null,null,null,null,null,null,null,null,null,null,null,null,null,null,null,null,null,null,null,null,null,null,null,null,null,null,null,null,null,null,null,null,null,null,null,null,null,null,"Other flights"]
[]
[null,null,null,null,null,null,null,null,null,null,null,null,null,null,null,null,null,null,null,null,null,null,null,null,null,null,null,null,null,null,null,null,null,null,null,null,null,null,"Please select"]
[null,null,null,null,null,null,null,null,null,null,null,null,null,null,null,null,null,null,null,null,null,null,null,null,null,null,null,null,null,null,null,null,null,null,null,null,null,null,"Lump sum"]
[null,null,null,null,null,null,null,null,null,null,null,null,null,null,null,null,null,null,null,null,null,null,null,null,null,null,null,null,null,null,null,null,null,null,null,null,null,null,"Against evidence"]
[]
[null,null,null,null,null,null,null,null,null,null,null,null,null,null,null,null,null,null,null,null,null,null,null,null,null,null,null,null,null,null,null,null,null,null,null,null,null,null,"Please select"]
[null,null,null,null,null,null,null,null,null,null,null,null,null,null,null,null,null,null,null,null,null,null,null,null,null,null,null,null,null,null,null,null,null,null,null,null,null,null,"Long-term expert, int."]
[null,null,null,null,null,null,null,null,null,null,null,null,null,null,null,null,null,null,null,null,null,null,null,null,null,null,null,null,null,null,null,null,null,null,null,null,null,null,"Long-term expert, reg."]
[null,null,null,null,null,null,null,null,null,null,null,null,null,null,null,null,null,null,null,null,null,null,null,null,null,null,null,null,null,null,null,null,null,null,null,null,null,null,"Long-term expert, nat."]
[null,null,null,null,null,null,null,null,null,null,null,null,null,null,null,null,null,null,null,null,null,null,null,null,null,null,null,null,null,null,null,null,null,null,null,null,null,null,"Short-term expert, int."]
[null,null,null,null,null,null,null,null,null,null,null,null,null,null,null,null,null,null,null,null,null,null,null,null,null,null,null,null,null,null,null,null,null,null,null,null,null,null,"Short-term expert, reg."]
[null,null,null,null,null,null,null,null,null,null,null,null,null,null,null,null,null,null,null,null,null,null,null,null,null,null,null,null,null,null,null,null,null,null,null,null,null,null,"Short-term expert, nat."]
[null,null,null,null,null,null,null,null,null,null,null,null,null,null,null,null,null,null,null,null,null,null,null,null,null,null,null,null,null,null,null,null,null,null,null,null,null,null,"Other (please define)"]
[]
[null,null,null,null,null,null,null,null,null,null,null,null,null,null,null,null,null,null,null,null,null,null,null,null,null,null,null,null,null,null,null,null,null,null,null,null,null,null,"Please select"]
[null,null,null,null,null,null,null,null,null,null,null,null,null,null,null,null,null,null,null,null,null,null,null,null,null,null,null,null,null,null,null,null,null,null,null,null,null,null,"Travel expenses outside the country"]
[null,null,null,null,null,null,null,null,null,null,null,null,null,null,null,null,null,null,null,null,null,null,null,null,null,null,null,null,null,null,null,null,null,null,null,null,null,null,"Travel expenses in the country"]

{"sheet":"Expert sheet (months or d (30)","index":30,"n_rows":135,"n_cols":39,"rows_kept":135,"cut":false,"hidden":true,"merged":[[55,0,55,1],[55,5,55,8],[55,9,55,11],[56,12,56,14],[49,3,49,4],[49,9,49,14],[50,3,50,4],[50,9,50,14],[51,3,51,4],[51,9,51,14],[54,5,54,8],[54,9,54,11],[46,0,46,16],[47,0,48,0],[47,1,47,2],[47,3,48,4],[47,5,48,5],[47,6,48,6],[47,7,48,7],[47,8,48,8],[47,9,48,14],[47,15,48,16],[40,11,40,15],[41,11,41,15],[42,11,42,15],[43,11,43,15],[44,3,44,4],[44,11,44,15],[36,3,36,4],[36,11,36,15],[36,16,36,17],[38,14,38,15],[39,11,39,15],[39,16,39,17],[33,11,33,15],[33,16,33,17],[34,11,34,15],[34,16,34,17],[35,11,35,15],[35,16,35,17],[30,11,30,15],[30,16,30,17],[31,11,31,15],[31,16,31,17],[32,11,32,15],[32,16,32,17],[26,11,26,17],[28,1,29,1],[28,3,28,5],[28,10,29,10],[28,11,29,15],[28,16,29,17],[21,8,21,14],[21,15,21,16],[23,8,23,14],[23,15,23,16],[24,8,24,14],[24,15,24,16],[22,8,22,14],[19,15,20,16],[15,9,15,13],[15,14,15,15],[16,9,16,13],[16,14,16,15],[19,8,20,14],[16,19,16,20],[18,0,18,16],[12,9,12,13],[12,14,12,15],[13,0,13,5],[13,9,13,13],[13,14,13,15],[14,9,14,13],[14,14,14,15],[6,13,6,14],[7,2,7,4],[8,2,8,4],[9,2,9,4],[11,9,11,13],[11,14,11,15],[5,15,7,15],[6,2,6,4],[6,7,6,8],[6,9,6,10],[6,11,6,12],[1,3,1,4],[1,7,1,9],[5,7,5,8],[5,9,5,12],[5,13,5,14],[6,0,6,1],[9,0,9,1],[21,0,21,2],[22,0,22,2],[28,7,29,7],[19,3,20,3],[19,4,20,4],[19,5,19,6],[19,7,20,7]]}
["Statement on personnel deployment"]
[null,"Contract number:",null,"Processing no./Cost centre:",null,null,null,"Accounting period:"]
[null,{"$f":"'Invoice overview'!A28","v":0},null,null,{"$f":"'Invoice overview'!C28","v":0},null,null,null,null,{"$f":"_xlfn.TEXTJOIN(\"   \",FALSE,IF('Invoice overview'!$G$28 > 0, TEXT('Invoice overview'!$G$28,\"TT.MM.JJJJ\"),\"\"),\"until\",IF('Invoice overview'!$I$28 > 0, TEXT('Invoice overview'!$I$28,\"TT.MM.JJJJ\"),\"\"))","v":"   until   "}]
[]
[]
["Personal data",null,null,null,null,null,"Periods of assignment","Total scheduled time",null,"Accounting period ",null,null,null,"Actual time ",null,"Remarks"]
["Family name, given name:",null,null,null,null,null,null,"Acc. to contract",null,"Actual period",null,"Period",null,"Total"]
["Function:",null,"Please select",null,null,null,null,"Months","Days","dd.mm.yyyy","dd.mm.yyyy","Months","Days","Months","Days"]
["Description of function:",null,null,null,null,null,"Germany"]
["Expert no. per price schedule",null,null,null,null,null,"Other Countries"]
[]
[null,null,null,null,null,null,"Details on leave and sickness",null,null,"Remarks",null,null,null,null,"Reserved for GIZ"]
["Link to assignment period calculation sheet for short-term expert pools:",null,null,null,null,null,"Total contractual entitlement (days)",null,{"$f":"IF( (SUM(H9:H10)) >= 4, (SUM(H9:H10)) * 4, 0)","v":0}]
["https://www.giz.de/de/downloads/giz2012-de-Hilfe_zur_Berechnung_der_Einsatzzeit_von_KZE-Pools.xls",null,null,null,null,null,"Remaining entitlement (days) *"]
[null,null,null,null,null,null,"Leave taken (days)*"]
[null,null,null,null,null,null,"Remaining leave (days)",null,{"$f":"IF(I14>0,I14-I15,I13-I15)","v":0}]
[null,null,null,null,null,null,"Sickness (days)"]
[]
["Personnel costs"]
[null,null,null,"Monthly rate\nacc. to contract","Daily rate\nacc. to contract","Quantity",null,"Amount ","Remarks",null,null,null,null,null,null,"Reserved for GIZ"]
["Remuneration item",null,null,null,null,"Months","Days **"]
["Fee (No. 5.4 General Conditions)",null,null,null,null,null,null,{"$f":"IF(NOT(D22=\"\"),D22*(F22+ROUND((G22/30),3)),IF(NOT(E22=\"\"),E22*G22,0))","v":0}]
["Fee (No. 5.4 General Conditions)",null,null,null,null,null,null,{"$f":"IF(NOT(D23=\"\"),D23*(F23+ROUND((G23/30),3)),IF(NOT(E23=\"\"),E23*G23,0))","v":0}]
["Per diem (No. 5.6. General Conditions)",null,null,null,null,null,null,{"$f":"IF(NOT(D24=\"\"),D24*(F24+ROUND((G24/30),3)),IF(NOT(E24=\"\"),E24*G24,0))","v":0}]
["Accommodation (No. 5.7 General Conditions)",null,null,null,null,null,null,{"$f":"IF(NOT(D25=\"\"),D25*(F25+ROUND((G25/30),3)),IF(NOT(E25=\"\"),E25*G25,0))","v":0}]
[]
["Travel expenses"]
["Air travel (No. 5.8 General Conditions)"]
[null,"Name of traveller",null,"Travel dates",null,null,null,"Amount\n (per voucher or lump sum)",null,null,"Amount ","Remarks",null,null,null,null,"Reserved for GIZ"]
["No.",null,"Type of flight","Destination","Outward flight\n(dd.mm.yyyy)","Homeward flight (dd.mm.yyyy)","Type of reimbursement",null,"Currency","Rate/\nquantity*"]
[1,null,"Please select",null,null,null,"Please select",null,null,null,{"$f":"H31*J31","v":0}]
[2,null,null,null,null,null,null,null,null,null,{"$f":"H32*J32","v":0}]
[3,null,null,null,null,null,null,null,null,null,0]
[4,null,null,null,null,null,null,null,null,null,0]
[5,null,null,null,null,null,null,null,null,null,0]
[6,null,null,null,null,null,null,null,null,null,0]
["TOTAL:",null,null,null,null,null,null,null,null,{"$f":"'Invoice overview'!F32","v":"EUR"},{"$f":"SUM(K31:K36)","v":0}]
[]
["Other travel expenses (No. 5.9 General Conditions)"]
["No.","Country of travel","Nature of travel expenses","Start\n(dd.mm.yyyy)","End\n(dd.mm.yyyy)","Reason for travel","Type of reimbursement","Amount\n (per voucher or lump sum)","Currency","Rate/\nquantity*","Amount ","Remarks",null,null,null,null,"Reserved for GIZ"]
[1,null,"Please select",null,null,null,"Please select",null,null,null,{"$f":"H41*J41","v":0}]
[2,null,null,null,null,null,null,null,null,null,{"$f":"H42*J42","v":0}]
[3,null,null,null,null,null,null,null,null,null,0]
[4,null,null,null,null,null,null,null,null,null,0]
["TOTAL:",null,null,null,null,null,null,null,null,{"$f":"'Invoice overview'!F32","v":"EUR"},{"$f":"SUM(K41:K44)","v":0}]
[]
["Other travel expenses (No. 5.9 General Conditions) MONTHLY LUMP SUM"]
["No.","Accounting period",null,"Nature of travel expenses",null,"Type of reimbursement","Monthly rate\nacc. to contract","Daily rate\nacc. to contract","Amount","Remarks",null,null,null,null,null,"Reserved for GIZ"]
[null,"Months","Days**"]
[1,null,null,"Please select",null,"Lump sum/Month or day",null,null,{"$f":"IF(NOT(G50=\"\"),G50*(B50+ROUND((C50/30),3)),IF(NOT(H50=\"\"),H50*C50,0))","v":0}]
[2,null,null,null,null,"Lump sum/Month or day",null,null,{"$f":"IF(NOT(G51=\"\"),G51*(B51+ROUND((C51/30),3)),IF(NOT(H51=\"\"),H51*C51,0))","v":0}]
["Total:",null,null,null,null,null,null,{"$f":"'Invoice overview'!F32","v":"EUR"},{"$f":"SUM(I50:I51)","v":0}]
[]
["Relocation goods (No. 5.10. General Conditions)"]
["Lump sum (in contract currency)",null,"Quantity","Rate","Amount","Remarks",null,null,null,"Reserved for GIZ"]
[null,null,1,null,{"$f":"D56*C56","v":0}]
[null,null,null,null,null,null,null,null,null,null,null,null,"Total for personnel deployment ",null,null,{"$f":"H22+H23+H24+H25+K37+K45+I52+E56","v":0}]
[]
[]
[]
[]
[]
[]
[]
[]
[]
[]
[]
[]
[]
[]
[]
[]
[]
[]
[]
[]
[]
[]
[]
[]
[]
[]
[]
[]
[]
[]
[]
[]
[]
[]
[]
[]
[]
[]
[]
[]
[]
[]
[]
[]
[]
[]
[]
[]
[]
[]
[]
[]
[]
[]
[]
[null,null,null,null,null,null,null,null,null,null,null,null,null,null,null,null,null,null,null,null,null,null,null,null,null,null,null,null,null,null,null,null,null,null,null,null,null,null,"Please select"]
[null,null,null,null,null,null,null,null,null,null,null,null,null,null,null,null,null,null,null,null,null,null,null,null,null,null,null,null,null,null,null,null,null,null,null,null,null,null,"Expert (outward and homeward journeys)"]
[null,null,null,null,null,null,null,null,null,null,null,null,null,null,null,null,null,null,null,null,null,null,null,null,null,null,null,null,null,null,null,null,null,null,null,null,null,null,"Dependants (outward and homeward journeys) "]
[null,null,null,null,null,null,null,null,null,null,null,null,null,null,null,null,null,null,null,null,null,null,null,null,null,null,null,null,null,null,null,null,null,null,null,null,null,null,"Vacation flights"]
[null,null,null,null,null,null,null,null,null,null,null,null,null,null,null,null,null,null,null,null,null,null,null,null,null,null,null,null,null,null,null,null,null,null,null,null,null,null,"Regional and national flights"]
[null,null,null,null,null,null,null,null,null,null,null,null,null,null,null,null,null,null,null,null,null,null,null,null,null,null,null,null,null,null,null,null,null,null,null,null,null,null,"Other flights"]
[]
[null,null,null,null,null,null,null,null,null,null,null,null,null,null,null,null,null,null,null,null,null,null,null,null,null,null,null,null,null,null,null,null,null,null,null,null,null,null,"Please select"]
[null,null,null,null,null,null,null,null,null,null,null,null,null,null,null,null,null,null,null,null,null,null,null,null,null,null,null,null,null,null,null,null,null,null,null,null,null,null,"Lump sum"]
[null,null,null,null,null,null,null,null,null,null,null,null,null,null,null,null,null,null,null,null,null,null,null,null,null,null,null,null,null,null,null,null,null,null,null,null,null,null,"Against evidence"]
[]
[null,null,null,null,null,null,null,null,null,null,null,null,null,null,null,null,null,null,null,null,null,null,null,null,null,null,null,null,null,null,null,null,null,null,null,null,null,null,"Please select"]
[null,null,null,null,null,null,null,null,null,null,null,null,null,null,null,null,null,null,null,null,null,null,null,null,null,null,null,null,null,null,null,null,null,null,null,null,null,null,"Long-term expert, int."]
[null,null,null,null,null,null,null,null,null,null,null,null,null,null,null,null,null,null,null,null,null,null,null,null,null,null,null,null,null,null,null,null,null,null,null,null,null,null,"Long-term expert, reg."]
[null,null,null,null,null,null,null,null,null,null,null,null,null,null,null,null,null,null,null,null,null,null,null,null,null,null,null,null,null,null,null,null,null,null,null,null,null,null,"Long-term expert, nat."]
[null,null,null,null,null,null,null,null,null,null,null,null,null,null,null,null,null,null,null,null,null,null,null,null,null,null,null,null,null,null,null,null,null,null,null,null,null,null,"Short-term expert, int."]
[null,null,null,null,null,null,null,null,null,null,null,null,null,null,null,null,null,null,null,null,null,null,null,null,null,null,null,null,null,null,null,null,null,null,null,null,null,null,"Short-term expert, reg."]
[null,null,null,null,null,null,null,null,null,null,null,null,null,null,null,null,null,null,null,null,null,null,null,null,null,null,null,null,null,null,null,null,null,null,null,null,null,null,"Short-term expert, nat."]
[null,null,null,null,null,null,null,null,null,null,null,null,null,null,null,null,null,null,null,null,null,null,null,null,null,null,null,null,null,null,null,null,null,null,null,null,null,null,"Other (please define)"]
[]
[null,null,null,null,null,null,null,null,null,null,null,null,null,null,null,null,null,null,null,null,null,null,null,null,null,null,null,null,null,null,null,null,null,null,null,null,null,null,"Please select"]
[null,null,null,null,null,null,null,null,null,null,null,null,null,null,null,null,null,null,null,null,null,null,null,null,null,null,null,null,null,null,null,null,null,null,null,null,null,null,"Travel expenses outside the country"]
[null,null,null,null,null,null,null,null,null,null,null,null,null,null,null,null,null,null,null,null,null,null,null,null,null,null,null,null,null,null,null,null,null,null,null,null,null,null,"Travel expenses in the country"]

{"sheet":"5.11. National personnel","index":31,"n_rows":18,"n_cols":12,"rows_kept":18,"cut":false,"hidden":false,"merged":[]}
["5.11.   Deployment of national personnel (lump sum on presentation of copy of employment contract)"]
[]
[null,"Contract number:","Processing no.\n/ Cost centre:",null,"Accounting period:"]
[null,{"$f":"'Invoice overview'!A28","v":0},{"$f":"'Invoice overview'!C28","v":0},null,{"$f":"_xlfn.TEXTJOIN(\"   \",FALSE,IF('Invoice overview'!$G$28 > 0, TEXT('Invoice overview'!$G$28,\"TT.MM.JJJJ\"),\"\"),\"until\",IF('Invoice overview'!$I$28 > 0, TEXT('Invoice overview'!$I$28,\"TT.MM.JJJJ\"),\"\"))","v":"   until   "}]
[]
[]
["Voucher no.","Name ","Start in accounting period\ndd/mm/yy","End in accounting period\ndd/mm/yy","Costs  \n/Month","Month","Days","Total","Remarks"]
[1,null,null,null,0,{"$f":"IF(AND(NOT(C8=\"\"),NOT(D8=\"\")),DATEDIF(C8,D8,\"m\"),0)","v":0},{"$f":"IF(AND(NOT(C8=\"\"),NOT(D8=\"\")),DATEDIF(C8,D8,\"md\")+1,0)","v":0},{"$f":"(F8+ROUND((G8/30),3))*E8","v":0},null,null,null,"Pauschal"]
[2,null,null,null,0,0,0,{"$f":"(F9+ROUND((G9/30),3))*E9","v":0}]
[3,null,null,null,0,0,0,{"$f":"(F10+ROUND((G10/30),3))*E10","v":0}]
[4,null,null,null,0,0,0,{"$f":"(F11+ROUND((G11/30),3))*E11","v":0}]
[5,null,null,null,0,0,0,{"$f":"(F12+ROUND((G12/30),3))*E12","v":0}]
[6,null,null,null,0,0,0,{"$f":"(F13+ROUND((G13/30),3))*E13","v":0}]
[7,null,null,null,0,0,0,{"$f":"(F14+ROUND((G14/30),3))*E14","v":0}]
[8,null,null,null,0,0,0,{"$f":"(F15+ROUND((G15/30),3))*E15","v":0}]
[9,null,null,null,0,0,0,{"$f":"(F16+ROUND((G16/30),3))*E16","v":0}]
[10,null,null,null,0,0,0,{"$f":"(F17+ROUND((G17/30),3))*E17","v":0}]
["TOTAL:",null,null,null,null,null,{"$f":"'Invoice overview'!F32","v":"EUR"},{"$f":"SUM(H8:H17)","v":0}]

{"sheet":"5.12. Equipment","index":32,"n_rows":43,"n_cols":9,"rows_kept":43,"cut":false,"hidden":false,"merged":[[0,0,0,8]]}
["5.12.   Equipment (on presentation of evidence only)"]
[null,"Contract number:","Processing no./Cost centre:",null,null,null,null,"Accounting period:"]
[null,{"$f":"'Invoice overview'!A28","v":0},{"$f":"'Invoice overview'!C28","v":0},null,null,null,null,{"$f":"_xlfn.TEXTJOIN(\"   \",FALSE,IF('Invoice overview'!$G$28 > 0, TEXT('Invoice overview'!$G$28,\"TT.MM.JJJJ\"),\"\"),\"until\",IF('Invoice overview'!$I$28 > 0, TEXT('Invoice overview'!$I$28,\"TT.MM.JJJJ\"),\"\"))","v":"   until   "}]
[]
[]
["Voucher no.","Equipment procured \n","Supplier","Voucher date\ndd/mm/yy","Amount\nof the voucher","Currency\nof the voucher","Exchange rate*","Price","Remarks "]
[1,null,null,null,null,null,null,{"$f":"E7*G7","v":0}]
[2,null,null,null,null,null,null,0]
[3,null,null,null,null,null,null,0]
[4,null,null,null,null,null,null,0]
[5,null,null,null,null,null,null,0]
[6,null,null,null,null,null,null,0]
[7,null,null,null,null,null,null,0]
[8,null,null,null,null,null,null,0]
[9,null,null,null,null,null,null,0]
[10,null,null,null,null,null,null,0]
[11,null,null,null,null,null,null,0]
[12,null,null,null,null,null,null,0]
[13,null,null,null,null,null,null,0]
[14,null,null,null,null,null,null,0]
[15,null,null,null,null,null,null,0]
[16,null,null,null,null,null,null,0]
[17,null,null,null,null,null,null,0]
[18,null,null,null,null,null,null,0]
[19,null,null,null,null,null,null,0]
[20,null,null,null,null,null,null,0]
[21,null,null,null,null,null,null,0]
[22,null,null,null,null,null,null,0]
[23,null,null,null,null,null,null,0]
[24,null,null,null,null,null,null,0]
[25,null,null,null,null,null,null,0]
[26,null,null,null,null,null,null,0]
[27,null,null,null,null,null,null,0]
[28,null,null,null,null,null,null,0]
[29,null,null,null,null,null,null,0]
[30,null,null,null,null,null,null,0]
[31,null,null,null,null,null,null,0]
[32,null,null,null,null,null,null,0]
[33,null,null,null,null,null,null,0]
[34,null,null,null,null,null,null,0]
[35,null,null,null,null,null,null,0]
[36,null,null,null,null,null,null,{"$f":"E42*G42","v":0}]
["TOTAL:",null,null,null,null,null,{"$f":"'Invoice overview'!F32","v":"EUR"},{"$f":"SUM(H7:H42)","v":0}]

{"sheet":"5.13. Consumables","index":33,"n_rows":93,"n_cols":8,"rows_kept":93,"cut":false,"hidden":false,"merged":[[0,0,0,7],[60,0,60,5],[31,0,31,5],[90,0,90,5]]}
["5.13.   Consumables"]
[]
[null,"Contract number:",null,"Processing no./Cost centre:",null,"Accounting period:"]
[null,{"$f":"'Invoice overview'!A28","v":0},null,{"$f":"'Invoice overview'!C28","v":0},null,{"$f":"_xlfn.TEXTJOIN(\"   \",FALSE,IF('Invoice overview'!$G$28 > 0, TEXT('Invoice overview'!$G$28,\"TT.MM.JJJJ\"),\"\"),\"until\",IF('Invoice overview'!$I$28 > 0, TEXT('Invoice overview'!$I$28,\"TT.MM.JJJJ\"),\"\"))","v":"   until   "}]
[]
[]
["5.13.1 Office and operating costs"]
[]
["Lump sum"]
["No.","Nature of office and operating costs","Lump sum amount","Quantity","Price","Remarks"]
[1,null,0,0,{"$f":"C11*D11","v":0}]
[2,null,0,0,{"$f":"SUM(C12*D12)","v":0}]
[3,null,0,0,0]
[4,null,0,0,0]
[5,null,0,0,0]
[6,null,0,0,0]
[7,null,0,0,0]
[8,null,0,0,0]
[9,null,0,0,0]
[10,null,0,0,0]
[null,null,null,"Subtotal:",{"$f":"SUM(E11:E20)","v":0}]
[]
["Against evidence"]
["Voucher no.","Nature of office and operating costs","Voucher date\ndd/mm/yy","Amount\nof the voucher","Currency\nof the voucher","Exchange rate*","Price","Remarks"]
[1,null,null,0,null,null,{"$f":"D25*F25","v":0}]
[2,null,null,0,null,null,{"$f":"D26*F26","v":0}]
[3,null,null,0,null,null,0]
[4,null,null,0,null,null,0]
[5,null,null,0,null,null,0]
[6,null,null,0,null,null,0]
[7,null,null,0,null,null,0]
["Subtotal:",null,null,null,null,null,{"$f":"SUM(G25:G31)","v":0}]
[]
["Total office and operating costs:",null,null,null,null,{"$f":"'Invoice overview'!F32","v":"EUR"},{"$f":"E21+G32","v":0}]
[]
["5.13.2 Vehicle costs"]
[]
["Lump sum"]
["No.","Nature of vehicle costs","Lump sum amount","Quantity","Price","Remarks"]
[1,null,0,0,{"$f":"SUM(C40*D40)","v":0}]
[2,null,0,0,0]
[3,null,0,0,0]
[4,null,0,0,0]
[5,null,0,0,0]
[6,null,0,0,0]
[7,null,0,0,0]
[8,null,0,0,0]
[9,null,0,0,0]
[10,null,0,0,0]
[null,null,null,"Subtotal:",{"$f":"SUM(E40:E49)","v":0}]
[]
["Against evidence"]
["Voucher no.","Nature of vehicle costs","Voucher date\ndd/mm/yy","Amount\nof the voucher","Currency\nof the voucher","Exchange rate*","Price","Remarks"]
[1,null,null,0,null,null,{"$f":"D54*F54","v":0}]
[2,null,null,0,null,null,{"$f":"D55*F55","v":0}]
[3,null,null,0,null,null,0]
[4,null,null,0,null,null,0]
[5,null,null,0,null,null,0]
[6,null,null,0,null,null,0]
[7,null,null,0,null,null,0]
["Zwischensumme:",null,null,null,null,null,{"$f":"SUM(G54:G60)","v":0}]
[]
["Total vehicle costs",null,null,null,null,{"$f":"'Invoice overview'!F32","v":"EUR"},{"$f":"G61+E50","v":0}]
[]
[]
["5.13.3 Other consumables"]
[]
["Lump sum"]
["No.","Nature of consumables","Lump sum amount","Quantity","Price","Remarks"]
[1,null,0,0,{"$f":"SUM(C70*D70)","v":0}]
[2,null,0,0,0]
[3,null,0,0,0]
[4,null,0,0,0]
[5,null,0,0,0]
[6,null,0,0,0]
[7,null,0,0,0]
[8,null,0,0,0]
[9,null,0,0,0]
[10,null,0,0,0]
[null,null,null,"Subtotal:",{"$f":"SUM(E70:E79)","v":0}]
[]
["Against evidence"]
["Voucher no.","Nature of consumables","Voucher date\ndd/mm/yy","Amount\nof the voucher","Currency\nof the voucher","Exchange rate*","Price","Remarks"]
[1,null,null,0,null,null,{"$f":"D84*F84","v":0}]
[2,null,null,0,null,null,{"$f":"D85*F85","v":0}]
[3,null,null,0,null,null,0]
[4,null,null,0,null,null,0]
[5,null,null,0,null,null,0]
[6,null,null,0,null,null,0]
[7,null,null,0,null,null,0]
["Subtotal:",null,null,null,null,null,{"$f":"SUM(G84:G90)","v":0}]
[]
["Total costs of other consumables",null,null,null,null,{"$f":"'Invoice overview'!F32","v":"EUR"},{"$f":"G91+E80","v":0}]

{"sheet":"5.14. Subcontracts","index":34,"n_rows":18,"n_cols":8,"rows_kept":18,"cut":false,"hidden":false,"merged":[[0,0,0,7]]}
["5.14.   Subcontracts (on presentation of evidence only)"]
[]
[null,"Contract number:","Processing no./Cost centre:",null,"Accounting period:"]
[null,{"$f":"'Invoice overview'!A28","v":0},{"$f":"'Invoice overview'!C28","v":0},null,{"$f":"_xlfn.TEXTJOIN(\"   \",FALSE,IF('Invoice overview'!$G$28 > 0, TEXT('Invoice overview'!$G$28,\"TT.MM.JJJJ\"),\"\"),\"bis\",IF('Invoice overview'!$I$28 > 0, TEXT('Invoice overview'!$I$28,\"TT.MM.JJJJ\"),\"\"))","v":"   bis   "}]
[]
[]
["Voucher no.","Subcontractor name","Reason for contract","Amount\nof the voucher","Currency\nof the voucher","Exchange rate*","Price","Remarks"]
[1,null,null,null,null,null,{"$f":"D8*F8","v":0}]
[2,null,null,null,null,null,{"$f":"D9*F9","v":0}]
[3,null,null,null,null,null,0]
[4,null,null,null,null,null,0]
[5,null,null,null,null,null,0]
[6,null,null,null,null,null,0]
[7,null,null,null,null,null,0]
[8,null,null,null,null,null,0]
[9,null,null,null,null,null,0]
[10,null,null,null,null,null,0]
["TOTAL:",null,null,null,null,{"$f":"'Invoice overview'!F32","v":"EUR"},{"$f":"SUM(G8:G17)","v":0}]

{"sheet":"5.15. Wo. & tr. for partner","index":35,"n_rows":38,"n_cols":8,"rows_kept":38,"cut":false,"hidden":false,"merged":[[37,1,37,2],[5,2,5,5],[0,0,0,6]]}
["5.15.   Workshops/Training for partner staff (only on presentation of evidence) ",null,null,null,null,null,null,1]
[]
[null,"Contract number:",null,"Processing no./Cost centre:",null,"Accounting period:"]
[null,{"$f":"'Invoice overview'!A28","v":0},null,{"$f":"'Invoice overview'!C28","v":0},null,{"$f":"_xlfn.TEXTJOIN(\"   \",FALSE,IF('Invoice overview'!$G$28 > 0, TEXT('Invoice overview'!$G$28,\"TT.MM.JJJJ\"),\"\"),\"until\",IF('Invoice overview'!$I$28 > 0, TEXT('Invoice overview'!$I$28,\"TT.MM.JJJJ\"),\"\"))","v":"   until   "}]
[]
["V1","Nature of event:",null,null,null,null,"Place/date:"]
["Voucher no.","Voucher content","Voucher date\ndd/mm/yy","Amount\nof the voucher","Currency\nof the voucher","Exchange rate*","Price","Remarks"]
[1,null,null,null,null,null,{"$f":"D8*F8","v":0}]
[2,null,null,null,null,null,{"$f":"D9*F9","v":0}]
[3,null,null,null,null,null,0]
[4,null,null,null,null,null,0]
[5,null,null,null,null,null,0]
[6,null,null,null,null,null,0]
[7,null,null,null,null,null,0]
[8,null,null,null,null,null,0]
[9,null,null,null,null,null,0]
[10,null,null,null,null,null,0]
[11,null,null,null,null,null,0]
[12,null,null,null,null,null,0]
[13,null,null,null,null,null,0]
[14,null,null,null,null,null,0]
[15,null,null,null,null,null,0]
[16,null,null,null,null,null,0]
[17,null,null,null,null,null,0]
[18,null,null,null,null,null,0]
[19,null,null,null,null,null,0]
[20,null,null,null,null,null,0]
[21,null,null,null,null,null,0]
[22,null,null,null,null,null,0]
[23,null,null,null,null,null,0]
[24,null,null,null,null,null,0]
[25,null,null,null,null,null,0]
[26,null,null,null,null,null,0]
[27,null,null,null,null,null,0]
[28,null,null,null,null,null,0]
[29,null,null,null,null,null,0]
[30,null,null,null,null,null,0]
[null,"Total V1:",null,null,null,{"$f":"'Invoice overview'!F32","v":"EUR"},{"$f":"SUM(G8:G37)","v":0}]

{"sheet":"5.15. Wo. & tr. for partner (2)","index":36,"n_rows":38,"n_cols":8,"rows_kept":38,"cut":false,"hidden":true,"merged":[[5,2,5,5],[37,1,37,2],[0,0,0,6]]}
["5.15.   Workshops/Training for partner staff (only on presentation of evidence) ",null,null,null,null,null,null,2]
[]
[null,"Contract number:",null,"Processing no./Cost centre:",null,"Accounting period:"]
[null,{"$f":"'Invoice overview'!A28","v":0},null,{"$f":"'Invoice overview'!C28","v":0},null,{"$f":"_xlfn.TEXTJOIN(\"   \",FALSE,IF('Invoice overview'!$G$28 > 0, TEXT('Invoice overview'!$G$28,\"TT.MM.JJJJ\"),\"\"),\"until\",IF('Invoice overview'!$I$28 > 0, TEXT('Invoice overview'!$I$28,\"TT.MM.JJJJ\"),\"\"))","v":"   until   "}]
[]
["V1","Nature of event:",null,null,null,null,"Place/date:"]
["Voucher no.","Voucher content","Voucher date\ndd/mm/yy","Amount\nof the voucher","Currency\nof the voucher","Exchange rate*","Price","Remarks"]
[1,null,null,null,null,null,{"$f":"D8*F8","v":0}]
[2,null,null,null,null,null,{"$f":"D9*F9","v":0}]
[3,null,null,null,null,null,0]
[4,null,null,null,null,null,0]
[5,null,null,null,null,null,0]
[6,null,null,null,null,null,0]
[7,null,null,null,null,null,0]
[8,null,null,null,null,null,0]
[9,null,null,null,null,null,0]
[10,null,null,null,null,null,0]
[11,null,null,null,null,null,0]
[12,null,null,null,null,null,0]
[13,null,null,null,null,null,0]
[14,null,null,null,null,null,0]
[15,null,null,null,null,null,0]
[16,null,null,null,null,null,0]
[17,null,null,null,null,null,0]
[18,null,null,null,null,null,0]
[19,null,null,null,null,null,0]
[20,null,null,null,null,null,0]
[21,null,null,null,null,null,0]
[22,null,null,null,null,null,0]
[23,null,null,null,null,null,0]
[24,null,null,null,null,null,0]
[25,null,null,null,null,null,0]
[26,null,null,null,null,null,0]
[27,null,null,null,null,null,0]
[28,null,null,null,null,null,0]
[29,null,null,null,null,null,0]
[30,null,null,null,null,null,0]
[null,"Total V1:",null,null,null,{"$f":"'Invoice overview'!F32","v":"EUR"},{"$f":"SUM(G8:G37)","v":0}]

{"sheet":"5.15. Wo. & tr. for partner (3)","index":37,"n_rows":38,"n_cols":8,"rows_kept":38,"cut":false,"hidden":true,"merged":[[5,2,5,5],[37,1,37,2],[0,0,0,6]]}
["5.15.   Workshops/Training for partner staff (only on presentation of evidence) ",null,null,null,null,null,null,3]
[]
[null,"Contract number:",null,"Processing no./Cost centre:",null,"Accounting period:"]
[null,{"$f":"'Invoice overview'!A28","v":0},null,{"$f":"'Invoice overview'!C28","v":0},null,{"$f":"_xlfn.TEXTJOIN(\"   \",FALSE,IF('Invoice overview'!$G$28 > 0, TEXT('Invoice overview'!$G$28,\"TT.MM.JJJJ\"),\"\"),\"until\",IF('Invoice overview'!$I$28 > 0, TEXT('Invoice overview'!$I$28,\"TT.MM.JJJJ\"),\"\"))","v":"   until   "}]
[]
["V1","Nature of event:",null,null,null,null,"Place/date:"]
["Voucher no.","Voucher content","Voucher date\ndd/mm/yy","Amount\nof the voucher","Currency\nof the voucher","Exchange rate*","Price","Remarks"]
[1,null,null,null,null,null,{"$f":"D8*F8","v":0}]
[2,null,null,null,null,null,{"$f":"D9*F9","v":0}]
[3,null,null,null,null,null,0]
[4,null,null,null,null,null,0]
[5,null,null,null,null,null,0]
[6,null,null,null,null,null,0]
[7,null,null,null,null,null,0]
[8,null,null,null,null,null,0]
[9,null,null,null,null,null,0]
[10,null,null,null,null,null,0]
[11,null,null,null,null,null,0]
[12,null,null,null,null,null,0]
[13,null,null,null,null,null,0]
[14,null,null,null,null,null,0]
[15,null,null,null,null,null,0]
[16,null,null,null,null,null,0]
[17,null,null,null,null,null,0]
[18,null,null,null,null,null,0]
[19,null,null,null,null,null,0]
[20,null,null,null,null,null,0]
[21,null,null,null,null,null,0]
[22,null,null,null,null,null,0]
[23,null,null,null,null,null,0]
[24,null,null,null,null,null,0]
[25,null,null,null,null,null,0]
[26,null,null,null,null,null,0]
[27,null,null,null,null,null,0]
[28,null,null,null,null,null,0]
[29,null,null,null,null,null,0]
[30,null,null,null,null,null,0]
[null,"Total V1:",null,null,null,{"$f":"'Invoice overview'!F32","v":"EUR"},{"$f":"SUM(G8:G37)","v":0}]

{"sheet":"5.15. Wo. & tr. for partner (4)","index":38,"n_rows":38,"n_cols":8,"rows_kept":38,"cut":false,"hidden":true,"merged":[[5,2,5,5],[37,1,37,2],[0,0,0,6]]}
["5.15.   Workshops/Training for partner staff (only on presentation of evidence) ",null,null,null,null,null,null,4]
[]
[null,"Contract number:",null,"Processing no./Cost centre:",null,"Accounting period:"]
[null,{"$f":"'Invoice overview'!A28","v":0},null,{"$f":"'Invoice overview'!C28","v":0},null,{"$f":"_xlfn.TEXTJOIN(\"   \",FALSE,IF('Invoice overview'!$G$28 > 0, TEXT('Invoice overview'!$G$28,\"TT.MM.JJJJ\"),\"\"),\"until\",IF('Invoice overview'!$I$28 > 0, TEXT('Invoice overview'!$I$28,\"TT.MM.JJJJ\"),\"\"))","v":"   until   "}]
[]
["V1","Nature of event:",null,null,null,null,"Place/date:"]
["Voucher no.","Voucher content","Voucher date\ndd/mm/yy","Amount\nof the voucher","Currency\nof the voucher","Exchange rate*","Price","Remarks"]
[1,null,null,null,null,null,{"$f":"D8*F8","v":0}]
[2,null,null,null,null,null,{"$f":"D9*F9","v":0}]
[3,null,null,null,null,null,0]
[4,null,null,null,null,null,0]
[5,null,null,null,null,null,0]
[6,null,null,null,null,null,0]
[7,null,null,null,null,null,0]
[8,null,null,null,null,null,0]
[9,null,null,null,null,null,0]
[10,null,null,null,null,null,0]
[11,null,null,null,null,null,0]
[12,null,null,null,null,null,0]
[13,null,null,null,null,null,0]
[14,null,null,null,null,null,0]
[15,null,null,null,null,null,0]
[16,null,null,null,null,null,0]
[17,null,null,null,null,null,0]
[18,null,null,null,null,null,0]
[19,null,null,null,null,null,0]
[20,null,null,null,null,null,0]
[21,null,null,null,null,null,0]
[22,null,null,null,null,null,0]
[23,null,null,null,null,null,0]
[24,null,null,null,null,null,0]
[25,null,null,null,null,null,0]
[26,null,null,null,null,null,0]
[27,null,null,null,null,null,0]
[28,null,null,null,null,null,0]
[29,null,null,null,null,null,0]
[30,null,null,null,null,null,0]
[null,"Total V1:",null,null,null,{"$f":"'Invoice overview'!F32","v":"EUR"},{"$f":"SUM(G8:G37)","v":0}]

{"sheet":"5.15. Wo. & tr. for partner (5)","index":39,"n_rows":38,"n_cols":8,"rows_kept":38,"cut":false,"hidden":true,"merged":[[5,2,5,5],[37,1,37,2],[0,0,0,6]]}
["5.15.   Workshops/Training for partner staff (only on presentation of evidence) ",null,null,null,null,null,null,5]
[]
[null,"Contract number:",null,"Processing no./Cost centre:",null,"Accounting period:"]
[null,{"$f":"'Invoice overview'!A28","v":0},null,{"$f":"'Invoice overview'!C28","v":0},null,{"$f":"_xlfn.TEXTJOIN(\"   \",FALSE,IF('Invoice overview'!$G$28 > 0, TEXT('Invoice overview'!$G$28,\"TT.MM.JJJJ\"),\"\"),\"until\",IF('Invoice overview'!$I$28 > 0, TEXT('Invoice overview'!$I$28,\"TT.MM.JJJJ\"),\"\"))","v":"   until   "}]
[]
["V1","Nature of event:",null,null,null,null,"Place/date:"]
["Voucher no.","Voucher content","Voucher date\ndd/mm/yy","Amount\nof the voucher","Currency\nof the voucher","Exchange rate*","Price","Remarks"]
[1,null,null,null,null,null,{"$f":"D8*F8","v":0}]
[2,null,null,null,null,null,{"$f":"D9*F9","v":0}]
[3,null,null,null,null,null,0]
[4,null,null,null,null,null,0]
[5,null,null,null,null,null,0]
[6,null,null,null,null,null,0]
[7,null,null,null,null,null,0]
[8,null,null,null,null,null,0]
[9,null,null,null,null,null,0]
[10,null,null,null,null,null,0]
[11,null,null,null,null,null,0]
[12,null,null,null,null,null,0]
[13,null,null,null,null,null,0]
[14,null,null,null,null,null,0]
[15,null,null,null,null,null,0]
[16,null,null,null,null,null,0]
[17,null,null,null,null,null,0]
[18,null,null,null,null,null,0]
[19,null,null,null,null,null,0]
[20,null,null,null,null,null,0]
[21,null,null,null,null,null,0]
[22,null,null,null,null,null,0]
[23,null,null,null,null,null,0]
[24,null,null,null,null,null,0]
[25,null,null,null,null,null,0]
[26,null,null,null,null,null,0]
[27,null,null,null,null,null,0]
[28,null,null,null,null,null,0]
[29,null,null,null,null,null,0]
[30,null,null,null,null,null,0]
[null,"Total V1:",null,null,null,{"$f":"'Invoice overview'!F32","v":"EUR"},{"$f":"SUM(G8:G37)","v":0}]

{"sheet":"5.15. Wo. & tr. for partner (6)","index":40,"n_rows":38,"n_cols":8,"rows_kept":38,"cut":false,"hidden":true,"merged":[[5,2,5,5],[37,1,37,2],[0,0,0,6]]}
["5.15.   Workshops/Training for partner staff (only on presentation of evidence) ",null,null,null,null,null,null,6]
[]
[null,"Contract number:",null,"Processing no./Cost centre:",null,"Accounting period:"]
[null,{"$f":"'Invoice overview'!A28","v":0},null,{"$f":"'Invoice overview'!C28","v":0},null,{"$f":"_xlfn.TEXTJOIN(\"   \",FALSE,IF('Invoice overview'!$G$28 > 0, TEXT('Invoice overview'!$G$28,\"TT.MM.JJJJ\"),\"\"),\"until\",IF('Invoice overview'!$I$28 > 0, TEXT('Invoice overview'!$I$28,\"TT.MM.JJJJ\"),\"\"))","v":"   until   "}]
[]
["V1","Nature of event:",null,null,null,null,"Place/date:"]
["Voucher no.","Voucher content","Voucher date\ndd/mm/yy","Amount\nof the voucher","Currency\nof the voucher","Exchange rate*","Price","Remarks"]
[1,null,null,null,null,null,{"$f":"D8*F8","v":0}]
[2,null,null,null,null,null,{"$f":"D9*F9","v":0}]
[3,null,null,null,null,null,0]
[4,null,null,null,null,null,0]
[5,null,null,null,null,null,0]
[6,null,null,null,null,null,0]
[7,null,null,null,null,null,0]
[8,null,null,null,null,null,0]
[9,null,null,null,null,null,0]
[10,null,null,null,null,null,0]
[11,null,null,null,null,null,0]
[12,null,null,null,null,null,0]
[13,null,null,null,null,null,0]
[14,null,null,null,null,null,0]
[15,null,null,null,null,null,0]
[16,null,null,null,null,null,0]
[17,null,null,null,null,null,0]
[18,null,null,null,null,null,0]
[19,null,null,null,null,null,0]
[20,null,null,null,null,null,0]
[21,null,null,null,null,null,0]
[22,null,null,null,null,null,0]
[23,null,null,null,null,null,0]
[24,null,null,null,null,null,0]
[25,null,null,null,null,null,0]
[26,null,null,null,null,null,0]
[27,null,null,null,null,null,0]
[28,null,null,null,null,null,0]
[29,null,null,null,null,null,0]
[30,null,null,null,null,null,0]
[null,"Total V1:",null,null,null,{"$f":"'Invoice overview'!F32","v":"EUR"},{"$f":"SUM(G8:G37)","v":0}]

{"sheet":"5.15. Wo. & tr. for partner (7)","index":41,"n_rows":38,"n_cols":8,"rows_kept":38,"cut":false,"hidden":true,"merged":[[5,2,5,5],[37,1,37,2],[0,0,0,6]]}
["5.15.   Workshops/Training for partner staff (only on presentation of evidence) ",null,null,null,null,null,null,7]
[]
[null,"Contract number:",null,"Processing no./Cost centre:",null,"Accounting period:"]
[null,{"$f":"'Invoice overview'!A28","v":0},null,{"$f":"'Invoice overview'!C28","v":0},null,{"$f":"_xlfn.TEXTJOIN(\"   \",FALSE,IF('Invoice overview'!$G$28 > 0, TEXT('Invoice overview'!$G$28,\"TT.MM.JJJJ\"),\"\"),\"until\",IF('Invoice overview'!$I$28 > 0, TEXT('Invoice overview'!$I$28,\"TT.MM.JJJJ\"),\"\"))","v":"   until   "}]
[]
["V1","Nature of event:",null,null,null,null,"Place/date:"]
["Voucher no.","Voucher content","Voucher date\ndd/mm/yy","Amount\nof the voucher","Currency\nof the voucher","Exchange rate*","Price","Remarks"]
[1,null,null,null,null,null,{"$f":"D8*F8","v":0}]
[2,null,null,null,null,null,{"$f":"D9*F9","v":0}]
[3,null,null,null,null,null,0]
[4,null,null,null,null,null,0]
[5,null,null,null,null,null,0]
[6,null,null,null,null,null,0]
[7,null,null,null,null,null,0]
[8,null,null,null,null,null,0]
[9,null,null,null,null,null,0]
[10,null,null,null,null,null,0]
[11,null,null,null,null,null,0]
[12,null,null,null,null,null,0]
[13,null,null,null,null,null,0]
[14,null,null,null,null,null,0]
[15,null,null,null,null,null,0]
[16,null,null,null,null,null,0]
[17,null,null,null,null,null,0]
[18,null,null,null,null,null,0]
[19,null,null,null,null,null,0]
[20,null,null,null,null,null,0]
[21,null,null,null,null,null,0]
[22,null,null,null,null,null,0]
[23,null,null,null,null,null,0]
[24,null,null,null,null,null,0]
[25,null,null,null,null,null,0]
[26,null,null,null,null,null,0]
[27,null,null,null,null,null,0]
[28,null,null,null,null,null,0]
[29,null,null,null,null,null,0]
[30,null,null,null,null,null,0]
[null,"Total V1:",null,null,null,{"$f":"'Invoice overview'!F32","v":"EUR"},{"$f":"SUM(G8:G37)","v":0}]

{"sheet":"5.15. Wo. & tr. for partner (8)","index":42,"n_rows":38,"n_cols":8,"rows_kept":38,"cut":false,"hidden":true,"merged":[[5,2,5,5],[37,1,37,2],[0,0,0,6]]}
["5.15.   Workshops/Training for partner staff (only on presentation of evidence) ",null,null,null,null,null,null,8]
[]
[null,"Contract number:",null,"Processing no./Cost centre:",null,"Accounting period:"]
[null,{"$f":"'Invoice overview'!A28","v":0},null,{"$f":"'Invoice overview'!C28","v":0},null,{"$f":"_xlfn.TEXTJOIN(\"   \",FALSE,IF('Invoice overview'!$G$28 > 0, TEXT('Invoice overview'!$G$28,\"TT.MM.JJJJ\"),\"\"),\"until\",IF('Invoice overview'!$I$28 > 0, TEXT('Invoice overview'!$I$28,\"TT.MM.JJJJ\"),\"\"))","v":"   until   "}]
[]
["V1","Nature of event:",null,null,null,null,"Place/date:"]
["Voucher no.","Voucher content","Voucher date\ndd/mm/yy","Amount\nof the voucher","Currency\nof the voucher","Exchange rate*","Price","Remarks"]
[1,null,null,null,null,null,{"$f":"D8*F8","v":0}]
[2,null,null,null,null,null,{"$f":"D9*F9","v":0}]
[3,null,null,null,null,null,0]
[4,null,null,null,null,null,0]
[5,null,null,null,null,null,0]
[6,null,null,null,null,null,0]
[7,null,null,null,null,null,0]
[8,null,null,null,null,null,0]
[9,null,null,null,null,null,0]
[10,null,null,null,null,null,0]
[11,null,null,null,null,null,0]
[12,null,null,null,null,null,0]
[13,null,null,null,null,null,0]
[14,null,null,null,null,null,0]
[15,null,null,null,null,null,0]
[16,null,null,null,null,null,0]
[17,null,null,null,null,null,0]
[18,null,null,null,null,null,0]
[19,null,null,null,null,null,0]
[20,null,null,null,null,null,0]
[21,null,null,null,null,null,0]
[22,null,null,null,null,null,0]
[23,null,null,null,null,null,0]
[24,null,null,null,null,null,0]
[25,null,null,null,null,null,0]
[26,null,null,null,null,null,0]
[27,null,null,null,null,null,0]
[28,null,null,null,null,null,0]
[29,null,null,null,null,null,0]
[30,null,null,null,null,null,0]
[null,"Total V1:",null,null,null,{"$f":"'Invoice overview'!F32","v":"EUR"},{"$f":"SUM(G8:G37)","v":0}]

{"sheet":"5.15. Wo. & tr. for partner (9)","index":43,"n_rows":38,"n_cols":8,"rows_kept":38,"cut":false,"hidden":true,"merged":[[5,2,5,5],[37,1,37,2],[0,0,0,6]]}
["5.15.   Workshops/Training for partner staff (only on presentation of evidence) ",null,null,null,null,null,null,9]
[]
[null,"Contract number:",null,"Processing no./Cost centre:",null,"Accounting period:"]
[null,{"$f":"'Invoice overview'!A28","v":0},null,{"$f":"'Invoice overview'!C28","v":0},null,{"$f":"_xlfn.TEXTJOIN(\"   \",FALSE,IF('Invoice overview'!$G$28 > 0, TEXT('Invoice overview'!$G$28,\"TT.MM.JJJJ\"),\"\"),\"until\",IF('Invoice overview'!$I$28 > 0, TEXT('Invoice overview'!$I$28,\"TT.MM.JJJJ\"),\"\"))","v":"   until   "}]
[]
["V1","Nature of event:",null,null,null,null,"Place/date:"]
["Voucher no.","Voucher content","Voucher date\ndd/mm/yy","Amount\nof the voucher","Currency\nof the voucher","Exchange rate*","Price","Remarks"]
[1,null,null,null,null,null,{"$f":"D8*F8","v":0}]
[2,null,null,null,null,null,{"$f":"D9*F9","v":0}]
[3,null,null,null,null,null,0]
[4,null,null,null,null,null,0]
[5,null,null,null,null,null,0]
[6,null,null,null,null,null,0]
[7,null,null,null,null,null,0]
[8,null,null,null,null,null,0]
[9,null,null,null,null,null,0]
[10,null,null,null,null,null,0]
[11,null,null,null,null,null,0]
[12,null,null,null,null,null,0]
[13,null,null,null,null,null,0]
[14,null,null,null,null,null,0]
[15,null,null,null,null,null,0]
[16,null,null,null,null,null,0]
[17,null,null,null,null,null,0]
[18,null,null,null,null,null,0]
[19,null,null,null,null,null,0]
[20,null,null,null,null,null,0]
[21,null,null,null,null,null,0]
[22,null,null,null,null,null,0]
[23,null,null,null,null,null,0]
[24,null,null,null,null,null,0]
[25,null,null,null,null,null,0]
[26,null,null,null,null,null,0]
[27,null,null,null,null,null,0]
[28,null,null,null,null,null,0]
[29,null,null,null,null,null,0]
[30,null,null,null,null,null,0]
[null,"Total V1:",null,null,null,{"$f":"'Invoice overview'!F32","v":"EUR"},{"$f":"SUM(G8:G37)","v":0}]

{"sheet":"5.15. Wo. & tr. for partner(10)","index":44,"n_rows":38,"n_cols":8,"rows_kept":38,"cut":false,"hidden":true,"merged":[[5,2,5,5],[37,1,37,2],[0,0,0,6]]}
["5.15.   Workshops/Training for partner staff (only on presentation of evidence) ",null,null,null,null,null,null,10]
[]
[null,"Contract number:",null,"Processing no./Cost centre:",null,"Accounting period:"]
[null,{"$f":"'Invoice overview'!A28","v":0},null,{"$f":"'Invoice overview'!C28","v":0},null,{"$f":"_xlfn.TEXTJOIN(\"   \",FALSE,IF('Invoice overview'!$G$28 > 0, TEXT('Invoice overview'!$G$28,\"TT.MM.JJJJ\"),\"\"),\"until\",IF('Invoice overview'!$I$28 > 0, TEXT('Invoice overview'!$I$28,\"TT.MM.JJJJ\"),\"\"))","v":"   until   "}]
[]
["V1","Nature of event:",null,null,null,null,"Place/date:"]
["Voucher no.","Voucher content","Voucher date\ndd/mm/yy","Amount\nof the voucher","Currency\nof the voucher","Exchange rate*","Price","Remarks"]
[1,null,null,null,null,null,{"$f":"D8*F8","v":0}]
[2,null,null,null,null,null,{"$f":"D9*F9","v":0}]
[3,null,null,null,null,null,0]
[4,null,null,null,null,null,0]
[5,null,null,null,null,null,0]
[6,null,null,null,null,null,0]
[7,null,null,null,null,null,0]
[8,null,null,null,null,null,0]
[9,null,null,null,null,null,0]
[10,null,null,null,null,null,0]
[11,null,null,null,null,null,0]
[12,null,null,null,null,null,0]
[13,null,null,null,null,null,0]
[14,null,null,null,null,null,0]
[15,null,null,null,null,null,0]
[16,null,null,null,null,null,0]
[17,null,null,null,null,null,0]
[18,null,null,null,null,null,0]
[19,null,null,null,null,null,0]
[20,null,null,null,null,null,0]
[21,null,null,null,null,null,0]
[22,null,null,null,null,null,0]
[23,null,null,null,null,null,0]
[24,null,null,null,null,null,0]
[25,null,null,null,null,null,0]
[26,null,null,null,null,null,0]
[27,null,null,null,null,null,0]
[28,null,null,null,null,null,0]
[29,null,null,null,null,null,0]
[30,null,null,null,null,null,0]
[null,"Total V1:",null,null,null,{"$f":"'Invoice overview'!F32","v":"EUR"},{"$f":"SUM(G8:G37)","v":0}]

{"sheet":"5.15. Wo. & tr. for partner(11)","index":45,"n_rows":38,"n_cols":8,"rows_kept":38,"cut":false,"hidden":true,"merged":[[5,2,5,5],[37,1,37,2],[0,0,0,6]]}
["5.15.   Workshops/Training for partner staff (only on presentation of evidence) ",null,null,null,null,null,null,11]
[]
[null,"Contract number:",null,"Processing no./Cost centre:",null,"Accounting period:"]
[null,{"$f":"'Invoice overview'!A28","v":0},null,{"$f":"'Invoice overview'!C28","v":0},null,{"$f":"_xlfn.TEXTJOIN(\"   \",FALSE,IF('Invoice overview'!$G$28 > 0, TEXT('Invoice overview'!$G$28,\"TT.MM.JJJJ\"),\"\"),\"until\",IF('Invoice overview'!$I$28 > 0, TEXT('Invoice overview'!$I$28,\"TT.MM.JJJJ\"),\"\"))","v":"   until   "}]
[]
["V1","Nature of event:",null,null,null,null,"Place/date:"]
["Voucher no.","Voucher content","Voucher date\ndd/mm/yy","Amount\nof the voucher","Currency\nof the voucher","Exchange rate*","Price","Remarks"]
[1,null,null,null,null,null,{"$f":"D8*F8","v":0}]
[2,null,null,null,null,null,{"$f":"D9*F9","v":0}]
[3,null,null,null,null,null,0]
[4,null,null,null,null,null,0]
[5,null,null,null,null,null,0]
[6,null,null,null,null,null,0]
[7,null,null,null,null,null,0]
[8,null,null,null,null,null,0]
[9,null,null,null,null,null,0]
[10,null,null,null,null,null,0]
[11,null,null,null,null,null,0]
[12,null,null,null,null,null,0]
[13,null,null,null,null,null,0]
[14,null,null,null,null,null,0]
[15,null,null,null,null,null,0]
[16,null,null,null,null,null,0]
[17,null,null,null,null,null,0]
[18,null,null,null,null,null,0]
[19,null,null,null,null,null,0]
[20,null,null,null,null,null,0]
[21,null,null,null,null,null,0]
[22,null,null,null,null,null,0]
[23,null,null,null,null,null,0]
[24,null,null,null,null,null,0]
[25,null,null,null,null,null,0]
[26,null,null,null,null,null,0]
[27,null,null,null,null,null,0]
[28,null,null,null,null,null,0]
[29,null,null,null,null,null,0]
[30,null,null,null,null,null,0]
[null,"Total V1:",null,null,null,{"$f":"'Invoice overview'!F32","v":"EUR"},{"$f":"SUM(G8:G37)","v":0}]

{"sheet":"5.15. Wo. & tr. for partner(12)","index":46,"n_rows":38,"n_cols":8,"rows_kept":38,"cut":false,"hidden":true,"merged":[[5,2,5,5],[37,1,37,2],[0,0,0,6]]}
["5.15.   Workshops/Training for partner staff (only on presentation of evidence) ",null,null,null,null,null,null,12]
[]
[null,"Contract number:",null,"Processing no./Cost centre:",null,"Accounting period:"]
[null,{"$f":"'Invoice overview'!A28","v":0},null,{"$f":"'Invoice overview'!C28","v":0},null,{"$f":"_xlfn.TEXTJOIN(\"   \",FALSE,IF('Invoice overview'!$G$28 > 0, TEXT('Invoice overview'!$G$28,\"TT.MM.JJJJ\"),\"\"),\"until\",IF('Invoice overview'!$I$28 > 0, TEXT('Invoice overview'!$I$28,\"TT.MM.JJJJ\"),\"\"))","v":"   until   "}]
[]
["V1","Nature of event:",null,null,null,null,"Place/date:"]
["Voucher no.","Voucher content","Voucher date\ndd/mm/yy","Amount\nof the voucher","Currency\nof the voucher","Exchange rate*","Price","Remarks"]
[1,null,null,null,null,null,{"$f":"D8*F8","v":0}]
[2,null,null,null,null,null,{"$f":"D9*F9","v":0}]
[3,null,null,null,null,null,0]
[4,null,null,null,null,null,0]
[5,null,null,null,null,null,0]
[6,null,null,null,null,null,0]
[7,null,null,null,null,null,0]
[8,null,null,null,null,null,0]
[9,null,null,null,null,null,0]
[10,null,null,null,null,null,0]
[11,null,null,null,null,null,0]
[12,null,null,null,null,null,0]
[13,null,null,null,null,null,0]
[14,null,null,null,null,null,0]
[15,null,null,null,null,null,0]
[16,null,null,null,null,null,0]
[17,null,null,null,null,null,0]
[18,null,null,null,null,null,0]
[19,null,null,null,null,null,0]
[20,null,null,null,null,null,0]
[21,null,null,null,null,null,0]
[22,null,null,null,null,null,0]
[23,null,null,null,null,null,0]
[24,null,null,null,null,null,0]
[25,null,null,null,null,null,0]
[26,null,null,null,null,null,0]
[27,null,null,null,null,null,0]
[28,null,null,null,null,null,0]
[29,null,null,null,null,null,0]
[30,null,null,null,null,null,0]
[null,"Total V1:",null,null,null,{"$f":"'Invoice overview'!F32","v":"EUR"},{"$f":"SUM(G8:G37)","v":0}]

{"sheet":"5.15. Wo. & tr. for partner(13)","index":47,"n_rows":38,"n_cols":8,"rows_kept":38,"cut":false,"hidden":true,"merged":[[5,2,5,5],[37,1,37,2],[0,0,0,6]]}
["5.15.   Workshops/Training for partner staff (only on presentation of evidence) ",null,null,null,null,null,null,13]
[]
[null,"Contract number:",null,"Processing no./Cost centre:",null,"Accounting period:"]
[null,{"$f":"'Invoice overview'!A28","v":0},null,{"$f":"'Invoice overview'!C28","v":0},null,{"$f":"_xlfn.TEXTJOIN(\"   \",FALSE,IF('Invoice overview'!$G$28 > 0, TEXT('Invoice overview'!$G$28,\"TT.MM.JJJJ\"),\"\"),\"until\",IF('Invoice overview'!$I$28 > 0, TEXT('Invoice overview'!$I$28,\"TT.MM.JJJJ\"),\"\"))","v":"   until   "}]
[]
["V1","Nature of event:",null,null,null,null,"Place/date:"]
["Voucher no.","Voucher content","Voucher date\ndd/mm/yy","Amount\nof the voucher","Currency\nof the voucher","Exchange rate*","Price","Remarks"]
[1,null,null,null,null,null,{"$f":"D8*F8","v":0}]
[2,null,null,null,null,null,{"$f":"D9*F9","v":0}]
[3,null,null,null,null,null,0]
[4,null,null,null,null,null,0]
[5,null,null,null,null,null,0]
[6,null,null,null,null,null,0]
[7,null,null,null,null,null,0]
[8,null,null,null,null,null,0]
[9,null,null,null,null,null,0]
[10,null,null,null,null,null,0]
[11,null,null,null,null,null,0]
[12,null,null,null,null,null,0]
[13,null,null,null,null,null,0]
[14,null,null,null,null,null,0]
[15,null,null,null,null,null,0]
[16,null,null,null,null,null,0]
[17,null,null,null,null,null,0]
[18,null,null,null,null,null,0]
[19,null,null,null,null,null,0]
[20,null,null,null,null,null,0]
[21,null,null,null,null,null,0]
[22,null,null,null,null,null,0]
[23,null,null,null,null,null,0]
[24,null,null,null,null,null,0]
[25,null,null,null,null,null,0]
[26,null,null,null,null,null,0]
[27,null,null,null,null,null,0]
[28,null,null,null,null,null,0]
[29,null,null,null,null,null,0]
[30,null,null,null,null,null,0]
[null,"Total V1:",null,null,null,{"$f":"'Invoice overview'!F32","v":"EUR"},{"$f":"SUM(G8:G37)","v":0}]

{"sheet":"5.15. Wo. & tr. for partner(14)","index":48,"n_rows":38,"n_cols":8,"rows_kept":38,"cut":false,"hidden":true,"merged":[[5,2,5,5],[37,1,37,2],[0,0,0,6]]}
["5.15.   Workshops/Training for partner staff (only on presentation of evidence) ",null,null,null,null,null,null,14]
[]
[null,"Contract number:",null,"Processing no./Cost centre:",null,"Accounting period:"]
[null,{"$f":"'Invoice overview'!A28","v":0},null,{"$f":"'Invoice overview'!C28","v":0},null,{"$f":"_xlfn.TEXTJOIN(\"   \",FALSE,IF('Invoice overview'!$G$28 > 0, TEXT('Invoice overview'!$G$28,\"TT.MM.JJJJ\"),\"\"),\"until\",IF('Invoice overview'!$I$28 > 0, TEXT('Invoice overview'!$I$28,\"TT.MM.JJJJ\"),\"\"))","v":"   until   "}]
[]
["V1","Nature of event:",null,null,null,null,"Place/date:"]
["Voucher no.","Voucher content","Voucher date\ndd/mm/yy","Amount\nof the voucher","Currency\nof the voucher","Exchange rate*","Price","Remarks"]
[1,null,null,null,null,null,{"$f":"D8*F8","v":0}]
[2,null,null,null,null,null,{"$f":"D9*F9","v":0}]
[3,null,null,null,null,null,0]
[4,null,null,null,null,null,0]
[5,null,null,null,null,null,0]
[6,null,null,null,null,null,0]
[7,null,null,null,null,null,0]
[8,null,null,null,null,null,0]
[9,null,null,null,null,null,0]
[10,null,null,null,null,null,0]
[11,null,null,null,null,null,0]
[12,null,null,null,null,null,0]
[13,null,null,null,null,null,0]
[14,null,null,null,null,null,0]
[15,null,null,null,null,null,0]
[16,null,null,null,null,null,0]
[17,null,null,null,null,null,0]
[18,null,null,null,null,null,0]
[19,null,null,null,null,null,0]
[20,null,null,null,null,null,0]
[21,null,null,null,null,null,0]
[22,null,null,null,null,null,0]
[23,null,null,null,null,null,0]
[24,null,null,null,null,null,0]
[25,null,null,null,null,null,0]
[26,null,null,null,null,null,0]
[27,null,null,null,null,null,0]
[28,null,null,null,null,null,0]
[29,null,null,null,null,null,0]
[30,null,null,null,null,null,0]
[null,"Total V1:",null,null,null,{"$f":"'Invoice overview'!F32","v":"EUR"},{"$f":"SUM(G8:G37)","v":0}]

{"sheet":"5.15. Wo. & tr. for partner(15)","index":49,"n_rows":38,"n_cols":8,"rows_kept":38,"cut":false,"hidden":true,"merged":[[5,2,5,5],[37,1,37,2],[0,0,0,6]]}
["5.15.   Workshops/Training for partner staff (only on presentation of evidence) ",null,null,null,null,null,null,15]
[]
[null,"Contract number:",null,"Processing no./Cost centre:",null,"Accounting period:"]
[null,{"$f":"'Invoice overview'!A28","v":0},null,{"$f":"'Invoice overview'!C28","v":0},null,{"$f":"_xlfn.TEXTJOIN(\"   \",FALSE,IF('Invoice overview'!$G$28 > 0, TEXT('Invoice overview'!$G$28,\"TT.MM.JJJJ\"),\"\"),\"until\",IF('Invoice overview'!$I$28 > 0, TEXT('Invoice overview'!$I$28,\"TT.MM.JJJJ\"),\"\"))","v":"   until   "}]
[]
["V1","Nature of event:",null,null,null,null,"Place/date:"]
["Voucher no.","Voucher content","Voucher date\ndd/mm/yy","Amount\nof the voucher","Currency\nof the voucher","Exchange rate*","Price","Remarks"]
[1,null,null,null,null,null,{"$f":"D8*F8","v":0}]
[2,null,null,null,null,null,{"$f":"D9*F9","v":0}]
[3,null,null,null,null,null,0]
[4,null,null,null,null,null,0]
[5,null,null,null,null,null,0]
[6,null,null,null,null,null,0]
[7,null,null,null,null,null,0]
[8,null,null,null,null,null,0]
[9,null,null,null,null,null,0]
[10,null,null,null,null,null,0]
[11,null,null,null,null,null,0]
[12,null,null,null,null,null,0]
[13,null,null,null,null,null,0]
[14,null,null,null,null,null,0]
[15,null,null,null,null,null,0]
[16,null,null,null,null,null,0]
[17,null,null,null,null,null,0]
[18,null,null,null,null,null,0]
[19,null,null,null,null,null,0]
[20,null,null,null,null,null,0]
[21,null,null,null,null,null,0]
[22,null,null,null,null,null,0]
[23,null,null,null,null,null,0]
[24,null,null,null,null,null,0]
[25,null,null,null,null,null,0]
[26,null,null,null,null,null,0]
[27,null,null,null,null,null,0]
[28,null,null,null,null,null,0]
[29,null,null,null,null,null,0]
[30,null,null,null,null,null,0]
[null,"Total V1:",null,null,null,{"$f":"'Invoice overview'!F32","v":"EUR"},{"$f":"SUM(G8:G37)","v":0}]

{"sheet":"5.15. Wo. & tr. for partner(16)","index":50,"n_rows":38,"n_cols":8,"rows_kept":38,"cut":false,"hidden":true,"merged":[[5,2,5,5],[37,1,37,2],[0,0,0,6]]}
["5.15.   Workshops/Training for partner staff (only on presentation of evidence) ",null,null,null,null,null,null,16]
[]
[null,"Contract number:",null,"Processing no./Cost centre:",null,"Accounting period:"]
[null,{"$f":"'Invoice overview'!A28","v":0},null,{"$f":"'Invoice overview'!C28","v":0},null,{"$f":"_xlfn.TEXTJOIN(\"   \",FALSE,IF('Invoice overview'!$G$28 > 0, TEXT('Invoice overview'!$G$28,\"TT.MM.JJJJ\"),\"\"),\"until\",IF('Invoice overview'!$I$28 > 0, TEXT('Invoice overview'!$I$28,\"TT.MM.JJJJ\"),\"\"))","v":"   until   "}]
[]
["V1","Nature of event:",null,null,null,null,"Place/date:"]
["Voucher no.","Voucher content","Voucher date\ndd/mm/yy","Amount\nof the voucher","Currency\nof the voucher","Exchange rate*","Price","Remarks"]
[1,null,null,null,null,null,{"$f":"D8*F8","v":0}]
[2,null,null,null,null,null,{"$f":"D9*F9","v":0}]
[3,null,null,null,null,null,0]
[4,null,null,null,null,null,0]
[5,null,null,null,null,null,0]
[6,null,null,null,null,null,0]
[7,null,null,null,null,null,0]
[8,null,null,null,null,null,0]
[9,null,null,null,null,null,0]
[10,null,null,null,null,null,0]
[11,null,null,null,null,null,0]
[12,null,null,null,null,null,0]
[13,null,null,null,null,null,0]
[14,null,null,null,null,null,0]
[15,null,null,null,null,null,0]
[16,null,null,null,null,null,0]
[17,null,null,null,null,null,0]
[18,null,null,null,null,null,0]
[19,null,null,null,null,null,0]
[20,null,null,null,null,null,0]
[21,null,null,null,null,null,0]
[22,null,null,null,null,null,0]
[23,null,null,null,null,null,0]
[24,null,null,null,null,null,0]
[25,null,null,null,null,null,0]
[26,null,null,null,null,null,0]
[27,null,null,null,null,null,0]
[28,null,null,null,null,null,0]
[29,null,null,null,null,null,0]
[30,null,null,null,null,null,0]
[null,"Total V1:",null,null,null,{"$f":"'Invoice overview'!F32","v":"EUR"},{"$f":"SUM(G8:G37)","v":0}]

{"sheet":"5.15. Wo. & tr. for partner(17)","index":51,"n_rows":38,"n_cols":8,"rows_kept":38,"cut":false,"hidden":true,"merged":[[5,2,5,5],[37,1,37,2],[0,0,0,6]]}
["5.15.   Workshops/Training for partner staff (only on presentation of evidence) ",null,null,null,null,null,null,17]
[]
[null,"Contract number:",null,"Processing no./Cost centre:",null,"Accounting period:"]
[null,{"$f":"'Invoice overview'!A28","v":0},null,{"$f":"'Invoice overview'!C28","v":0},null,{"$f":"_xlfn.TEXTJOIN(\"   \",FALSE,IF('Invoice overview'!$G$28 > 0, TEXT('Invoice overview'!$G$28,\"TT.MM.JJJJ\"),\"\"),\"until\",IF('Invoice overview'!$I$28 > 0, TEXT('Invoice overview'!$I$28,\"TT.MM.JJJJ\"),\"\"))","v":"   until   "}]
[]
["V1","Nature of event:",null,null,null,null,"Place/date:"]
["Voucher no.","Voucher content","Voucher date\ndd/mm/yy","Amount\nof the voucher","Currency\nof the voucher","Exchange rate*","Price","Remarks"]
[1,null,null,null,null,null,{"$f":"D8*F8","v":0}]
[2,null,null,null,null,null,{"$f":"D9*F9","v":0}]
[3,null,null,null,null,null,0]
[4,null,null,null,null,null,0]
[5,null,null,null,null,null,0]
[6,null,null,null,null,null,0]
[7,null,null,null,null,null,0]
[8,null,null,null,null,null,0]
[9,null,null,null,null,null,0]
[10,null,null,null,null,null,0]
[11,null,null,null,null,null,0]
[12,null,null,null,null,null,0]
[13,null,null,null,null,null,0]
[14,null,null,null,null,null,0]
[15,null,null,null,null,null,0]
[16,null,null,null,null,null,0]
[17,null,null,null,null,null,0]
[18,null,null,null,null,null,0]
[19,null,null,null,null,null,0]
[20,null,null,null,null,null,0]
[21,null,null,null,null,null,0]
[22,null,null,null,null,null,0]
[23,null,null,null,null,null,0]
[24,null,null,null,null,null,0]
[25,null,null,null,null,null,0]
[26,null,null,null,null,null,0]
[27,null,null,null,null,null,0]
[28,null,null,null,null,null,0]
[29,null,null,null,null,null,0]
[30,null,null,null,null,null,0]
[null,"Total V1:",null,null,null,{"$f":"'Invoice overview'!F32","v":"EUR"},{"$f":"SUM(G8:G37)","v":0}]

{"sheet":"5.15. Wo. & tr. for partner(18)","index":52,"n_rows":38,"n_cols":8,"rows_kept":38,"cut":false,"hidden":true,"merged":[[5,2,5,5],[37,1,37,2],[0,0,0,6]]}
["5.15.   Workshops/Training for partner staff (only on presentation of evidence) ",null,null,null,null,null,null,18]
[]
[null,"Contract number:",null,"Processing no./Cost centre:",null,"Accounting period:"]
[null,{"$f":"'Invoice overview'!A28","v":0},null,{"$f":"'Invoice overview'!C28","v":0},null,{"$f":"_xlfn.TEXTJOIN(\"   \",FALSE,IF('Invoice overview'!$G$28 > 0, TEXT('Invoice overview'!$G$28,\"TT.MM.JJJJ\"),\"\"),\"until\",IF('Invoice overview'!$I$28 > 0, TEXT('Invoice overview'!$I$28,\"TT.MM.JJJJ\"),\"\"))","v":"   until   "}]
[]
["V1","Nature of event:",null,null,null,null,"Place/date:"]
["Voucher no.","Voucher content","Voucher date\ndd/mm/yy","Amount\nof the voucher","Currency\nof the voucher","Exchange rate*","Price","Remarks"]
[1,null,null,null,null,null,{"$f":"D8*F8","v":0}]
[2,null,null,null,null,null,{"$f":"D9*F9","v":0}]
[3,null,null,null,null,null,0]
[4,null,null,null,null,null,0]
[5,null,null,null,null,null,0]
[6,null,null,null,null,null,0]
[7,null,null,null,null,null,0]
[8,null,null,null,null,null,0]
[9,null,null,null,null,null,0]
[10,null,null,null,null,null,0]
[11,null,null,null,null,null,0]
[12,null,null,null,null,null,0]
[13,null,null,null,null,null,0]
[14,null,null,null,null,null,0]
[15,null,null,null,null,null,0]
[16,null,null,null,null,null,0]
[17,null,null,null,null,null,0]
[18,null,null,null,null,null,0]
[19,null,null,null,null,null,0]
[20,null,null,null,null,null,0]
[21,null,null,null,null,null,0]
[22,null,null,null,null,null,0]
[23,null,null,null,null,null,0]
[24,null,null,null,null,null,0]
[25,null,null,null,null,null,0]
[26,null,null,null,null,null,0]
[27,null,null,null,null,null,0]
[28,null,null,null,null,null,0]
[29,null,null,null,null,null,0]
[30,null,null,null,null,null,0]
[null,"Total V1:",null,null,null,{"$f":"'Invoice overview'!F32","v":"EUR"},{"$f":"SUM(G8:G37)","v":0}]

{"sheet":"5.15. Wo. & tr. for partner(19)","index":53,"n_rows":38,"n_cols":8,"rows_kept":38,"cut":false,"hidden":true,"merged":[[5,2,5,5],[37,1,37,2],[0,0,0,6]]}
["5.15.   Workshops/Training for partner staff (only on presentation of evidence) ",null,null,null,null,null,null,19]
[]
[null,"Contract number:",null,"Processing no./Cost centre:",null,"Accounting period:"]
[null,{"$f":"'Invoice overview'!A28","v":0},null,{"$f":"'Invoice overview'!C28","v":0},null,{"$f":"_xlfn.TEXTJOIN(\"   \",FALSE,IF('Invoice overview'!$G$28 > 0, TEXT('Invoice overview'!$G$28,\"TT.MM.JJJJ\"),\"\"),\"until\",IF('Invoice overview'!$I$28 > 0, TEXT('Invoice overview'!$I$28,\"TT.MM.JJJJ\"),\"\"))","v":"   until   "}]
[]
["V1","Nature of event:",null,null,null,null,"Place/date:"]
["Voucher no.","Voucher content","Voucher date\ndd/mm/yy","Amount\nof the voucher","Currency\nof the voucher","Exchange rate*","Price","Remarks"]
[1,null,null,null,null,null,{"$f":"D8*F8","v":0}]
[2,null,null,null,null,null,{"$f":"D9*F9","v":0}]
[3,null,null,null,null,null,0]
[4,null,null,null,null,null,0]
[5,null,null,null,null,null,0]
[6,null,null,null,null,null,0]
[7,null,null,null,null,null,0]
[8,null,null,null,null,null,0]
[9,null,null,null,null,null,0]
[10,null,null,null,null,null,0]
[11,null,null,null,null,null,0]
[12,null,null,null,null,null,0]
[13,null,null,null,null,null,0]
[14,null,null,null,null,null,0]
[15,null,null,null,null,null,0]
[16,null,null,null,null,null,0]
[17,null,null,null,null,null,0]
[18,null,null,null,null,null,0]
[19,null,null,null,null,null,0]
[20,null,null,null,null,null,0]
[21,null,null,null,null,null,0]
[22,null,null,null,null,null,0]
[23,null,null,null,null,null,0]
[24,null,null,null,null,null,0]
[25,null,null,null,null,null,0]
[26,null,null,null,null,null,0]
[27,null,null,null,null,null,0]
[28,null,null,null,null,null,0]
[29,null,null,null,null,null,0]
[30,null,null,null,null,null,0]
[null,"Total V1:",null,null,null,{"$f":"'Invoice overview'!F32","v":"EUR"},{"$f":"SUM(G8:G37)","v":0}]

{"sheet":"5.15. Wo. & tr. for partner(20)","index":54,"n_rows":38,"n_cols":8,"rows_kept":38,"cut":false,"hidden":true,"merged":[[5,2,5,5],[37,1,37,2],[0,0,0,6]]}
["5.15.   Workshops/Training for partner staff (only on presentation of evidence) ",null,null,null,null,null,null,20]
[]
[null,"Contract number:",null,"Processing no./Cost centre:",null,"Accounting period:"]
[null,{"$f":"'Invoice overview'!A28","v":0},null,{"$f":"'Invoice overview'!C28","v":0},null,{"$f":"_xlfn.TEXTJOIN(\"   \",FALSE,IF('Invoice overview'!$G$28 > 0, TEXT('Invoice overview'!$G$28,\"TT.MM.JJJJ\"),\"\"),\"until\",IF('Invoice overview'!$I$28 > 0, TEXT('Invoice overview'!$I$28,\"TT.MM.JJJJ\"),\"\"))","v":"   until   "}]
[]
["V1","Nature of event:",null,null,null,null,"Place/date:"]
["Voucher no.","Voucher content","Voucher date\ndd/mm/yy","Amount\nof the voucher","Currency\nof the voucher","Exchange rate*","Price","Remarks"]
[1,null,null,null,null,null,{"$f":"D8*F8","v":0}]
[2,null,null,null,null,null,{"$f":"D9*F9","v":0}]
[3,null,null,null,null,null,0]
[4,null,null,null,null,null,0]
[5,null,null,null,null,null,0]
[6,null,null,null,null,null,0]
[7,null,null,null,null,null,0]
[8,null,null,null,null,null,0]
[9,null,null,null,null,null,0]
[10,null,null,null,null,null,0]
[11,null,null,null,null,null,0]
[12,null,null,null,null,null,0]
[13,null,null,null,null,null,0]
[14,null,null,null,null,null,0]
[15,null,null,null,null,null,0]
[16,null,null,null,null,null,0]
[17,null,null,null,null,null,0]
[18,null,null,null,null,null,0]
[19,null,null,null,null,null,0]
[20,null,null,null,null,null,0]
[21,null,null,null,null,null,0]
[22,null,null,null,null,null,0]
[23,null,null,null,null,null,0]
[24,null,null,null,null,null,0]
[25,null,null,null,null,null,0]
[26,null,null,null,null,null,0]
[27,null,null,null,null,null,0]
[28,null,null,null,null,null,0]
[29,null,null,null,null,null,0]
[30,null,null,null,null,null,0]
[null,"Total V1:",null,null,null,{"$f":"'Invoice overview'!F32","v":"EUR"},{"$f":"SUM(G8:G37)","v":0}]

{"sheet":"5.15. Wo. & tr. for partner(21)","index":55,"n_rows":38,"n_cols":8,"rows_kept":38,"cut":false,"hidden":true,"merged":[[5,2,5,5],[37,1,37,2],[0,0,0,6]]}
["5.15.   Workshops/Training for partner staff (only on presentation of evidence) ",null,null,null,null,null,null,21]
[]
[null,"Contract number:",null,"Processing no./Cost centre:",null,"Accounting period:"]
[null,{"$f":"'Invoice overview'!A28","v":0},null,{"$f":"'Invoice overview'!C28","v":0},null,{"$f":"_xlfn.TEXTJOIN(\"   \",FALSE,IF('Invoice overview'!$G$28 > 0, TEXT('Invoice overview'!$G$28,\"TT.MM.JJJJ\"),\"\"),\"until\",IF('Invoice overview'!$I$28 > 0, TEXT('Invoice overview'!$I$28,\"TT.MM.JJJJ\"),\"\"))","v":"   until   "}]
[]
["V1","Nature of event:",null,null,null,null,"Place/date:"]
["Voucher no.","Voucher content","Voucher date\ndd/mm/yy","Amount\nof the voucher","Currency\nof the voucher","Exchange rate*","Price","Remarks"]
[1,null,null,null,null,null,{"$f":"D8*F8","v":0}]
[2,null,null,null,null,null,{"$f":"D9*F9","v":0}]
[3,null,null,null,null,null,0]
[4,null,null,null,null,null,0]
[5,null,null,null,null,null,0]
[6,null,null,null,null,null,0]
[7,null,null,null,null,null,0]
[8,null,null,null,null,null,0]
[9,null,null,null,null,null,0]
[10,null,null,null,null,null,0]
[11,null,null,null,null,null,0]
[12,null,null,null,null,null,0]
[13,null,null,null,null,null,0]
[14,null,null,null,null,null,0]
[15,null,null,null,null,null,0]
[16,null,null,null,null,null,0]
[17,null,null,null,null,null,0]
[18,null,null,null,null,null,0]
[19,null,null,null,null,null,0]
[20,null,null,null,null,null,0]
[21,null,null,null,null,null,0]
[22,null,null,null,null,null,0]
[23,null,null,null,null,null,0]
[24,null,null,null,null,null,0]
[25,null,null,null,null,null,0]
[26,null,null,null,null,null,0]
[27,null,null,null,null,null,0]
[28,null,null,null,null,null,0]
[29,null,null,null,null,null,0]
[30,null,null,null,null,null,0]
[null,"Total V1:",null,null,null,{"$f":"'Invoice overview'!F32","v":"EUR"},{"$f":"SUM(G8:G37)","v":0}]

{"sheet":"5.15. Wo. & tr. for partner(22)","index":56,"n_rows":38,"n_cols":8,"rows_kept":38,"cut":false,"hidden":true,"merged":[[5,2,5,5],[37,1,37,2],[0,0,0,6]]}
["5.15.   Workshops/Training for partner staff (only on presentation of evidence) ",null,null,null,null,null,null,22]
[]
[null,"Contract number:",null,"Processing no./Cost centre:",null,"Accounting period:"]
[null,{"$f":"'Invoice overview'!A28","v":0},null,{"$f":"'Invoice overview'!C28","v":0},null,{"$f":"_xlfn.TEXTJOIN(\"   \",FALSE,IF('Invoice overview'!$G$28 > 0, TEXT('Invoice overview'!$G$28,\"TT.MM.JJJJ\"),\"\"),\"until\",IF('Invoice overview'!$I$28 > 0, TEXT('Invoice overview'!$I$28,\"TT.MM.JJJJ\"),\"\"))","v":"   until   "}]
[]
["V1","Nature of event:",null,null,null,null,"Place/date:"]
["Voucher no.","Voucher content","Voucher date\ndd/mm/yy","Amount\nof the voucher","Currency\nof the voucher","Exchange rate*","Price","Remarks"]
[1,null,null,null,null,null,{"$f":"D8*F8","v":0}]
[2,null,null,null,null,null,{"$f":"D9*F9","v":0}]
[3,null,null,null,null,null,0]
[4,null,null,null,null,null,0]
[5,null,null,null,null,null,0]
[6,null,null,null,null,null,0]
[7,null,null,null,null,null,0]
[8,null,null,null,null,null,0]
[9,null,null,null,null,null,0]
[10,null,null,null,null,null,0]
[11,null,null,null,null,null,0]
[12,null,null,null,null,null,0]
[13,null,null,null,null,null,0]
[14,null,null,null,null,null,0]
[15,null,null,null,null,null,0]
[16,null,null,null,null,null,0]
[17,null,null,null,null,null,0]
[18,null,null,null,null,null,0]
[19,null,null,null,null,null,0]
[20,null,null,null,null,null,0]
[21,null,null,null,null,null,0]
[22,null,null,null,null,null,0]
[23,null,null,null,null,null,0]
[24,null,null,null,null,null,0]
[25,null,null,null,null,null,0]
[26,null,null,null,null,null,0]
[27,null,null,null,null,null,0]
[28,null,null,null,null,null,0]
[29,null,null,null,null,null,0]
[30,null,null,null,null,null,0]
[null,"Total V1:",null,null,null,{"$f":"'Invoice overview'!F32","v":"EUR"},{"$f":"SUM(G8:G37)","v":0}]

{"sheet":"5.15. Wo. & tr. for partner(23)","index":57,"n_rows":38,"n_cols":8,"rows_kept":38,"cut":false,"hidden":true,"merged":[[5,2,5,5],[37,1,37,2],[0,0,0,6]]}
["5.15.   Workshops/Training for partner staff (only on presentation of evidence) ",null,null,null,null,null,null,23]
[]
[null,"Contract number:",null,"Processing no./Cost centre:",null,"Accounting period:"]
[null,{"$f":"'Invoice overview'!A28","v":0},null,{"$f":"'Invoice overview'!C28","v":0},null,{"$f":"_xlfn.TEXTJOIN(\"   \",FALSE,IF('Invoice overview'!$G$28 > 0, TEXT('Invoice overview'!$G$28,\"TT.MM.JJJJ\"),\"\"),\"until\",IF('Invoice overview'!$I$28 > 0, TEXT('Invoice overview'!$I$28,\"TT.MM.JJJJ\"),\"\"))","v":"   until   "}]
[]
["V1","Nature of event:",null,null,null,null,"Place/date:"]
["Voucher no.","Voucher content","Voucher date\ndd/mm/yy","Amount\nof the voucher","Currency\nof the voucher","Exchange rate*","Price","Remarks"]
[1,null,null,null,null,null,{"$f":"D8*F8","v":0}]
[2,null,null,null,null,null,{"$f":"D9*F9","v":0}]
[3,null,null,null,null,null,0]
[4,null,null,null,null,null,0]
[5,null,null,null,null,null,0]
[6,null,null,null,null,null,0]
[7,null,null,null,null,null,0]
[8,null,null,null,null,null,0]
[9,null,null,null,null,null,0]
[10,null,null,null,null,null,0]
[11,null,null,null,null,null,0]
[12,null,null,null,null,null,0]
[13,null,null,null,null,null,0]
[14,null,null,null,null,null,0]
[15,null,null,null,null,null,0]
[16,null,null,null,null,null,0]
[17,null,null,null,null,null,0]
[18,null,null,null,null,null,0]
[19,null,null,null,null,null,0]
[20,null,null,null,null,null,0]
[21,null,null,null,null,null,0]
[22,null,null,null,null,null,0]
[23,null,null,null,null,null,0]
[24,null,null,null,null,null,0]
[25,null,null,null,null,null,0]
[26,null,null,null,null,null,0]
[27,null,null,null,null,null,0]
[28,null,null,null,null,null,0]
[29,null,null,null,null,null,0]
[30,null,null,null,null,null,0]
[null,"Total V1:",null,null,null,{"$f":"'Invoice overview'!F32","v":"EUR"},{"$f":"SUM(G8:G37)","v":0}]

{"sheet":"5.15. Wo. & tr. for partner(24)","index":58,"n_rows":38,"n_cols":8,"rows_kept":38,"cut":false,"hidden":true,"merged":[[5,2,5,5],[37,1,37,2],[0,0,0,6]]}
["5.15.   Workshops/Training for partner staff (only on presentation of evidence) ",null,null,null,null,null,null,24]
[]
[null,"Contract number:",null,"Processing no./Cost centre:",null,"Accounting period:"]
[null,{"$f":"'Invoice overview'!A28","v":0},null,{"$f":"'Invoice overview'!C28","v":0},null,{"$f":"_xlfn.TEXTJOIN(\"   \",FALSE,IF('Invoice overview'!$G$28 > 0, TEXT('Invoice overview'!$G$28,\"TT.MM.JJJJ\"),\"\"),\"until\",IF('Invoice overview'!$I$28 > 0, TEXT('Invoice overview'!$I$28,\"TT.MM.JJJJ\"),\"\"))","v":"   until   "}]
[]
["V1","Nature of event:",null,null,null,null,"Place/date:"]
["Voucher no.","Voucher content","Voucher date\ndd/mm/yy","Amount\nof the voucher","Currency\nof the voucher","Exchange rate*","Price","Remarks"]
[1,null,null,null,null,null,{"$f":"D8*F8","v":0}]
[2,null,null,null,null,null,{"$f":"D9*F9","v":0}]
[3,null,null,null,null,null,0]
[4,null,null,null,null,null,0]
[5,null,null,null,null,null,0]
[6,null,null,null,null,null,0]
[7,null,null,null,null,null,0]
[8,null,null,null,null,null,0]
[9,null,null,null,null,null,0]
[10,null,null,null,null,null,0]
[11,null,null,null,null,null,0]
[12,null,null,null,null,null,0]
[13,null,null,null,null,null,0]
[14,null,null,null,null,null,0]
[15,null,null,null,null,null,0]
[16,null,null,null,null,null,0]
[17,null,null,null,null,null,0]
[18,null,null,null,null,null,0]
[19,null,null,null,null,null,0]
[20,null,null,null,null,null,0]
[21,null,null,null,null,null,0]
[22,null,null,null,null,null,0]
[23,null,null,null,null,null,0]
[24,null,null,null,null,null,0]
[25,null,null,null,null,null,0]
[26,null,null,null,null,null,0]
[27,null,null,null,null,null,0]
[28,null,null,null,null,null,0]
[29,null,null,null,null,null,0]
[30,null,null,null,null,null,0]
[null,"Total V1:",null,null,null,{"$f":"'Invoice overview'!F32","v":"EUR"},{"$f":"SUM(G8:G37)","v":0}]

{"sheet":"5.15. Wo. & tr. for partner(25)","index":59,"n_rows":38,"n_cols":8,"rows_kept":38,"cut":false,"hidden":true,"merged":[[5,2,5,5],[37,1,37,2],[0,0,0,6]]}
["5.15.   Workshops/Training for partner staff (only on presentation of evidence) ",null,null,null,null,null,null,25]
[]
[null,"Contract number:",null,"Processing no./Cost centre:",null,"Accounting period:"]
[null,{"$f":"'Invoice overview'!A28","v":0},null,{"$f":"'Invoice overview'!C28","v":0},null,{"$f":"_xlfn.TEXTJOIN(\"   \",FALSE,IF('Invoice overview'!$G$28 > 0, TEXT('Invoice overview'!$G$28,\"TT.MM.JJJJ\"),\"\"),\"until\",IF('Invoice overview'!$I$28 > 0, TEXT('Invoice overview'!$I$28,\"TT.MM.JJJJ\"),\"\"))","v":"   until   "}]
[]
["V1","Nature of event:",null,null,null,null,"Place/date:"]
["Voucher no.","Voucher content","Voucher date\ndd/mm/yy","Amount\nof the voucher","Currency\nof the voucher","Exchange rate*","Price","Remarks"]
[1,null,null,null,null,null,{"$f":"D8*F8","v":0}]
[2,null,null,null,null,null,{"$f":"D9*F9","v":0}]
[3,null,null,null,null,null,0]
[4,null,null,null,null,null,0]
[5,null,null,null,null,null,0]
[6,null,null,null,null,null,0]
[7,null,null,null,null,null,0]
[8,null,null,null,null,null,0]
[9,null,null,null,null,null,0]
[10,null,null,null,null,null,0]
[11,null,null,null,null,null,0]
[12,null,null,null,null,null,0]
[13,null,null,null,null,null,0]
[14,null,null,null,null,null,0]
[15,null,null,null,null,null,0]
[16,null,null,null,null,null,0]
[17,null,null,null,null,null,0]
[18,null,null,null,null,null,0]
[19,null,null,null,null,null,0]
[20,null,null,null,null,null,0]
[21,null,null,null,null,null,0]
[22,null,null,null,null,null,0]
[23,null,null,null,null,null,0]
[24,null,null,null,null,null,0]
[25,null,null,null,null,null,0]
[26,null,null,null,null,null,0]
[27,null,null,null,null,null,0]
[28,null,null,null,null,null,0]
[29,null,null,null,null,null,0]
[30,null,null,null,null,null,0]
[null,"Total V1:",null,null,null,{"$f":"'Invoice overview'!F32","v":"EUR"},{"$f":"SUM(G8:G37)","v":0}]

{"sheet":"5.15. Wo. & tr. for partner(26)","index":60,"n_rows":38,"n_cols":8,"rows_kept":38,"cut":false,"hidden":true,"merged":[[5,2,5,5],[37,1,37,2],[0,0,0,6]]}
["5.15.   Workshops/Training for partner staff (only on presentation of evidence) ",null,null,null,null,null,null,26]
[]
[null,"Contract number:",null,"Processing no./Cost centre:",null,"Accounting period:"]
[null,{"$f":"'Invoice overview'!A28","v":0},null,{"$f":"'Invoice overview'!C28","v":0},null,{"$f":"_xlfn.TEXTJOIN(\"   \",FALSE,IF('Invoice overview'!$G$28 > 0, TEXT('Invoice overview'!$G$28,\"TT.MM.JJJJ\"),\"\"),\"until\",IF('Invoice overview'!$I$28 > 0, TEXT('Invoice overview'!$I$28,\"TT.MM.JJJJ\"),\"\"))","v":"   until   "}]
[]
["V1","Nature of event:",null,null,null,null,"Place/date:"]
["Voucher no.","Voucher content","Voucher date\ndd/mm/yy","Amount\nof the voucher","Currency\nof the voucher","Exchange rate*","Price","Remarks"]
[1,null,null,null,null,null,{"$f":"D8*F8","v":0}]
[2,null,null,null,null,null,{"$f":"D9*F9","v":0}]
[3,null,null,null,null,null,0]
[4,null,null,null,null,null,0]
[5,null,null,null,null,null,0]
[6,null,null,null,null,null,0]
[7,null,null,null,null,null,0]
[8,null,null,null,null,null,0]
[9,null,null,null,null,null,0]
[10,null,null,null,null,null,0]
[11,null,null,null,null,null,0]
[12,null,null,null,null,null,0]
[13,null,null,null,null,null,0]
[14,null,null,null,null,null,0]
[15,null,null,null,null,null,0]
[16,null,null,null,null,null,0]
[17,null,null,null,null,null,0]
[18,null,null,null,null,null,0]
[19,null,null,null,null,null,0]
[20,null,null,null,null,null,0]
[21,null,null,null,null,null,0]
[22,null,null,null,null,null,0]
[23,null,null,null,null,null,0]
[24,null,null,null,null,null,0]
[25,null,null,null,null,null,0]
[26,null,null,null,null,null,0]
[27,null,null,null,null,null,0]
[28,null,null,null,null,null,0]
[29,null,null,null,null,null,0]
[30,null,null,null,null,null,0]
[null,"Total V1:",null,null,null,{"$f":"'Invoice overview'!F32","v":"EUR"},{"$f":"SUM(G8:G37)","v":0}]

{"sheet":"5.15. Wo. & tr. for partner(27)","index":61,"n_rows":38,"n_cols":8,"rows_kept":38,"cut":false,"hidden":true,"merged":[[5,2,5,5],[37,1,37,2],[0,0,0,6]]}
["5.15.   Workshops/Training for partner staff (only on presentation of evidence) ",null,null,null,null,null,null,27]
[]
[null,"Contract number:",null,"Processing no./Cost centre:",null,"Accounting period:"]
[null,{"$f":"'Invoice overview'!A28","v":0},null,{"$f":"'Invoice overview'!C28","v":0},null,{"$f":"_xlfn.TEXTJOIN(\"   \",FALSE,IF('Invoice overview'!$G$28 > 0, TEXT('Invoice overview'!$G$28,\"TT.MM.JJJJ\"),\"\"),\"until\",IF('Invoice overview'!$I$28 > 0, TEXT('Invoice overview'!$I$28,\"TT.MM.JJJJ\"),\"\"))","v":"   until   "}]
[]
["V1","Nature of event:",null,null,null,null,"Place/date:"]
["Voucher no.","Voucher content","Voucher date\ndd/mm/yy","Amount\nof the voucher","Currency\nof the voucher","Exchange rate*","Price","Remarks"]
[1,null,null,null,null,null,{"$f":"D8*F8","v":0}]
[2,null,null,null,null,null,{"$f":"D9*F9","v":0}]
[3,null,null,null,null,null,0]
[4,null,null,null,null,null,0]
[5,null,null,null,null,null,0]
[6,null,null,null,null,null,0]
[7,null,null,null,null,null,0]
[8,null,null,null,null,null,0]
[9,null,null,null,null,null,0]
[10,null,null,null,null,null,0]
[11,null,null,null,null,null,0]
[12,null,null,null,null,null,0]
[13,null,null,null,null,null,0]
[14,null,null,null,null,null,0]
[15,null,null,null,null,null,0]
[16,null,null,null,null,null,0]
[17,null,null,null,null,null,0]
[18,null,null,null,null,null,0]
[19,null,null,null,null,null,0]
[20,null,null,null,null,null,0]
[21,null,null,null,null,null,0]
[22,null,null,null,null,null,0]
[23,null,null,null,null,null,0]
[24,null,null,null,null,null,0]
[25,null,null,null,null,null,0]
[26,null,null,null,null,null,0]
[27,null,null,null,null,null,0]
[28,null,null,null,null,null,0]
[29,null,null,null,null,null,0]
[30,null,null,null,null,null,0]
[null,"Total V1:",null,null,null,{"$f":"'Invoice overview'!F32","v":"EUR"},{"$f":"SUM(G8:G37)","v":0}]

{"sheet":"5.15. Wo. & tr. for partner(28)","index":62,"n_rows":38,"n_cols":8,"rows_kept":38,"cut":false,"hidden":true,"merged":[[5,2,5,5],[37,1,37,2],[0,0,0,6]]}
["5.15.   Workshops/Training for partner staff (only on presentation of evidence) ",null,null,null,null,null,null,28]
[]
[null,"Contract number:",null,"Processing no./Cost centre:",null,"Accounting period:"]
[null,{"$f":"'Invoice overview'!A28","v":0},null,{"$f":"'Invoice overview'!C28","v":0},null,{"$f":"_xlfn.TEXTJOIN(\"   \",FALSE,IF('Invoice overview'!$G$28 > 0, TEXT('Invoice overview'!$G$28,\"TT.MM.JJJJ\"),\"\"),\"until\",IF('Invoice overview'!$I$28 > 0, TEXT('Invoice overview'!$I$28,\"TT.MM.JJJJ\"),\"\"))","v":"   until   "}]
[]
["V1","Nature of event:",null,null,null,null,"Place/date:"]
["Voucher no.","Voucher content","Voucher date\ndd/mm/yy","Amount\nof the voucher","Currency\nof the voucher","Exchange rate*","Price","Remarks"]
[1,null,null,null,null,null,{"$f":"D8*F8","v":0}]
[2,null,null,null,null,null,{"$f":"D9*F9","v":0}]
[3,null,null,null,null,null,0]
[4,null,null,null,null,null,0]
[5,null,null,null,null,null,0]
[6,null,null,null,null,null,0]
[7,null,null,null,null,null,0]
[8,null,null,null,null,null,0]
[9,null,null,null,null,null,0]
[10,null,null,null,null,null,0]
[11,null,null,null,null,null,0]
[12,null,null,null,null,null,0]
[13,null,null,null,null,null,0]
[14,null,null,null,null,null,0]
[15,null,null,null,null,null,0]
[16,null,null,null,null,null,0]
[17,null,null,null,null,null,0]
[18,null,null,null,null,null,0]
[19,null,null,null,null,null,0]
[20,null,null,null,null,null,0]
[21,null,null,null,null,null,0]
[22,null,null,null,null,null,0]
[23,null,null,null,null,null,0]
[24,null,null,null,null,null,0]
[25,null,null,null,null,null,0]
[26,null,null,null,null,null,0]
[27,null,null,null,null,null,0]
[28,null,null,null,null,null,0]
[29,null,null,null,null,null,0]
[30,null,null,null,null,null,0]
[null,"Total V1:",null,null,null,{"$f":"'Invoice overview'!F32","v":"EUR"},{"$f":"SUM(G8:G37)","v":0}]

{"sheet":"5.15. Wo. & tr. for partner(29)","index":63,"n_rows":38,"n_cols":8,"rows_kept":38,"cut":false,"hidden":true,"merged":[[5,2,5,5],[37,1,37,2],[0,0,0,6]]}
["5.15.   Workshops/Training for partner staff (only on presentation of evidence) ",null,null,null,null,null,null,29]
[]
[null,"Contract number:",null,"Processing no./Cost centre:",null,"Accounting period:"]
[null,{"$f":"'Invoice overview'!A28","v":0},null,{"$f":"'Invoice overview'!C28","v":0},null,{"$f":"_xlfn.TEXTJOIN(\"   \",FALSE,IF('Invoice overview'!$G$28 > 0, TEXT('Invoice overview'!$G$28,\"TT.MM.JJJJ\"),\"\"),\"until\",IF('Invoice overview'!$I$28 > 0, TEXT('Invoice overview'!$I$28,\"TT.MM.JJJJ\"),\"\"))","v":"   until   "}]
[]
["V1","Nature of event:",null,null,null,null,"Place/date:"]
["Voucher no.","Voucher content","Voucher date\ndd/mm/yy","Amount\nof the voucher","Currency\nof the voucher","Exchange rate*","Price","Remarks"]
[1,null,null,null,null,null,{"$f":"D8*F8","v":0}]
[2,null,null,null,null,null,{"$f":"D9*F9","v":0}]
[3,null,null,null,null,null,0]
[4,null,null,null,null,null,0]
[5,null,null,null,null,null,0]
[6,null,null,null,null,null,0]
[7,null,null,null,null,null,0]
[8,null,null,null,null,null,0]
[9,null,null,null,null,null,0]
[10,null,null,null,null,null,0]
[11,null,null,null,null,null,0]
[12,null,null,null,null,null,0]
[13,null,null,null,null,null,0]
[14,null,null,null,null,null,0]
[15,null,null,null,null,null,0]
[16,null,null,null,null,null,0]
[17,null,null,null,null,null,0]
[18,null,null,null,null,null,0]
[19,null,null,null,null,null,0]
[20,null,null,null,null,null,0]
[21,null,null,null,null,null,0]
[22,null,null,null,null,null,0]
[23,null,null,null,null,null,0]
[24,null,null,null,null,null,0]
[25,null,null,null,null,null,0]
[26,null,null,null,null,null,0]
[27,null,null,null,null,null,0]
[28,null,null,null,null,null,0]
[29,null,null,null,null,null,0]
[30,null,null,null,null,null,0]
[null,"Total V1:",null,null,null,{"$f":"'Invoice overview'!F32","v":"EUR"},{"$f":"SUM(G8:G37)","v":0}]

{"sheet":"5.15. Wo. & tr. for partner(30)","index":64,"n_rows":38,"n_cols":8,"rows_kept":38,"cut":false,"hidden":true,"merged":[[5,2,5,5],[37,1,37,2],[0,0,0,6]]}
["5.15.   Workshops/Training for partner staff (only on presentation of evidence) ",null,null,null,null,null,null,30]
[]
[null,"Contract number:",null,"Processing no./Cost centre:",null,"Accounting period:"]
[null,{"$f":"'Invoice overview'!A28","v":0},null,{"$f":"'Invoice overview'!C28","v":0},null,{"$f":"_xlfn.TEXTJOIN(\"   \",FALSE,IF('Invoice overview'!$G$28 > 0, TEXT('Invoice overview'!$G$28,\"TT.MM.JJJJ\"),\"\"),\"until\",IF('Invoice overview'!$I$28 > 0, TEXT('Invoice overview'!$I$28,\"TT.MM.JJJJ\"),\"\"))","v":"   until   "}]
[]
["V1","Nature of event:",null,null,null,null,"Place/date:"]
["Voucher no.","Voucher content","Voucher date\ndd/mm/yy","Amount\nof the voucher","Currency\nof the voucher","Exchange rate*","Price","Remarks"]
[1,null,null,null,null,null,{"$f":"D8*F8","v":0}]
[2,null,null,null,null,null,{"$f":"D9*F9","v":0}]
[3,null,null,null,null,null,0]
[4,null,null,null,null,null,0]
[5,null,null,null,null,null,0]
[6,null,null,null,null,null,0]
[7,null,null,null,null,null,0]
[8,null,null,null,null,null,0]
[9,null,null,null,null,null,0]
[10,null,null,null,null,null,0]
[11,null,null,null,null,null,0]
[12,null,null,null,null,null,0]
[13,null,null,null,null,null,0]
[14,null,null,null,null,null,0]
[15,null,null,null,null,null,0]
[16,null,null,null,null,null,0]
[17,null,null,null,null,null,0]
[18,null,null,null,null,null,0]
[19,null,null,null,null,null,0]
[20,null,null,null,null,null,0]
[21,null,null,null,null,null,0]
[22,null,null,null,null,null,0]
[23,null,null,null,null,null,0]
[24,null,null,null,null,null,0]
[25,null,null,null,null,null,0]
[26,null,null,null,null,null,0]
[27,null,null,null,null,null,0]
[28,null,null,null,null,null,0]
[29,null,null,null,null,null,0]
[30,null,null,null,null,null,0]
[null,"Total V1:",null,null,null,{"$f":"'Invoice overview'!F32","v":"EUR"},{"$f":"SUM(G8:G37)","v":0}]

{"sheet":"5.16. Local subsidies","index":65,"n_rows":21,"n_cols":8,"rows_kept":21,"cut":false,"hidden":false,"merged":[[0,0,0,7]]}
["5.16.  Local subsidies (only on presentation of evidence)"]
[null,"Contract number:",null,"Processing no./Cost centre:",null,"Accounting period:"]
[null,{"$f":"'Invoice overview'!A28","v":0},null,{"$f":"'Invoice overview'!C28","v":0},null,{"$f":"_xlfn.TEXTJOIN(\"   \",FALSE,IF('Invoice overview'!$G$28 > 0, TEXT('Invoice overview'!$G$28,\"TT.MM.JJJJ\"),\"\"),\"bis\",IF('Invoice overview'!$I$28 > 0, TEXT('Invoice overview'!$I$28,\"TT.MM.JJJJ\"),\"\"))","v":"   bis   "}]
[]
["Voucher no.","Recipient of subsidy","Contract number","Amount\nof the voucher","Currency\nof the voucher","Exchange rate*","Grant","Remarks"]
[1,null,null,null,null,null,{"$f":"D6*F6","v":0}]
[2,null,null,null,null,null,{"$f":"D7*F7","v":0}]
[3,null,null,null,null,null,0]
[4,null,null,null,null,null,0]
[5,null,null,null,null,null,0]
[6,null,null,null,null,null,0]
[7,null,null,null,null,null,0]
[8,null,null,null,null,null,0]
[9,null,null,null,null,null,0]
[10,null,null,null,null,null,0]
[11,null,null,null,null,null,0]
[12,null,null,null,null,null,0]
[13,null,null,null,null,null,0]
[14,null,null,null,null,null,0]
[15,null,null,null,null,null,0]
["TOTAL:",null,null,null,null,{"$f":"'Invoice overview'!F32","v":"EUR"},{"$f":"SUM(G6:G20)","v":0}]

{"sheet":"5.17. Other costs","index":66,"n_rows":37,"n_cols":6,"rows_kept":37,"cut":false,"hidden":false,"merged":[[0,0,0,7],[5,5,5,7],[26,5,26,7],[27,5,27,7],[28,5,28,7],[19,5,19,7],[20,5,20,7],[21,5,21,7],[22,5,22,7],[23,5,23,7],[24,5,24,7],[25,5,25,7],[4,0,4,7],[34,5,34,7],[35,5,35,7],[29,5,29,7],[30,5,30,7],[31,5,31,7],[32,5,32,7],[36,5,36,7],[36,0,36,2],[6,5,6,7],[7,5,7,7],[8,5,8,7],[9,5,9,7],[10,5,10,7],[11,5,11,7],[12,5,12,7],[13,5,13,7],[14,5,14,7],[15,5,15,7],[16,5,16,7],[17,5,17,7],[18,5,18,7],[33,5,33,7]]}
["5.17.  Other costs"]
[null,"Contract number:",null,"Processing no./Cost centre:",null,"Accounting period:"]
[null,{"$f":"'Invoice overview'!A28","v":0},null,{"$f":"'Invoice overview'!C28","v":0},null,{"$f":"_xlfn.TEXTJOIN(\"   \",FALSE,IF('Invoice overview'!$G$28 > 0, TEXT('Invoice overview'!$G$28,\"TT.MM.JJJJ\"),\"\"),\"until\",IF('Invoice overview'!$I$28 > 0, TEXT('Invoice overview'!$I$28,\"TT.MM.JJJJ\"),\"\"))","v":"   until   "}]
[]
["Lump sum"]
["No.","Nature of other costs","Lump sum amount","Quantity","Price","Remarks"]
[1,null,0,0,{"$f":"SUM(D7*C7)","v":0}]
[2,null,0,0,0]
[3,null,0,0,0]
[4,null,0,0,0]
[5,null,0,0,0]
[6,null,0,0,0]
[7,null,0,0,0]
[8,null,0,0,0]
[9,null,0,0,0]
[10,null,0,0,0]
[11,null,0,0,0]
[12,null,0,0,0]
[13,null,0,0,0]
[14,null,0,0,0]
[15,null,0,0,0]
[16,null,0,0,0]
[17,null,0,0,0]
[18,null,0,0,0]
[19,null,0,0,0]
[20,null,0,0,0]
[21,null,0,0,{"$f":"SUM(D27*C27)","v":0}]
[22,null,0,0,0]
[23,null,0,0,0]
[24,null,0,0,0]
[25,null,0,0,0]
[26,null,0,0,0]
[27,null,0,0,0]
[28,null,0,0,0]
[29,null,0,0,0]
[30,null,0,0,0]
["Subtotal:",null,null,"EUR",{"$f":"SUM(E7:E36)","v":0}]

{"sheet":"5.18. Flex. remun. item","index":67,"n_rows":16,"n_cols":6,"rows_kept":16,"cut":false,"hidden":false,"merged":[[16,2,16,3],[17,2,17,3],[15,2,15,3],[0,0,0,7],[4,2,4,3],[5,2,5,3],[6,2,6,3],[7,2,7,3],[8,2,8,3],[9,2,9,3],[10,2,10,3],[11,2,11,3],[12,2,12,3],[13,2,13,3],[14,2,14,3]]}
["5.18.  Flexible remuneration item (subject to approval from officer responsible for the commission)"]
[null,"Contract number:","Processing no./Cost centre:","Accounting period:"]
[null,{"$f":"'Invoice overview'!A28","v":0},{"$f":"'Invoice overview'!C28","v":0},{"$f":"_xlfn.TEXTJOIN(\"   \",FALSE,IF('Invoice overview'!$G$28 > 0, TEXT('Invoice overview'!$G$28,\"TT.MM.JJJJ\"),\"\"),\"bis\",IF('Invoice overview'!$I$28 > 0, TEXT('Invoice overview'!$I$28,\"TT.MM.JJJJ\"),\"\"))","v":"   bis   "}]
[]
["No.","Remuneration item exceeded","Justification",null,"Total excess costs","Remarks"]
[1,null,null,null,0]
[2,null,null,null,0]
[3,null,null,null,0]
[4,null,null,null,0]
[5,null,null,null,0]
[6,null,null,null,0]
[7,null,null,null,0]
[8,null,null,null,0]
[9,null,null,null,0]
[10,null,null,null,0]
[null,null,"Flexible remuneration claimed",null,{"$f":"SUM(E6:E15)","v":0}]